Workbook

Sheet ТИТУЛ
B26: Расчет материалов
L31: =CONCATENATE("СПЕЦИФИКАЦИЯ ",номер_объекта) -> СПЕЦИФИКАЦИЯ 11-27ХХ-МПКПМКИ-12.21
B32: =IF(ОБЩИЕ_ДАННЫЕ!C6=0,"",ОБЩИЕ_ДАННЫЕ!C6) -> 11-27ХХ-МПКПМКИ-12.21
M33: =IF(ISERROR(LEFT(B32,FIND("-",B32)-1))," ",LEFT(B32,FIND("-",B32)-1)) -> 11
L35: 1 | M35: Потовой С.
L36: 2 | M36: Заброда Р.
L37: 3 | M37: Шелестов А.
L38: 4 | M38: Толстов А.
L39: 5 | M39: Крутоверцева Ю.
L40: 6 | M40: Стоякина А.
L41: 7 | M41: Пятков Е.
L42: 8 | M42: Дудин М.
L43: 9 | M43: Козырева Е.
L44: 10
L45: 11 | M45: Шумилов М.
L46: 12 | M46: Воеводин В.
L47: 13 | M47: Семак М.
L48: 14 | M48: Шустов С.
L49: 15 | M49: Лобанова Т.
L50: 16 | M50: Покас О.
L51: 17
L52: 54 | M52: Калачев
L53: 55 | M53: Колесников
L54: 56 | M54: Кремянская
L55: 57 | M55: Мареева
L56: 58 | M56: Новожонов
L57: 59 | M57: Силищев
B66: Расчет выполнил: | D66: =IFERROR(INDEX(M35:M57,MATCH(VALUE(M33),L35:L57)),"") -> Шумилов М.
D67: =IFERROR(IF(VALUE(M33)<13,"prc@tn.ru",""),"") -> prc@tn.ru
C69: =YEAR(TODAY()) -> 2021

Sheet ОБЩИЕ_ДАННЫЕ
H1: ↓
B2: ОБЩИЕ ДАННЫЕ | H2: Кровля горизонт | J2: Т0 | K2: Нет полной информации о площади объекта (чертежи с искажениями, нечитаемые размеры). | X2: Скидка
B3: Дата поступления исходных данных | C3: =IFERROR(LEFT(C196,FIND(" ",C196)-1)," ") -> 13.12.2021 | J3: Т1 | K3: Присутствует информация о площади, нет данных по любому из пунктов: - Состав типов кровли; - Тип местности; - Тип основания; - Продуваемость конструкции.
B4: Дата выдачи расчета | C4: =IF(C195=0," ",C195) -> 2021-12-13
B5: Номер заявки | C5: 1555ХХ
B6: Шифр расчета | C6: 11-27ХХ-МПКПМКИ-12.21
B7: № CRM | C7: =IF(C214=0," ",C214) ->  | J7: Т2 | K7: Присутствует информация о площади и составу конструкций, нет данных по любому из пунктов: -Тип местности; -Тип основания; -Продуваемость конструкции.
B8: Промокод | C8: =IF(C216=0," ",C216) -> 
B9: Объект | C9: Многофункциональный спортивный центр
B10: Адрес объекта/ Регион объекта | C10: Тверь | F10: =IFERROR(INDEX(I87:I102,MATCH(C223,J87:J102,0)),"н/д") -> ЦФО | J10: Т3 | K10: Присутствует полная информация о площади кровли и выступающим элементам + выполнен ветровой расчет п.5.
B11: Заказчик/ Регион заказчика | C11: =IF(C203=0," ",C203) -> Торговый партнер | F11: =IFERROR(INDEX(I87:I102,MATCH(C209,J87:J102,0)),"н/д") -> ЦФО
B12: Организация/Для кого | E12: =IF(B207=0," ",LEFT(B207,(LEN(B207)-1))) -> Для кого | H12: Кровля примыкан. | J12: Т1 | K12: Нет информации по узлам примыканий, учитывается стандартное примыкание тип1 (для ПМ), тип 2 (для РМ)
B13: ФИО Заказчика
B14: Должность | C14: =IF(C200=0," ",C200) -> менеджер
B15: Контакты заказчика
B16: Площадь конструкции, м2 | C16: =IF(SUMPRODUCT(SUM(INDIRECT({"ТИП1";"ТИП2";"ТИП3";"ТИП4";"ТИП5";"ТИП6";"ТИП7";"ТИП8";"ТИП9";"ТИП10"}&"!P3")))=0,IF(SUM(J133:J142)=0,SUM(J149:J158),SUM(J133:J142)),SUM(INDIRECT({"ТИП1";"ТИП2";"ТИП3";"ТИП4";"ТИП5";"ТИП6";"ТИП7";"ТИП8";"ТИП9";"ТИП10"}&"!P3"))) -> 1751 | J16: Т2 | K16: Присутствует частичная информация по примыканиям, в случае если узлы примыканий в проекте отличаются от стандартов ТН, принимаются узлы ТН.
B17: Текущая стадия | C17: =IF(C221=0,"Нет данных ",C221) -> Нулевой цикл
B18: Тип расчета | C18: =IF(C205=0," ",C205) -> Новый расчет
B19: Количество вариантов расчета | C19: 1 | D19: № варианта | F19: 1 | J19: Т3 | K19: Присутствует полная информация по примыканиям, в случае если узлы примыканий в проекте отличаются от стандартов ТН, принимаются узлы ТН.
B20: Количество типов конструкции | C20: =IF(SUM(INDIRECT({"ТИП1";"ТИП2";"ТИП3";"ТИП4";"ТИП5";"ТИП6";"ТИП7";"ТИП8";"ТИП9";"ТИП10"}&"!AC20"))>0,SUM(INDIRECT({"ТИП1";"ТИП2";"ТИП3";"ТИП4";"ТИП5";"ТИП6";"ТИП7";"ТИП8";"ТИП9";"ТИП10"}&"!AC20")),0) -> 2
H21: Ветровой расчет | J21: Т1 | K21: Нет данных по любому из пунктов: -Тип местности; -Тип основания; -Продуваемость конструкции; -Геометрические размеры здания.
B22: ТОЧНОСТЬ РАСЧЁТА
B23: Наименование показателя | D23: Класс | E23: Погрешность
B24: Расчет материалов по горизонтальной части кровли | D24: Т2 | E24: =IF(D24="Т0",N88,IF(D24="Т1",N89,IF(D24="Т2",N90,IF(D24="Т3",N91,"")))) -> 5-25%
B25: Расчет материалов по примыканиям | D25: Т2 | E25: =IF(D25="Т0",N88,IF(D25="Т1",N93,IF(D25="Т2",N94,IF(D25="Т3",N95,"")))) -> 5-15%
B26: Расчет количества клиновидной теплоизоляции | D26: =IF((O34)=1,"Т2",IF(O34=2,"Т2",IF(O34=3,"Т1","0"))) -> Т2 | E26: =IF(D26="Т0",N88,IF(D26="Т1",N97,IF(D26="Т2",N98,IF(D26="Т3",N99,"")))) -> Клин.плиты 5-8% Доб.плиты 5-10% | J26: Т3 | K26: Предоставлены все данные для расчета.
B27: Ветровой расчет | D27: 0 | E27: =IF(D27="Т0",N88,IF(D27="Т1",N101,IF(D27="Т3",N102,""))) ->  | H27: Примечание: | J27: -
B31: СТОИМОСТЬ РАСЧЁТА | H31: Стоимость расчета СБЕ
B32: Вид расчета | C32: Сложность | D32: Стоимость | E32: Скидка % | F32: Итого: | H32: Вид расчета | O32: Сложность | P32: Стоимость | Q32: Скидка % | R32: Итого: | W32: КВ | X32: XPS | Y32: ПИР | Z32: ПМ | AA32: РМ | AB32: МиСХ | AC32: Плантер
B33: Анализ чертежей | C33: =O33 -> 1 | D33: 0 | E33: 100% | F33: =D33*(100%-E33) -> 0.00 | H33: Анализ чертежей | O33: 1 | P33: =IF(OR(C16=0,O33=0),0,INDEX(Прайс!J39:M41,O33,P80)) -> 1000 | Q33: 100% | R33: =P33*(100%-Q33) -> 0.00 | W33: ='Деление по СБЕ'!C43 -> 1 | X33: ='Деление по СБЕ'!D43 -> 0 | Y33: ='Деление по СБЕ'!E43 -> 0 | Z33: ='Деление по СБЕ'!F43 -> 1 | AA33: ='Деление по СБЕ'!G43 -> 1 | AB33: ='Деление по СБЕ'!H43 -> 0 | AC33: ='Деление по СБЕ'!I43 -> 0
B34: Расчет количества клиновидной теплоизоляции | C34: =O34 -> 1 | D34: =IF(AND($C$16>0,C34>0),5000,0) -> 5000 | E34: 100% | F34: =D34*(100%-E34) -> 0.00 | H34: Расчет количества клиновидной теплоизоляции | O34: =Прайс!AC7 -> 1 | P34: =Прайс!AC8*N81*O83 -> 1200 | Q34: 100% | R34: 0.00 | W34: ='Деление по СБЕ'!C3 -> 1 | X34: ='Деление по СБЕ'!D3 -> 0 | Y34: ='Деление по СБЕ'!E3 -> 0
B35: Расчет количества материалов Плоской кровли ПМ | C35: =O35 -> 2 | D35: =IF(AND($C$16>0,C35>0),5000,0) -> 5000 | E35: 100% | F35: 0.00 | H35: Расчет количества материалов Плоской кровли ПМ | O35: 2 | P35: =IF('Деление по СБЕ'!L20=0,0,IF(OR(N86=0,O35=0),0,INDEX(Прайс!J18:M20,O35,N80))*N81*N82*N83) -> 2880 | Q35: 100% | R35: 0.00 | W35: ='Деление по СБЕ'!C18 -> 1 | X35: ='Деление по СБЕ'!D18 -> 0 | Y35: ='Деление по СБЕ'!E18 -> 0 | Z35: ='Деление по СБЕ'!F18 -> 1 | AA35: ='Деление по СБЕ'!G18 -> 1 | AB35: ='Деление по СБЕ'!H18 -> 0
B36: Расчет количества материалов Плоской кровли РМ | C36: 0 | D36: 0 | E36: 100% | F36: 0.00 | H36: Расчет количества материалов Плоской кровли РМ | O36: 0 | P36: =IF('Деление по СБЕ'!L25=0,0,IF(OR(N85=0,O36=0),0,INDEX(Прайс!J21:M23,O36,O80))*N81*N82*N83) -> 0 | Q36: 100% | R36: 0.00 | W36: ='Деление по СБЕ'!C23 -> 0 | X36: ='Деление по СБЕ'!D23 -> 0 | Y36: ='Деление по СБЕ'!E23 -> 0 | AA36: ='Деление по СБЕ'!G23 -> 0 | AB36: ='Деление по СБЕ'!H23 -> 0
B37: Ветровой расчет ПМ | C37: 0 | D37: 0 | E37: 100% | F37: =D37*(100%-E37) -> 0.00 | H37: Ветровой расчет ПМ | M37: Кол-во: | N37: 0 | O37: 0 | P37: =IF(OR(C16=0,O37=0),0,INDEX(Прайс!J$24:J$26,O37))*N$84*$N$81 -> 0 | Q37: 100% | R37: 0.00 | Z37: ='Деление по СБЕ'!F28 -> 0 | AA37: -
B38: Ветровой расчет РМ | C38: 0 | D38: 0 | E38: 100% | F38: =D38*(100%-E38) -> 0.00 | H38: Ветровой расчет РМ | M38: Кол-во: | N38: 0 | O38: 0 | P38: =IF(OR(C16=0,O38=0),0,INDEX(Прайс!J$24:J$26,O38))*O$84*$N$81 -> 0 | Q38: 100% | R38: 0.00 | Z38: - | AA38: ='Деление по СБЕ'!G33 -> 0
B39: Теплотехнический расчет методика СП 23-02-2003 | C39: 0 | D39: 0 | E39: 100% | F39: =D39*(100%-E39) -> 0.00 | H39: Теплотехнический расчет методика СП 23-02-2003 | O39: 0 | P39: =O39*Прайс!G70*$N$81 -> 0 | Q39: 100% | R39: 0.00 | Z39: =IF(O39=0," ","ЗАПОЛНИТЬ ПРИСУТСТВИЕ СБЕ В РУЧНУЮ (0 ИЛИ 1)") -> 
B40: Теплотехнический расчет по методике СП 50 | C40: =O40 -> 0 | D40: 0 | E40: 100% | F40: =D40*(100%-E40) -> 0.00 | H40: Теплотехнический расчет по методике СП 50 | O40: 0 | P40: =IF(O40=0,0,INDEX(Прайс!J$51:J$53,O40)*N81) -> 0 | Q40: 100% | R40: =P40*(100%-Q40) -> 0.00
B41: Расчет паронакопления СП 50-13330.2012 | C41: =O41 -> 0 | D41: 0 | E41: 100% | F41: 0.00 | H41: Расчет паронакопления СП 50-13330.2012 | O41: 0 | P41: =O41*Прайс!G74*$N$81 -> 0 | Q41: 100% | R41: 0.00 | Y41: ='Деление по СБЕ'!E58 -> - | AA41: ='Деление по СБЕ'!G58 -> 0
B42: Расчет ограждения | C42: =O42 -> 2 | D42: 5000 | E42: 100% | F42: 0.00 | H42: Расчет ограждения | O42: 2 | P42: =IF(O42=0,0,INDEX(Прайс!J$48:J$50,O42)*N81) -> 600 | Q42: 100% | R42: 0.00 | Z42: ='Деление по СБЕ'!F63 -> 1
B43: Создание схемы ветровых зон | C43: 0 | D43: 0 | E43: 100% | F43: =D43*(100%-E43) -> 0.00 | H43: Создание схемы ветровых зон | N43: =HYPERLINK("#"&$W$132&"!I125","↓ ") -> ↓ | O43: =IFERROR(ROUNDDOWN(SUM(K133:K142)/COUNTIF(K133:K142,">0"),0),0) -> 0 | P43: =SUM(L133:L142) -> 0 | Q43: 100% | R43: 0.00 | Z43: =IF(SUM(M133:M142)>0,1,0) -> 0 | AA43: =IF(SUM(N133:N142)>0,1,0) -> 0
B44: Оформление раскладки гидроизоляции на кровле | C44: 0 | D44: =P44 -> 0 | E44: 100% | F44: =D44*(100%-E44) -> 0.00 | H44: Оформление раскладки гидроизоляции на кровле | N44: =HYPERLINK("#"&$W$132&"!I141","↓ ") -> ↓ | O44: =IFERROR(ROUNDDOWN(SUM(K149:K158)/COUNTIF(K149:K158,">0"),0),0) -> 0 | P44: =SUM(L149:L158) -> 0 | Q44: 100% | R44: 0.00 | Z44: =IF(SUM(M149:M158)>0,1,0) -> 0 | AA44: =IF(SUM(N149:N158)>0,1,0) -> 0
B45: Итого: | D45: =SUM(D33:D44) -> 15000.0 | F45: =SUM(F33:F44) -> 0.00 | H45: Итого: | P45: =SUM(P33:P44) -> 5680.0 | R45: =SUM(R33:R44) -> 0.00 | W45: - | X45: - | Y45: - | Z45: - | AA45: - | AB45: - | AC45: - | AD45: Согласование
AD46: ИСКЛЮЧЕНИЕ
B48: =IF(C16>=3000,"Для данного объекта Вы можете заказать техническое сопровождение Службы Качества ТехноНИКОЛЬ. Подробности на сайте http://nav.tn.ru","") -> 
H51: 0 | I51: 100% | J51: 100%
H52: 0 | I52: 100% | J52: 100% | M52: 100% | P52: 0
H53: 1 | I53: 100% | J53: 100% | L53: =1170*INDEX(I51:I58,MATCH(C20,H51:H58,0))/N53 -> 257.4 | M53: 100% | N53: 5 | P53: 1
H54: 2 | I54: 110% | J54: 120% | M54: 110% | P54: 2
H55: 3 | I55: 120% | J55: 140% | M55: 120% | P55: 3
H56: 4 | I56: 130% | J56: 160% | M56: 130% | P56: 4
H57: 5 | I57: 140% | J57: 180% | M57: 140% | P57: 5
H58: 6 | I58: 150% | J58: 200% | M58: 150% | P58: 6
H59: 7 | I59: 160% | J59: 220% | M59: 160% | P59: 7
H60: 8 | I60: 170% | J60: 240% | M60: 170% | P60: 8
H61: 9 | I61: 180% | J61: 260% | M61: 180% | P61: 9
H62: 10 | I62: 190% | J62: 280% | M62: 190% | P62: 10
H63: 11 | M63: 200%
H64: 12 | M64: 210%
H65: 13 | M65: 220% | R65: СРТП | X65: -
H66: 14 | M66: 230% | R66: ОЦО КП | X66: ИСКЛЮЧЕНИЕ
H67: 15 | M67: 240% | R67: Торговый партнер
H68: 16 | M68: 250% | R68: СБЕ
H69: 17 | M69: 260% | R69: Интернет магазин
H70: 18 | M70: 270% | R70: Заказчик
H71: 19 | M71: 280% | R71: Частное лицо
H72: 20 | M72: 290% | R72: Проектировщик
H73: 21 | M73: 300% | R73: Подрядчик
H74: 22 | M74: 310% | R74: Служба качества
H75: 23 | I75: Новый расчет | M75: 320% | R75: Прочее
H76: 24 | I76: Перерасчет (новые данные) | M76: 330%
H77: 25 | I77: Перерасчет (корректировка) | M77: 340%
H78: 26 | I78: Перерасчет (выявлена ошибка) | M78: 350%
H79: 27 | M79: 360% | N79: кровля | S79: Нет данных
I80: Коэф. зависящий от площади ПМ/РМ | N80: =IF(N86=0,0,IF(N86<=1000,1,IF(AND(N86>1000,N86<=5000),2,IF(AND(N86>5000,N86<=10000),3,IF(N86>10000,4,0))))) -> 2 | O80: =IF(N85=0,0,IF(N85<=1000,1,IF(AND(N85>1000,N85<=5000),2,IF(AND(N85>5000,N85<=10000),3,IF(N85>10000,4,0))))) -> 0 | P80: =IF(C16=0,0,IF(C16<=500,1,IF(AND(C16>500,C16<=1000),2,IF(AND(C16>1000,C16<=5000),3,IF(C16>5000,4,0))))) -> 3 | R80: =IF(C16=0,0,IF(C16<=100,1,IF(AND(C16>100,C16<=500),2,IF(AND(C16>500,C16<=1000),3,IF(C16>1000,4,0))))) -> 4 | S80: Проектирование
I81: Коэф. влияния типа расчета | N81: =IF(OR(C18="Новый расчет",C18="Перерасчет (новые данные)"),1,IF(C18="Перерасчет (корректировка)",0.5,IF(C18="Перерасчет (выявлена ошибка)",0,0))) -> 1 | S81: Нулевой цикл
I82: Коэф. кол-ва вариантов расчета | N82: =IFERROR(INDEX(I51:I62,MATCH(C19,H51:H62,0))/C19,0) -> 1 | S82: Строительство
I83: Коэф. кол-ва типов конструкций | N83: =INDEX(J51:J62,MATCH(C20,H51:H62,0)) -> 1.2 | O83: =INDEX(I51:I62,MATCH(Прайс!AD6,H51:H62,0)) -> 1 | S83: Реконструкция
I84: Коэф. Ветровой ПМ/РМ | N84: =INDEX(M52:M79,MATCH(N37,H52:H79,0)) -> 1 | O84: =INDEX(M52:M79,MATCH(N38,H52:H79,0)) -> 1
I85: Битумно- полимерная | N85: =SUMPRODUCT(SUMIF(INDIRECT({"ТИП1";"ТИП2";"ТИП3";"ТИП4";"ТИП5";"ТИП6";"ТИП7";"ТИП8";"ТИП9";"ТИП10"}&"!V3"),I85,INDIRECT({"ТИП1";"ТИП2";"ТИП3";"ТИП4";"ТИП5";"ТИП6";"ТИП7";"ТИП8";"ТИП9";"ТИП10"}&"!P3"))) -> 0
I86: ПВХ | N86: =SUMPRODUCT(SUMIF(INDIRECT({"ТИП1";"ТИП2";"ТИП3";"ТИП4";"ТИП5";"ТИП6";"ТИП7";"ТИП8";"ТИП9";"ТИП10"}&"!V3"),I86,INDIRECT({"ТИП1";"ТИП2";"ТИП3";"ТИП4";"ТИП5";"ТИП6";"ТИП7";"ТИП8";"ТИП9";"ТИП10"}&"!P3"))) -> 1751
K87: Кровля горизонт | M87: 0 | S87: -
I88: ЦФО | J88: Центральный федеральный округ | M88: Т0 | N88: Невозможно оценить | S88: 0
I89: ЮФО | J89: Южный федеральный округ | M89: Т1 | N89: 5-30% | S89: 1
I90: ПФО | J90: Приволжский федеральный округ | M90: Т2 | N90: 5-25%
I91: СЗФО | J91: Северо-западный федеральный округ | M91: Т3 | N91: 5-8% | S91: -
I92: УФО | J92: Уральский федеральный округ | K92: Кровля примыкан. | M92: 0 | S92: Изменения в чертежах
I93: СФО | J93: Сибирский федеральный округ | M93: Т1 | N93: 5-25% | S93: Новый вариант системы
I94: ДФО | J94: Дальневосточный федеральный округ | M94: Т2 | N94: 5-15% | S94: Расчитаны другие клины
I95: Беларусь | J95: Беларусь | M95: Т3 | N95: 5-8% | S95: Корректировка по ветровому расчету
I96: Украина | J96: Украина | K96: Расчет количества клиновидной теплоизоляции | M96: 0 | S96: Добавлен расчет материалов
I97: Казахстан | J97: Казахстан | M97: Т1 | N97: Клин.плиты 5-8% Доб.плиты 5-15% | S97: Изменение пароизоляции
I98: Европа | J98: Европа | M98: Т2 | N98: Клин.плиты 5-8% Доб.плиты 5-10% | S98: Разделение кровли на участки
I99: Азербайджан | J99: Азербайджан | M99: Т3 | N99: Клин.плиты 5-8% Доб.плиты 5-10% | S99: Изменение схемы раскладки клинов
I100: Узбекистан | J100: Узбекистан | K100: Ветровой расчет | M100: 0 | S100: Добавлен ветровой расчет
I101: н/д | M101: Т1 | N101: 10-200% | S101: Добавлен теплотехнический расчет
I102: н/д | J102: Прочее | M102: Т3 | N102: 5-10% | S102: Новые данные для ветрового расчета
S103: Исключены клины
S104: Добавлен расчет клинов
H105: for each s in sheets:s.visible=true:next | M105: отображение всех скрытых листов | S105: Проверка на изменение чертежей
S106: Изменения для заказчика
J107: Базовая стоимость | S107: Прочее
J108: МПК РМ | K108: =IF(OR(N85=0,O36=0),0,INDEX(Прайс!J21:M23,O36,O80))*0.5/4 -> 0 | L108: =ROUND(K108,1) -> 0.0 | M108: клин | N108: =IF(OR(C16=0,O34=0),0,Прайс!AC8*0.5/4) -> 150 | O108: =ROUND(N108,1) -> 150
J109: МПК ПМ | K109: =IF(OR(N86=0,O35=0),0,INDEX(Прайс!J18:M20,O35,N80))*0.5/4 -> 300 | L109: =ROUND(K109,1) -> 300.0
J110: В | K110: =IF(AND(O37=0,O38=0),0,IF(AND(O37>0,O38=0),INDEX(Прайс!J$24:J$26,O37)*0.25/4,INDEX(Прайс!J$24:J$26,O38)*0.25/4)) -> 0 | L110: =ROUND(K110,1) -> 0.0
J111: Т | K111: =IF(O39=0,0,Прайс!G70*0.25/2) -> 0 | L111: =ROUND(K111,1) -> 0.0
J112: Т50 | K112: =IF(OR(C16=0,O40=0),0,INDEX(Прайс!J51:J53,O40))/4 -> 0 | L112: =ROUND(K112,1) -> 0.0
H113: Таблица согласования площадей для ПК
H114: КВ | I114: XPS | J114: ПИР | K114: ПМ | L114: РМ | M114: МиСХ | N114: Плантер | P114: СБЕ
H115: =IF(OR($C$11=$R$66,$AD$46=$X$66),1,0) -> 1 | I115: 1 | J115: 1 | K115: 1 | L115: 1 | M115: 1 | N115: 1 | P115: Критерий заказчика
H116: 7000 | I116: 4000 | J116: 4000 | K116: 4000 | L116: 4000 | M116: 4000 | N116: 4000 | P116: Согласованная площадь
H117: =W45 -> - | I117: - | J117: - | K117: - | L117: - | M117: - | N117: - | P117: Согласование СБЕ
H118: =IF($C$16>=H116,1,0) -> 0 | I118: 0 | J118: 0 | K118: 0 | L118: 0 | M118: 0 | N118: 0 | P118: Итог по площади
H119: =IF(H117=1,1,IF(H115=1,1,IF(H118=1,1,0))) -> 1 | I119: 1 | J119: 1 | K119: 1 | L119: 1 | M119: 1 | N119: 1 | P119: Вывод
H121: Регион | I121: RUS
I130: Создание схемы ветровых зон
I132: Типы | J132: Площадь | K132: Сложность | L132: Стоимость | M132: ПМ | N132: РМ | W132: ОБЩИЕ_ДАННЫЕ
I133: Тип 1 | K133: 0 | L133: =IF(OR(J133=0,K133=0),0,INDEX(Прайс!$J$42:$M$44,K133,M163)) -> 0
I134: Тип 2 | K134: 0 | L134: =IF(OR(J134=0,K134=0),0,INDEX(Прайс!$J$42:$M$44,K134,M164)) -> 0
I135: Тип 3 | K135: 0 | L135: =IF(OR(J135=0,K135=0),0,INDEX(Прайс!$J$42:$M$44,K135,M165)) -> 0
I136: Тип 4 | K136: 0 | L136: =IF(OR(J136=0,K136=0),0,INDEX(Прайс!$J$42:$M$44,K136,M166)) -> 0 | P136: =HYPERLINK("#"&$W$132&"!I39","⇑") -> ⇑
I137: Тип 5 | K137: 0 | L137: =IF(OR(J137=0,K137=0),0,INDEX(Прайс!$J$42:$M$44,K137,M167)) -> 0
I138: Тип 6 | K138: 0 | L138: =IF(OR(J138=0,K138=0),0,INDEX(Прайс!$J$42:$M$44,K138,M168)) -> 0
I139: Тип 7 | K139: 0 | L139: =IF(OR(J139=0,K139=0),0,INDEX(Прайс!$J$42:$M$44,K139,M169)) -> 0
I140: Тип 8 | K140: 0 | L140: =IF(OR(J140=0,K140=0),0,INDEX(Прайс!$J$42:$M$44,K140,M170)) -> 0
I141: Тип 9 | K141: 0 | L141: =IF(OR(J141=0,K141=0),0,INDEX(Прайс!$J$42:$M$44,K141,M171)) -> 0
I142: Тип 10 | K142: 0 | L142: =IF(OR(J142=0,K142=0),0,INDEX(Прайс!$J$42:$M$44,K142,M172)) -> 0
I146: Оформление раскладки гидроизоляции на кровле
I148: Типы | J148: Площадь | K148: Сложность | L148: Стоимость | M148: ПМ | N148: РМ
I149: Тип 1 | K149: 0 | L149: =IF(OR(J149=0,K149=0),0,INDEX(Прайс!$J$45:$M$47,K149,M179)) -> 0
I150: Тип 2 | K150: 0 | L150: =IF(OR(J150=0,K150=0),0,INDEX(Прайс!$J$45:$M$47,K150,M180)) -> 0
I151: Тип 3 | K151: 0 | L151: =IF(OR(J151=0,K151=0),0,INDEX(Прайс!$J$45:$M$47,K151,M181)) -> 0
I152: Тип 4 | K152: 0 | L152: =IF(OR(J152=0,K152=0),0,INDEX(Прайс!$J$45:$M$47,K152,M182)) -> 0
I153: Тип 5 | K153: 0 | L153: =IF(OR(J153=0,K153=0),0,INDEX(Прайс!$J$45:$M$47,K153,M183)) -> 0
I154: Тип 6 | K154: 0 | L154: =IF(OR(J154=0,K154=0),0,INDEX(Прайс!$J$45:$M$47,K154,M184)) -> 0
I155: Тип 7 | K155: 0 | L155: =IF(OR(J155=0,K155=0),0,INDEX(Прайс!$J$45:$M$47,K155,M185)) -> 0
I156: Тип 8 | K156: 0 | L156: =IF(OR(J156=0,K156=0),0,INDEX(Прайс!$J$45:$M$47,K156,M186)) -> 0
I157: Тип 9 | K157: 0 | L157: =IF(OR(J157=0,K157=0),0,INDEX(Прайс!$J$45:$M$47,K157,M187)) -> 0
I158: Тип 10 | K158: 0 | L158: =IF(OR(J158=0,K158=0),0,INDEX(Прайс!$J$45:$M$47,K158,M188)) -> 0
M162: вспом. Коэф.
M163: =IF(J133=0,0,IF(J133<=1000,1,IF(AND(J133>1000,J133<=5000),2,IF(AND(J133>5000,J133<=10000),3,IF(J133>10000,4,0))))) -> 0
M164: 0
M165: 0
M166: 0
M167: 0
M168: 0
M169: 0
M170: 0
M171: 0
M172: 0
M178: вспом. Коэф.
M179: =IF(J149=0,0,IF(J149<=1000,1,IF(AND(J149>1000,J149<=5000),2,IF(AND(J149>5000,J149<=10000),3,IF(J149>10000,4,0))))) -> 0
M180: 0
M181: 0
M182: 0
M183: 0
M184: 0
M185: 0
M186: 0
M187: 0
M188: 0
G193: 0 | H193: ⇑
B194: Номер расчета: | C194: 11-2738-МПКПМКИ-12.21 | G194: 0
B195: Дата выдачи заявки | C195: 2021-12-13 | G195: 0
B196: Время регистрации заявки: | C196: 13.12.2021 09:02:24 | G196: 0 | I196: Для использования макроса откройте файл "Форма ПРЦ" для текущего расчета
B197: ID(номер) заявки: | C197: 155581 | G197: 0 | I197: Затем нажать "Вставить ОД"
G198: 0
B199: Ф.И.О.: | C199: морозенко сергей александрович | G199: 0
B200: Должность: | C200: менеджер | G200: 0 | I200: 1 | J200: Номер расчёта, Дата выдачи заявки и Номер заявки заполняется вручную
B201: Телефон: | C201: +8 (926) 051-12-61 | G201: 0 | I201: 2 | J201: Поля "Количество вариантов расчёта" и "Номер варианта" в основной области заполняются вручную
B202: Email: | C202: Morozenko@centro-stroi.ru | G202: 0
B203: Заказчик расчета: | C203: Торговый партнер | G203: 0
B204: Другое значение: | G204: 0 | I204: Регионы: | O204: Типы расчётов:
B205: Тип расчета: | C205: Новый расчет | G205: 0 | I205: Центральный федеральный округ | O205: Новый расчет
B206: Номер расчета: | G206: 0 | I206: Южный федеральный округ | O206: Перерасчет (новые данные)
B207: Для кого: | G207: 0 | I207: Приволжский федеральный округ | O207: Перерасчет (корректировка)
B208: Наименование организации: | C208: ООО "ТК ЦЕНТРОСТРОЙ" | G208: 0 | I208: Северо-западный федеральный округ | O208: Перерасчет (выявлена ошибка)
B209: Регион организации: | C209: Центральный федеральный округ | G209: 0 | I209: Уральский федеральный округ
B210: Город организации: | C210: г Москва | G210: 0 | I210: Сибирский федеральный округ | O210: Должности:
B211: ИНН организации: | C211: 7710959468 | G211: 0 | I211: Дальневосточный федеральный округ | O211: РТП
B212: КПП организации: | C212: 772401001 | G212: 0 | I212: Беларусь | O212: ОЦО КП
B213: Прочий регион: | G213: 0 | I213: Украина | O213: Торговый партнер
B214: Номер объекта: | G214: 0 | I214: Казахстан | O214: СБЕ
B215: Известен номер объекта: | G215: 0 | I215: Европа | O215: Интернет магазин
B216: Промокод: | G216: 0 | I216: Азербайджан | O216: Заказчик
G217: 0 | I217: Узбекистан | O217: Частное лицо
B218: Наименование объекта: | C218: г. Тверь – многофункциональный спортивный центр – гребная база | G218: 0 | I218: Прочее | O218: Проектировщик
G219: 0 | O219: Подрядчик
G220: 0 | O220: Служба качества
B221: Стадия работ: | C221: Нулевой цикл | G221: 0 | O221: Прочее
B222: Стадия объекта: | C222: Новый | G222: 0
B223: Регион объекта: | C223: Центральный федеральный округ | G223: 0
B224: Адрес объекта: | C224: Россия, Тверь, набережная Реки Тверцы | G224: 0
B225: Широта: | G225: 0
B226: Долгота: | G226: 0
G227: 0
B228: Плоская кровля | G228: 0
B229: Площадь конструкции: | C229: 8 000,00 кв.м; | G229: 0
B230: Расчёт объёма материалов: | G230: 0
B231: EKN: | C231: 658749 | G231: 0
B232: Способ расчета: | C232: По проекту | G232: 0
... 21 more rows

Sheet ТИП1
AC1: Дата последней редакции шаблона: 28.10.21
I2: Площадь кровли : | J2: =ПЛ -> 41 | L2: м2 | P2: ИСХОДНЫЕ ДАННЫЕ: | S2: Слоёв КУ | T2: 1 слой | U2: ТИП ЗДАНИЯ: | V2: - | W2: =HYPERLINK("#"&$AB$5&"!Q170","↓ ") -> ↓ | Y2: НЕТ | AA2: НЕТ
I3: Сметная стоимость материалов текущего типа кровли : | J3: =SUM(J73,L62,L36,L22,L15,L12) -> 0.00 | L3: руб. | O3: ПЛОЩАДЬ: | P3: 41 | Q3: ОТИ: | R3: 220 | S3: ОУ: | T3: КВ 1.7% | U3: МЕМБРАНА: | V3: ПВХ | Y3: Битумно- полимерная | Z3: =IF(V3=Y3,1,IF(V3=Y4,0,"-")) -> 0 | AA3: НЕТ | AB3: =IF(R4<>Y8,"-",R5) -> - | AV3: =INDEX(AV5:AV13,MATCH(1,AY5:AY13,0)) ->  | BB3: =INDEX(BB5:BB13,MATCH(1,BE5:BE13,0)) -> 
I4: Система : | O4: ПЕРИМЕТР: | P4: 40 | Q4: ОСНОВАНИЕ: | R4: БЕТОН | S4: КУ: | T4: НЕТ | U4: КРЕПЕЖ: | V4: ДА | Y4: ПВХ | Z4: =IF(V3=Y4,1,IF(V3=Y3,0,"-")) -> 1 | AA4: =IF(SUM(T81:T85,T88:T92,T95:T98,S101,S104,T133:T137,T141:T145,T149:T152,T156,S161)=0,0,IFERROR(ABS((100%-SUM(T81:T85,T88:T92,T95:T98,S101,S104,T133:T137,T141:T145,T149:T152,T156,S161)/ПР)),0)) -> 0.0%
B5: Спецификация материалов | F5: =номер_объекта -> 11-27ХХ-МПКПМКИ-12.21 | K5: В осях 7-9 / Ж-И и 12-14 / Ж-И | O5: =IF(AND(ПР<>0,R4=Y8,V3<>Y2),"ГОФРЫ:"," ") ->  | Q5: =IF(AND(ПР<>0,R4=Y8,V3<>Y2),"ПРОФИЛЬ:"," ") ->  | S5: РВК: | T5: БЕЗ ОТИ (н) | U5: МАТЕР. ОТИ: | V5: КВ | W5: =HYPERLINK("#"&$AB$5&"!V250","↓ ") -> ↓ | AA5: =Y11 -> НЕТ | AB5: =CONCATENATE(AC6,AD5) -> ТИП1 | AC5: =HYPERLINK("#"&AB5&"!A1","1") -> 1 | AD5: =_xlfn.SHEET()-2 -> 1 | AE5: =IF(OR(Q81:Q85=Z17,Q81:Q85=Z18,Q81:Q85=Z19,Q81:Q85=Z20),1,0) -> 0 | AF5: =IF(OR(Q133:Q137=Z17,Q133:Q137=Z18,Q133:Q137=Z19,Q133:Q137=Z20),1,0) -> 0 | AJ5: ТН-КРОВЛЯ КЛАССИК | AV5: Техноэласт ЭКП (4.2 мм), (верхний слой) | AY5: =IF(OR($C$23:$C$61=AV5),1,0) -> 0 | BB5: Унифлекс ВЕНТ ЭПВ, (нижний слой) | BE5: =IF(OR($C$23:$C$61=BB5),1,0) -> 0
P6: =IF(T3="нет"," ",T3) -> КВ 1.7% | Q6: =IF(T3="нет"," ","Кол-во, шт.") -> Кол-во, шт. | R6: =IF(T3="нет"," ","Площадь, м2") -> Площадь, м2 | S6: =IF(T3="нет"," ",IF(T3="PIR 1.7%","Площадь плит, м2","Объем плит, м3")) -> Объем плит, м3 | T6: =IF(T4="нет"," ",T4) ->  | U6: =IF(T4="нет"," ","Кол-во, шт.") ->  | V6: =IF(T4="нет"," ","Площадь, м2") ->  | W6: =IF(T4="нет"," ",IF(OR(T4=Y25,T4=Y26),"Площадь плит, м2]","Объем плит, м3")) ->  | Y6: НЕТ | AA6: =Y12 -> ДА | AB6: =REPLACE(CELL("имяфайла"),1,FIND("]",CELL("имяфайла")),"") -> ОБЩАЯ СПЕЦИФИКАЦИЯ | AC6: ТИП | AD6: =IF(OR($V$4=$AA$10,$V$4=$AA$11),1,0) -> 0 | AE6: =IF(OR(Q88:Q92=Z17,Q88:Q92=Z18,Q88:Q92=Z19,Q88:Q92=Z20),1,0) -> 0 | AF6: =IF(OR(Q141:Q145=Z17,Q141:Q145=Z18,Q141:Q145=Z19,Q141:Q145=Z20),1,0) -> 0 | AJ6: ТН-КРОВЛЯ СМАРТ PIR | AV6: Техноэласт ЭПП (4.0 мм) (два слоя) | AY6: =IF(OR($C$23:$C$61=AV6),1,0) -> 0 | BB6: Унифлекс ЭПП (2.8 мм), (верхний слой) | BE6: =IF(OR($C$23:$C$61=BB6),1,0) -> 0
Y7: БЕТОН | Z7: по умолчанию | AA7: ДА 6,3 | AB7: ГОФРЫ | AC7: =IF(R5=Z7,AC9,IF(R5=Z8,AC8,IF(R5=Z9,AC9,IF(R5=Z10,AC10,0)))) -> 0.0000 | AE7: =IF(OR(R95:R98=Z18,R95:R98=Z19,R95:R98=Z20,R95:R98=Z17),1,0) -> 1 | AF7: =IF(OR(Q149:Q152=Z17,Q149:Q152=Z18,Q149:Q152=Z19,Q149:Q152=Z20),1,0) -> 0 | AJ7: ТН-КРОВЛЯ СМАРТ | AV7: Техноэласт СОЛО РП1 (5.0 мм) | AY7: =IF(OR($C$23:$C$61=AV7),1,0) -> 0 | BB7: Техноэласт ФИКС (3.0 мм), (нижний слой) | BE7: =IF(OR($C$23:$C$61=BB7),1,0) -> 0
B8: № | C8: Наименование материала | H8: К-т. расх | I8: Кол-во | J8: Ед. изм. | K8: Стоимость ед., руб. | L8: Сметная стоимость, руб. (без учёта кратности) | N8: фильтр | P8: =IF(T3="нет"," ","Плиты А") -> Плиты А | Q8: 30 | R8: 21.18 | S8: =IF(OR(T3=Y14,T3=Y15),Q8*(0.0576/2),IF(T3=Y16,Q8*0.0144,IF(T3=Y17,Q8*0.0126,IF(T3=Y18,Q8*0.72," ")))) -> 0.864 | T8: =IF(T4="нет"," ",IF(OR(T4=Y20,T4=Y21,T4=Y22),"Плиты А",IF(T4=Y27,"Плиты М","Плиты J"))) ->  | W8: =IF(OR(T4=Y20,T4=Y21),U8*0.0306,IF(T4=Y22,U8*0.0198,IF(T4=Y23,U8*0.0144,IF(T4=Y24,U8*0.0126,IF(OR(T4=Y25,T4=Y26),U8*0.72,IF(T4=Y27,U8*0.0252," ")))))) ->  | Y8: ПРОФЛИСТ | Z8: Н75 | AA8: ТОЛЬКО КУ | AB8: 75 | AC8: =0.25*0.075*0.1*5.35*1.03 -> 0.0103 | AD8: 1.18 | AJ8: ТН-КРОВЛЯ СТАНДАРТ | AV8: Техноэласт ПРАЙМ ЭКМ, (верхний слой) | AY8: =IF(OR($C$23:$C$61=AV8),1,0) -> 0 | BB8: Техноэласт ПРАЙМ ЭММ, (нижний слой) | BE8: =IF(OR($C$23:$C$61=BB8),1,0) -> 0
P9: =IF(T3="нет"," ","Плиты Б") -> Плиты Б | Q9: 30 | R9: 19.31 | S9: =IF(OR(T3=Y14,T3=Y15),Q9*(0.0864/2),IF(T3=Y16,Q9*0.0288,IF(T3=Y17,Q9*0.03068,IF(T3=Y18,Q9*0.72," ")))) -> 1.296 | T9: =IF(T4="нет"," ",IF(OR(T4=Y20,T4=Y21,T4=Y22),"Плиты Б",IF(T4=Y27,"Плита 50",IF(OR(T4=Y23,T4=Y24,T4=Y26),"Плиты К","Добор 40")))) ->  | W9: =IF(OR(T4=Y20,T4=Y21),U9*0.0486,IF(T4=Y22,U9*0.0378,IF(T4=Y23,U9*0.0288,IF(T4=Y24,U9*0.0306,IF(OR(T4=Y25,T4=Y26),U9*0.72,IF(T4=Y27,U9*0.036," ")))))) ->  | Y9: СТЯЖКА | Z9: Н114 | AA9: ТОЛЬКО КУ+ГИ | AB9: 114 | AC9: =4*0.25*0.114*0.13*1.03 -> 0.0153 | AD9: 1.1 | AE9: . Общая длина примыкания- | AF9: м. | AJ9: ТН-КРОВЛЯ ОПТИМА | AV9: Техноэласт ПЛАМЯ СТОП ЭКП (4.2 мм), (верхний слой) | AY9: =IF(OR($C$23:$C$61=AV9),1,0) -> 0 | BB9: Унифлекс С, (нижний слой) | BE9: =IF(OR($C$23:$C$61=BB9),1,0) -> 0
N10: 1 | P10: =IF(T3="нет"," ",IF(OR(T3=Y14,T3=Y15),"Плиты С",IF(T3=Y17,"Плита 50","Плита 40"))) -> Плиты С | Q10: 57 | R10: 38.62 | S10: =IF(OR(T3=Y14,T3=Y15),Q10*(0.0576/2),IF(T3=Y16,Q10*0.0288,IF(T3=Y17,Q10*0.036,IF(T3=Y18,Q10*0.72," ")))) -> 1.642 | T10: =IF(T4="нет"," ",IF(OR(T4=Y20,T4=Y21,T4=Y22),"Плиты C",IF(T4=Y24,"Плита 50",IF(T4=Y27," ",IF(T4=Y26,"Добор 80",IF(T4=Y25," ","Плита 40")))))) ->  | W10: =IF(OR(T4=Y20,T4=Y22,T4=Y21,T4=Y24),U10*0.036,IF(T4=Y23,U10*0.0288,IF(T4=Y25,"",IF(T4=Y26,0.72*U10,IF(T4=Y27," "," "))))) ->  | Y10: АЦЛ (ЦСП) | Z10: Н153 | AA10: Сборная стяжка+ГИ | AB10: 159 | AC10: =0.25*0.16*0.153*1.03*3.58 -> 0.0226 | AD10: 1.3 | AJ10: ТН-КРОВЛЯ ПРОФ | AV10: Унифлекс ЭКП (3.8 мм), (верхний слой) | AY10: =IF(OR($C$23:$C$61=AV10),1,0) -> 0 | BB10: Унифлекс ЭКСПРЕСС ЭМП, (нижний слой) | BE10: =IF(OR($C$23:$C$61=BB10),1,0) -> 0
B11: 1 | C11: 2 | H11: 3 | I11: 4 | J11: 5 | K11: 6 | L11: 7 | N11: 1 | T11: Площадь плит [м2] | Y11: НЕТ | Z11: 1 слой | AA11: Сборная стяжка | AJ11: ТН-КРОВЛЯ ГАРАНТ+ | AV11: Техноэласт МОСТ С | AY11: =IF(OR($C$23:$C$61=AV11),1,0) -> 0 | BB11: Унифлекс ЭПП (2.8 мм), (верхний слой) | BE11: =IF(OR($C$23:$C$61=BB11),1,0) -> 0
C12: Устройство пароизоляционного слоя | H12: =HYPERLINK("#"&AB5&"!A840","1111") -> 1111 | L12: =SUM(L13:L14) -> 0.00 | N12: =IF(SUM(I13:I14)>0,1,0) -> 1 | P12: =IF(V4=AA5," ","ВЫГРУЗКА КРЕПЕЖА") -> ВЫГРУЗКА КРЕПЕЖА | S12: =IF(V4="НЕТ"," ","Количество крепежа по ветровому расчету, на м2") -> Количество крепежа по ветровому расчету, на м2 | U12: =IF(OR(V4=AA6,V4=AA7,V4=AA9,V4=AA10),4,IF(V4=AA8,0," ")) -> 4 | Y12: ДА | Z12: 2 и более | AA12: БЕЗ ОТИ (н) | AB12: СУММА | AC12: =SUM($I$13:$I$14,$I$16:$I$21,$I$23:$I$35,$I$23:$I$62,$I$63:$I$69,$I$83:$I$97,$I$101:$I$113,$I$115) -> 2009.0 | AE12: =IF(AND(T3=Y13,T4=Y25),3.4,3.4) -> 3.4 | AF12: =IF(AF13=0,0,COUNT(AF13)) -> 1 | AJ12: ТН-КРОВЛЯ БАЛЛАСТ | AV12: Техноэласт Декор, (верхний слой) | AY12: =IF(OR($C$23:$C$61=AV12),1,0) -> 0
B13: =SUBTOTAL(3,$I$13:I13) -> 1 | C13: Технобарьер (2.8 мм) | H13: 1.15 | I13: =ROUNDUP(ПЛ*H13+ПР*(0.15+$R$3/1000+0.03),0) -> 64.0 | J13: м2 | L13: =IFERROR(I13*K13,0) -> 0.00 | N13: =IF(OR(I13=" ",I13=0),0,1) -> 1 | P13: =IF(V4=AA5," ","ВЫСОТА") -> ВЫСОТА | Q13: =IF(V4=AA5," ","КОЛ-ВО") -> КОЛ-ВО | Y13: НЕТ | AA13: +ОТИ (с) | AE13: =SUM(W21:W23) -> 2 | AF13: =IF(AND((SUM(W21:W23)=0),T3=Y13,T4=Y19),0,ПЛ) -> 41 | AJ13: ТН-КРОВЛЯ ФИКС
B14: =SUBTOTAL(3,$I$13:I14) -> 1 | L14: =IFERROR(I14*K14,0) -> 0.00 | N14: =IF(OR(I14=" ",I14=0),0,1) -> 0 | P14: 250 | Q14: 10 | S14: =IF(AND(OR(V4="ДА",V4="ДА 6,3"),T3<>"НЕТ"),"Количество крепежа по клинам, на м2"," ") -> Количество крепежа по клинам, на м2 | U14: =IFERROR(IF(AND(OR(V4="ДА",V4="ДА 6,3"),OR(T3=Y14,T3=Y15,T3=Y17,T3=Y16)),SUM(Q14:Q60,T21:T52)/ПЛ,IF(AND(OR(V4="ДА",V4="ДА 6,3"),T3=Y18),SUM(Q14:Q60,T21:T52)/ПЛ," ")),0) -> 3.2 | V14: =IF(AND(OR(V4="ДА",V4="ДА 6,3"),T3<>"НЕТ"),"ДВР"," ") -> ДВР | W14: =IF(AND(OR(V4="ДА",V4="ДА 6,3"),T3<>"НЕТ"),4," ") -> 4 | Y14: КВ 1.7% | AA14: НЕТ | AJ14: ТН-КРОВЛЯ ТИТАН
C15: Устройство теплоизоляционного слоя | H15: =HYPERLINK("#"&AB5&"!A850","1111") -> 1111 | L15: =SUM(L16:L21) -> 0.00 | N15: =IF(SUM(I16:I21)>0,1,0) -> 1 | P15: 270 | Q15: 22 | Y15: КВ 1.7% ВЭ | Z15: МЕТ | AA15: ПВХ Logicroof Walkway Puzzle | AB15: ЦЕНА КЛИН | AC15: =ОБЩИЕ_ДАННЫЕ!N81 -> 1 | AD15: =IF(P3=0,0,IF(P3<=1000,1,IF(AND(P3>1000,P3<=5000),2,IF(AND(P3>5000,P3<=10000),3,IF(P3>10000,4,0))))) -> 1 | AE15: сложность | AF15: счет если | AJ15: ТН-КРОВЛЯ УНИВЕРСАЛ
B16: =SUBTOTAL(3,$I$13:I16) -> 2 | C16: ТЕХНОРУФ В ЭКСТРА | F16: 50 | G16: мм | H16: 1.03 | I16: =ПЛ*F16*H16*0.001 -> 2.112 | J16: м3 | L16: =IFERROR(I16*K16,0) -> 0.00 | N16: =IF(OR(I16=" ",I16=0),0,1) -> 1 | P16: 290 | Q16: 22 | S16: =IF(AND(OR(V4="ДА",V4="ДА 6,3"),T3<>"НЕТ"),"Общее количество крепежа на м2"," ") -> Общее количество крепежа на м2 | U16: =IF(AND(OR(V4="ДА",V4="ДА 6,3"),T3<>"НЕТ"),U14+U12," ") -> 7.2 | V16: =IF(AND(OR(V4="ДА",V4="ДА 6,3"),T3<>"НЕТ"),"РРК"," ") -> РРК | W16: =IF(AND(OR(V4="ДА",V4="ДА 6,3"),OR(T3=Y14,T3=Y15,T3=Y17,T3=Y16)),3.5+W14,IF(AND(OR(V4="ДА",V4="ДА 6,3"),T3=Y18),3.5+W14," ")) -> 7.5 | Y16: XPS 1.7% | Z16: Ж/Б | AA16: АЦЛ/ОСБ | AC16: =IFERROR(IF(OR(AND(T3=Y14,OR(T4=Y20,T4=Y22)),AND(T3=Y16,T4=Y23)),INDEX(Прайс!J9:M11,T5,AD15)*AC15,0),0) -> 0 | AD16: ОКУ | AE16: =IF(AC16>0,$T$5,0) -> 0 | AF16: =IF(AC16>0,COUNT(T5),0) -> 0 | AJ16: ТН-КРОВЛЯ МАСТЕР
B17: =SUBTOTAL(3,$I$13:I17) -> 3 | C17: ТЕХНОРУФ Н ПРОФ | F17: 170 | G17: мм | H17: 1.03 | I17: =ПЛ*F17*H17*0.001 -> 7.179 | J17: м3 | L17: 0.00 | N17: 1 | P17: 310 | Q17: 22 | Y17: XPS 2.1% | Z17: МЕТ+ТЕПЛО | AA17: НЕТ | AB17: 1 | AC17: =IFERROR(IF(AND(T3=Y13,OR(T4=Y27,T4=Y23,T4=Y20,T4=Y22)),INDEX(Прайс!J6:M8,T5,AD15)*AC15,IF(AND(T4=Y19,OR(T3=Y14,T3=Y16)),INDEX(Прайс!J6:M8,T5,AD15)*AC15,0)),0) -> 0 | AD17: КУ | AE17: =IF(AC17>0,$T$5,0) -> 0 | AF17: =IF(AC17>0,COUNT(T5),0) -> 0 | AJ17: ТН-КРОВЛЯ ЭКСПЕРТ PIR
B18: =SUBTOTAL(3,$I$13:I18) -> 3 | L18: 0.00 | N18: 0 | P18: 330 | Q18: 22 | Y18: PIR 1.7% | Z18: Ж/Б+ТЕПЛО | AA18: LOGICROOF NG | AB18: 2 | AC18: =IFERROR(IF(OR(AND(T4=Y25,T3=Y18)),INDEX(Прайс!J15:M17,T5,AD15)*AC15,0),0) -> 0 | AD18: ОКУП | AE18: =IF(AC18>0,$T$5,0) -> 0 | AF18: =IF(AC18>0,COUNT(T5),0) -> 0 | AJ18: Прочее
B19: =SUBTOTAL(3,$I$13:I19) -> 3 | L19: 0.00 | N19: 0 | P19: 350 | Q19: 22 | S19: =IF(Y11=AD13," ","продолжение таблицы ") -> продолжение таблицы | V19: Кол- во ОУ и КУ | Y19: НЕТ | Z19: МЕТ+ТЕПЛО БК | AA19: - | AB19: 3 | AC19: =IFERROR(IF(AND(T3=Y13,T4=Y25),INDEX(Прайс!J12:M14,T5,AD15)*AC15,IF(AND(T4=Y19,T3=Y18),INDEX(Прайс!J12:M14,T5,AD15)*AC15,0)),0) -> 0 | AD19: КУП | AE19: =IF(AC19>0,$T$5,0) -> 0 | AF19: =IF(AC19>0,COUNT(T5),0) -> 0
B20: =SUBTOTAL(3,$I$13:I20) -> 3 | L20: 0.00 | N20: 0 | P20: 360 | Q20: 12 | S20: =IF(Y11=AD13," ","ВЫСОТА") -> ВЫСОТА | T20: =IF(Y11=AD13," ","КОЛ-ВО") -> КОЛ-ВО | V20: Название | W20: Кол-во шт. | Y20: КВ 4.2% | Z20: Ж/Б+ТЕПЛО БК | AA20: Объекты ФЗ-44 | AB20: дубль | AC20: =IF(AND(P3>0,OR(V3<>Y2,T3<>Y13,T4<>Y19)),1,0) -> 1 | AJ20: =IF(J4="",0,CONCATENATE(J4," ",L4)) -> 0
B21: =SUBTOTAL(3,$I$13:I21) -> 3 | L21: 0.00 | N21: 0 | V21: ОУ | W21: 2 | Y21: КВ 4.2% ВЭ | Z21: Воронка для ПВХ мембран XL503 с обогревом, 110х450 мм | AA21: Объекты ПП-615 | AB21: =IF(OR(T3=Y14,T3=Y15,T4=Y20,T4=Y21,T4=Y22),1,0) -> 1 | AC21: =IF(OR(T3=Y16,T3=Y17,T4=Y23,T4=Y24,T4=Y27),1,0) -> 0 | AD21: =IF(OR(T3=Y18,T4=Y25,T4=Y26),1,0) -> 0 | AF21: =IF(T2=Z11,AG21,AH21) -> 0 | AG21: =IF(T4=Y19,0,IF(T4=Y25,V9,SUM(V8:V9))) -> 0 | AH21: =IF(T4=Y19,0,IF(T2=Z12,V11,0)) -> 0
A22: =HYPERLINK("#"&$AB$5&"!V169","↓ ") -> ↓ | B22: =HYPERLINK("#"&$AB$5&"!V116","↓ ") -> ↓ | C22: Устройство гидроизоляционного слоя | H22: =HYPERLINK("#"&AB5&"!A880","1111") -> 1111 | J22: =HYPERLINK("#"&AB5&"!A990","1111") -> 1111 | L22: =SUM(L23:L35) -> 0.00 | N22: =IF(SUM(I23:I35)>0,1,0) -> 1 | V22: КУ | W22: 0 | Y22: КВ 4.2% Н | Z22: Воронка для ПВХ мембран XL503 без обогрева, 110х450 мм | AA22: НЕТ | AB22: КВ | AC22: XPS | AD22: PIR | AF22: =IF(SUM(I98:I100,I110:I113)>0,1,0) -> 1
B23: =SUBTOTAL(3,$I$13:I23) -> 4 | C23: ПВХ мембрана LOGICROOF V-SR серый (1.5 мм)* | H23: 1.15 | I23: =ROUNDUP((ПЛ*0.006*H23+$AC$186+N("ГИ на ограждение")),0) -> 1.0 | J23: м2 | L23: =IFERROR(#REF!*K23,0) -> 0.00 | N23: =IF(OR(I23=" ",I23=0),0,1) -> 1 | V23: КУ как ОУ | W23: 0 | Y23: XPS 3.4% | Z23: Воронка с обжимным металлическим фланцем с обогревом, 110х450 мм | AJ23: Огнезащита: | AM23: 30 | AN23: 60 | AV23: ПВХ мембрана LOGICROOF V-RP (1.2 мм) | AY23: =IF(OR(AV23=$C$23:$C$61),1,0) -> 1
B24: =SUBTOTAL(3,$I$13:I24) -> 5 | C24: Очиститель для ПВХ мембран ТехноНИКОЛЬ* | H24: 1 | I24: =ROUNDUP(ПЛ*0.0005/3+N("/3 - перевод в канистры"),0) -> 1.0 | J24: шт. | L24: =IFERROR(#REF!*K24,0) -> 0.00 | N24: 1 | Y24: XPS 4.2% | Z24: Воронка с обжимным металлическим фланцем без обогрева, 110х450 мм | AJ24: Плита ТЕХНО ОЗМ | AK24: =F854 -> 0 | AM24: 40 | AN24: 60 | AV24: ПВХ мембрана LOGICROOF V-RP ARCTIC (1.2 мм) | AY24: =IF(OR(AV24=$C$23:$C$61),1,0) -> 0
B25: =SUBTOTAL(3,$I$13:I25) -> 6 | C25: ПВХ Кровельный аэратор 75 х 375 мм* | H25: 1 | I25: =ROUNDUP(ПЛ/235,0) -> 1.0 | J25: шт. | L25: =IFERROR(I25*K25,0) -> 0.00 | N25: 1 | Y25: PIR 3.3% (J) | Z25: Воронка с обжимным металлическим фланцем с обогревом 110х720 мм | AJ25: Саморез сверлоконечный ТехноНИКОЛЬ 4,8х | AK25: =INDEX(AN23:AN31,MATCH(AK24,AM23:AM31,0)) ->  | AM25: 50 | AN25: 80 | AV25: ПВХ мембрана ECOPLAST V-RP (1.2 мм) | AY25: =IF(OR(AV25=$C$23:$C$61),1,0) -> 0
B26: =SUBTOTAL(3,$I$13:I26) -> 7 | C26: ПВХ мембрана LOGICROOF V-RP (1.2 мм) | H26: 1.15 | I26: =ROUNDUP(ПЛ*H26,0) -> 48.0 | J26: м2 | L26: 0.00 | N26: 1 | Y26: PIR 3.3% (J+K) | Z26: Воронка с обжимным металлическим фланцем без обогрева 110х720 мм | AJ26: Крепёж | AK26: =IF(AK24>0,ТИП1!ПЛ*7,0) -> 0 | AM26: 60 | AN26: 80 | AV26: ПВХ мембрана LOGICROOF V-RP FR (1.2 мм) | AY26: =IF(OR(AV26=$C$23:$C$61),1,0) -> 0
B27: =SUBTOTAL(3,$I$13:I27) -> 8 | C27: Жидкий ПВХ ТехноНИКОЛЬ, 1л* | H27: 1 | I27: =ROUNDUP((0.004*ПЛ),0) -> 1.0 | J27: шт. | L27: 0.00 | N27: 1 | Y27: XPS 8.3% | Z27: Воронка ТехноНИКОЛЬ с обжимным фланцем обогреваемая, 110х450 мм | AM27: 70 | AN27: 100 | AV27: ПВХ мембрана ECOPLAST V-GR (1.5 мм) | AY27: =IF(OR(AV27=$C$23:$C$61),1,0) -> 0
B28: =SUBTOTAL(3,$I$13:I28) -> 8 | L28: 0.00 | N28: 0 | Z28: Воронка ТехноНИКОЛЬ с обжимным фланцем, 110х450 мм | AM28: 80 | AN28: 100 | AV28: ПВХ мембрана LOGICROOF V-RP (1.5 мм) | AY28: =IF(OR(AV28=$C$23:$C$61),1,0) -> 0
B29: =SUBTOTAL(3,$I$13:I29) -> 8 | L29: 0.00 | N29: 0 | Y29: ТЕХНОРУФ Н30 | Z29: Воронка ТехноНИКОЛЬ ВБ, 110х450 мм | AM29: 90 | AN29: 120 | AV29: ПВХ мембрана LOGICROOF V-RP ARCTIC (1.5 мм) | AY29: =IF(OR(AV29=$C$23:$C$61),1,0) -> 0
B30: =SUBTOTAL(3,$I$13:I30) -> 8 | L30: 0.00 | N30: 0 | Y30: ТЕХНОРУФ В ЭКСТРА | Z30: Воронка ESSMANNGULLY DN 100 | AM30: 100 | AN30: 120 | AV30: ПВХ мембрана ECOPLAST V-RP (1.5 мм) | AY30: =IF(OR(AV30=$C$23:$C$61),1,0) -> 0
B31: =SUBTOTAL(3,$I$13:I31) -> 8 | L31: 0.00 | N31: 0 | Y31: ТЕХНОРУФ Н ОПТИМА | Z31: Фильтр для воронок универсальный | AM31: 110 | AN31: 160 | AV31: ПВХ мембрана ECOPLAST V-GR (1.8 мм) | AY31: =IF(OR(AV31=$C$23:$C$61),1,0) -> 0 | BA31: =INDEX(AV23:AV43,MATCH(1,AY23:AY43,0)) -> ПВХ мембрана LOGICROOF V-RP (1.2 мм)
B32: =SUBTOTAL(3,$I$13:I32) -> 8 | L32: 0.00 | N32: 0 | Y32: ТЕХНОБЛОК СТАНДАРТ | Z32: Воронка парапетная 100*100 (квадратное сечение) | AV32: ПВХ мембрана LOGICROOF V-RP (1.8 мм) | AY32: =IF(OR(AV32=$C$23:$C$61),1,0) -> 0
B33: =SUBTOTAL(3,$I$13:I33) -> 8 | L33: 0.00 | N33: 0 | Y33: ТЕХНОВЕНТ СТАНДАРТ | Z33: Воронка ULTRA парапетная 110 | AV33: ПВХ мембрана LOGICROOF V-RP ARCTIC (1.8 мм) | AY33: =IF(OR(AV33=$C$23:$C$61),1,0) -> 0
B34: =SUBTOTAL(3,$I$13:I34) -> 8 | L34: =IFERROR(I34*K34,0) -> 0.00 | N34: =IF(OR(I34=" ",I34=0),0,1) -> 0 | Y34: ТЕХНОЛАЙТ ЭКСТРА | Z34: Воронка ULTRA ремонтная парапетная 100 | AV34: ПВХ мембрана ECOPLAST V-RP (1.8 мм) | AY34: =IF(OR(AV34=$C$23:$C$61),1,0) -> 0
B35: =SUBTOTAL(3,$I$13:I35) -> 8 | L35: =IFERROR(I35*K35,0) -> 0.00 | N35: =IF(OR(I35=" ",I35=0),0,1) -> 0 | Y35: ТЕХНОРУФ Н ПРОФ | Z35: Нет | AV35: ПВХ мембрана LOGICROOF V-RP ARCTIC (2.0 мм) | AY35: =IF(OR(AV35=$C$23:$C$61),1,0) -> 0
A36: =HYPERLINK("#"&$AB$5&"!P157","↓ ") -> ↓ | B36: =HYPERLINK("#"&$AB$5&"!P102","↓ ") -> ↓ | C36: Устройство примыканий | H36: =HYPERLINK("#"&AB5&"!A940","1111") -> 1111 | J36: =HYPERLINK("#"&AB5&"!A1050","1111") -> 1111 | K36: =HYPERLINK("#"&$AB$5&"!A1150","ТЕПЛО ПАРАПЕТ ") -> ТЕПЛО ПАРАПЕТ | L36: =SUM(L37:L61) -> 0.00 | N36: =IF(SUM(I23:I61)>0,1,0) -> 1 | Y36: Плита теплоизоляционная LOGICPIR PROF Ф/Ф | Z36: ТЕХНОРУФ 45 ГАЛТЕЛЬ (1.2 м) | AV36: ПВХ мембрана ECOPLAST V-GR (2.0 мм) | AY36: =IF(OR(AV36=$C$23:$C$61),1,0) -> 0
B37: =SUBTOTAL(3,$I$13:I37) -> 9 | C37: ПВХ Внутренний угол ТехноНИКОЛЬ* | H37: 1 | I37: =IFERROR($T$112*H37,0) -> 4 | J37: шт. | L37: =IFERROR(I23*K37,0) -> 0.00 | N37: =IF(OR(I23=" ",I23=0),0,1) -> 1 | Y37: Плита теплоизоляционная LOGICPIR PROF СХМ/СХМ | Z37: ТЕХНОРУФ Н ПРОФ, для галтели* | AV37: ПВХ мембрана ECOPLAST V-RP (2.0 мм) | AY37: =IF(OR(AV37=$C$23:$C$61),1,0) -> 0
B38: =SUBTOTAL(3,$I$13:I38) -> 10 | C38: Круглый тарельчатый держатель ТН (1/С) Ø 50 | G38: =" " ->  | H38: 5 | I38: =IFERROR(ROUNDUP(ТЭ*H38*1.03,0),0) -> 31 | J38: шт. | L38: =IFERROR(I24*K38,0) -> 0.00 | N38: =IF(OR(I24=" ",I24=0),0,1) -> 1 | Y38: Плита теплоизоляционная LOGICPIR PROF СХ/СХ | AV38: ПВХ мембрана LOGICROOF V-GR FB (1.2 мм) | AY38: =IF(OR(AV38=$C$23:$C$61),1,0) -> 0
B39: =SUBTOTAL(3,$I$13:I39) -> 11 | C39: =IF(OR(ПРИМЕЧАНИЯ!$Q$20<1000,ПРИМЕЧАНИЯ!$Q$20=1000),"Рейка краевая алюминиевая ТехноНИКОЛЬ PRO, 2 м","Рейка краевая алюминиевая ТехноНИКОЛЬ, 2 м") -> Рейка краевая алюминиевая ТехноНИКОЛЬ, 2 м | H39: 1.03 | I39: =IFERROR(ROUNDUP(ПКР*H39,2),0) -> 35.13 | J39: м.п. | L39: =IFERROR(I39*K39,0) -> 0.00 | N39: =IF(OR(I39=" ",I39=0),0,1) -> 1 | Y39: Сендвич-панель ТЕХНОНИКОЛЬ Ц-XPS CARBON | AV39: ПВХ мембрана LOGICROOF V-RP (2.0 мм) | AY39: =IF(OR(AV39=$C$23:$C$61),1,0) -> 0
B40: =SUBTOTAL(3,$I$13:I40) -> 12 | C40: =IF(OR(ПРИМЕЧАНИЯ!$Q$20<1000,ПРИМЕЧАНИЯ!$Q$20=1000),"Рейка прижимная алюминиевая ТехноНИКОЛЬ PRO, 2 м","Рейка прижимная алюминиевая ТехноНИКОЛЬ, 2 м") -> Рейка прижимная алюминиевая ТехноНИКОЛЬ, 2 м | H40: 1.03 | I40: =IFERROR(ROUNDUP(ППР*H40,2),0) -> 35.13 | J40: м.п. | L40: 0.00 | N40: 1 | Y40: XPS ТехноНИКОЛЬ CARBON ECO | AV40: ПВХ мембрана LOGICROOF V-GR FB (1.2 мм) | AY40: =IF(OR(AV40=$C$23:$C$61),1,0) -> 0
B41: =SUBTOTAL(3,$I$13:I41) -> 13 | C41: Саморез остроконечный ТехноНИКОЛЬ 5,5х35 | H41: 5 | I41: =IFERROR(ROUNDUP(СМРЗ.МЕТ*H41*1.03,0),0) -> 145 | J41: шт. | L41: 0.00 | N41: 1 | Y41: XPS ТехноНИКОЛЬ CARBON PROF | AV41: ПВХ мембрана LOGICROOF V-GR FB (1.5 мм) | AY41: =IF(OR(AV41=$C$23:$C$61),1,0) -> 0
B42: =SUBTOTAL(3,$I$13:I42) -> 14 | C42: Анкерный элемент ТехноНИКОЛЬ 8х45 мм | H42: 5 | I42: =IFERROR(ROUNDUP(АНКЕР,0),0) -> 315 | J42: шт. | L42: 0.00 | N42: 1 | AV42: ПВХ мембрана LOGICROOF V-GR FB (1.8 мм) | AY42: =IF(OR(AV42=$C$23:$C$61),1,0) -> 0
B43: =SUBTOTAL(3,$I$13:I43) -> 15 | C43: Саморез остроконечный ТехноНИКОЛЬ 4,8х 50 мм | H43: 5 | I43: =IFERROR(ROUNDUP(СМРЗ.БЕТ*H43*1.03,0),0)+$I$1141 -> 243 | J43: шт. | L43: 0.00 | N43: 1 | AV43: ПВХ мембрана LOGICROOF V-GR FB (2.0 мм) | AY43: =IF(OR(AV43=$C$23:$C$61),1,0) -> 0
B44: =SUBTOTAL(3,$I$13:I44) -> 16 | C44: Геотекстиль термообработанный ПЭТ 300 гр/м2 | H44: 1.1 | I44: =IFERROR(ROUNDUP(ГнП*H44+IFERROR(IF($R$110=$AA$16,$T$110*1.9,0),0),0),0) -> 3.0 | J44: м2 | L44: 0.00 | N44: 1
B45: =SUBTOTAL(3,$I$13:I45) -> 17 | C45: Герметик ПУ ТехноНИКОЛЬ Logicflex для плоских кровель | H45: 0.15 | I45: =IFERROR(ROUNDUP((ПКР*H45+$F$1035*0.025)*1000/600+$T$108*300/600+$AD$186+N("герметик на ограждения"),0),0) -> 9 | J45: шт. | L45: 0.00 | N45: 1
B46: =SUBTOTAL(3,$I$13:I46) -> 18 | C46: ПВХ металл LOGICROOF, лист 1x2м длина | G46: =CONCATENATE(($S$101+$U$106)," м") -> 5,9 м | H46: 1.05 | I46: =ROUNDUP(($S$101+$U$106)*H46*0.33+N("полоса шириной 2 метра поделенная на 6 частей по 33 см"),2) -> 2.05 | J46: м2 | L46: 0.00 | N46: 1
B47: =SUBTOTAL(3,$I$13:I47) -> 19 | C47: ПВХ мембрана LOGICROOF V-RP (1.2 мм) | G47: =" " ->  | H47: 1.15 | I47: =IFERROR(ROUNDUP(парапетВ*H47+IFERROR(IF($R$110=$AA$16,($T$110*1.05*1.15),0),0),0),0) -> 39.0 | J47: м2 | L47: 0.00 | N47: 1
B48: =SUBTOTAL(3,$I$13:I48) -> 20 | C48: Саморез сверлоконечный ТехноНИКОЛЬ 4,8х | F48: 100 | G48: мм | I48: 74.0 | J48: шт. | L48: 0.00 | N48: 1
B49: =SUBTOTAL(3,$I$13:I49) -> 21 | C49: Телескопический крепеж ТехноНИКОЛЬ | F49: 20 | G49: мм | I49: 74.0 | J49: шт. | L49: 0.00 | N49: 1
B50: =SUBTOTAL(3,$I$13:I50) -> 22 | C50: ТЕХНОРУФ Н ПРОФ | F50: 50 | G50: мм | H50: 1.03 | I50: 0.600 | J50: м3 | L50: 0.00 | N50: =IF(OR(I50=" ",I50=0),0,1) -> 1
B51: =SUBTOTAL(3,$I$13:I51) -> 22 | L51: 0.00 | N51: =IF(OR(I51=" ",I51=0),0,1) -> 0
B52: =SUBTOTAL(3,$I$13:I52) -> 22 | L52: 0.00 | N52: 0
B53: =SUBTOTAL(3,$I$13:I53) -> 22 | L53: 0.00 | N53: 0
B54: =SUBTOTAL(3,$I$13:I54) -> 22 | L54: 0.00 | N54: 0
B55: =SUBTOTAL(3,$I$13:I55) -> 22 | L55: 0.00 | N55: 0
B56: =SUBTOTAL(3,$I$13:I56) -> 22 | L56: 0.00 | N56: 0
B57: =SUBTOTAL(3,$I$13:I57) -> 22 | L57: 0.00 | N57: 0
B58: =SUBTOTAL(3,$I$13:I58) -> 22 | L58: 0.00 | N58: 0
B59: =SUBTOTAL(3,$I$13:I59) -> 22 | L59: 0.00 | N59: 0
B60: =SUBTOTAL(3,$I$13:I60) -> 22 | L60: 0.00 | N60: 0
B61: =SUBTOTAL(3,$I$13:I61) -> 22 | L61: 0.00 | N61: =IF(OR(I61=" ",I61=0),0,1) -> 0
C62: Устройство уклонообразующего слоя | H62: =HYPERLINK("#"&AB5&"!A1090","1111") -> 1111 | L62: =IFERROR(SUM(L63:L69),0) -> 0.00 | N62: =IF(SUM(I63:I69)>0,1,0) -> 1
B63: =SUBTOTAL(3,$I$13:I63) -> 23 | C63: =IF(T3=Y13,"",IF(T3=Y14,C1079,IF(T3=Y15,C1090,IF(T3=Y16,C1097,IF(T3=Y17,C1099,C1113))))) -> ТЕХНОРУФ Н ПРОФ КЛИН (1.7 % элемент А) | I63: =IF(T3=Y13,"",IF(T3=Y14,I1079,IF(T3=Y15,I1090,IF(T3=Y16,I1097,IF(T3=Y17,I1099,I1113))))) -> 0.864 | J63: =IF(T3=Y13," ",IF(OR(T3=Y14,T3=Y15),J1079,IF(OR(T3=Y16,T3=Y17),J1097,J1113))) -> м3 | L63: =IFERROR(I63*K63,0) -> 0.00 | N63: =IF(I63="",0,1) -> 1
B64: =SUBTOTAL(3,$I$13:I64) -> 24 | C64: =IF(T3=Y13,"",IF(T3=Y14,C1080,IF(T3=Y15,C1091,IF(T3=Y17,C1100,IF(T3=Y16,C1098,C1114))))) -> ТЕХНОРУФ Н ПРОФ КЛИН (1.7 % элемент Б) | I64: =IF(T3=Y13,"",IF(T3=Y14,I1080,IF(T3=Y15,I1091,IF(T3=Y16,I1098,IF(T3=Y17,I1100,I1114))))) -> 1.296 | J64: =IF(T3=Y13," ",IF(OR(T3=Y14,T3=Y15),J1080,IF(OR(T3=Y16,T3=Y17),J1098,J1114))) -> м3 | L64: 0.00 | N64: 1
B65: =SUBTOTAL(3,$I$13:I65) -> 25 | C65: =IF(T3=Y13,"",IF(T3=Y14,C1081,IF(T3=Y15,C1092,IF(T3=Y16,C1101,IF(T3=Y17,C1102,C1115))))) -> ТЕХНОРУФ Н ПРОФ КЛИН (1.7 % элемент С) | I65: =IF(T3=Y13,"",IF(T3=Y14,I1081,IF(T3=Y15,I1092,IF(T3=Y16,I1101,IF(T3=Y17,I1102,I1115))))) -> 1.642 | J65: =IF(T3=Y13," ",IF(OR(T3=Y14,T3=Y15),J1081,IF(OR(T3=Y16,T3=Y17),J1101,J1115))) -> м3 | L65: 0.00 | N65: 1
B66: =SUBTOTAL(3,$I$13:I66) -> 25 | C66: =IF(OR(T4=Y20,T4=Y22),C1082,"") ->  | I66: =IF(OR(T4=Y20,T4=Y22),I1082,"") ->  | J66: =IF(OR(T4=Y20,T4=Y22),J1082,"") ->  | L66: 0.00 | N66: 0
B67: =SUBTOTAL(3,$I$13:I67) -> 25 | C67: =IF(T4=Y19,"",IF(T4=Y20,C1083,IF(T4=Y21,C1093,IF(T4=Y22,C1086,IF(T4=Y23,C1103,IF(T4=Y24,C1105,IF(OR(T4=Y25,T4=Y26),C1116,C1110))))))) ->  | I67: =IF(T4=Y19,"",IF(T4=Y20,I1083,IF(T4=Y21,I1093,IF(T4=Y22,I1086,IF(T4=Y23,I1103,IF(T4=Y24,I1105,IF(OR(T4=Y25,T4=Y26),I1116,I1110))))))) ->  | J67: =IF(T4=Y19," ",IF(OR(T4=Y20,T4=Y22),J1083,IF(OR(T3=Y23,T3=Y24),J1103,IF(OR(T4=Y25,T4=Y26),J1116,J1110)))) ->  | L67: 0.00 | N67: 0
B68: =SUBTOTAL(3,$I$13:I68) -> 25 | C68: =IF(T4=Y19,"",IF(T4=Y20,C1084,IF(T4=Y21,C1094,IF(T4=Y22,C1087,IF(T4=Y24,C1106,IF(T4=Y26,C1117,IF(T4=Y23,C1104,IF(T4=Y25,"",C1111)))))))) ->  | I68: =IF(T4=Y19,"",IF(T4=Y20,I1084,IF(T4=Y21,I1094,IF(T4=Y22,I1087,IF(T4=Y26,I1117,IF(T4=Y23,I1104,IF(T4=Y24,I1106,IF(T4=Y25,"",I1111)))))))) ->  | J68: =IF(T4=Y19," ",IF(OR(T4=Y20,T4=Y22),J1084,IF(OR(T3=Y23,T3=Y24),J1104,IF(T4=Y26,J1117,IF(T4=Y25,"",J1111))))) ->  | L68: 0.00 | N68: 0
B69: =SUBTOTAL(3,$I$13:I69) -> 25 | C69: =IF(T4=Y19,"",IF(T4=Y20,C1085,IF(T4=Y21,C1095,IF(T4=Y22,C1088,IF(T4=Y23,C1107,IF(T4=Y26,C1119,IF(T4=Y24,C1108,IF(T4=Y25,C1118,"")))))))) ->  | I69: =IF(T4=Y19,"",IF(T4=Y20,I1085,IF(T4=Y21,I1095,IF(T4=Y22,I1088,IF(T4=Y23,I1107,IF(T4=Y24,I1108,IF(T4=Y26,I1119,IF(T4=Y25,I1118,"")))))))) ->  | J69: =IF(T4=Y19," ",IF(OR(T4=Y20,T4=Y21,T4=Y22),J1085,IF(T3=Y23,J1107,IF(T4=Y24,J1107,IF(T4=Y26,J1119,IF(T4=Y25,J1118," ")))))) ->  | L69: 0.00 | N69: 0
C70: =IF(SUM(I23:I35,I23:I62)>0,"* Позиции носят рекомендательный характер","") -> * Позиции носят рекомендательный характер | N70: =IF(SUM(I23:I35,I23:I62)>0,1,0) -> 1
N71: =IF($V$4="НЕТ",0,1) -> 1
N72: =IF($V$4="НЕТ",0,1) -> 1 | P72: =IF(V3="НЕТ"," ",IF(V3="ПВХ","ПВХ мембрана","Битумно- полимерная ")) -> ПВХ мембрана
I73: Сметная стоимость крепежа : | J73: =SUM(L114,L101,L82) -> 0.00 | L73: руб. | N73: =IF($V$4="НЕТ",0,1) -> 1 | P73: =IF(V3="НЕТ"," ","ТИПЫ") -> ТИПЫ | Q73: =IF(V3="НЕТ"," ","ПГ") -> ПГ | S73: =IF(V3="НЕТ"," ","ДКР") -> ДКР | T73: =IF(V3="НЕТ"," ","ДПР") -> ДПР | U73: =IF(V3="НЕТ"," ","ТЭ") -> ТЭ | V73: =IF(V3="НЕТ"," ","ГнП") -> ГнП | Y73: СМРЗ. МЕТ | Z73: СМРЗ БЕТ. | AA73: АНКЕР | AB73: ПРАЙМЕР
N74: 1 | Q74: =IF(V3="НЕТ"," ","ВЕРХ") -> ВЕРХ | R74: =IF(V3="НЕТ"," ","НИЗ") -> НИЗ
B75: Спецификация крепежа | G75: =номер_объекта -> 11-27ХХ-МПКПМКИ-12.21 | K75: =IF(K5=0," ",K5) -> В осях 7-9 / Ж-И и 12-14 / Ж-И | N75: 1 | P75: =IF(V3="НЕТ"," ","СУММА") -> СУММА | Q75: =IF(V3="ПВХ",SUM(Y81:Y85,Y88:Y92,Y95:Y98,Y101,Q104),IF(V3="нет"," ",SUM(Y133:Y137,Y141:Y145,Y149:Y152,Q161))) -> 33.808 | R75: =IF(V3="Битумно- полимерная",SUM(Z133:Z137,Z141:Z145,Z149:Z152,Z156,Q162),IF(V3="НЕТ"," ",0)) -> 0 | S75: =IF(V3="НЕТ"," ",IF(V3="ПВХ",SUM(AA95:AA98,Q105),SUM(AA149:AA152,S161))) -> 34.1 | T75: =IF(V3="нет"," ",IF(V3="ПВХ",SUM(Z81:Z85,Z88:Z92,Z95:Z98,Q106),SUM(AA133:AA137,S162))) -> 34.1 | U75: =IF(V3="ПВХ",SUM(AA81:AA85,AA88:AA92,Z101,S104),IF(V3="НЕТ"," ",0)) -> 5.9 | V75: =IF(V3="ПВХ",SUM(AB81:AB85,AB88:AB92,AB95:AB98,S105),IF(V3="НЕТ"," ",0)) -> 2.03 | Y75: =IF(V3=Y3,SUM(AB133:AB137,AB149:AB152,Q163),IF(V3=Y4,SUM(AC81:AC85,AC88:AC92,AC95:AC98,AA101,S106),0)) -> 28 | Z75: =IF(V3=Y3,SUM(AC133:AC137,AC149:AC152,S163),IF(V3=Y4,SUM(AD81:AD85,AD88:AD92,AD95:AD98,AB101,U105),0)) -> 47 | AA75: =IF(V3=Y3,SUM(AD133:AD137,AD149:AD152,U161),IF(V3=Y4,SUM(AE81:AE85,AE88:AE92,AE95:AE98,AC101,U104),0)) -> 315 | AB75: =IF(V3=Y3,SUM(AE133:AE137,AE149:AE152,AE141:AE145),0) -> 0 | AD75: =СМРЗ.МЕТ*5.15 -> 144.2 | AF75: =(AC81+AC82+AC83+AC84+AC85+AC88+AC90+AC89+AC91+AC92+AC95+AC96+AC97+AC98)*5.15 -> 144.2
N76: 1 | P76: =IFERROR(IF($V$4=$Y$12,SUM($I$102:$I$113)/ПЛ," "),0) -> 7.3 | Q76: =IF($V$4=$Y$12,"расход количества крепежа для всей кровли, шт/м2"," ") -> расход количества крепежа для всей кровли, шт/м2
N77: 1 | P77: =IF(T3=Y13," ",IF(T3=Y14,0.72*SUM(Q8:Q9),0.72*SUM(Q8:Q9))) -> 43.2 | Q77: =IF(T3=Y13," ","площадь клинов ОУ, м2") -> площадь клинов ОУ, м2 | S77: =IF(T3=Y13," ",IFERROR($P$77/ПЛ,0)) -> 105.4% | T77: =IF(T3=Y13," ","соотношение площади клинов к основной площади") -> соотношение площади клинов к основной площади
B78: № | C78: Наименование | I78: Кол-во* | J78: Ед. изм. | K78: Стоимость ед., руб. | L78: Сметная стоимость, руб. | N78: 1 | P78: =IF(T4=Y19," ",IF(OR(T4=Y27,T4=Y25),0.72*U8,0.72*SUM(U8:U9))) ->  | Q78: =IF(T4=Y19," ","площадь клинов КУ, м2") ->  | S78: =IF(T4=Y19," ",IFERROR($P$78/ПЛ,0)) ->  | T78: =IF(T4=Y19," ","соотношение площади клинов к основной площади") -> 
N79: 1 | P79: =IF(V3=Y4,"Примыкание к парапету высотой более 500 мм"," ") -> Примыкание к парапету высотой более 500 мм | U79: =HYPERLINK("#"&$AB$5&"!B36","⇑ ") -> ⇑ | Y79: Примыкание к парапету высотой более 500 мм | AF79: ОБЪЕМ УТЕПЛ | AG79: САМОРЕЗ КУ | AI79: ТЕЛЕСКОП КУ | AK79: САМОРЕЗ КР | AN79: Тип примыканий
N80: 1 | P80: НАЗВАНИЕ | Q80: =IF(V3=Y4,"ТИПЫ"," ") -> ТИПЫ | R80: =IF(V3=Y4,"ШИРИНА, мм"," ") -> ШИРИНА, мм | S80: =IF(V3=Y4,"ВЫСОТА, мм"," ") -> ВЫСОТА, мм | T80: =IF(V3=Y4,"ДЛИНА, м"," ") -> ДЛИНА, м | U80: Н утепл, мм | V80: толщ., мм | W80: марка ут. | Y80: ПГ | Z80: ДПР | AA80: ТЭ | AB80: ГнП | AC80: СМРЗ. МЕТ | AD80: СМРЗ БЕТ. | AE80: АНКЕР, шт | AG80: размер | AH80: кол-во, шт | AI80: размер | AJ80: кол-во, шт | AK80: размер | AL80: кол-во, шт | AN80: В Примечания
B81: 1 | C81: 2 | I81: 3 | J81: 4 | K81: 5 | L81: 6 | N81: 1 | Y81: =(530+R81+S81)/1000*T81 -> 0 | Z81: =T81*2 -> 0 | AA81: =T81 -> 0 | AB81: =IF(SUM(R81:S81)>U81,IF(Q81=$Z$16,((R81+S81)/1000*T81),IF(Q81=$Z$18,((R81+S81-U81)/1000*T81),IF(Q81=$Z$19,((V81+U81)/1000*T81),IF(Q81=$Z$20,((R81+S81+V81)/1000*T81),0)))),0) -> 0 | AC81: =ROUNDUP(IF(OR(Q81=$Z$19,Q81=$Z$15),SUM(Z81:AA81),IF(Q81=$Z$17,(T81+AA81),IF(Q81=$Z$20,T81,0))),0) -> 0 | AD81: =ROUNDUP(IF(Q81=$Z$16,SUM(Z81:AA81),IF(OR(Q81=$Z$20,Q81=$Z$18),(T81+AA81),0)),0) -> 0 | AE81: =ROUNDUP(IF(Q81=$Z$16,SUM(Z81:AA81)*5*1.03,IF(Q81=$Z$18,(AA81+T81)*5*1.03+AH81+AL81,IF(Q81=$Z$20,(AA81+T81)*5*1.03,0))),0) -> 0 | AF81: =ROUNDUP(IF($AE$5=1,U81/1000*V81/1000*T81*1.03,0),1) -> 0.0 | AG81: =IF(Q81=$Z$18,INDEX($AH$307:$AI$339,MATCH(V81,$AG$307:$AG$339,0),2),IF(Q81=$Z$17,INDEX($AK$307:$AL$341,MATCH(V81,$AJ$307:$AJ$341,0),2),0)) -> 0 | AH81: =IF($W81=$Y$39,0,IF(AG81=0,0,ROUNDUP(7*T81*U81/1000*1.03,0))) -> 0 | AI81: =IF(Q81=$Z$18,INDEX($AH$307:$AI$339,MATCH(V81,$AG$307:$AG$339,0),1),IF(Q81=$Z$17,INDEX($AK$307:$AL$341,MATCH(V81,$AJ$307:$AJ$341,0),1),0)) -> 0 | AJ81: =AH81 -> 0 | AK81: =IF(Q81=$Z$18,INDEX($AO$306:$AP$323,MATCH(V81,$AN$306:$AN$323,0),2),IF(Q81=$Z$17,INDEX($AR$306:$AS$323,MATCH(V81,$AQ$306:$AQ$323,0),2),0)) -> 0 | AL81: =IF(AK81=0,0,ROUNDUP(T81*5*1.03,0)) -> 0 | AN81: =IFERROR(MATCH(Q81,$Z$15:$Z$20,0),0) -> 0
C82: =IF(AND(I83>0,SUM(I84:I97)>0),"Телескопический крепеж и тарельчатый держатель",IF(AND(I83>0,SUM(I84:I97)=0),"Тарельчатый держатель","Телескопический крепеж")) -> Телескопический крепеж | L82: =SUM(L83:L100) -> 0.00 | N82: =IF(SUM(I83:I100)>0,1,0) -> 1 | Y82: =(530+R82+S82)/1000*T82 -> 0 | Z82: =T82*2 -> 0 | AA82: =T82 -> 0 | AB82: =IF(SUM(R82:S82)>U82,IF(Q82=$Z$16,((R82+S82)/1000*T82),IF(Q82=$Z$18,((R82+S82-U82)/1000*T82),IF(Q82=$Z$19,((V82+U82)/1000*T82),IF(Q82=$Z$20,((R82+S82+V82)/1000*T82),0)))),0) -> 0 | AC82: =ROUNDUP(IF(OR(Q82=$Z$19,Q82=$Z$15),SUM(Z82:AA82),IF(Q82=$Z$17,(T82+AA82),IF(Q82=$Z$20,T82,0))),0) -> 0 | AD82: =ROUNDUP(IF(Q82=$Z$16,SUM(Z82:AA82),IF(OR(Q82=$Z$20,Q82=$Z$18),(T82+AA82),0)),0) -> 0 | AE82: =ROUNDUP(IF(Q82=$Z$16,SUM(Z82:AA82)*5*1.03,IF(Q82=$Z$18,(AA82+T82)*5*1.03+AH82+AL82,IF(Q82=$Z$20,(AA82+T82)*5*1.03,0))),0) -> 0 | AF82: =ROUNDUP(IF($AE$5=1,U82/1000*V82/1000*T82*1.03,0),1) -> 0.0 | AG82: =IF(Q82=$Z$18,INDEX($AH$307:$AI$339,MATCH(V82,$AG$307:$AG$339,0),2),IF(Q82=$Z$17,INDEX($AK$307:$AL$341,MATCH(V82,$AJ$307:$AJ$341,0),2),0)) -> 0 | AH82: =IF($W82=$Y$39,0,IF(AG82=0,0,ROUNDUP(7*T82*U82/1000*1.03,0))) -> 0 | AI82: =IF(Q82=$Z$18,INDEX($AH$307:$AI$339,MATCH(V82,$AG$307:$AG$339,0),1),IF(Q82=$Z$17,INDEX($AK$307:$AL$341,MATCH(V82,$AJ$307:$AJ$341,0),1),0)) -> 0 | AJ82: =AH82 -> 0 | AK82: =IF(Q82=$Z$18,INDEX($AO$306:$AP$323,MATCH(V82,$AN$306:$AN$323,0),2),IF(Q82=$Z$17,INDEX($AR$306:$AS$323,MATCH(V82,$AQ$306:$AQ$323,0),2),0)) -> 0 | AL82: =IF(AK82=0,0,ROUNDUP(T82*5*1.03,0)) -> 0 | AN82: =IFERROR(MATCH(Q82,$Z$15:$Z$20,0),0) -> 0
B83: =SUBTOTAL(3,$I$83:I83) -> 0 | C83: =IF($V$3=$Y$3,"Круглый тарельчатый держатель ТехноНИКОЛЬ 50мм", "Круглый тарельчатый держатель ТН (1/С) Ø 50") -> Круглый тарельчатый держатель ТН (1/С) Ø 50 | H83: ТЭ | I83: =IF(AND(OR($R$4=$Y$9,$R$4=$Y$10),$V$4=$AA$6),ROUNDUP(ПЛ*$U$12,0),IF(AND(R4=Y7,V4=AA11),SUMIF(D225:D295,H83,I225:I295),IF(AND(OR(R4=Y7,R4=Y8),V4=AA10),ROUNDUP(ПЛ*$U$12,0)+SUMIF(D225:D295,"ТЭ",I225:I295),(SUMIF($D$137:$D$216,H83,$L$137:$L$216)+SUMIF(D225:D295,"ТЭ",I225:I295)))))+IF($AK$24>0,$AK$26,0) -> 0 | J83: шт. | L83: =IFERROR(I83*K83,0) -> 0.00 | N83: =IF(I83>0,1,0) -> 0 | Y83: =(530+R83+S83)/1000*T83 -> 0 | Z83: =T83*2 -> 0 | AA83: =T83 -> 0 | AB83: =IF(SUM(R83:S83)>U83,IF(Q83=$Z$16,((R83+S83)/1000*T83),IF(Q83=$Z$18,((R83+S83-U83)/1000*T83),IF(Q83=$Z$19,((V83+U83)/1000*T83),IF(Q83=$Z$20,((R83+S83+V83)/1000*T83),0)))),0) -> 0 | AC83: =ROUNDUP(IF(OR(Q83=$Z$19,Q83=$Z$15),SUM(Z83:AA83),IF(Q83=$Z$17,(T83+AA83),IF(Q83=$Z$20,T83,0))),0) -> 0 | AD83: =ROUNDUP(IF(Q83=$Z$16,SUM(Z83:AA83),IF(OR(Q83=$Z$20,Q83=$Z$18),(T83+AA83),0)),0) -> 0 | AE83: =ROUNDUP(IF(Q83=$Z$16,SUM(Z83:AA83)*5*1.03,IF(Q83=$Z$18,(AA83+T83)*5*1.03+AH83+AL83,IF(Q83=$Z$20,(AA83+T83)*5*1.03,0))),0) -> 0 | AF83: =ROUNDUP(IF($AE$5=1,U83/1000*V83/1000*T83*1.03,0),1) -> 0.0 | AG83: =IF(Q83=$Z$18,INDEX($AH$307:$AI$339,MATCH(V83,$AG$307:$AG$339,0),2),IF(Q83=$Z$17,INDEX($AK$307:$AL$341,MATCH(V83,$AJ$307:$AJ$341,0),2),0)) -> 0 | AH83: =IF($W83=$Y$39,0,IF(AG83=0,0,ROUNDUP(7*T83*U83/1000*1.03,0))) -> 0 | AI83: =IF(Q83=$Z$18,INDEX($AH$307:$AI$339,MATCH(V83,$AG$307:$AG$339,0),1),IF(Q83=$Z$17,INDEX($AK$307:$AL$341,MATCH(V83,$AJ$307:$AJ$341,0),1),0)) -> 0 | AJ83: =AH83 -> 0 | AK83: =IF(Q83=$Z$18,INDEX($AO$306:$AP$323,MATCH(V83,$AN$306:$AN$323,0),2),IF(Q83=$Z$17,INDEX($AR$306:$AS$323,MATCH(V83,$AQ$306:$AQ$323,0),2),0)) -> 0 | AL83: 0 | AN83: =IFERROR(MATCH(Q83,$Z$15:$Z$20,0),0) -> 0
B84: =SUBTOTAL(3,$I$83:I84) -> 0 | C84: Телескопический крепеж ТехноНИКОЛЬ | F84: 20 | G84: мм | I84: =IF(OR($V$4=$AA$10,$V$4=$AA$11),SUMIF($D$225:$D$295,F84,$I$225:$I$295),SUMIF($D$137:$D$216,F84,$L$137:$L$216)) -> 0 | J84: шт. | L84: =I84*K84 -> 0.00 | N84: 0 | Y84: =(530+R84+S84)/1000*T84 -> 0 | Z84: =T84*2 -> 0 | AA84: =T84 -> 0 | AB84: =IF(SUM(R84:S84)>U84,IF(Q84=$Z$16,((R84+S84)/1000*T84),IF(Q84=$Z$18,((R84+S84-U84)/1000*T84),IF(Q84=$Z$19,((V84+U84)/1000*T84),IF(Q84=$Z$20,((R84+S84+V84)/1000*T84),0)))),0) -> 0 | AC84: =ROUNDUP(IF(OR(Q84=$Z$19,Q84=$Z$15),SUM(Z84:AA84),IF(Q84=$Z$17,(T84+AA84),IF(Q84=$Z$20,T84,0))),0) -> 0 | AD84: =ROUNDUP(IF(Q84=$Z$16,SUM(Z84:AA84),IF(OR(Q84=$Z$20,Q84=$Z$18),(T84+AA84),0)),0) -> 0 | AE84: =ROUNDUP(IF(Q84=$Z$16,SUM(Z84:AA84)*5*1.03,IF(Q84=$Z$18,(AA84+T84)*5*1.03+AH84+AL84,IF(Q84=$Z$20,(AA84+T84)*5*1.03,0))),0) -> 0 | AF84: =ROUNDUP(IF($AE$5=1,U84/1000*V84/1000*T84*1.03,0),1) -> 0.0 | AG84: =IF(Q84=$Z$18,INDEX($AH$307:$AI$339,MATCH(V84,$AG$307:$AG$339,0),2),IF(Q84=$Z$17,INDEX($AK$307:$AL$341,MATCH(V84,$AJ$307:$AJ$341,0),2),0)) -> 0 | AH84: =IF($W84=$Y$39,0,IF(AG84=0,0,ROUNDUP(7*T84*U84/1000*1.03,0))) -> 0 | AI84: =IF(Q84=$Z$18,INDEX($AH$307:$AI$339,MATCH(V84,$AG$307:$AG$339,0),1),IF(Q84=$Z$17,INDEX($AK$307:$AL$341,MATCH(V84,$AJ$307:$AJ$341,0),1),0)) -> 0 | AJ84: =AH84 -> 0 | AK84: =IF(Q84=$Z$18,INDEX($AO$306:$AP$323,MATCH(V84,$AN$306:$AN$323,0),2),IF(Q84=$Z$17,INDEX($AR$306:$AS$323,MATCH(V84,$AQ$306:$AQ$323,0),2),0)) -> 0 | AL84: 0 | AN84: =IFERROR(MATCH(Q84,$Z$15:$Z$20,0),0) -> 0
B85: =SUBTOTAL(3,$I$83:I85) -> 0 | C85: Телескопический крепеж ТехноНИКОЛЬ | F85: 50 | G85: мм | I85: 0 | J85: шт. | L85: =I85*K85 -> 0.00 | N85: 0 | Y85: =(530+R85+S85)/1000*T85 -> 0 | Z85: =T85*2 -> 0 | AA85: =T85 -> 0 | AB85: =IF(SUM(R85:S85)>U85,IF(Q85=$Z$16,((R85+S85)/1000*T85),IF(Q85=$Z$18,((R85+S85-U85)/1000*T85),IF(Q85=$Z$19,((V85+U85)/1000*T85),IF(Q85=$Z$20,((R85+S85+V85)/1000*T85),0)))),0) -> 0 | AC85: =ROUNDUP(IF(OR(Q85=$Z$19,Q85=$Z$15),SUM(Z85:AA85),IF(Q85=$Z$17,(T85+AA85),IF(Q85=$Z$20,T85,0))),0) -> 0 | AD85: =ROUNDUP(IF(Q85=$Z$16,SUM(Z85:AA85),IF(OR(Q85=$Z$20,Q85=$Z$18),(T85+AA85),0)),0) -> 0 | AE85: =ROUNDUP(IF(Q85=$Z$16,SUM(Z85:AA85)*5*1.03,IF(Q85=$Z$18,(AA85+T85)*5*1.03+AH85+AL85,IF(Q85=$Z$20,(AA85+T85)*5*1.03,0))),0) -> 0 | AF85: =ROUNDUP(IF($AE$5=1,U85/1000*V85/1000*T85*1.03,0),1) -> 0.0 | AG85: =IF(Q85=$Z$18,INDEX($AH$307:$AI$339,MATCH(V85,$AG$307:$AG$339,0),2),IF(Q85=$Z$17,INDEX($AK$307:$AL$341,MATCH(V85,$AJ$307:$AJ$341,0),2),0)) -> 0 | AH85: =IF($W85=$Y$39,0,IF(AG85=0,0,ROUNDUP(7*T85*U85/1000*1.03,0))) -> 0 | AI85: =IF(Q85=$Z$18,INDEX($AH$307:$AI$339,MATCH(V85,$AG$307:$AG$339,0),1),IF(Q85=$Z$17,INDEX($AK$307:$AL$341,MATCH(V85,$AJ$307:$AJ$341,0),1),0)) -> 0 | AJ85: =AH85 -> 0 | AK85: =IF(Q85=$Z$18,INDEX($AO$306:$AP$323,MATCH(V85,$AN$306:$AN$323,0),2),IF(Q85=$Z$17,INDEX($AR$306:$AS$323,MATCH(V85,$AQ$306:$AQ$323,0),2),0)) -> 0 | AL85: 0 | AN85: =IFERROR(MATCH(Q85,$Z$15:$Z$20,0),0) -> 0
B86: =SUBTOTAL(3,$I$83:I86) -> 0 | C86: Телескопический крепеж ТехноНИКОЛЬ | F86: 80 | G86: мм | I86: 0 | J86: шт. | L86: 0.00 | N86: 0 | P86: =IF(V3=Y4,"Примыкание к парапету высотой менее 500 мм"," ") -> Примыкание к парапету высотой менее 500 мм | Y86: Примыкание к парапету высотой менее 500 мм | AF86: ОБЪЕМ УТЕПЛ | AG86: САМОРЕЗ КУ | AI86: ТЕЛЕСКОП КУ | AK86: САМОРЕЗ КР
B87: =SUBTOTAL(3,$I$83:I87) -> 0 | C87: Телескопический крепеж ТехноНИКОЛЬ | F87: 100 | G87: мм | I87: 0 | J87: шт. | L87: 0.00 | N87: 0 | P87: НАЗВАНИЕ | Q87: =IF(V3=Y4,"ТИПЫ"," ") -> ТИПЫ | R87: =IF(V3=Y4,"ШИРИНА, мм"," ") -> ШИРИНА, мм | S87: =IF(V3=Y4,"ВЫСОТА, мм"," ") -> ВЫСОТА, мм | T87: =IF(V3=Y4,"ДЛИНА, м"," ") -> ДЛИНА, м | U87: Н утепл, мм | V87: толщ., мм | W87: марка ут. | Y87: ПГ | Z87: ДПР | AA87: ТЭ | AB87: ГнП | AC87: СМРЗ. МЕТ | AD87: СМРЗ БЕТ. | AE87: АНКЕР, шт | AG87: размер | AH87: кол-во, шт | AI87: размер | AJ87: кол-во, шт | AK87: размер | AL87: кол-во, шт
B88: =SUBTOTAL(3,$I$83:I88) -> 0 | C88: Телескопический крепеж ТехноНИКОЛЬ | F88: 120 | G88: мм | I88: 0 | J88: шт. | L88: 0.00 | N88: 0 | Y88: =T88*(430+R88+S88)/1000 -> 0 | Z88: =T88 -> 0 | AA88: =T88 -> 0 | AB88: =IF(SUM(R88:S88)>U88,IF(Q88=$Z$16,((R88+S88)/1000*T88),IF(Q88=$Z$18,((R88+S88-U88)/1000*T88),IF(Q88=$Z$19,((V88+U88)/1000*T88),IF(Q88=$Z$20,((R88+S88+V88)/1000*T88),0)))),0) -> 0 | AC88: =ROUNDUP(IF(OR(Q88=$Z$17,Q88=$Z$19,Q88=$Z$15),SUM(Z88:AA88),0),0) -> 0 | AD88: =ROUNDUP(IF(OR(Q88=$Z$18,Q88=$Z$20,Q88=$Z$16),SUM(Z88:AA88),0),0) -> 0 | AE88: =ROUNDUP(IF(OR(Q88=$Z$20,Q88=$Z$16),SUM(Z88:AA88)*5*1.03,IF(Q88=$Z$18,(AA88+Z88)*5*1.03+AH88,0)),0) -> 0 | AF88: =ROUNDUP(IF($AE$6=1,U88/1000*V88/1000*T88*1.03,0),1) -> 0.0 | AG88: =IF(Q88=$Z$18,INDEX($AH$307:$AI$339,MATCH(V88,$AG$307:$AG$339,0),2),IF(Q88=$Z$17,INDEX($AK$307:$AL$341,MATCH(V88,$AJ$307:$AJ$341,0),2),0)) -> 0 | AH88: =IF($W88=$Y$39,0,IF(AG88=0,0,ROUNDUP(7*T88*U88/1000*1.03,0))) -> 0 | AI88: =IF(Q88=$Z$18,INDEX($AH$307:$AI$339,MATCH(V88,$AG$307:$AG$339,0),1),IF(Q88=$Z$17,INDEX($AK$307:$AL$341,MATCH(V88,$AJ$307:$AJ$341,0),1),0)) -> 0 | AJ88: =AH88 -> 0 | AK88: =IF(Q88=$Z$18,INDEX($AO$306:$AP$323,MATCH(V88,$AN$306:$AN$323,0),2),IF(Q88=$Z$17,INDEX($AR$306:$AS$323,MATCH(V88,$AQ$306:$AQ$323,0),2),0)) -> 0 | AL88: 0 | AN88: =IFERROR(MATCH(Q88,$Z$15:$Z$20,0),0) -> 0
B89: =SUBTOTAL(3,$I$83:I89) -> 0 | C89: Телескопический крепеж ТехноНИКОЛЬ | F89: 130 | G89: мм | I89: 0 | J89: шт. | L89: 0.00 | N89: 0 | Y89: =T89*(430+R89+S89)/1000 -> 0 | Z89: =T89 -> 0 | AA89: =T89 -> 0 | AB89: =IF(SUM(R89:S89)>U89,IF(Q89=$Z$16,((R89+S89)/1000*T89),IF(Q89=$Z$18,((R89+S89-U89)/1000*T89),IF(Q89=$Z$19,((V89+U89)/1000*T89),IF(Q89=$Z$20,((R89+S89+V89)/1000*T89),0)))),0) -> 0 | AC89: =ROUNDUP(IF(OR(Q89=$Z$17,Q89=$Z$19,Q89=$Z$15),SUM(Z89:AA89),0),0) -> 0 | AD89: =ROUNDUP(IF(OR(Q89=$Z$18,Q89=$Z$20,Q89=$Z$16),SUM(Z89:AA89),0),0) -> 0 | AE89: =ROUNDUP(IF(OR(Q89=$Z$20,Q89=$Z$16),SUM(Z89:AA89)*5*1.03,IF(Q89=$Z$18,(AA89+Z89)*5*1.03+AH89,0)),0) -> 0 | AF89: =ROUNDUP(IF($AE$6=1,U89/1000*V89/1000*T89*1.03,0),1) -> 0.0 | AG89: =IF(Q89=$Z$18,INDEX($AH$307:$AI$339,MATCH(V89,$AG$307:$AG$339,0),2),IF(Q89=$Z$17,INDEX($AK$307:$AL$341,MATCH(V89,$AJ$307:$AJ$341,0),2),0)) -> 0 | AH89: =IF($W89=$Y$39,0,IF(AG89=0,0,ROUNDUP(7*T89*U89/1000*1.03,0))) -> 0 | AI89: =IF(Q89=$Z$18,INDEX($AH$307:$AI$339,MATCH(V89,$AG$307:$AG$339,0),1),IF(Q89=$Z$17,INDEX($AK$307:$AL$341,MATCH(V89,$AJ$307:$AJ$341,0),1),0)) -> 0 | AJ89: =AH89 -> 0 | AK89: =IF(Q89=$Z$18,INDEX($AO$306:$AP$323,MATCH(V89,$AN$306:$AN$323,0),2),IF(Q89=$Z$17,INDEX($AR$306:$AS$323,MATCH(V89,$AQ$306:$AQ$323,0),2),0)) -> 0 | AL89: 0 | AN89: =IFERROR(MATCH(Q89,$Z$15:$Z$20,0),0) -> 0
B90: =SUBTOTAL(3,$I$83:I90) -> 0 | C90: Телескопический крепеж ТехноНИКОЛЬ | F90: 140 | G90: мм | I90: 0 | J90: шт. | L90: 0.00 | N90: 0 | Y90: =T90*(430+R90+S90)/1000 -> 0 | Z90: =T90 -> 0 | AA90: =T90 -> 0 | AB90: =IF(SUM(R90:S90)>U90,IF(Q90=$Z$16,((R90+S90)/1000*T90),IF(Q90=$Z$18,((R90+S90-U90)/1000*T90),IF(Q90=$Z$19,((V90+U90)/1000*T90),IF(Q90=$Z$20,((R90+S90+V90)/1000*T90),0)))),0) -> 0 | AC90: =ROUNDUP(IF(OR(Q90=$Z$17,Q90=$Z$19,Q90=$Z$15),SUM(Z90:AA90),0),0) -> 0 | AD90: =ROUNDUP(IF(OR(Q90=$Z$18,Q90=$Z$20,Q90=$Z$16),SUM(Z90:AA90),0),0) -> 0 | AE90: =ROUNDUP(IF(OR(Q90=$Z$20,Q90=$Z$16),SUM(Z90:AA90)*5*1.03,IF(Q90=$Z$18,(AA90+Z90)*5*1.03+AH90,0)),0) -> 0 | AF90: =ROUNDUP(IF($AE$6=1,U90/1000*V90/1000*T90*1.03,0),1) -> 0.0 | AG90: =IF(Q90=$Z$18,INDEX($AH$307:$AI$339,MATCH(V90,$AG$307:$AG$339,0),2),IF(Q90=$Z$17,INDEX($AK$307:$AL$341,MATCH(V90,$AJ$307:$AJ$341,0),2),0)) -> 0 | AH90: =IF($W90=$Y$39,0,IF(AG90=0,0,ROUNDUP(7*T90*U90/1000*1.03,0))) -> 0 | AI90: =IF(Q90=$Z$18,INDEX($AH$307:$AI$339,MATCH(V90,$AG$307:$AG$339,0),1),IF(Q90=$Z$17,INDEX($AK$307:$AL$341,MATCH(V90,$AJ$307:$AJ$341,0),1),0)) -> 0 | AJ90: =AH90 -> 0 | AK90: =IF(Q90=$Z$18,INDEX($AO$306:$AP$323,MATCH(V90,$AN$306:$AN$323,0),2),IF(Q90=$Z$17,INDEX($AR$306:$AS$323,MATCH(V90,$AQ$306:$AQ$323,0),2),0)) -> 0 | AL90: 0 | AN90: =IFERROR(MATCH(Q90,$Z$15:$Z$20,0),0) -> 0
B91: =SUBTOTAL(3,$I$83:I91) -> 0 | C91: Телескопический крепеж ТехноНИКОЛЬ | F91: 150 | G91: мм | I91: 0 | J91: шт. | L91: 0.00 | N91: 0 | Y91: =T91*(430+R91+S91)/1000 -> 0 | Z91: =T91 -> 0 | AA91: =T91 -> 0 | AB91: =IF(SUM(R91:S91)>U91,IF(Q91=$Z$16,((R91+S91)/1000*T91),IF(Q91=$Z$18,((R91+S91-U91)/1000*T91),IF(Q91=$Z$19,((V91+U91)/1000*T91),IF(Q91=$Z$20,((R91+S91+V91)/1000*T91),0)))),0) -> 0 | AC91: =ROUNDUP(IF(OR(Q91=$Z$17,Q91=$Z$19,Q91=$Z$15),SUM(Z91:AA91),0),0) -> 0 | AD91: =ROUNDUP(IF(OR(Q91=$Z$18,Q91=$Z$20,Q91=$Z$16),SUM(Z91:AA91),0),0) -> 0 | AE91: =ROUNDUP(IF(OR(Q91=$Z$20,Q91=$Z$16),SUM(Z91:AA91)*5*1.03,IF(Q91=$Z$18,(AA91+Z91)*5*1.03+AH91,0)),0) -> 0 | AF91: =ROUNDUP(IF($AE$6=1,U91/1000*V91/1000*T91*1.03,0),1) -> 0.0 | AG91: =IF(Q91=$Z$18,INDEX($AH$307:$AI$339,MATCH(V91,$AG$307:$AG$339,0),2),IF(Q91=$Z$17,INDEX($AK$307:$AL$341,MATCH(V91,$AJ$307:$AJ$341,0),2),0)) -> 0 | AH91: =IF($W91=$Y$39,0,IF(AG91=0,0,ROUNDUP(7*T91*U91/1000*1.03,0))) -> 0 | AI91: =IF(Q91=$Z$18,INDEX($AH$307:$AI$339,MATCH(V91,$AG$307:$AG$339,0),1),IF(Q91=$Z$17,INDEX($AK$307:$AL$341,MATCH(V91,$AJ$307:$AJ$341,0),1),0)) -> 0 | AJ91: =AH91 -> 0 | AK91: =IF(Q91=$Z$18,INDEX($AO$306:$AP$323,MATCH(V91,$AN$306:$AN$323,0),2),IF(Q91=$Z$17,INDEX($AR$306:$AS$323,MATCH(V91,$AQ$306:$AQ$323,0),2),0)) -> 0 | AL91: 0 | AN91: =IFERROR(MATCH(Q91,$Z$15:$Z$20,0),0) -> 0
B92: =SUBTOTAL(3,$I$83:I92) -> 0 | C92: Телескопический крепеж ТехноНИКОЛЬ | F92: 170 | G92: мм | I92: 0 | J92: шт. | L92: 0.00 | N92: 0 | Y92: =T92*(430+R92+S92)/1000 -> 0 | Z92: =T92 -> 0 | AA92: =T92 -> 0 | AB92: =IF(SUM(R92:S92)>U92,IF(Q92=$Z$16,((R92+S92)/1000*T92),IF(Q92=$Z$18,((R92+S92-U92)/1000*T92),IF(Q92=$Z$19,((V92+U92)/1000*T92),IF(Q92=$Z$20,((R92+S92+V92)/1000*T92),0)))),0) -> 0 | AC92: =ROUNDUP(IF(OR(Q92=$Z$17,Q92=$Z$19,Q92=$Z$15),SUM(Z92:AA92),0),0) -> 0 | AD92: =ROUNDUP(IF(OR(Q92=$Z$18,Q92=$Z$20,Q92=$Z$16),SUM(Z92:AA92),0),0) -> 0 | AE92: =ROUNDUP(IF(OR(Q92=$Z$20,Q92=$Z$16),SUM(Z92:AA92)*5*1.03,IF(Q92=$Z$18,(AA92+Z92)*5*1.03+AH92,0)),0) -> 0 | AF92: =ROUNDUP(IF($AE$6=1,U92/1000*V92/1000*T92*1.03,0),1) -> 0.0 | AG92: =IF(Q92=$Z$18,INDEX($AH$307:$AI$339,MATCH(V92,$AG$307:$AG$339,0),2),IF(Q92=$Z$17,INDEX($AK$307:$AL$341,MATCH(V92,$AJ$307:$AJ$341,0),2),0)) -> 0 | AH92: =IF($W92=$Y$39,0,IF(AG92=0,0,ROUNDUP(7*T92*U92/1000*1.03,0))) -> 0 | AI92: =IF(Q92=$Z$18,INDEX($AH$307:$AI$339,MATCH(V92,$AG$307:$AG$339,0),1),IF(Q92=$Z$17,INDEX($AK$307:$AL$341,MATCH(V92,$AJ$307:$AJ$341,0),1),0)) -> 0 | AJ92: =AH92 -> 0 | AK92: =IF(Q92=$Z$18,INDEX($AO$306:$AP$323,MATCH(V92,$AN$306:$AN$323,0),2),IF(Q92=$Z$17,INDEX($AR$306:$AS$323,MATCH(V92,$AQ$306:$AQ$323,0),2),0)) -> 0 | AL92: 0 | AN92: =IFERROR(MATCH(Q92,$Z$15:$Z$20,0),0) -> 0
B93: =SUBTOTAL(3,$I$83:I93) -> 0 | C93: Телескопический крепеж ТехноНИКОЛЬ | F93: 180 | G93: мм | I93: 0 | J93: шт. | L93: 0.00 | N93: 0 | Q93: =IF(V3=Y4,"Примыкания к вертикальным стенам"," ") -> Примыкания к вертикальным стенам | Y93: Примыкания к вертикальным поверхностям стен и другим конструкциям | AF93: ОБЪЕМ УТЕПЛ | AG93: САМОРЕЗ КУ | AI93: ТЕЛЕСКОП КУ | AK93: САМОРЕЗ КР
B94: =SUBTOTAL(3,$I$83:I94) -> 1 | C94: Телескопический крепеж ТехноНИКОЛЬ | F94: 200 | G94: мм | I94: 26 | J94: шт. | L94: 0.00 | N94: 1 | Q94: НАЗВАНИЕ | R94: =IF(V3=Y4,"ТИПЫ"," ") -> ТИПЫ | S94: =IF(V3=Y4,"ВЫСОТА, мм"," ") -> ВЫСОТА, мм | T94: =IF(V3=Y4,"ДЛИНА, м"," ") -> ДЛИНА, м | U94: Н утепл, мм | V94: толщ., мм | W94: марка ут. | Y94: ПГ | Z94: ДПР | AA94: ДКР | AB94: ГнП | AC94: СМРЗ. МЕТ | AD94: СМРЗ БЕТ. | AE94: АНКЕР, шт | AG94: размер | AH94: кол-во, шт | AI94: размер | AJ94: кол-во, шт | AK94: размер | AL94: кол-во, шт
B95: =SUBTOTAL(3,$I$83:I95) -> 2 | C95: Телескопический крепеж ТехноНИКОЛЬ | F95: 220 | G95: мм | I95: 49 | J95: шт. | L95: 0.00 | N95: 1 | Q95: 1 | R95: МЕТ | S95: 500 | T95: 13.8 | Y95: =(380+S95)/1000*T95 -> 12.144 | Z95: =T95 -> 13.8 | AA95: =T95 -> 13.8 | AB95: =IF(S95>=U95,IF(R95=$Z$16,S95/1000*T95,IF(R95=$Z$18,(S95-U95)/1000*T95,IF(R95=$Z$19,(U95+V95)/1000*T95,IF(R95=$Z$20,(S95+V95)/1000*T95,0)))),0) -> 0 | AC95: =ROUNDUP(IF(OR(R95=$Z$15,R95=$Z$17,R95=$Z$19),SUM(Z95:AA95),0),0) -> 28 | AD95: =ROUNDUP(IF(OR(R95=$Z$16,R95=$Z$18,R95=$Z$20),SUM(Z95:AA95),0),0) -> 0 | AE95: =ROUNDUP(IF(OR(R95=$Z$20,R95=$Z$16),SUM(Z95:AA95)*5*1.03,IF(R95=$Z$18,((AA95+Z95)*5*1.03+AH95),0)),0) -> 0 | AF95: =ROUNDUP(IF($AE$7=1,U95/1000*V95/1000*T95*1.03,0),1) -> 0.0 | AG95: =IF(R95=$Z$18,INDEX($AH$307:$AI$339,MATCH(V95,$AG$307:$AG$339,0),2),IF(R95=$Z$17,INDEX($AK$307:$AL$341,MATCH(V95,$AJ$307:$AJ$341,0),2),0)) -> 0 | AH95: =IF($W95=$Y$39,0,IF(AG95=0,0,ROUNDUP(7*T95*U95/1000*1.03,0))) -> 0 | AI95: =IF(R95=$Z$18,INDEX($AH$307:$AI$339,MATCH(V95,$AG$307:$AG$339,0),1),IF(R95=$Z$17,INDEX($AK$307:$AL$341,MATCH(V95,$AJ$307:$AJ$341,0),1),0)) -> 0 | AJ95: =AH95 -> 0 | AK95: =IF(R95=$Z$18,INDEX($AO$306:$AP$323,MATCH(V95,$AN$306:$AN$323,0),2),IF(R95=$Z$17,INDEX($AR$306:$AS$323,MATCH(V95,$AQ$306:$AQ$323,0),2),0)) -> 0 | AL95: 0 | AN95: =IFERROR(MATCH(R95,$Z$15:$Z$20,0),0) -> 1
B96: =SUBTOTAL(3,$I$83:I96) -> 3 | C96: Телескопический крепеж ТехноНИКОЛЬ | F96: 240 | G96: мм | I96: 49 | J96: шт. | L96: 0.00 | N96: 1 | Q96: 2 | R96: Ж/Б+ТЕПЛО | S96: 600 | T96: =ПР-T95-S101 -> 20.3 | U96: 500 | V96: 50 | W96: ТЕХНОРУФ Н ПРОФ | Y96: =(380+S96)/1000*T96 -> 19.894 | Z96: =T96 -> 20.3 | AA96: =T96 -> 20.3 | AB96: =IF(S96>=U96,IF(R96=$Z$16,S96/1000*T96,IF(R96=$Z$18,(S96-U96)/1000*T96,IF(R96=$Z$19,(U96+V96)/1000*T96,IF(R96=$Z$20,(S96+V96)/1000*T96,0)))),0) -> 2.03 | AC96: =ROUNDUP(IF(OR(R96=$Z$15,R96=$Z$17,R96=$Z$19),SUM(Z96:AA96),0),0) -> 0 | AD96: =ROUNDUP(IF(OR(R96=$Z$16,R96=$Z$18,R96=$Z$20),SUM(Z96:AA96),0),0) -> 41 | AE96: =ROUNDUP(IF(OR(R96=$Z$20,R96=$Z$16),SUM(Z96:AA96)*5*1.03,IF(R96=$Z$18,((AA96+Z96)*5*1.03+AH96),0)),0) -> 284 | AF96: =ROUNDUP(IF($AE$7=1,U96/1000*V96/1000*T96*1.03,0),1) -> 0.6 | AG96: =IF(R96=$Z$18,INDEX($AH$307:$AI$339,MATCH(V96,$AG$307:$AG$339,0),2),IF(R96=$Z$17,INDEX($AK$307:$AL$341,MATCH(V96,$AJ$307:$AJ$341,0),2),0)) -> 100 | AH96: =IF($W96=$Y$39,0,IF(AG96=0,0,ROUNDUP(7*T96*U96/1000*1.03,0))) -> 74 | AI96: =IF(R96=$Z$18,INDEX($AH$307:$AI$339,MATCH(V96,$AG$307:$AG$339,0),1),IF(R96=$Z$17,INDEX($AK$307:$AL$341,MATCH(V96,$AJ$307:$AJ$341,0),1),0)) -> 20 | AJ96: =AH96 -> 74 | AK96: =IF(R96=$Z$18,INDEX($AO$306:$AP$323,MATCH(V96,$AN$306:$AN$323,0),2),IF(R96=$Z$17,INDEX($AR$306:$AS$323,MATCH(V96,$AQ$306:$AQ$323,0),2),0)) -> 100 | AL96: 0 | AN96: =IFERROR(MATCH(R96,$Z$15:$Z$20,0),0) -> 4
B97: =SUBTOTAL(3,$I$83:I97) -> 4 | C97: Телескопический крепеж ТехноНИКОЛЬ | F97: 260 | G97: мм | I97: 98 | J97: шт. | L97: 0.00 | N97: 1 | Y97: =(380+S97)/1000*T97 -> 0 | Z97: =T97 -> 0 | AA97: =T97 -> 0 | AB97: =IF(S97>=U97,IF(R97=$Z$16,S97/1000*T97,IF(R97=$Z$18,(S97-U97)/1000*T97,IF(R97=$Z$19,(U97+V97)/1000*T97,IF(R97=$Z$20,(S97+V97)/1000*T97,0)))),0) -> 0 | AC97: =ROUNDUP(IF(OR(R97=$Z$15,R97=$Z$17,R97=$Z$19),SUM(Z97:AA97),0),0) -> 0 | AD97: =ROUNDUP(IF(OR(R97=$Z$16,R97=$Z$18,R97=$Z$20),SUM(Z97:AA97),0),0) -> 0 | AE97: =ROUNDUP(IF(OR(R97=$Z$20,R97=$Z$16),SUM(Z97:AA97)*5*1.03,IF(R97=$Z$18,((AA97+Z97)*5*1.03+AH97),0)),0) -> 0 | AF97: =ROUNDUP(IF($AE$7=1,U97/1000*V97/1000*T97*1.03,0),1) -> 0.0 | AG97: =IF(R97=$Z$18,INDEX($AH$307:$AI$339,MATCH(V97,$AG$307:$AG$339,0),2),IF(R97=$Z$17,INDEX($AK$307:$AL$341,MATCH(V97,$AJ$307:$AJ$341,0),2),0)) -> 0 | AH97: =IF($W97=$Y$39,0,IF(AG97=0,0,ROUNDUP(7*T97*U97/1000*1.03,0))) -> 0 | AI97: =IF(R97=$Z$18,INDEX($AH$307:$AI$339,MATCH(V97,$AG$307:$AG$339,0),1),IF(R97=$Z$17,INDEX($AK$307:$AL$341,MATCH(V97,$AJ$307:$AJ$341,0),1),0)) -> 0 | AJ97: =AH97 -> 0 | AK97: =IF(R97=$Z$18,INDEX($AO$306:$AP$323,MATCH(V97,$AN$306:$AN$323,0),2),IF(R97=$Z$17,INDEX($AR$306:$AS$323,MATCH(V97,$AQ$306:$AQ$323,0),2),0)) -> 0 | AL97: 0 | AN97: =IFERROR(MATCH(R97,$Z$15:$Z$20,0),0) -> 0
B98: =SUBTOTAL(3,$I$83:I98) -> 5 | C98: Телескопический крепеж ТехноНИКОЛЬ | F98: 300 | G98: мм | I98: 76 | J98: шт. | L98: 0.00 | N98: 1 | Y98: =(380+S98)/1000*T98 -> 0 | Z98: =T98 -> 0 | AA98: =T98 -> 0 | AB98: =IF(S98>=U98,IF(R98=$Z$16,S98/1000*T98,IF(R98=$Z$18,(S98-U98)/1000*T98,IF(R98=$Z$19,(U98+V98)/1000*T98,IF(R98=$Z$20,(S98+V98)/1000*T98,0)))),0) -> 0 | AC98: =ROUNDUP(IF(OR(R98=$Z$15,R98=$Z$17,R98=$Z$19),SUM(Z98:AA98),0),0) -> 0 | AD98: =ROUNDUP(IF(OR(R98=$Z$16,R98=$Z$18,R98=$Z$20),SUM(Z98:AA98),0),0) -> 0 | AE98: =ROUNDUP(IF(OR(R98=$Z$20,R98=$Z$16),SUM(Z98:AA98)*5*1.03,IF(R98=$Z$18,((AA98+Z98)*5*1.03+AH98),0)),0) -> 0 | AF98: =ROUNDUP(IF($AE$7=1,U98/1000*V98/1000*T98*1.03,0),1) -> 0.0 | AG98: =IF(R98=$Z$18,INDEX($AH$307:$AI$339,MATCH(V98,$AG$307:$AG$339,0),2),IF(R98=$Z$17,INDEX($AK$307:$AL$341,MATCH(V98,$AJ$307:$AJ$341,0),2),0)) -> 0 | AH98: =IF($W98=$Y$39,0,IF(AG98=0,0,ROUNDUP(7*T98*U98/1000*1.03,0))) -> 0 | AI98: =IF(R98=$Z$18,INDEX($AH$307:$AI$339,MATCH(V98,$AG$307:$AG$339,0),1),IF(R98=$Z$17,INDEX($AK$307:$AL$341,MATCH(V98,$AJ$307:$AJ$341,0),1),0)) -> 0 | AJ98: =AH98 -> 0 | AK98: =IF(R98=$Z$18,INDEX($AO$306:$AP$323,MATCH(V98,$AN$306:$AN$323,0),2),IF(R98=$Z$17,INDEX($AR$306:$AS$323,MATCH(V98,$AQ$306:$AQ$323,0),2),0)) -> 0 | AL98: 0 | AN98: =IFERROR(MATCH(R98,$Z$15:$Z$20,0),0) -> 0
B99: =SUBTOTAL(3,$I$83:I99) -> 5 | C99: Телескопический крепеж ТехноНИКОЛЬ | F99: 350 | G99: мм | I99: 0 | J99: шт. | L99: 0.00 | N99: 0 | Q99: =IF(V3=Y4,"Открытый водосток"," ") -> Открытый водосток | Y99: Открытый водосток
B100: =SUBTOTAL(3,$I$83:I100) -> 5 | C100: Телескопический крепеж | F100: 425 | G100: мм | I100: =IF(OR($V$4=$AA$10,$V$4=$AA$11),SUMIF($D$225:$D$295,F100,$I$225:$I$295),SUMIF($D$137:$D$216,F100,$L$137:$L$216)) -> 0 | J100: шт. | L100: =I100*K100 -> 0.00 | N100: 0 | Q100: НАЗВАНИЕ | R100: =IF(V3=Y4,"ТИПЫ"," ") -> ТИПЫ | S100: =IF(V3=Y4,"ДЛИНА, м"," ") -> ДЛИНА, м | Y100: ПГ | Z100: ТЭ | AA100: СМРЗ. МЕТ | AB100: СМРЗ БЕТ. | AC100: АНКЕР, шт
C101: Саморезы | L101: =SUM(L102:L113) -> 0.00 | N101: =IF(SUM(I102:I113)>0,1,0) -> 1 | Q101: 1 | R101: Ж/Б | S101: 5.9 | Y101: =S101*300/1000 -> 1.77 | Z101: =S101 -> 5.9 | AA101: =ROUNDUP(IF(R101=$Z$15,SUM(Z101),0),0) -> 0 | AB101: =ROUNDUP(IF(R101=$Z$16,SUM(Z101),0),0) -> 6 | AC101: =ROUNDUP(IF(OR(R101=$Z$16,R101=$Z$18),SUM(Z101)*5*1.03,0),0) -> 31 | AN101: =IFERROR(MATCH(R101,$Z$15:$Z$20,0),0) -> 2
B102: =SUBTOTAL(3,$I$83:I102) -> 5 | C102: =IF(AND(R4=Y7,V4=AA7),"Саморез остроконечный ТехноНИКОЛЬ 6,3х","Саморез остроконечный ТехноНИКОЛЬ 4,8х") -> Саморез остроконечный ТехноНИКОЛЬ 4,8х | F102: =IF(C102="Саморез остроконечный ТехноНИКОЛЬ 6,3х",110,50) -> 50 | G102: мм | I102: =IF(AND($V$4=$AA$10,$V$3=$Y$4),(SUMIF($E$225:$E$295,F102,$I$225:$I$295)+ROUNDUP(ПЛ*U12,0)),IF($V$4=$AA$11,SUMIF($E$225:$E$295,F102,$I$225:$I$295),IF(AND($R$4=$Y$9,$V$4=$AA$6),ПЛ*$U$12,IF(AND($R$4=$Y$10,$V$4=$AA$6),ПЛ*$U$12,SUMIF($E$137:$E$216,F102,$L$137:$L$216))))) -> 0 | J102: шт. | L102: =I102*K102 -> 0.00 | N102: =IF(I102>0,1,0) -> 0
B103: =SUBTOTAL(3,$I$83:I103) -> 5 | C103: =IF(AND(R4=Y7,V4=AA7),"Саморез остроконечный ТехноНИКОЛЬ 6,3х",IF(R4=Y7,"Саморез остроконечный ТехноНИКОЛЬ 4,8х","Саморез сверлоконечный ТехноНИКОЛЬ 4,8х")) -> Саморез остроконечный ТехноНИКОЛЬ 4,8х | F103: =IF(C103="Саморез остроконечный ТехноНИКОЛЬ 6,3х",90,60) -> 60 | G103: мм | I103: =IF(OR($V$4=$AA$10,$V$4=$AA$11),SUMIF($E$225:$E$295,F103,$I$225:$I$295),SUMIF($E$137:$E$216,F103,$L$137:$L$216))+IF($AK$24>0,SUMIF($AK$25,$F$103,$AK$26),0) -> 0 | J103: шт. | L103: 0.00 | N103: 0 | P103: =IF(V3=Y4,"НАЗВАНИЕ ПАРАПЕТА"," ") -> НАЗВАНИЕ ПАРАПЕТА
B104: =SUBTOTAL(3,$I$83:I104) -> 5 | C104: =IF(R4=Y7,"Саморез остроконечный ТехноНИКОЛЬ 4,8х","Саморез сверлоконечный ТехноНИКОЛЬ 4,8х") -> Саморез остроконечный ТехноНИКОЛЬ 4,8х | F104: 70 | G104: мм | I104: =IF(OR($V$4=$AA$10,$V$4=$AA$11),SUMIF($E$225:$E$295,F104,$I$225:$I$295),SUMIF($E$137:$E$216,F104,$L$137:$L$216))+IF($AK$24>0,SUMIF($AK$25,$F$104,$AK$26),0) -> 0 | J104: шт. | L104: 0.00 | N104: 0 | P104: =IF(V3=Y4,"ПГ_ВЕРХ"," ") -> ПГ_ВЕРХ | R104: =IF(V3=Y4,"ТЭ"," ") -> ТЭ | T104: =IF(V3=Y4,"АНКЕР"," ") -> АНКЕР
B105: =SUBTOTAL(3,$I$83:I105) -> 5 | C105: =IF(AND(R4=Y7,V4=AA7),"Саморез остроконечный ТехноНИКОЛЬ 6,3х",IF(R4=Y7,"Саморез остроконечный ТехноНИКОЛЬ 4,8х","Саморез сверлоконечный ТехноНИКОЛЬ 4,8х")) -> Саморез остроконечный ТехноНИКОЛЬ 4,8х | F105: 80 | G105: мм | I105: =IF(OR($V$4=$AA$10,$V$4=$AA$11),SUMIF($E$225:$E$295,F105,$I$225:$I$295),SUMIF($E$137:$E$216,F105,$L$137:$L$216))+IF($AK$24>0,SUMIF($AK$25,$F$105,$AK$26),0) -> 0 | J105: шт. | L105: 0.00 | N105: 0 | P105: =IF(V3=Y4,"ДКР"," ") -> ДКР | R105: =IF(V3=Y4,"ГнП"," ") -> ГнП | T105: =IF(V3=Y4,"СМРЗ. БЕТ"," ") -> СМРЗ. БЕТ
B106: =SUBTOTAL(3,$I$83:I106) -> 5 | C106: =IF(R4=Y7,"Саморез остроконечный ТехноНИКОЛЬ 4,8х","Саморез сверлоконечный ТехноНИКОЛЬ 4,8х") -> Саморез остроконечный ТехноНИКОЛЬ 4,8х | F106: 100 | G106: мм | I106: =IF(OR($V$4=$AA$10,$V$4=$AA$11),SUMIF($E$225:$E$295,F106,$I$225:$I$295),SUMIF($E$137:$E$216,F106,$L$137:$L$216))+IF($AK$24>0,SUMIF($AK$25,$F$106,$AK$26),0) -> 0 | J106: шт. | L106: 0.00 | N106: 0 | P106: =IF(V3=Y4,"ДПР"," ") -> ДПР | R106: =IF(V3=Y4,"СМРЗ. МЕТ"," ") -> СМРЗ. МЕТ | T106: =IF(V3=Y4,"ПВХ МЕТ."," ") -> ПВХ МЕТ.
B107: =SUBTOTAL(3,$I$83:I107) -> 5 | C107: Саморез сверлоконечный ТехноНИКОЛЬ 4,8х | F107: 120 | G107: мм | I107: =IF(OR($V$4=$AA$10,$V$4=$AA$11),SUMIF($E$225:$E$295,F107,$I$225:$I$295),SUMIF($E$137:$E$216,F107,$L$137:$L$216))+IF($AK$24>0,SUMIF($AK$25,$F$107,$AK$26),0) -> 0 | J107: шт. | L107: 0.00 | N107: 0
B108: =SUBTOTAL(3,$I$83:I108) -> 6 | C108: Саморез сверлоконечный ТехноНИКОЛЬ 4,8х | F108: 160 | G108: мм | I108: =IF(OR($V$4=$AA$10,$V$4=$AA$11),SUMIF($E$225:$E$295,F108,$I$225:$I$295),SUMIF($E$137:$E$216,F108,$L$137:$L$216))+IF($AK$24>0,SUMIF($AK$25,$F$108,$AK$26),0) -> 298 | J108: шт. | L108: 0.00 | N108: 1 | P108: Воронка водоприемная | R108: Воронка с обжимным металлическим фланцем с обогревом 110х720 мм | U108: шт | V108: =HYPERLINK("#"&$AB$5&"!B22","⇑ ") -> ⇑
B109: =SUBTOTAL(3,$I$83:I109) -> 6 | C109: Саморез сверлоконечный ТехноНИКОЛЬ 4,8х | F109: 200 | G109: мм | I109: =IF(OR($V$4=$AA$10,$V$4=$AA$11),SUMIF($E$225:$E$295,F109,$I$225:$I$295),SUMIF($E$137:$E$216,F109,$L$137:$L$216)) -> 0 | J109: шт. | L109: 0.00 | N109: 0 | P109: Воронка водоприемная | R109: парапетная | U109: шт
B110: =SUBTOTAL(3,$I$83:I110) -> 6 | C110: Саморез 4,8х | F110: 140 | G110: мм | I110: 0 | J110: шт. | L110: 0.00 | N110: 0 | P110: Дорожки пешеходные | R110: ПВХ Logicroof Walkway Puzzle | U110: =IF(R110=AA14,"-","м.п") -> м.п
B111: =SUBTOTAL(3,$I$83:I111) -> 6 | C111: Саморез 4,8х | F111: 180 | G111: мм | I111: 0 | J111: шт. | L111: 0.00 | N111: 0 | P111: Огнезащитный материал | R111: LOGICROOF NG | U111: =IF(R111=AA17,"-","м2") -> м2
B112: =SUBTOTAL(3,$I$83:I112) -> 6 | C112: Саморез 4,8х | F112: 240 | G112: мм | I112: 0 | J112: шт. | L112: 0.00 | N112: 0 | P112: ПВХ угол ТехноНИКОЛЬ* | R112: Внутренний | T112: 4 | U112: шт
B113: =SUBTOTAL(3,$I$83:I113) -> 6 | C113: Саморез 4,8х | F113: 300 | G113: мм | I113: 0 | J113: шт. | L113: 0.00 | N113: 0 | P113: ПВХ угол ТехноНИКОЛЬ*, | R113: Внешний | U113: шт
C114: Анкерный элемент | L114: =SUM(L115) -> 0.00 | N114: =IF(I115>0,1,0) -> 1
B115: =SUBTOTAL(3,$I$83:I115) -> 7 | C115: Анкерный элемент ТехноНИКОЛЬ | E115: 8х | F115: 45 | G115: мм | I115: =IF(AND($R$4=$Y$7,OR($V$4=$Y$12,$V$4=$AA$8,$V$4=$AA$9)),SUM($L$137:$L$216),IF(AND($R$4=$Y$9,$V$4=$AA$6),ПЛ*$U$12,IF($V$4=$AA$7,SUMIF($F$137:$H$216,"8х45",$L$137:$L$216),IF(AND($R$4=$Y$7),SUMIF(F225:H295,"8х45",I225:I295),0)))) -> 298 | J115: шт. | L115: =I115*K115 -> 0.00 | N115: =IF(I115>0,1,0) -> 1
C116: =IF(F116=" "," ","Толщина основного слоя утеплителя") -> Толщина основного слоя утеплителя | F116: =IF(R3=0," ",R3) -> 220 | G116: =IF(F116=" "," ","мм") -> мм | N116: =IF($V$4="НЕТ",0,1) -> 1
C117: =IFERROR(IF(SUM(J138:J216)>0,"** Количество крепежа дано с учетом закрепления мембраны, над клиновидной теплоизоляцией"," "),"") -> ** Количество крепежа дано с учетом закрепления мембраны, над клиновидной теплоизоляцией | N117: =IF($V$4="НЕТ",0,1) -> 1
B118: =IFERROR(IF(MATCH("НЕТ ДАННЫХ",D137:D176,0)>0,"Внимание, на данной странице показан не весь необходимый крепеж, высота закрепления клиновидной теплоизоляции превышает асортимент телескопического крепежа компании ТехноНИКОЛЬ, смотри таблицу группировки крепежа, по позициям НЕТ ДАННЫХ."," ")," ") ->  | N118: =IF($V$4="НЕТ",0,1) -> 1
N119: =IF($V$4="НЕТ",0,1) -> 1
C120: =IF(OR(T3=Y14,T4=Y20,T4=Y22),"Альбом с примерами раскладки клиновидной теплоизоляции из каменной ваты можно скачать по этой ссылке","") -> Альбом с примерами раскладки клиновидной теплоизоляции из каменной ваты можно скачать по этой ссылке | N120: =IF($C$120="",0,1) -> 1
N121: =IF($C$120="",0,1) -> 1
N122: =IF($C$120="",0,1) -> 1
C123: =IF(OR(T3=Y16,T4=Y23,T4=Y27),"Альбом с примерами раскладки клиновидной теплоизоляции из XPS можно скачать по этой ссылке","") ->  | N123: =IF($C$123="",0,1) -> 0
N124: =IF($C$123="",0,1) -> 0
N125: =IF($C$123="",0,1) -> 0
C126: =IF(OR(T3=Y18,T4=Y25),"Альбом с примерами раскладки клиновидной теплоизоляции из PIR можно скачать по этой ссылке","") ->  | N126: =IF($C$126="",0,1) -> 0
N127: =IF($C$126="",0,1) -> 0
N128: =IF($C$126="",0,1) -> 0
N129: =IF($V$4="НЕТ",0,1) -> 1
B130: Таблица группировки крепежа | G130: =номер_объекта -> 11-27ХХ-МПКПМКИ-12.21 | K130: =IF(K5=0," ",K5) -> В осях 7-9 / Ж-И и 12-14 / Ж-И | N130: =IF($V$4="НЕТ",0,1) -> 1 | P130: =IF(V3=Y3,"Примыкание к парапету высотой более 500 мм"," ") ->  | U130: =HYPERLINK("#"&$AB$5&"!A36","⇑ ") -> ⇑ | Y130: Примыкание к парапету высотой более 500 мм
N131: =IF($V$4="НЕТ",0,1) -> 1 | O131: 1 | P131: НАЗВАНИЕ | Q131: =IF(V3=Y3,"ТИПЫ"," ") ->  | R131: =IF(V3=Y3,"ШИРИНА, мм"," ") ->  | S131: =IF(V3=Y3,"ВЫСОТА, мм"," ") ->  | T131: =IF(V3=Y3,"ДЛИНА, м"," ") ->  | U131: Н утепл., мм | V131: толщина, мм | W131: марка утеплителя | Y131: ПГ | AA131: ДПР | AB131: СМРЗ. МЕТ | AC131: СМРЗ БЕТ. | AD131: АНКЕР, шт | AE131: ПРАЙМЕР | AF131: ОБЪЕМ УТЕПЛ | AG131: САМОРЕЗ КУ | AI131: ТЕЛЕСКОП КУ | AK131: САМОРЕЗ КР | AN131: Тип примыканий
N132: 1 | Y132: ВЕРХ | Z132: НИЗ | AG132: размер | AH132: кол-во, шт | AI132: размер | AJ132: кол-во, шт | AK132: размер | AL132: кол-во, шт | AN132: В Примечания
B133: № | C133: Толщина утеплителя, мм | D133: Телескопи- ческий крепеж, мм. | E133: Саморез, мм. | F133: Анкерный элемент мм. | I133: Крепление теплоизо-ляции*, шт. | J133: Крепление гидроизоляции**, шт. | L133: Общее количество крепежа, шт. | N133: 1 | Y133: =T133*(500+R133+S133)/1000 -> 0 | Z133: =650*T133/1000 -> 0 | AA133: 0 | AB133: =ROUNDUP(IF(OR(Q133=$Z$15,Q133=$Z$17,Q133=$Z$18),AA133,0),0) -> 0 | AC133: =ROUNDUP(IF(Q133=$Z$16,AA133,0),0) -> 0 | AD133: =ROUNDUP(IF(Q133=$Z$16,AA133*5*1.03,0),0) -> 0 | AE133: =IF(Q133=$Z$15,0,IF(Q133=$Z$17,(T133*(U133+V133)/1000),Y133)) -> 0 | AF133: =ROUNDUP(IF($AF$5=1,U133/1000*V133/1000*T133*1.03,0),1) -> 0.0 | AG133: нет | AI133: нет | AK133: нет | AN133: =IFERROR(MATCH(Q133,$Z$15:$Z$20,0),0) -> 0
N134: 1 | Y134: =T134*(500+R134+S134)/1000 -> 0 | Z134: =650*T134/1000 -> 0 | AA134: 0 | AB134: =ROUNDUP(IF(OR(Q134=$Z$15,Q134=$Z$17,Q134=$Z$18),AA134,0),0) -> 0 | AC134: =ROUNDUP(IF(Q134=$Z$16,AA134,0),0) -> 0 | AD134: =ROUNDUP(IF(Q134=$Z$16,AA134*5*1.03,0),0) -> 0 | AE134: =IF(Q134=$Z$15,0,IF(Q134=$Z$17,(T134*(U134+V134)/1000),Y134)) -> 0 | AF134: =ROUNDUP(IF($AF$5=1,U134/1000*V134/1000*T134*1.03,0),1) -> 0.0 | AN134: =IFERROR(MATCH(Q134,$Z$15:$Z$20,0),0) -> 0
N135: 1 | Y135: =T135*(500+R135+S135)/1000 -> 0 | Z135: =650*T135/1000 -> 0 | AA135: 0 | AB135: =ROUNDUP(IF(OR(Q135=$Z$15,Q135=$Z$17,Q135=$Z$18),AA135,0),0) -> 0 | AC135: =ROUNDUP(IF(Q135=$Z$16,AA135,0),0) -> 0 | AD135: =ROUNDUP(IF(Q135=$Z$16,AA135*5*1.03,0),0) -> 0 | AE135: =IF(Q135=$Z$15,0,IF(Q135=$Z$17,(T135*(U135+V135)/1000),Y135)) -> 0 | AF135: =ROUNDUP(IF($AF$5=1,U135/1000*V135/1000*T135*1.03,0),1) -> 0.0 | AN135: =IFERROR(MATCH(Q135,$Z$15:$Z$20,0),0) -> 0
B136: 1 | C136: 2 | D136: 3 | E136: 4 | F136: 5 | I136: 6 | J136: 7 | L136: 8 | N136: 1 | Y136: =T136*(500+R136+S136)/1000 -> 0 | Z136: =650*T136/1000 -> 0 | AA136: 0 | AB136: =ROUNDUP(IF(OR(Q136=$Z$15,Q136=$Z$17,Q136=$Z$18),AA136,0),0) -> 0 | AC136: =ROUNDUP(IF(Q136=$Z$16,AA136,0),0) -> 0 | AD136: =ROUNDUP(IF(Q136=$Z$16,AA136*5*1.03,0),0) -> 0 | AE136: =IF(Q136=$Z$15,0,IF(Q136=$Z$17,(T136*(U136+V136)/1000),Y136)) -> 0 | AF136: =ROUNDUP(IF($AF$5=1,U136/1000*V136/1000*T136*1.03,0),1) -> 0.0 | AN136: =IFERROR(MATCH(Q136,$Z$15:$Z$20,0),0) -> 0
B137: =SUBTOTAL(3,$I$137:I137) -> 0 | C137: =R3 -> 220 | D137: =IFERROR(IF(AND($R$4=$Y$7,$V$4=$AA$6),INDEX($AH$303:$AI$370,MATCH(_xlfn.CEILING.MATH(C137,10),$AG$303:$AG$370,0),1),IF(AND($R$4=$Y$7,$V$4=$AA$7),INDEX($AE$303:$AF$370,MATCH(_xlfn.CEILING.MATH(C137,10),$AD$303:$AD$370,0),1),IF(AND($R$4=$Y$8,$V$4=$AA$6),INDEX($AK$303:$AL$372,MATCH(_xlfn.CEILING.MATH(C137,10),$AJ$303:$AJ$372,0),1)," "))),"НЕТ ДАННЫХ") -> 180 | E137: =IFERROR(IF(AND($R$4=$Y$7,$V$4=$AA$6),INDEX($AH$303:$AI$370,MATCH(_xlfn.CEILING.MATH(C137,10),$AG$303:$AG$370,0),2),IF(AND($R$4=$Y$7,$V$4=$AA$7),INDEX($AE$303:$AF$370,MATCH(_xlfn.CEILING.MATH(C137,10),$AD$303:$AD$370,0),2),IF(AND($R$4=$Y$8,$V$4=$AA$6),INDEX($AK$303:$AL$372,MATCH(_xlfn.CEILING.MATH(C137,10),$AJ$303:$AJ$372,0),2)," "))),"НЕТ ДАННЫХ") -> 100 | F137: =IF(AND(OR($V$4=$Y$12,$V$4=$AA$8,$V$4=$AA$9),OR($R$4=$Y$7,$R$4=$Y$9)),"8х45",IF(AND($V$4=$AA$7,C137>300),"8х45",IF(AND($V$4=$AA$7,$AA$2=$AA$6),"8х45","не требуется"))) -> 8х45 | I137: =ROUND(IF(AND($T$3=$Y$13,OR($V$4=$Y$12,$V$4=$AA$7),OR($R$4=$Y$7,$R$4=$Y$8),$V$5=$AD$22),(ПЛ-AF21)*3.06,IF(AND($T$3=$Y$13,OR($V$4=$Y$12,$V$4=$AA$7),OR($R$4=$Y$7,$R$4=$Y$8),$V$5=$AC$22),(ПЛ-AF21)*3,IF(AND(T3=Y13,OR($V$4=$Y$12,$V$4=$AA$7),OR($R$4=$Y$7,$R$4=$Y$8),$V$5=$AB$22),(ПЛ-AF21)*3,0))),0) -> 0 | J137: =ROUND(IF(AND(T3=Y13,OR(V4=AA7,V4=Y12),$V$5=$AD$22),I137*U12/3.06,IF(AND(T3=Y13,OR(V4=Y12,V4=AA7),$V$5=$AC$22),I137*U12/3,IF(AND(T3=Y13,OR(V4=Y12,V4=AA7),$V$5=$AB$22),I137*U12/3,0))),0) -> 0 | L137: =I137+J137+IF(AND($V$3=$Y$3,$T$3=$Y$6,$V$4<>$Y$13),($I$862*8+$I$864*4),IF(AND($V$3=$Y$4,$T$3=$Y$6,$V$4<>$Y$13),($I$971*8+$I$976*4),0)) -> 0 | N137: =IF(I137>0,1,0) -> 0 | Y137: =T137*(500+R137+S137)/1000 -> 0 | Z137: =650*T137/1000 -> 0 | AA137: 0 | AB137: =ROUNDUP(IF(OR(Q137=$Z$15,Q137=$Z$17,Q137=$Z$18),AA137,0),0) -> 0 | AC137: =ROUNDUP(IF(Q137=$Z$16,AA137,0),0) -> 0 | AD137: =ROUNDUP(IF(Q137=$Z$16,AA137*5*1.03,0),0) -> 0 | AE137: =IF(Q137=$Z$15,0,IF(Q137=$Z$17,(T137*(U137+V137)/1000),Y137)) -> 0 | AF137: =ROUNDUP(IF($AF$5=1,U137/1000*V137/1000*T137*1.03,0),1) -> 0.0 | AN137: =IFERROR(MATCH(Q137,$Z$15:$Z$20,0),0) -> 0
B138: =SUBTOTAL(3,$I$137:I138) -> 1 | C138: =IF($T$5=$AA$12,P14,P14+$R$3) -> 250 | D138: =IFERROR(IF(AND($R$4=$Y$7,OR($V$4=$AA$8,$V$4=$AA$9,$V$4=$Y$12)),INDEX($AH$381:$AI$448,MATCH(_xlfn.CEILING.MATH(C138,10),$AG$381:$AG$448,0),1),IF(AND($R$4=$Y$7,$V$4=$AA$7),INDEX($AH$381:$AI$448,MATCH(_xlfn.CEILING.MATH(C138,10),$AG$381:$AG$448,0),1),IF(AND($R$4=$Y$8,OR($V$4=$AA$8,$V$4=$AA$9,$V$4=$Y$12)),INDEX($AK$381:$AL$449,MATCH(_xlfn.CEILING.MATH(C138,10),$AJ$381:$AJ$449,0),1)," "))),"НЕТ ДАННЫХ") -> 200 | E138: =IFERROR(IF(AND($R$4=$Y$7,OR($V$4=$AA$8,$V$4=$AA$9,$V$4=$Y$12)),INDEX($AH$381:$AI$448,MATCH(_xlfn.CEILING.MATH(C138,10),$AG$381:$AG$448,0),2),IF(AND($R$4=$Y$7,$V$4=$AA$7),INDEX($AH$381:$AI$448,MATCH(_xlfn.CEILING.MATH(C138,10),$AG$381:$AG$448,0),2),IF(AND($R$4=$Y$8,OR($V$4=$AA$8,$V$4=$AA$9,$V$4=$Y$12)),INDEX($AK$381:$AL$449,MATCH(_xlfn.CEILING.MATH(C138,10),$AJ$381:$AJ$449,0),2)," "))),"НЕТ ДАННЫХ") -> 160 | F138: 8х45 | I138: =ROUND(Q14,0) -> 10 | J138: =ROUND(IFERROR(IF($V$4=$Y$11,0,IF($T$3=$Y$13,Q14/$AE$12*$U$12,Q14/$U$14*$U$12)),0),0) -> 12 | L138: =I138+J138+IF(AND($V$3=$Y$3,$T$3<>$Y$13,$V$4<>$Y$13),($I$862*8+$I$864*4),IF(AND($V$3=Y4,$T$3<>$Y$13,$V$4<>$Y$13),($I$971*8+$I$976*4),0)) -> 26 | N138: 1 | P138: =IF(V3=Y3,"Примыкание к парапету высотой менее 500 мм"," ") ->  | Y138: Примыкание к парапету высотой менее 500 мм
B139: =SUBTOTAL(3,$I$137:I139) -> 2 | C139: 270 | D139: =IFERROR(IF(AND($R$4=$Y$7,OR($V$4=$AA$8,$V$4=$AA$9,$V$4=$Y$12)),INDEX($AH$381:$AI$448,MATCH(_xlfn.CEILING.MATH(C139,10),$AG$381:$AG$448,0),1),IF(AND($R$4=$Y$7,$V$4=$AA$7),INDEX($AH$381:$AI$448,MATCH(_xlfn.CEILING.MATH(C139,10),$AG$381:$AG$448,0),1),IF(AND($R$4=$Y$8,OR($V$4=$AA$8,$V$4=$AA$9,$V$4=$Y$12)),INDEX($AK$381:$AL$449,MATCH(_xlfn.CEILING.MATH(C139,10),$AJ$381:$AJ$449,0),1)," "))),"НЕТ ДАННЫХ") -> 220 | E139: =IFERROR(IF(AND($R$4=$Y$7,OR($V$4=$AA$8,$V$4=$AA$9,$V$4=$Y$12)),INDEX($AH$381:$AI$448,MATCH(_xlfn.CEILING.MATH(C139,10),$AG$381:$AG$448,0),2),IF(AND($R$4=$Y$7,$V$4=$AA$7),INDEX($AH$381:$AI$448,MATCH(_xlfn.CEILING.MATH(C139,10),$AG$381:$AG$448,0),2),IF(AND($R$4=$Y$8,OR($V$4=$AA$8,$V$4=$AA$9,$V$4=$Y$12)),INDEX($AK$381:$AL$449,MATCH(_xlfn.CEILING.MATH(C139,10),$AJ$381:$AJ$449,0),2)," "))),"НЕТ ДАННЫХ") -> 160 | F139: 8х45 | I139: =ROUND(Q15,0) -> 22 | J139: =ROUND(IFERROR(IF($V$4=$Y$11,0,IF($T$3=$Y$13,Q15/$AE$12*$U$12,Q15/$U$14*$U$12)),0),0) -> 27 | L139: =I139+J139 -> 49 | N139: 1 | P139: НАЗВАНИЕ | Q139: =IF(V3=Y3,"ТИПЫ"," ") ->  | R139: =IF(V3=Y3,"ШИРИНА, мм"," ") ->  | S139: =IF(V3=Y3,"ВЫСОТА, мм"," ") ->  | T139: =IF(V3=Y3,"ДЛИНА, м"," ") ->  | U139: Н утепл., мм | V139: толщина, мм | W139: марка утеплителя | Y139: ПГ | AA139: ДПР | AB139: СМРЗ. МЕТ | AC139: СМРЗ БЕТ. | AD139: АНКЕР, шт | AE139: ПРАЙМЕР | AF139: ОБЪЕМ УТЕПЛ | AG139: САМОРЕЗ КУ | AI139: ТЕЛЕСКОП КУ | AK139: САМОРЕЗ КР
B140: =SUBTOTAL(3,$I$137:I140) -> 3 | C140: 290 | D140: 240 | E140: 160 | F140: 8х45 | I140: 22 | J140: 27 | L140: 49 | N140: 1 | Y140: ВЕРХ | Z140: НИЗ | AG140: размер | AH140: кол-во, шт | AI140: размер | AJ140: кол-во, шт | AK140: размер | AL140: кол-во, шт
B141: =SUBTOTAL(3,$I$137:I141) -> 4 | C141: 310 | D141: 260 | E141: 160 | F141: 8х45 | I141: 22 | J141: 27 | L141: 49 | N141: 1 | Y141: =(350+R141+S141)/1000*T141 -> 0 | Z141: =(450+R141+S141)/1000*T141 -> 0 | AA141: НЕТ | AE141: =IF(Q141=$Z$15,0,IF(Q141=$Z$17,(T141*(U141+V141)/1000),Y141)) -> 0 | AF141: =ROUNDUP(IF($AF$6=1,U141/1000*V141/1000*T141*1.03,0),1) -> 0.0 | AG141: нет | AI141: нет | AK141: нет | AN141: =IFERROR(MATCH(Q141,$Z$15:$Z$20,0),0) -> 0
B142: =SUBTOTAL(3,$I$137:I142) -> 5 | C142: 330 | D142: 260 | E142: 160 | F142: 8х45 | I142: 22 | J142: 27 | L142: 49 | N142: 1 | Y142: =(350+R142+S142)/1000*T142 -> 0 | Z142: =(450+R142+S142)/1000*T142 -> 0 | AE142: =IF(Q142=$Z$15,0,IF(Q142=$Z$17,(T142*(U142+V142)/1000),Y142)) -> 0 | AF142: =ROUNDUP(IF($AF$6=1,U142/1000*V142/1000*T142*1.03,0),1) -> 0.0 | AN142: =IFERROR(MATCH(Q142,$Z$15:$Z$20,0),0) -> 0
B143: =SUBTOTAL(3,$I$137:I143) -> 6 | C143: 350 | D143: 300 | E143: 160 | F143: 8х45 | I143: 22 | J143: 27 | L143: 49 | N143: 1 | Y143: =(350+R143+S143)/1000*T143 -> 0 | Z143: =(450+R143+S143)/1000*T143 -> 0 | AE143: =IF(Q143=$Z$15,0,IF(Q143=$Z$17,(T143*(U143+V143)/1000),Y143)) -> 0 | AF143: =ROUNDUP(IF($AF$6=1,U143/1000*V143/1000*T143*1.03,0),1) -> 0.0 | AN143: =IFERROR(MATCH(Q143,$Z$15:$Z$20,0),0) -> 0
B144: =SUBTOTAL(3,$I$137:I144) -> 7 | C144: 360 | D144: 300 | E144: 160 | F144: 8х45 | I144: 12 | J144: 15 | L144: 27 | N144: 1 | Y144: =(350+R144+S144)/1000*T144 -> 0 | Z144: =(450+R144+S144)/1000*T144 -> 0 | AE144: =IF(Q144=$Z$15,0,IF(Q144=$Z$17,(T144*(U144+V144)/1000),Y144)) -> 0 | AF144: =ROUNDUP(IF($AF$6=1,U144/1000*V144/1000*T144*1.03,0),1) -> 0.0 | AN144: =IFERROR(MATCH(Q144,$Z$15:$Z$20,0),0) -> 0
B145: =SUBTOTAL(3,$I$137:I145) -> 7 | C145: 0 | D145: ТЭ | E145: 50 | F145: 8х45 | I145: 0 | J145: 0 | L145: 0 | N145: 0 | Y145: =(350+R145+S145)/1000*T145 -> 0 | Z145: =(450+R145+S145)/1000*T145 -> 0 | AE145: =IF(Q145=$Z$15,0,IF(Q145=$Z$17,(T145*(U145+V145)/1000),Y145)) -> 0 | AF145: =ROUNDUP(IF($AF$6=1,U145/1000*V145/1000*T145*1.03,0),1) -> 0.0 | AN145: =IFERROR(MATCH(Q145,$Z$15:$Z$20,0),0) -> 0
B146: =SUBTOTAL(3,$I$137:I146) -> 7 | C146: 0 | D146: ТЭ | E146: 50 | F146: 8х45 | I146: 0 | J146: 0 | L146: 0 | N146: 0 | Q146: =IF(V3=Y3,"Прим. к вертикальным стенам"," ") ->  | Y146: Примыкания к вертикальным поверхностям стен и другим конструкциям
B147: =SUBTOTAL(3,$I$137:I147) -> 7 | C147: 0 | D147: ТЭ | E147: 50 | F147: 8х45 | I147: 0 | J147: 0 | L147: 0 | N147: 0 | P147: НАЗВАНИЕ | Q147: =IF(V3=Y3,"ТИПЫ"," ") ->  | S147: =IF(W3=Z4,"ВЫСОТА, мм"," ") ->  | T147: =IF(V3=Y3,"ДЛИНА, м"," ") ->  | U147: Н утепл., мм | V147: толщина, мм | W147: марка утеплителя | Y147: ПГ | AA147: ДКР | AB147: СМРЗ. МЕТ | AC147: СМРЗ БЕТ. | AD147: АНКЕР, шт | AE147: ПРАЙМЕР | AF147: ОБЪЕМ УТЕПЛ | AG147: САМОРЕЗ КУ | AI147: ТЕЛЕСКОП КУ | AK147: САМОРЕЗ КР
B148: =SUBTOTAL(3,$I$137:I148) -> 7 | C148: 0 | D148: ТЭ | E148: 50 | F148: 8х45 | I148: 0 | J148: 0 | L148: 0 | N148: 0 | Y148: ВЕРХ | Z148: НИЗ | AG148: размер | AH148: кол-во, шт | AI148: размер | AJ148: кол-во, шт | AK148: размер | AL148: кол-во, шт
B149: =SUBTOTAL(3,$I$137:I149) -> 7 | C149: 0 | D149: ТЭ | E149: 50 | F149: 8х45 | I149: 0 | J149: 0 | L149: 0 | N149: 0 | Y149: =T149*(250+S149)/1000 -> 0 | Z149: =T149*800/1000 -> 0 | AA149: =T149 -> 0 | AB149: =ROUNDUP(IF(OR(Q149=$Z$15,Q149=$Z$17,Q149=$Z$19),AA149,0),0) -> 0 | AC149: =ROUNDUP(IF(OR(Q149=$Z$16,Q149=$Z$18,Q149=$Z$20),AA149,0),0) -> 0 | AD149: =ROUNDUP(IF(OR(Q149=$Z$16,Q149=$Z$18,Q149=$Z$20),AA149*5*1.03,0),0) -> 0 | AE149: =IF(Q149=$Z$15,0,IF(Q149=$Z$17,(T149*(U149+V149)/1000),Y149)) -> 0 | AF149: =ROUNDUP(IF($AF$7=1,U149/1000*V149/1000*T149*1.03,0),1) -> 0.0 | AG149: нет | AI149: нет | AK149: нет | AN149: =IFERROR(MATCH(Q149,$Z$15:$Z$20,0),0) -> 0
B150: =SUBTOTAL(3,$I$137:I150) -> 7 | C150: 0 | D150: ТЭ | E150: 50 | F150: 8х45 | I150: 0 | J150: 0 | L150: 0 | N150: 0 | Y150: =T150*(250+S150)/1000 -> 0 | Z150: =T150*800/1000 -> 0 | AA150: =T150 -> 0 | AB150: =ROUNDUP(IF(OR(Q150=$Z$15,Q150=$Z$17,Q150=$Z$19),AA150,0),0) -> 0 | AC150: =ROUNDUP(IF(OR(Q150=$Z$16,Q150=$Z$18,Q150=$Z$20),AA150,0),0) -> 0 | AD150: =ROUNDUP(IF(OR(Q150=$Z$16,Q150=$Z$18,Q150=$Z$20),AA150*5*1.03,0),0) -> 0 | AE150: =IF(Q150=$Z$15,0,IF(Q150=$Z$17,(T150*(U150+V150)/1000),Y150)) -> 0 | AF150: =ROUNDUP(IF($AF$7=1,U150/1000*V150/1000*T150*1.03,0),1) -> 0.0 | AN150: =IFERROR(MATCH(Q150,$Z$15:$Z$20,0),0) -> 0
B151: =SUBTOTAL(3,$I$137:I151) -> 7 | C151: 0 | D151: ТЭ | E151: 50 | F151: 8х45 | I151: 0 | J151: 0 | L151: 0 | N151: 0 | Y151: =T151*(250+S151)/1000 -> 0 | Z151: =T151*800/1000 -> 0 | AA151: =T151 -> 0 | AB151: =ROUNDUP(IF(OR(Q151=$Z$15,Q151=$Z$17,Q151=$Z$19),AA151,0),0) -> 0 | AC151: =ROUNDUP(IF(OR(Q151=$Z$16,Q151=$Z$18,Q151=$Z$20),AA151,0),0) -> 0 | AD151: =ROUNDUP(IF(OR(Q151=$Z$16,Q151=$Z$18,Q151=$Z$20),AA151*5*1.03,0),0) -> 0 | AE151: =IF(Q151=$Z$15,0,IF(Q151=$Z$17,(T151*(U151+V151)/1000),Y151)) -> 0 | AF151: =ROUNDUP(IF($AF$7=1,U151/1000*V151/1000*T151*1.03,0),1) -> 0.0 | AN151: =IFERROR(MATCH(Q151,$Z$15:$Z$20,0),0) -> 0
B152: =SUBTOTAL(3,$I$137:I152) -> 7 | C152: 0 | D152: ТЭ | E152: 50 | F152: 8х45 | I152: 0 | J152: 0 | L152: 0 | N152: 0 | Y152: =T152*(250+S152)/1000 -> 0 | Z152: =T152*800/1000 -> 0 | AA152: =T152 -> 0 | AB152: =ROUNDUP(IF(OR(Q152=$Z$15,Q152=$Z$17,Q152=$Z$19),AA152,0),0) -> 0 | AC152: =ROUNDUP(IF(OR(Q152=$Z$16,Q152=$Z$18,Q152=$Z$20),AA152,0),0) -> 0 | AD152: =ROUNDUP(IF(OR(Q152=$Z$16,Q152=$Z$18,Q152=$Z$20),AA152*5*1.03,0),0) -> 0 | AE152: =IF(Q152=$Z$15,0,IF(Q152=$Z$17,(T152*(U152+V152)/1000),Y152)) -> 0 | AF152: =ROUNDUP(IF($AF$7=1,U152/1000*V152/1000*T152*1.03,0),1) -> 0.0 | AN152: =IFERROR(MATCH(Q152,$Z$15:$Z$20,0),0) -> 0
B153: =SUBTOTAL(3,$I$137:I153) -> 7 | C153: 0 | D153: ТЭ | E153: 50 | F153: 8х45 | I153: 0 | J153: 0 | L153: 0 | N153: 0 | R153: =IF(V3=Y3,"Открытый водосток"," ") ->  | Y153: Открытый водосток
B154: =SUBTOTAL(3,$I$137:I154) -> 7 | C154: 0 | D154: ТЭ | E154: 50 | F154: 8х45 | I154: 0 | J154: 0 | L154: 0 | N154: 0 | R154: НАЗВАНИЕ | S154: =IF(V3=Y3,"ТИПЫ"," ") ->  | T154: =IF(V3=Y3,"ДЛИНА, м"," ") ->  | Y154: ПГ
B155: =SUBTOTAL(3,$I$137:I155) -> 7 | C155: 0 | D155: ТЭ | E155: 50 | F155: 8х45 | I155: 0 | J155: 0 | L155: 0 | N155: 0 | Y155: ВЕРХ | Z155: НИЗ
B156: =SUBTOTAL(3,$I$137:I156) -> 7 | C156: 0 | D156: ТЭ | E156: 50 | F156: 8х45 | I156: 0 | J156: 0 | L156: 0 | N156: 0 | S156: =IF(V3=Y3,"ТИП 1"," ") ->  | Y156: НЕТ | Z156: =T156*400/1000 -> 0
B157: =SUBTOTAL(3,$I$137:I157) -> 7 | C157: 0 | D157: ТЭ | E157: 50 | F157: 8х45 | I157: 0 | J157: 0 | L157: 0 | N157: 0
B158: =SUBTOTAL(3,$I$137:I158) -> 7 | C158: 0 | D158: ТЭ | E158: 50 | F158: 8х45 | I158: 0 | J158: 0 | L158: 0 | N158: 0
B159: =SUBTOTAL(3,$I$137:I159) -> 7 | C159: 0 | D159: ТЭ | E159: 50 | F159: 8х45 | I159: 0 | J159: 0 | L159: 0 | N159: 0
B160: =SUBTOTAL(3,$I$137:I160) -> 7 | C160: 0 | D160: ТЭ | E160: 50 | F160: 8х45 | I160: 0 | J160: 0 | L160: 0 | N160: 0 | P160: =IF(V3=Y3,"НАЗВАНИЕ ПАРАПЕТА"," ") -> 
B161: =SUBTOTAL(3,$I$137:I161) -> 7 | C161: 0 | D161: ТЭ | E161: 50 | F161: 8х45 | I161: 0 | J161: 0 | L161: 0 | N161: 0 | P161: =IF(V3=Y3,"ПГ_ВЕРХ"," ") ->  | R161: =IF(V3=Y3,"ДКР"," ") ->  | T161: =IF(V3=Y3,"АНКЕР"," ") -> 
B162: =SUBTOTAL(3,$I$137:I162) -> 7 | C162: 0 | D162: ТЭ | E162: 50 | F162: 8х45 | I162: 0 | J162: 0 | L162: 0 | N162: 0 | P162: =IF(V3=Y3,"ПГ_НИЗ"," ") ->  | R162: =IF(V3=Y3,"ДПР"," ") -> 
B163: =SUBTOTAL(3,$I$137:I163) -> 7 | C163: 0 | D163: ТЭ | E163: 50 | F163: 8х45 | I163: 0 | J163: 0 | L163: 0 | N163: 0 | P163: =IF(V3=Y3,"СМРЗ. МЕТ"," ") ->  | R163: =IF(V3=Y3,"СМРЗ БЕТ."," ") -> 
B164: =SUBTOTAL(3,$I$137:I164) -> 7 | C164: 0 | D164: ТЭ | E164: 50 | F164: 8х45 | I164: 0 | J164: 0 | L164: 0 | N164: 0
B165: =SUBTOTAL(3,$I$137:I165) -> 7 | C165: 0 | D165: ТЭ | E165: 50 | F165: 8х45 | I165: 0 | J165: 0 | L165: 0 | N165: 0 | P165: Воронка водоприемная | R165: Воронка ТехноНИКОЛЬ с обжимным фланцем обогреваемая, 110х450 мм | U165: шт | V165: =HYPERLINK("#"&$AB$5&"!A22","⇑ ") -> ⇑
B166: =SUBTOTAL(3,$I$137:I166) -> 7 | C166: 0 | D166: ТЭ | E166: 50 | F166: 8х45 | I166: 0 | J166: 0 | L166: 0 | N166: 0 | P166: Воронка водоприемная (п) | R166: Воронка парапетная 100*100 (квадратное сечение) | U166: шт
B167: =SUBTOTAL(3,$I$137:I167) -> 7 | C167: 0 | D167: ТЭ | E167: 50 | F167: 8х45 | I167: 0 | J167: 0 | L167: 0 | N167: 0 | P167: Галтель | R167: ТЕХНОРУФ 45 ГАЛТЕЛЬ (1.2 м) | U167: м.п.
B168: =SUBTOTAL(3,$I$137:I168) -> 7 | C168: 0 | D168: ТЭ | E168: 50 | F168: 8х45 | I168: 0 | J168: 0 | L168: 0 | N168: 0
B169: =SUBTOTAL(3,$I$137:I169) -> 7 | C169: 0 | D169: ТЭ | E169: 50 | F169: 8х45 | I169: 0 | J169: 0 | L169: 0 | N169: 0
B170: =SUBTOTAL(3,$I$137:I170) -> 7 | C170: 0 | D170: ТЭ | E170: 50 | F170: 8х45 | I170: 0 | J170: 0 | L170: 0 | N170: 0 | P170: =HYPERLINK("#"&$AB$5&"!T2","⇑ ") -> ⇑ | Q170: Тип здания: | R170: =$V$2 -> - | T170: =IF($R$170=$Z$171,$AD$171,IF($R$170=$AA$171,$AD$172,"-")) -> -
B171: =SUBTOTAL(3,$I$137:I171) -> 7 | C171: 0 | D171: ТЭ | E171: 50 | F171: 8х45 | I171: 0 | J171: 0 | L171: 0 | N171: 0 | Q171: Высота | R171: Длина, м.п. | S171: Ограждение | V171: Кол-во, шт. | Y171: Высота | Z171: Объекты ФЗ-44 | AA171: Объекты ПП-615 | AD171: Нормируемая высота ограждения = 600 мм.
B172: =SUBTOTAL(3,$I$137:I172) -> 7 | C172: 0 | D172: ТЭ | E172: 50 | F172: 8х45 | I172: 0 | J172: 0 | L172: 0 | N172: 0 | Q172: 0≤ | S172: =IFERROR(IF(R172>0,INDEX($Z$172:$AA$176,MATCH(Q172,$Y$172:$Y$176,0),MATCH($R$170,$Z$171:$AA$171,0)),"-"),"-") -> - | V172: =IFERROR(IF(R172:R172>0,ROUNDUP(R172/3,0),"-"),"-") -> - | Y172: 0≤ | Z172: Кровельное ограждение ТехноНИКОЛЬ КО/PRO/PL/600-2 | AA172: Кровельное ограждение ТехноНИКОЛЬ КО/PRO/PL/1200-3 | AD172: Нормируемая высота ограждения = 1200 мм.
B173: =SUBTOTAL(3,$I$137:I173) -> 7 | C173: 0 | D173: ТЭ | E173: 50 | F173: 8х45 | I173: 0 | J173: 0 | L173: 0 | N173: 0 | Q173: 200≤ | S173: =IFERROR(IF(R173>0,INDEX($Z$172:$AA$176,MATCH(Q173,$Y$172:$Y$176,0),MATCH($R$170,$Z$171:$AA$171,0)),"-"),"-") -> - | V173: =IFERROR(IF(R173:R173>0,ROUNDUP(R173/3,0),"-"),"-") -> - | Y173: 200≤ | Z173: Кровельное ограждение ТехноНИКОЛЬ КО/PRO/PV/600-2 | AA173: Кровельное ограждение ТехноНИКОЛЬ КО/PRO/PL/1200-3
B174: =SUBTOTAL(3,$I$137:I174) -> 7 | C174: 0 | D174: ТЭ | E174: 50 | F174: 8х45 | I174: 0 | J174: 0 | L174: 0 | N174: 0 | Q174: 400≤ | S174: =IFERROR(IF(R174>0,INDEX($Z$172:$AA$176,MATCH(Q174,$Y$172:$Y$176,0),MATCH($R$170,$Z$171:$AA$171,0)),"-"),"-") -> - | V174: =IFERROR(IF(R174:R174>0,ROUNDUP(R174/3,0),"-"),"-") -> - | Y174: 400≤ | Z174: Кровельное ограждение ТехноНИКОЛЬ КО/PRO/PV/600-2 | AA174: Кровельное ограждение ТехноНИКОЛЬ КО/PRO/PV/800-3
B175: =SUBTOTAL(3,$I$137:I175) -> 7 | C175: 0 | D175: ТЭ | E175: 50 | F175: 8х45 | I175: 0 | J175: 0 | L175: 0 | N175: 0 | Q175: 600≤ | S175: =IFERROR(IF(R175>0,INDEX($Z$172:$AA$176,MATCH(Q175,$Y$172:$Y$176,0),MATCH($R$170,$Z$171:$AA$171,0)),"-"),"-") -> - | V175: =IFERROR(IF(R175:R175>0,ROUNDUP(R175/3,0),"-"),"-") -> - | Y175: 600≤ | Z175: - | AA175: Кровельное ограждение ТехноНИКОЛЬ КО/PRO/PV/600-2
B176: =SUBTOTAL(3,$I$137:I176) -> 7 | C176: 0 | D176: ТЭ | E176: 50 | F176: 8х45 | I176: 0 | J176: 0 | L176: 0 | N176: 0 | Q176: 800≤ | S176: =IFERROR(IF(R176>0,INDEX($Z$172:$AA$176,MATCH(Q176,$Y$172:$Y$176,0),MATCH($R$170,$Z$171:$AA$171,0)),"-"),"-") -> - | V176: =IFERROR(IF(R176:R176>0,ROUNDUP(R176/3,0),"-"),"-") -> - | Y176: 800≤ | Z176: - | AA176: Кровельное ограждение ТехноНИКОЛЬ КО/PRO/PV/600-2
B177: =SUBTOTAL(3,$I$137:I177) -> 7 | C177: 0 | D177: ТЭ | E177: 50 | F177: 8х45 | I177: 0 | J177: 0 | L177: 0 | N177: 0
B178: =SUBTOTAL(3,$I$137:I178) -> 7 | C178: 0 | D178: ТЭ | E178: 50 | F178: 8х45 | I178: 0 | J178: 0 | L178: 0 | N178: 0
B179: =SUBTOTAL(3,$I$137:I179) -> 7 | C179: 0 | D179: ТЭ | E179: 50 | F179: 8х45 | I179: 0 | J179: 0 | L179: 0 | N179: 0
B180: =SUBTOTAL(3,$I$137:I180) -> 7 | C180: 0 | D180: ТЭ | E180: 50 | F180: 8х45 | I180: 0 | J180: 0 | L180: 0 | N180: 0
B181: =SUBTOTAL(3,$I$137:I181) -> 7 | C181: 0 | D181: ТЭ | E181: 50 | F181: 8х45 | I181: 0 | J181: 0 | L181: 0 | N181: 0 | AC181: ПВХ мембрана LOGICROOF V-SR серый (1.5 мм)* | AD181: Герметик ПУ ТехноНИКОЛЬ Logicflex для плоских кровель
B182: =SUBTOTAL(3,$I$137:I182) -> 7 | C182: 0 | D182: ТЭ | E182: 50 | F182: 8х45 | I182: 0 | J182: 0 | L182: 0 | N182: 0 | AA182: Кровельное ограждение ТехноНИКОЛЬ КО/PRO/PL/1200-3 | AB182: =SUMIF($S$172:$U$176,AA182,$V$172:$V$176) -> 0 | AC182: =IF(AB182>0,(0.6*AB182),0) -> 0 | AD182: =IF(AB182>0,(0.25*AB182),0) -> 0
B183: =SUBTOTAL(3,$I$137:I183) -> 7 | C183: 0 | D183: ТЭ | E183: 50 | F183: 8х45 | I183: 0 | J183: 0 | L183: 0 | N183: 0 | AA183: Кровельное ограждение ТехноНИКОЛЬ КО/PRO/PL/600-2 | AB183: =SUMIF($S$172:$U$176,AA183,$V$172:$V$176) -> 0 | AC183: =IF(AB183>0,(0.6*AB183),0) -> 0 | AD183: =IF(AB183>0,(0.25*AB183),0) -> 0
B184: =SUBTOTAL(3,$I$137:I184) -> 7 | C184: 0 | D184: ТЭ | E184: 50 | F184: 8х45 | I184: 0 | J184: 0 | L184: 0 | N184: 0 | AA184: Кровельное ограждение ТехноНИКОЛЬ КО/PRO/PV/600-2 | AB184: =SUMIF($S$172:$U$176,AA184,$V$172:$V$176) -> 0 | AC184: 0 | AD184: =IF(AB184>0,(0.5*AB184),0) -> 0
B185: =SUBTOTAL(3,$I$137:I185) -> 7 | C185: =IF($T$5=$AA$12,S21,S21+$R$3) -> 0 | D185: ТЭ | E185: 50 | F185: 8х45 | I185: =ROUND(T21,0) -> 0 | J185: =ROUND(IFERROR(IF($V$4=$Y$11,0,IF($T$3=$Y$13,T21/$AE$12*$U$12,T21/$U$14*$U$12)),0),0) -> 0 | L185: 0 | N185: 0 | AA185: Кровельное ограждение ТехноНИКОЛЬ КО/PRO/PV/800-3 | AB185: =SUMIF($S$172:$U$176,AA185,$V$172:$V$176) -> 0 | AC185: 0 | AD185: =IF(AB185>0,(0.5*AB185),0) -> 0
B186: =SUBTOTAL(3,$I$137:I186) -> 7 | C186: 0 | D186: ТЭ | E186: 50 | F186: 8х45 | I186: =ROUND(T22,0) -> 0 | J186: =ROUND(IFERROR(IF($V$4=$Y$11,0,IF($T$3=$Y$13,T22/$AE$12*$U$12,T22/$U$14*$U$12)),0),0) -> 0 | L186: 0 | N186: 0 | AC186: =IF(V3=Y4,SUM(AC182:AC185),0) -> 0 | AD186: =IF(V3=Y4,SUM(AD182:AD185),0) -> 0
B187: =SUBTOTAL(3,$I$137:I187) -> 7 | C187: 0 | D187: ТЭ | E187: 50 | F187: 8х45 | I187: 0 | J187: 0 | L187: 0 | N187: 0
B188: =SUBTOTAL(3,$I$137:I188) -> 7 | C188: 0 | D188: ТЭ | E188: 50 | F188: 8х45 | I188: 0 | J188: 0 | L188: 0 | N188: 0
B189: =SUBTOTAL(3,$I$137:I189) -> 7 | C189: 0 | D189: ТЭ | E189: 50 | F189: 8х45 | I189: 0 | J189: 0 | L189: 0 | N189: 0
B190: =SUBTOTAL(3,$I$137:I190) -> 7 | C190: 0 | D190: ТЭ | E190: 50 | F190: 8х45 | I190: 0 | J190: 0 | L190: 0 | N190: 0
B191: =SUBTOTAL(3,$I$137:I191) -> 7 | C191: 0 | D191: ТЭ | E191: 50 | F191: 8х45 | I191: 0 | J191: 0 | L191: 0 | N191: 0
B192: =SUBTOTAL(3,$I$137:I192) -> 7 | C192: 0 | D192: ТЭ | E192: 50 | F192: 8х45 | I192: 0 | J192: 0 | L192: 0 | N192: 0
B193: =SUBTOTAL(3,$I$137:I193) -> 7 | C193: 0 | D193: ТЭ | E193: 50 | F193: 8х45 | I193: 0 | J193: 0 | L193: 0 | N193: 0
B194: =SUBTOTAL(3,$I$137:I194) -> 7 | C194: 0 | D194: ТЭ | E194: 50 | F194: 8х45 | I194: 0 | J194: 0 | L194: 0 | N194: 0
B195: =SUBTOTAL(3,$I$137:I195) -> 7 | C195: 0 | D195: ТЭ | E195: 50 | F195: 8х45 | I195: 0 | J195: 0 | L195: 0 | N195: 0
B196: =SUBTOTAL(3,$I$137:I196) -> 7 | C196: 0 | D196: ТЭ | E196: 50 | F196: 8х45 | I196: 0 | J196: 0 | L196: 0 | N196: 0
B197: =SUBTOTAL(3,$I$137:I197) -> 7 | C197: 0 | D197: ТЭ | E197: 50 | F197: 8х45 | I197: 0 | J197: 0 | L197: 0 | N197: 0
B198: =SUBTOTAL(3,$I$137:I198) -> 7 | C198: 0 | D198: ТЭ | E198: 50 | F198: 8х45 | I198: 0 | J198: 0 | L198: 0 | N198: 0
B199: =SUBTOTAL(3,$I$137:I199) -> 7 | C199: 0 | D199: ТЭ | E199: 50 | F199: 8х45 | I199: 0 | J199: 0 | L199: 0 | N199: 0
B200: =SUBTOTAL(3,$I$137:I200) -> 7 | C200: 0 | D200: ТЭ | E200: 50 | F200: 8х45 | I200: 0 | J200: 0 | L200: 0 | N200: 0
... 1133 more rows

Sheet ТИП2
AC1: Дата последней редакции шаблона: 22.10.21
I2: Площадь кровли : | J2: =ПЛ -> 1,710 | L2: м2 | P2: ИСХОДНЫЕ ДАННЫЕ: | S2: Слоёв КУ | T2: 1 слой | U2: ТИП ЗДАНИЯ: | V2: Объекты ФЗ-44 | W2: =HYPERLINK("#"&$AB$5&"!Q170","↓ ") -> ↓ | Y2: НЕТ | AA2: НЕТ
I3: Сметная стоимость материалов текущего типа кровли : | J3: =SUM(J73,L62,L36,L22,L15,L12) -> 0.00 | L3: руб. | O3: ПЛОЩАДЬ: | P3: 1710 | Q3: ОТИ: | R3: 220 | S3: ОУ: | T3: НЕТ | U3: МЕМБРАНА: | V3: ПВХ | Y3: Битумно- полимерная | Z3: =IF(V3=Y3,1,IF(V3=Y4,0,"-")) -> 0 | AA3: НЕТ | AB3: =IF(R4<>Y8,"-",R5) -> Н75 | AV3: =INDEX(AV5:AV13,MATCH(1,AY5:AY13,0)) ->  | BB3: =INDEX(BB5:BB13,MATCH(1,BE5:BE13,0)) -> 
I4: Система : | O4: ПЕРИМЕТР: | P4: 406 | Q4: ОСНОВАНИЕ: | R4: ПРОФЛИСТ | S4: КУ: | T4: НЕТ | U4: КРЕПЕЖ: | V4: ДА | Y4: ПВХ | Z4: =IF(V3=Y4,1,IF(V3=Y3,0,"-")) -> 1 | AA4: =IF(SUM(T81:T85,T88:T92,T95:T98,S101,S104,T133:T137,T141:T145,T149:T152,T156,S161)=0,0,IFERROR(ABS((100%-SUM(T81:T85,T88:T92,T95:T98,S101,S104,T133:T137,T141:T145,T149:T152,T156,S161)/ПР)),0)) -> 0.0%
B5: Спецификация материалов | F5: =номер_объекта -> 11-27ХХ-МПКПМКИ-12.21 | K5: Кровля (без участков в осях 7-9 / Ж-И и 12-14 / Ж-И) | O5: =IF(AND(ПР<>0,R4=Y8,V3<>Y2),"ГОФРЫ:"," ") -> ГОФРЫ: | P5: 74 | Q5: =IF(AND(ПР<>0,R4=Y8,V3<>Y2),"ПРОФИЛЬ:"," ") -> ПРОФИЛЬ: | R5: Н75 | S5: РВК: | T5: БЕЗ ОТИ (н) | U5: МАТЕР. ОТИ: | V5: КВ | W5: =HYPERLINK("#"&$AB$5&"!V250","↓ ") -> ↓ | AA5: =Y11 -> НЕТ | AB5: =CONCATENATE(AC6,AD5) -> ТИП2 | AC5: =HYPERLINK("#"&AB5&"!A1","1") -> 1 | AD5: =_xlfn.SHEET()-2 -> 2 | AE5: =IF(OR(Q81:Q85=Z17,Q81:Q85=Z18,Q81:Q85=Z19,Q81:Q85=Z20),1,0) -> 0 | AF5: =IF(OR(Q133:Q137=Z17,Q133:Q137=Z18,Q133:Q137=Z19,Q133:Q137=Z20),1,0) -> 0 | AJ5: ТН-КРОВЛЯ КЛАССИК | AV5: Техноэласт ЭКП (4.2 мм), (верхний слой) | AY5: =IF(OR($C$23:$C$61=AV5),1,0) -> 0 | BB5: Унифлекс ВЕНТ ЭПВ, (нижний слой) | BE5: =IF(OR($C$23:$C$61=BB5),1,0) -> 0
P6: =IF(T3="нет"," ",T3) ->  | Q6: =IF(T3="нет"," ","Кол-во, шт.") ->  | R6: =IF(T3="нет"," ","Площадь, м2") ->  | S6: =IF(T3="нет"," ",IF(T3="PIR 1.7%","Площадь плит, м2","Объем плит, м3")) ->  | T6: =IF(T4="нет"," ",T4) ->  | U6: =IF(T4="нет"," ","Кол-во, шт.") ->  | V6: =IF(T4="нет"," ","Площадь, м2") ->  | W6: =IF(T4="нет"," ",IF(OR(T4=Y25,T4=Y26),"Площадь плит, м2]","Объем плит, м3")) ->  | Y6: НЕТ | AA6: =Y12 -> ДА | AB6: =REPLACE(CELL("имяфайла"),1,FIND("]",CELL("имяфайла")),"") -> ОБЩАЯ СПЕЦИФИКАЦИЯ | AC6: ТИП | AD6: =IF(OR($V$4=$AA$10,$V$4=$AA$11),1,0) -> 0 | AE6: =IF(OR(Q88:Q92=Z17,Q88:Q92=Z18,Q88:Q92=Z19,Q88:Q92=Z20),1,0) -> 0 | AF6: =IF(OR(Q141:Q145=Z17,Q141:Q145=Z18,Q141:Q145=Z19,Q141:Q145=Z20),1,0) -> 0 | AJ6: ТН-КРОВЛЯ СМАРТ PIR | AV6: Техноэласт ЭПП (4.0 мм) (два слоя) | AY6: =IF(OR($C$23:$C$61=AV6),1,0) -> 0 | BB6: Унифлекс ЭПП (2.8 мм), (верхний слой) | BE6: =IF(OR($C$23:$C$61=BB6),1,0) -> 0
Y7: БЕТОН | Z7: по умолчанию | AA7: ДА 6,3 | AB7: ГОФРЫ | AC7: =IF(R5=Z7,AC9,IF(R5=Z8,AC8,IF(R5=Z9,AC9,IF(R5=Z10,AC10,0)))) -> 0.0103 | AE7: =IF(OR(R95:R98=Z18,R95:R98=Z19,R95:R98=Z20,R95:R98=Z17),1,0) -> 1 | AF7: =IF(OR(Q149:Q152=Z17,Q149:Q152=Z18,Q149:Q152=Z19,Q149:Q152=Z20),1,0) -> 0 | AJ7: ТН-КРОВЛЯ СМАРТ | AV7: Техноэласт СОЛО РП1 (5.0 мм) | AY7: =IF(OR($C$23:$C$61=AV7),1,0) -> 0 | BB7: Техноэласт ФИКС (3.0 мм), (нижний слой) | BE7: =IF(OR($C$23:$C$61=BB7),1,0) -> 0
B8: № | C8: Наименование материала | H8: К-т. расх | I8: Кол-во | J8: Ед. изм. | K8: Стоимость ед., руб. | L8: Сметная стоимость, руб. (без учёта кратности) | N8: фильтр | P8: =IF(T3="нет"," ","Плиты А") ->  | S8: =IF(OR(T3=Y14,T3=Y15),Q8*(0.0576/2),IF(T3=Y16,Q8*0.0144,IF(T3=Y17,Q8*0.0126,IF(T3=Y18,Q8*0.72," ")))) ->  | T8: =IF(T4="нет"," ",IF(OR(T4=Y20,T4=Y21,T4=Y22),"Плиты А",IF(T4=Y27,"Плиты М","Плиты J"))) ->  | W8: =IF(OR(T4=Y20,T4=Y21),U8*0.0306,IF(T4=Y22,U8*0.0198,IF(T4=Y23,U8*0.0144,IF(T4=Y24,U8*0.0126,IF(OR(T4=Y25,T4=Y26),U8*0.72,IF(T4=Y27,U8*0.0252," ")))))) ->  | Y8: ПРОФЛИСТ | Z8: Н75 | AA8: ТОЛЬКО КУ | AB8: 75 | AC8: =0.25*0.075*0.1*5.35*1.03 -> 0.0103 | AD8: 1.18 | AJ8: ТН-КРОВЛЯ СТАНДАРТ | AV8: Техноэласт ПРАЙМ ЭКМ, (верхний слой) | AY8: =IF(OR($C$23:$C$61=AV8),1,0) -> 0 | BB8: Техноэласт ПРАЙМ ЭММ, (нижний слой) | BE8: =IF(OR($C$23:$C$61=BB8),1,0) -> 0
P9: =IF(T3="нет"," ","Плиты Б") ->  | S9: =IF(OR(T3=Y14,T3=Y15),Q9*(0.0864/2),IF(T3=Y16,Q9*0.0288,IF(T3=Y17,Q9*0.03068,IF(T3=Y18,Q9*0.72," ")))) ->  | T9: =IF(T4="нет"," ",IF(OR(T4=Y20,T4=Y21,T4=Y22),"Плиты Б",IF(T4=Y27,"Плита 50",IF(OR(T4=Y23,T4=Y24,T4=Y26),"Плиты К","Добор 40")))) ->  | W9: =IF(OR(T4=Y20,T4=Y21),U9*0.0486,IF(T4=Y22,U9*0.0378,IF(T4=Y23,U9*0.0288,IF(T4=Y24,U9*0.0306,IF(OR(T4=Y25,T4=Y26),U9*0.72,IF(T4=Y27,U9*0.036," ")))))) ->  | Y9: СТЯЖКА | Z9: Н114 | AA9: ТОЛЬКО КУ+ГИ | AB9: 114 | AC9: =4*0.25*0.114*0.13*1.03 -> 0.0153 | AD9: 1.1 | AE9: . Общая длина примыкания- | AF9: м. | AJ9: ТН-КРОВЛЯ ОПТИМА | AV9: Техноэласт ПЛАМЯ СТОП ЭКП (4.2 мм), (верхний слой) | AY9: =IF(OR($C$23:$C$61=AV9),1,0) -> 0 | BB9: Унифлекс С, (нижний слой) | BE9: =IF(OR($C$23:$C$61=BB9),1,0) -> 0
N10: 1 | P10: =IF(T3="нет"," ",IF(OR(T3=Y14,T3=Y15),"Плиты С",IF(T3=Y17,"Плита 50","Плита 40"))) ->  | S10: =IF(OR(T3=Y14,T3=Y15),Q10*(0.0576/2),IF(T3=Y16,Q10*0.0288,IF(T3=Y17,Q10*0.036,IF(T3=Y18,Q10*0.72," ")))) ->  | T10: =IF(T4="нет"," ",IF(OR(T4=Y20,T4=Y21,T4=Y22),"Плиты C",IF(T4=Y24,"Плита 50",IF(T4=Y27," ",IF(T4=Y26,"Добор 80",IF(T4=Y25," ","Плита 40")))))) ->  | W10: =IF(OR(T4=Y20,T4=Y22,T4=Y21,T4=Y24),U10*0.036,IF(T4=Y23,U10*0.0288,IF(T4=Y25,"",IF(T4=Y26,0.72*U10,IF(T4=Y27," "," "))))) ->  | Y10: АЦЛ (ЦСП) | Z10: Н153 | AA10: Сборная стяжка+ГИ | AB10: 159 | AC10: =0.25*0.16*0.153*1.03*3.58 -> 0.0226 | AD10: 1.3 | AJ10: ТН-КРОВЛЯ ПРОФ | AV10: Унифлекс ЭКП (3.8 мм), (верхний слой) | AY10: =IF(OR($C$23:$C$61=AV10),1,0) -> 0 | BB10: Унифлекс ЭКСПРЕСС ЭМП, (нижний слой) | BE10: =IF(OR($C$23:$C$61=BB10),1,0) -> 0
B11: 1 | C11: 2 | H11: 3 | I11: 4 | J11: 5 | K11: 6 | L11: 7 | N11: 1 | T11: Площадь плит [м2] | Y11: НЕТ | Z11: 1 слой | AA11: Сборная стяжка | AJ11: ТН-КРОВЛЯ ГАРАНТ+ | AV11: Техноэласт МОСТ С | AY11: =IF(OR($C$23:$C$61=AV11),1,0) -> 0 | BB11: Унифлекс ЭПП (2.8 мм), (верхний слой) | BE11: =IF(OR($C$23:$C$61=BB11),1,0) -> 0
C12: Устройство пароизоляционного слоя | H12: =HYPERLINK("#"&AB5&"!A840","1111") -> 1111 | L12: =SUM(L13:L14) -> 0.00 | N12: =IF(SUM(I13:I14)>0,1,0) -> 1 | P12: =IF(V4=AA5," ","ВЫГРУЗКА КРЕПЕЖА") -> ВЫГРУЗКА КРЕПЕЖА | S12: =IF(V4="НЕТ"," ","Количество крепежа по ветровому расчету, на м2") -> Количество крепежа по ветровому расчету, на м2 | U12: =IF(OR(V4=AA6,V4=AA7,V4=AA9,V4=AA10),4,IF(V4=AA8,0," ")) -> 4 | Y12: ДА | Z12: 2 и более | AA12: БЕЗ ОТИ (н) | AB12: СУММА | AC12: =SUM($I$13:$I$14,$I$16:$I$21,$I$23:$I$35,$I$23:$I$62,$I$63:$I$69,$I$83:$I$97,$I$101:$I$113,$I$115) -> 36846.5 | AE12: =IF(AND(T3=Y13,T4=Y25),3.4,3.4) -> 3.4 | AF12: =IF(AF13=0,0,COUNT(AF13)) -> 0 | AJ12: ТН-КРОВЛЯ БАЛЛАСТ | AV12: Техноэласт Декор, (верхний слой) | AY12: =IF(OR($C$23:$C$61=AV12),1,0) -> 0
B13: =SUBTOTAL(3,$I$13:I13) -> 1 | C13: Паробарьер СА 500 | H13: =IF(AND($R$4=$Y$8,$R$5=$Z$7),1.18,IF(AND($R$4=$Y$8,$R$5=$Z$8),$AD$8,IF(AND($R$4=$Y$8,$R$5=$Z$9),$AD$9,IF(AND($R$4=$Y$8,$R$5=$Z$10),$AD$10,1.1)))) -> 1.18 | I13: =ROUNDUP(ПЛ*H13+ПР*(0.15+$R$3/1000+0.03),0) -> 2181.0 | J13: м2 | L13: =IFERROR(I13*K13,0) -> 0.00 | N13: =IF(OR(I13=" ",I13=0),0,1) -> 1 | P13: =IF(V4=AA5," ","ВЫСОТА") -> ВЫСОТА | Q13: =IF(V4=AA5," ","КОЛ-ВО") -> КОЛ-ВО | Y13: НЕТ | AA13: +ОТИ (с) | AE13: =SUM(W21:W23) -> 0 | AF13: =IF(AND((SUM(W21:W23)=0),T3=Y13,T4=Y19),0,ПЛ) -> 0 | AJ13: ТН-КРОВЛЯ ФИКС
B14: =SUBTOTAL(3,$I$13:I14) -> 1 | L14: =IFERROR(I14*K14,0) -> 0.00 | N14: =IF(OR(I14=" ",I14=0),0,1) -> 0 | S14: =IF(AND(OR(V4="ДА",V4="ДА 6,3"),T3<>"НЕТ"),"Количество крепежа по клинам, на м2"," ") ->  | U14: =IFERROR(IF(AND(OR(V4="ДА",V4="ДА 6,3"),OR(T3=Y14,T3=Y15,T3=Y17,T3=Y16)),SUM(Q14:Q60,T21:T52)/ПЛ,IF(AND(OR(V4="ДА",V4="ДА 6,3"),T3=Y18),SUM(Q14:Q60,T21:T52)/ПЛ," ")),0) ->  | V14: =IF(AND(OR(V4="ДА",V4="ДА 6,3"),T3<>"НЕТ"),"ДВР"," ") ->  | W14: =IF(AND(OR(V4="ДА",V4="ДА 6,3"),T3<>"НЕТ"),4," ") ->  | Y14: КВ 1.7% | AA14: НЕТ | AJ14: ТН-КРОВЛЯ ТИТАН
C15: Устройство теплоизоляционного слоя | H15: =HYPERLINK("#"&AB5&"!A850","1111") -> 1111 | L15: =SUM(L16:L21) -> 0.00 | N15: =IF(SUM(I16:I21)>0,1,0) -> 1 | Y15: КВ 1.7% ВЭ | Z15: МЕТ | AA15: ПВХ Logicroof Walkway Puzzle | AB15: ЦЕНА КЛИН | AC15: =ОБЩИЕ_ДАННЫЕ!N81 -> 1 | AD15: =IF(P3=0,0,IF(P3<=1000,1,IF(AND(P3>1000,P3<=5000),2,IF(AND(P3>5000,P3<=10000),3,IF(P3>10000,4,0))))) -> 2 | AE15: сложность | AF15: счет если | AJ15: ТН-КРОВЛЯ УНИВЕРСАЛ
B16: =SUBTOTAL(3,$I$13:I16) -> 2 | C16: ТЕХНОРУФ В ЭКСТРА | F16: 50 | G16: мм | H16: 1.03 | I16: =ПЛ*F16*H16*0.001 -> 88.065 | J16: м3 | L16: =IFERROR(I16*K16,0) -> 0.00 | N16: =IF(OR(I16=" ",I16=0),0,1) -> 1 | S16: =IF(AND(OR(V4="ДА",V4="ДА 6,3"),T3<>"НЕТ"),"Общее количество крепежа на м2"," ") ->  | U16: =IF(AND(OR(V4="ДА",V4="ДА 6,3"),T3<>"НЕТ"),U14+U12," ") ->  | V16: =IF(AND(OR(V4="ДА",V4="ДА 6,3"),T3<>"НЕТ"),"РРК"," ") ->  | W16: =IF(AND(OR(V4="ДА",V4="ДА 6,3"),OR(T3=Y14,T3=Y15,T3=Y17,T3=Y16)),3.5+W14,IF(AND(OR(V4="ДА",V4="ДА 6,3"),T3=Y18),3.5+W14," ")) ->  | Y16: XPS 1.7% | Z16: Ж/Б | AA16: АЦЛ/ОСБ | AC16: =IFERROR(IF(OR(AND(T3=Y14,OR(T4=Y20,T4=Y22)),AND(T3=Y16,T4=Y23)),INDEX(Прайс!J9:M11,T5,AD15)*AC15,0),0) -> 0 | AD16: ОКУ | AE16: =IF(AC16>0,$T$5,0) -> 0 | AF16: =IF(AC16>0,COUNT(T5),0) -> 0 | AJ16: ТН-КРОВЛЯ МАСТЕР
B17: =SUBTOTAL(3,$I$13:I17) -> 3 | C17: ТЕХНОРУФ Н ПРОФ | F17: 170 | G17: мм | H17: 1.03 | I17: =ПЛ*F17*H17*0.001 -> 299.421 | J17: м3 | L17: 0.00 | N17: 1 | Y17: XPS 2.1% | Z17: МЕТ+ТЕПЛО | AA17: НЕТ | AB17: 1 | AC17: =IFERROR(IF(AND(T3=Y13,OR(T4=Y27,T4=Y23,T4=Y20,T4=Y22)),INDEX(Прайс!J6:M8,T5,AD15)*AC15,IF(AND(T4=Y19,OR(T3=Y14,T3=Y16)),INDEX(Прайс!J6:M8,T5,AD15)*AC15,0)),0) -> 0 | AD17: КУ | AE17: =IF(AC17>0,$T$5,0) -> 0 | AF17: =IF(AC17>0,COUNT(T5),0) -> 0 | AJ17: ТН-КРОВЛЯ ЭКСПЕРТ PIR
B18: =SUBTOTAL(3,$I$13:I18) -> 3 | L18: 0.00 | N18: 0 | Y18: PIR 1.7% | Z18: Ж/Б+ТЕПЛО | AA18: LOGICROOF NG | AB18: 2 | AC18: =IFERROR(IF(OR(AND(T4=Y25,T3=Y18)),INDEX(Прайс!J15:M17,T5,AD15)*AC15,0),0) -> 0 | AD18: ОКУП | AE18: =IF(AC18>0,$T$5,0) -> 0 | AF18: =IF(AC18>0,COUNT(T5),0) -> 0 | AJ18: Прочее
B19: =SUBTOTAL(3,$I$13:I19) -> 3 | L19: 0.00 | N19: 0 | S19: =IF(Y11=AD13," ","продолжение таблицы ") -> продолжение таблицы | V19: Кол- во ОУ и КУ | Y19: НЕТ | Z19: МЕТ+ТЕПЛО БК | AA19: - | AB19: 3 | AC19: =IFERROR(IF(AND(T3=Y13,T4=Y25),INDEX(Прайс!J12:M14,T5,AD15)*AC15,IF(AND(T4=Y19,T3=Y18),INDEX(Прайс!J12:M14,T5,AD15)*AC15,0)),0) -> 0 | AD19: КУП | AE19: =IF(AC19>0,$T$5,0) -> 0 | AF19: =IF(AC19>0,COUNT(T5),0) -> 0
B20: =SUBTOTAL(3,$I$13:I20) -> 3 | L20: 0.00 | N20: 0 | S20: =IF(Y11=AD13," ","ВЫСОТА") -> ВЫСОТА | T20: =IF(Y11=AD13," ","КОЛ-ВО") -> КОЛ-ВО | V20: Название | W20: Кол-во шт. | Y20: КВ 4.2% | Z20: Ж/Б+ТЕПЛО БК | AA20: Объекты ФЗ-44 | AB20: дубль | AC20: =IF(AND(P3>0,OR(V3<>Y2,T3<>Y13,T4<>Y19)),1,0) -> 1 | AJ20: =IF(J4="",0,CONCATENATE(J4," ",L4)) -> 0
B21: =SUBTOTAL(3,$I$13:I21) -> 3 | L21: 0.00 | N21: 0 | V21: ОУ | Y21: КВ 4.2% ВЭ | Z21: Воронка для ПВХ мембран XL503 с обогревом, 110х450 мм | AA21: Объекты ПП-615 | AB21: =IF(OR(T3=Y14,T3=Y15,T4=Y20,T4=Y21,T4=Y22),1,0) -> 0 | AC21: =IF(OR(T3=Y16,T3=Y17,T4=Y23,T4=Y24,T4=Y27),1,0) -> 0 | AD21: =IF(OR(T3=Y18,T4=Y25,T4=Y26),1,0) -> 0 | AF21: =IF(T2=Z11,AG21,AH21) -> 0 | AG21: =IF(T4=Y19,0,IF(T4=Y25,V9,SUM(V8:V9))) -> 0 | AH21: =IF(T4=Y19,0,IF(T2=Z12,V11,0)) -> 0
A22: =HYPERLINK("#"&$AB$5&"!V169","↓ ") -> ↓ | B22: =HYPERLINK("#"&$AB$5&"!V116","↓ ") -> ↓ | C22: Устройство гидроизоляционного слоя | H22: =HYPERLINK("#"&AB5&"!A880","1111") -> 1111 | J22: =HYPERLINK("#"&AB5&"!A990","1111") -> 1111 | L22: =SUM(L23:L35) -> 0.00 | N22: =IF(SUM(I23:I35)>0,1,0) -> 1 | V22: КУ | Y22: КВ 4.2% Н | Z22: Воронка для ПВХ мембран XL503 без обогрева, 110х450 мм | AA22: НЕТ | AB22: КВ | AC22: XPS | AD22: PIR | AF22: =IF(SUM(I98:I100,I110:I113)>0,1,0) -> 0
B23: =SUBTOTAL(3,$I$13:I23) -> 4 | C23: ПВХ мембрана LOGICROOF V-SR серый (1.5 мм)* | H23: 1.15 | I23: =ROUNDUP((ПЛ*0.006*H23+$AC$186+N("ГИ на ограждение")),0) -> 64.0 | J23: м2 | L23: =IFERROR(#REF!*K23,0) -> 0.00 | N23: =IF(OR(I23=" ",I23=0),0,1) -> 1 | V23: КУ как ОУ | Y23: XPS 3.4% | Z23: Воронка с обжимным металлическим фланцем с обогревом, 110х450 мм | AJ23: Огнезащита: | AM23: 30 | AN23: 60 | AV23: ПВХ мембрана LOGICROOF V-RP (1.2 мм) | AY23: =IF(OR(AV23=$C$23:$C$61),1,0) -> 1
B24: =SUBTOTAL(3,$I$13:I24) -> 5 | C24: Очиститель для ПВХ мембран ТехноНИКОЛЬ* | H24: 1 | I24: =ROUNDUP(ПЛ*0.0005/3+N("/3 - перевод в канистры"),0) -> 1.0 | J24: шт. | L24: =IFERROR(#REF!*K24,0) -> 0.00 | N24: 1 | Y24: XPS 4.2% | Z24: Воронка с обжимным металлическим фланцем без обогрева, 110х450 мм | AJ24: Плита ТЕХНО ОЗМ | AK24: =F854 -> 0 | AM24: 40 | AN24: 60 | AV24: ПВХ мембрана LOGICROOF V-RP ARCTIC (1.2 мм) | AY24: =IF(OR(AV24=$C$23:$C$61),1,0) -> 0
B25: =SUBTOTAL(3,$I$13:I25) -> 6 | C25: ПВХ Кровельный аэратор 75 х 375 мм* | H25: 1 | I25: =ROUNDUP(ПЛ/235,0) -> 8.0 | J25: шт. | L25: =IFERROR(I25*K25,0) -> 0.00 | N25: 1 | Y25: PIR 3.3% (J) | Z25: Воронка с обжимным металлическим фланцем с обогревом 110х720 мм | AJ25: Саморез сверлоконечный ТехноНИКОЛЬ 4,8х | AK25: =INDEX(AN23:AN31,MATCH(AK24,AM23:AM31,0)) ->  | AM25: 50 | AN25: 80 | AV25: ПВХ мембрана ECOPLAST V-RP (1.2 мм) | AY25: =IF(OR(AV25=$C$23:$C$61),1,0) -> 0
B26: =SUBTOTAL(3,$I$13:I26) -> 7 | C26: ПВХ мембрана LOGICROOF V-RP (1.2 мм) | H26: 1.15 | I26: =ROUNDUP(ПЛ*H26,0) -> 1967.0 | J26: м2 | L26: 0.00 | N26: 1 | Y26: PIR 3.3% (J+K) | Z26: Воронка с обжимным металлическим фланцем без обогрева 110х720 мм | AJ26: Крепёж | AK26: =IF(AK24>0,ТИП2!ПЛ*7,0) -> 0 | AM26: 60 | AN26: 80 | AV26: ПВХ мембрана LOGICROOF V-RP FR (1.2 мм) | AY26: =IF(OR(AV26=$C$23:$C$61),1,0) -> 0
B27: =SUBTOTAL(3,$I$13:I27) -> 8 | C27: Жидкий ПВХ ТехноНИКОЛЬ, 1л* | H27: 1 | I27: =ROUNDUP((0.004*ПЛ),0) -> 7.0 | J27: шт. | L27: 0.00 | N27: 1 | Y27: XPS 8.3% | Z27: Воронка ТехноНИКОЛЬ с обжимным фланцем обогреваемая, 110х450 мм | AM27: 70 | AN27: 100 | AV27: ПВХ мембрана ECOPLAST V-GR (1.5 мм) | AY27: =IF(OR(AV27=$C$23:$C$61),1,0) -> 0
B28: =SUBTOTAL(3,$I$13:I28) -> 8 | L28: 0.00 | N28: 0 | Z28: Воронка ТехноНИКОЛЬ с обжимным фланцем, 110х450 мм | AM28: 80 | AN28: 100 | AV28: ПВХ мембрана LOGICROOF V-RP (1.5 мм) | AY28: =IF(OR(AV28=$C$23:$C$61),1,0) -> 0
B29: =SUBTOTAL(3,$I$13:I29) -> 8 | L29: 0.00 | N29: 0 | Y29: ТЕХНОРУФ Н30 | Z29: Воронка ТехноНИКОЛЬ ВБ, 110х450 мм | AM29: 90 | AN29: 120 | AV29: ПВХ мембрана LOGICROOF V-RP ARCTIC (1.5 мм) | AY29: =IF(OR(AV29=$C$23:$C$61),1,0) -> 0
B30: =SUBTOTAL(3,$I$13:I30) -> 8 | L30: 0.00 | N30: 0 | Y30: ТЕХНОРУФ В ЭКСТРА | Z30: Воронка ESSMANNGULLY DN 100 | AM30: 100 | AN30: 120 | AV30: ПВХ мембрана ECOPLAST V-RP (1.5 мм) | AY30: =IF(OR(AV30=$C$23:$C$61),1,0) -> 0
B31: =SUBTOTAL(3,$I$13:I31) -> 8 | L31: 0.00 | N31: 0 | Y31: ТЕХНОРУФ Н ОПТИМА | Z31: Фильтр для воронок универсальный | AM31: 110 | AN31: 160 | AV31: ПВХ мембрана ECOPLAST V-GR (1.8 мм) | AY31: =IF(OR(AV31=$C$23:$C$61),1,0) -> 0 | BA31: =INDEX(AV23:AV43,MATCH(1,AY23:AY43,0)) -> ПВХ мембрана LOGICROOF V-RP (1.2 мм)
B32: =SUBTOTAL(3,$I$13:I32) -> 8 | L32: 0.00 | N32: 0 | Y32: ТЕХНОБЛОК СТАНДАРТ | Z32: Воронка парапетная 100*100 (квадратное сечение) | AV32: ПВХ мембрана LOGICROOF V-RP (1.8 мм) | AY32: =IF(OR(AV32=$C$23:$C$61),1,0) -> 0
B33: =SUBTOTAL(3,$I$13:I33) -> 8 | L33: 0.00 | N33: 0 | Y33: ТЕХНОВЕНТ СТАНДАРТ | Z33: Воронка ULTRA парапетная 110 | AV33: ПВХ мембрана LOGICROOF V-RP ARCTIC (1.8 мм) | AY33: =IF(OR(AV33=$C$23:$C$61),1,0) -> 0
B34: =SUBTOTAL(3,$I$13:I34) -> 8 | L34: =IFERROR(I34*K34,0) -> 0.00 | N34: =IF(OR(I34=" ",I34=0),0,1) -> 0 | Y34: ТЕХНОЛАЙТ ЭКСТРА | Z34: Воронка ULTRA ремонтная парапетная 100 | AV34: ПВХ мембрана ECOPLAST V-RP (1.8 мм) | AY34: =IF(OR(AV34=$C$23:$C$61),1,0) -> 0
B35: =SUBTOTAL(3,$I$13:I35) -> 8 | L35: =IFERROR(I35*K35,0) -> 0.00 | N35: =IF(OR(I35=" ",I35=0),0,1) -> 0 | Y35: ТЕХНОРУФ Н ПРОФ | Z35: Нет | AV35: ПВХ мембрана LOGICROOF V-RP ARCTIC (2.0 мм) | AY35: =IF(OR(AV35=$C$23:$C$61),1,0) -> 0
A36: =HYPERLINK("#"&$AB$5&"!P157","↓ ") -> ↓ | B36: =HYPERLINK("#"&$AB$5&"!P102","↓ ") -> ↓ | C36: Устройство примыканий | H36: =HYPERLINK("#"&AB5&"!A940","1111") -> 1111 | J36: =HYPERLINK("#"&AB5&"!A1050","1111") -> 1111 | K36: =HYPERLINK("#"&$AB$5&"!A1150","ТЕПЛО ПАРАПЕТ ") -> ТЕПЛО ПАРАПЕТ | L36: =SUM(L37:L61) -> 0.00 | N36: =IF(SUM(I23:I61)>0,1,0) -> 1 | Y36: Плита теплоизоляционная LOGICPIR PROF Ф/Ф | Z36: ТЕХНОРУФ 45 ГАЛТЕЛЬ (1.2 м) | AV36: ПВХ мембрана ECOPLAST V-GR (2.0 мм) | AY36: =IF(OR(AV36=$C$23:$C$61),1,0) -> 0
B37: =SUBTOTAL(3,$I$13:I37) -> 9 | C37: ПВХ Внутренний угол ТехноНИКОЛЬ* | H37: 1 | I37: =IFERROR($T$112*H37,0) -> 2 | J37: шт. | L37: =IFERROR(I23*K37,0) -> 0.00 | N37: =IF(OR(I23=" ",I23=0),0,1) -> 1 | Y37: Плита теплоизоляционная LOGICPIR PROF СХМ/СХМ | Z37: ТЕХНОРУФ Н ПРОФ, для галтели* | AV37: ПВХ мембрана ECOPLAST V-RP (2.0 мм) | AY37: =IF(OR(AV37=$C$23:$C$61),1,0) -> 0
B38: =SUBTOTAL(3,$I$13:I38) -> 10 | C38: ПВХ Внешний угол ТехноНИКОЛЬ* | H38: 1 | I38: =IFERROR($T$113*H38,0) -> 22 | J38: шт. | L38: =IFERROR(I24*K38,0) -> 0.00 | N38: =IF(OR(I24=" ",I24=0),0,1) -> 1 | Y38: Плита теплоизоляционная LOGICPIR PROF СХ/СХ | AV38: ПВХ мембрана LOGICROOF V-GR FB (1.2 мм) | AY38: =IF(OR(AV38=$C$23:$C$61),1,0) -> 0
B39: =SUBTOTAL(3,$I$13:I39) -> 11 | C39: Круглый тарельчатый держатель ТН (1/С) Ø 50 | G39: =" " ->  | H39: 5 | I39: =IFERROR(ROUNDUP(ТЭ*H39*1.03,0),0) -> 1566 | J39: шт. | L39: =IFERROR(I39*K39,0) -> 0.00 | N39: =IF(OR(I39=" ",I39=0),0,1) -> 1 | Y39: Сендвич-панель ТЕХНОНИКОЛЬ Ц-XPS CARBON | AV39: ПВХ мембрана LOGICROOF V-RP (2.0 мм) | AY39: =IF(OR(AV39=$C$23:$C$61),1,0) -> 0
B40: =SUBTOTAL(3,$I$13:I40) -> 12 | C40: =IF(OR(ПРИМЕЧАНИЯ!$Q$20<1000,ПРИМЕЧАНИЯ!$Q$20=1000),"Рейка краевая алюминиевая ТехноНИКОЛЬ PRO, 2 м","Рейка краевая алюминиевая ТехноНИКОЛЬ, 2 м") -> Рейка краевая алюминиевая ТехноНИКОЛЬ, 2 м | H40: 1.03 | I40: =IFERROR(ROUNDUP(ПКР*H40,2),0) -> 105.06 | J40: м.п. | L40: 0.00 | N40: 1 | Y40: XPS ТехноНИКОЛЬ CARBON ECO | AV40: ПВХ мембрана LOGICROOF V-GR FB (1.2 мм) | AY40: =IF(OR(AV40=$C$23:$C$61),1,0) -> 0
B41: =SUBTOTAL(3,$I$13:I41) -> 13 | C41: =IF(OR(ПРИМЕЧАНИЯ!$Q$20<1000,ПРИМЕЧАНИЯ!$Q$20=1000),"Рейка прижимная алюминиевая ТехноНИКОЛЬ PRO, 2 м","Рейка прижимная алюминиевая ТехноНИКОЛЬ, 2 м") -> Рейка прижимная алюминиевая ТехноНИКОЛЬ, 2 м | H41: 1.03 | I41: =IFERROR(ROUNDUP(ППР*H41,2),0) -> 105.06 | J41: м.п. | L41: 0.00 | N41: 1 | Y41: XPS ТехноНИКОЛЬ CARBON PROF | AV41: ПВХ мембрана LOGICROOF V-GR FB (1.5 мм) | AY41: =IF(OR(AV41=$C$23:$C$61),1,0) -> 0
B42: =SUBTOTAL(3,$I$13:I42) -> 14 | C42: Саморез остроконечный ТехноНИКОЛЬ 5,5х35 | H42: 5 | I42: =IFERROR(ROUNDUP(СМРЗ.МЕТ*H42*1.03,0),0) -> 2406 | J42: шт. | L42: 0.00 | N42: 1 | AV42: ПВХ мембрана LOGICROOF V-GR FB (1.8 мм) | AY42: =IF(OR(AV42=$C$23:$C$61),1,0) -> 0
B43: =SUBTOTAL(3,$I$13:I43) -> 15 | C43: Анкерный элемент ТехноНИКОЛЬ 8х45 мм | H43: 5 | I43: =IFERROR(ROUNDUP(АНКЕР,0),0) -> 293 | J43: шт. | L43: 0.00 | N43: 1 | AV43: ПВХ мембрана LOGICROOF V-GR FB (2.0 мм) | AY43: =IF(OR(AV43=$C$23:$C$61),1,0) -> 0
B44: =SUBTOTAL(3,$I$13:I44) -> 16 | C44: Саморез остроконечный ТехноНИКОЛЬ 4,8х 50 мм | H44: 5 | I44: =IFERROR(ROUNDUP(СМРЗ.БЕТ*H44*1.03,0),0)+$I$1141 -> 217 | J44: шт. | L44: 0.00 | N44: 1
B45: =SUBTOTAL(3,$I$13:I45) -> 17 | C45: Геотекстиль термообработанный ПЭТ 300 гр/м2 | H45: 1.1 | I45: =IFERROR(ROUNDUP(ГнП*H45+IFERROR(IF($R$110=$AA$16,$T$110*1.9,0),0),0),0) -> 3.0 | J45: м2 | L45: 0.00 | N45: 1
B46: =SUBTOTAL(3,$I$13:I46) -> 18 | C46: Герметик ПУ ТехноНИКОЛЬ Logicflex для плоских кровель | H46: 0.15 | I46: =IFERROR(ROUNDUP((ПКР*H46+$F$1035*0.025)*1000/600+$T$108*300/600+$AD$186+N("герметик на ограждения"),0),0) -> 48 | J46: шт. | L46: 0.00 | N46: 1
B47: =SUBTOTAL(3,$I$13:I47) -> 19 | C47: ПВХ металл LOGICROOF, лист 1x2м длина | G47: =CONCATENATE(($S$101+$U$106)," м") -> 304 м | H47: 1.05 | I47: =ROUNDUP(($S$101+$U$106)*H47*0.33+N("полоса шириной 2 метра поделенная на 6 частей по 33 см"),2) -> 105.34 | J47: м2 | L47: 0.00 | N47: 1
B48: =SUBTOTAL(3,$I$13:I48) -> 20 | C48: ПВХ мембрана LOGICROOF V-RP (1.2 мм) | G48: =" " ->  | H48: 1.15 | I48: =IFERROR(ROUNDUP(парапетВ*H48+IFERROR(IF($R$110=$AA$16,($T$110*1.05*1.15),0),0),0),0) -> 216.0 | J48: м2 | L48: 0.00 | N48: 1
B49: =SUBTOTAL(3,$I$13:I49) -> 21 | C49: ТЕХНОЛАЙТ ЭКСТРА | E49: , для гофр* | F49: 100 | G49: мм | H49: 1.03 | I49: =ROUNDUP(($P$4+2*$P$5)*ГОФРЫ,1) -> 5.8 | J49: м3 | L49: 0.00 | N49: 1
B50: =SUBTOTAL(3,$I$13:I50) -> 22 | C50: Саморез сверлоконечный ТехноНИКОЛЬ 4,8х | F50: 70 | G50: мм | I50: 166.0 | J50: шт. | L50: 0.00 | N50: =IF(OR(I50=" ",I50=0),0,1) -> 1
B51: =SUBTOTAL(3,$I$13:I51) -> 23 | C51: Саморез сверлоконечный ТехноНИКОЛЬ 4,8х | F51: 100 | G51: мм | I51: 76.0 | J51: шт. | L51: 0.00 | N51: =IF(OR(I51=" ",I51=0),0,1) -> 1
B52: =SUBTOTAL(3,$I$13:I52) -> 24 | C52: Телескопический крепеж ТехноНИКОЛЬ | F52: 20 | G52: мм | I52: 242.0 | J52: шт. | L52: 0.00 | N52: 1
B53: =SUBTOTAL(3,$I$13:I53) -> 25 | C53: ТЕХНОРУФ Н ПРОФ | F53: 50 | G53: мм | H53: 1.03 | I53: 1.800 | J53: м3 | L53: 0.00 | N53: 1
B54: =SUBTOTAL(3,$I$13:I54) -> 26 | C54: Кровельное ограждение ТехноНИКОЛЬ ККО/СК/600-2 | H54: 1 | I54: =IF(AND($V$3=$Y$4,OR($V$2=$AA$20,$V$2=$AA$21)),SUMIF($S$172:$S$176,C54,$V$172:$V$176),0) -> 87.0 | J54: шт. | L54: 0.00 | N54: 1
B55: =SUBTOTAL(3,$I$13:I55) -> 27 | C55: ПВХ Logicroof Walkway Puzzle (дорожка 0.6х0.6 м) | H55: 1 | I55: =IFERROR(IF($R$110=$AA$15,ROUNDUP($T$110*1.05/0.6,0),0),0) -> 513 | J55: шт. | L55: 0.00 | N55: 1
B56: =SUBTOTAL(3,$I$13:I56) -> 27 | L56: 0.00 | N56: 0
B57: =SUBTOTAL(3,$I$13:I57) -> 27 | L57: 0.00 | N57: 0
B58: =SUBTOTAL(3,$I$13:I58) -> 27 | L58: 0.00 | N58: 0
B59: =SUBTOTAL(3,$I$13:I59) -> 27 | L59: 0.00 | N59: 0
B60: =SUBTOTAL(3,$I$13:I60) -> 27 | L60: 0.00 | N60: 0
B61: =SUBTOTAL(3,$I$13:I61) -> 27 | L61: 0.00 | N61: =IF(OR(I61=" ",I61=0),0,1) -> 0
C62: Устройство уклонообразующего слоя | H62: =HYPERLINK("#"&AB5&"!A1090","1111") -> 1111 | L62: =IFERROR(SUM(L63:L69),0) -> 0.00 | N62: =IF(SUM(I63:I69)>0,1,0) -> 0
B63: =SUBTOTAL(3,$I$13:I63) -> 27 | C63: =IF(T3=Y13,"",IF(T3=Y14,C1079,IF(T3=Y15,C1090,IF(T3=Y16,C1097,IF(T3=Y17,C1099,C1113))))) ->  | I63: =IF(T3=Y13,"",IF(T3=Y14,I1079,IF(T3=Y15,I1090,IF(T3=Y16,I1097,IF(T3=Y17,I1099,I1113))))) ->  | J63: =IF(T3=Y13," ",IF(OR(T3=Y14,T3=Y15),J1079,IF(OR(T3=Y16,T3=Y17),J1097,J1113))) ->  | L63: =IFERROR(I63*K63,0) -> 0.00 | N63: =IF(I63="",0,1) -> 0
B64: =SUBTOTAL(3,$I$13:I64) -> 27 | C64: =IF(T3=Y13,"",IF(T3=Y14,C1080,IF(T3=Y15,C1091,IF(T3=Y17,C1100,IF(T3=Y16,C1098,C1114))))) ->  | I64: =IF(T3=Y13,"",IF(T3=Y14,I1080,IF(T3=Y15,I1091,IF(T3=Y16,I1098,IF(T3=Y17,I1100,I1114))))) ->  | J64: =IF(T3=Y13," ",IF(OR(T3=Y14,T3=Y15),J1080,IF(OR(T3=Y16,T3=Y17),J1098,J1114))) ->  | L64: 0.00 | N64: 0
B65: =SUBTOTAL(3,$I$13:I65) -> 27 | C65: =IF(T3=Y13,"",IF(T3=Y14,C1081,IF(T3=Y15,C1092,IF(T3=Y16,C1101,IF(T3=Y17,C1102,C1115))))) ->  | I65: =IF(T3=Y13,"",IF(T3=Y14,I1081,IF(T3=Y15,I1092,IF(T3=Y16,I1101,IF(T3=Y17,I1102,I1115))))) ->  | J65: =IF(T3=Y13," ",IF(OR(T3=Y14,T3=Y15),J1081,IF(OR(T3=Y16,T3=Y17),J1101,J1115))) ->  | L65: 0.00 | N65: 0
B66: =SUBTOTAL(3,$I$13:I66) -> 27 | C66: =IF(OR(T4=Y20,T4=Y22),C1082,"") ->  | I66: =IF(OR(T4=Y20,T4=Y22),I1082,"") ->  | J66: =IF(OR(T4=Y20,T4=Y22),J1082,"") ->  | L66: 0.00 | N66: 0
B67: =SUBTOTAL(3,$I$13:I67) -> 27 | C67: =IF(T4=Y19,"",IF(T4=Y20,C1083,IF(T4=Y21,C1093,IF(T4=Y22,C1086,IF(T4=Y23,C1103,IF(T4=Y24,C1105,IF(OR(T4=Y25,T4=Y26),C1116,C1110))))))) ->  | I67: =IF(T4=Y19,"",IF(T4=Y20,I1083,IF(T4=Y21,I1093,IF(T4=Y22,I1086,IF(T4=Y23,I1103,IF(T4=Y24,I1105,IF(OR(T4=Y25,T4=Y26),I1116,I1110))))))) ->  | J67: =IF(T4=Y19," ",IF(OR(T4=Y20,T4=Y22),J1083,IF(OR(T3=Y23,T3=Y24),J1103,IF(OR(T4=Y25,T4=Y26),J1116,J1110)))) ->  | L67: 0.00 | N67: 0
B68: =SUBTOTAL(3,$I$13:I68) -> 27 | C68: =IF(T4=Y19,"",IF(T4=Y20,C1084,IF(T4=Y21,C1094,IF(T4=Y22,C1087,IF(T4=Y24,C1106,IF(T4=Y26,C1117,IF(T4=Y23,C1104,IF(T4=Y25,"",C1111)))))))) ->  | I68: =IF(T4=Y19,"",IF(T4=Y20,I1084,IF(T4=Y21,I1094,IF(T4=Y22,I1087,IF(T4=Y26,I1117,IF(T4=Y23,I1104,IF(T4=Y24,I1106,IF(T4=Y25,"",I1111)))))))) ->  | J68: =IF(T4=Y19," ",IF(OR(T4=Y20,T4=Y22),J1084,IF(OR(T3=Y23,T3=Y24),J1104,IF(T4=Y26,J1117,IF(T4=Y25,"",J1111))))) ->  | L68: 0.00 | N68: 0
B69: =SUBTOTAL(3,$I$13:I69) -> 27 | C69: =IF(T4=Y19,"",IF(T4=Y20,C1085,IF(T4=Y21,C1095,IF(T4=Y22,C1088,IF(T4=Y23,C1107,IF(T4=Y26,C1119,IF(T4=Y24,C1108,IF(T4=Y25,C1118,"")))))))) ->  | I69: =IF(T4=Y19,"",IF(T4=Y20,I1085,IF(T4=Y21,I1095,IF(T4=Y22,I1088,IF(T4=Y23,I1107,IF(T4=Y24,I1108,IF(T4=Y26,I1119,IF(T4=Y25,I1118,"")))))))) ->  | J69: =IF(T4=Y19," ",IF(OR(T4=Y20,T4=Y21,T4=Y22),J1085,IF(T3=Y23,J1107,IF(T4=Y24,J1107,IF(T4=Y26,J1119,IF(T4=Y25,J1118," ")))))) ->  | L69: 0.00 | N69: 0
C70: =IF(SUM(I23:I35,I23:I62)>0,"* Позиции носят рекомендательный характер","") -> * Позиции носят рекомендательный характер | N70: =IF(SUM(I23:I35,I23:I62)>0,1,0) -> 1
N71: =IF($V$4="НЕТ",0,1) -> 1
N72: =IF($V$4="НЕТ",0,1) -> 1 | P72: =IF(V3="НЕТ"," ",IF(V3="ПВХ","ПВХ мембрана","Битумно- полимерная ")) -> ПВХ мембрана
I73: Сметная стоимость крепежа : | J73: =SUM(L114,L101,L82) -> 0.00 | L73: руб. | N73: =IF($V$4="НЕТ",0,1) -> 1 | P73: =IF(V3="НЕТ"," ","ТИПЫ") -> ТИПЫ | Q73: =IF(V3="НЕТ"," ","ПГ") -> ПГ | S73: =IF(V3="НЕТ"," ","ДКР") -> ДКР | T73: =IF(V3="НЕТ"," ","ДПР") -> ДПР | U73: =IF(V3="НЕТ"," ","ТЭ") -> ТЭ | V73: =IF(V3="НЕТ"," ","ГнП") -> ГнП | Y73: СМРЗ. МЕТ | Z73: СМРЗ БЕТ. | AA73: АНКЕР | AB73: ПРАЙМЕР
N74: 1 | Q74: =IF(V3="НЕТ"," ","ВЕРХ") -> ВЕРХ | R74: =IF(V3="НЕТ"," ","НИЗ") -> НИЗ
B75: Спецификация крепежа | G75: =номер_объекта -> 11-27ХХ-МПКПМКИ-12.21 | K75: =IF(K5=0," ",K5) -> Кровля (без участков в осях 7-9 / Ж-И и 12-14 / Ж-И) | N75: 1 | P75: =IF(V3="НЕТ"," ","СУММА") -> СУММА | Q75: =IF(V3="ПВХ",SUM(Y81:Y85,Y88:Y92,Y95:Y98,Y101,Q104),IF(V3="нет"," ",SUM(Y133:Y137,Y141:Y145,Y149:Y152,Q161))) -> 187.65 | R75: =IF(V3="Битумно- полимерная",SUM(Z133:Z137,Z141:Z145,Z149:Z152,Z156,Q162),IF(V3="НЕТ"," ",0)) -> 0 | S75: =IF(V3="НЕТ"," ",IF(V3="ПВХ",SUM(AA95:AA98,Q105),SUM(AA149:AA152,S161))) -> 102 | T75: =IF(V3="нет"," ",IF(V3="ПВХ",SUM(Z81:Z85,Z88:Z92,Z95:Z98,Q106),SUM(AA133:AA137,S162))) -> 102 | U75: =IF(V3="ПВХ",SUM(AA81:AA85,AA88:AA92,Z101,S104),IF(V3="НЕТ"," ",0)) -> 304 | V75: =IF(V3="ПВХ",SUM(AB81:AB85,AB88:AB92,AB95:AB98,S105),IF(V3="НЕТ"," ",0)) -> 2.1 | Y75: =IF(V3=Y3,SUM(AB133:AB137,AB149:AB152,Q163),IF(V3=Y4,SUM(AC81:AC85,AC88:AC92,AC95:AC98,AA101,S106),0)) -> 467 | Z75: =IF(V3=Y3,SUM(AC133:AC137,AC149:AC152,S163),IF(V3=Y4,SUM(AD81:AD85,AD88:AD92,AD95:AD98,AB101,U105),0)) -> 42 | AA75: =IF(V3=Y3,SUM(AD133:AD137,AD149:AD152,U161),IF(V3=Y4,SUM(AE81:AE85,AE88:AE92,AE95:AE98,AC101,U104),0)) -> 293 | AB75: =IF(V3=Y3,SUM(AE133:AE137,AE149:AE152,AE141:AE145),0) -> 0 | AD75: =СМРЗ.МЕТ*5.15 -> 2405.05 | AF75: =(AC81+AC82+AC83+AC84+AC85+AC88+AC90+AC89+AC91+AC92+AC95+AC96+AC97+AC98)*5.15 -> 839.45
N76: 1 | P76: =IFERROR(IF($V$4=$Y$12,SUM($I$102:$I$113)/ПЛ," "),0) -> 7.0 | Q76: =IF($V$4=$Y$12,"расход количества крепежа для всей кровли, шт/м2"," ") -> расход количества крепежа для всей кровли, шт/м2
N77: 1 | P77: =IF(T3=Y13," ",IF(T3=Y14,0.72*SUM(Q8:Q9),0.72*SUM(Q8:Q9))) ->  | Q77: =IF(T3=Y13," ","площадь клинов ОУ, м2") ->  | S77: =IF(T3=Y13," ",IFERROR($P$77/ПЛ,0)) ->  | T77: =IF(T3=Y13," ","соотношение площади клинов к основной площади") -> 
B78: № | C78: Наименование | I78: Кол-во* | J78: Ед. изм. | K78: Стоимость ед., руб. | L78: Сметная стоимость, руб. | N78: 1 | P78: =IF(T4=Y19," ",IF(OR(T4=Y27,T4=Y25),0.72*U8,0.72*SUM(U8:U9))) ->  | Q78: =IF(T4=Y19," ","площадь клинов КУ, м2") ->  | S78: =IF(T4=Y19," ",IFERROR($P$78/ПЛ,0)) ->  | T78: =IF(T4=Y19," ","соотношение площади клинов к основной площади") -> 
N79: 1 | P79: =IF(V3=Y4,"Примыкание к парапету высотой более 500 мм"," ") -> Примыкание к парапету высотой более 500 мм | U79: =HYPERLINK("#"&$AB$5&"!B36","⇑ ") -> ⇑ | Y79: Примыкание к парапету высотой более 500 мм | AF79: ОБЪЕМ УТЕПЛ | AG79: САМОРЕЗ КУ | AI79: ТЕЛЕСКОП КУ | AK79: САМОРЕЗ КР | AN79: Тип примыканий
N80: 1 | P80: НАЗВАНИЕ | Q80: =IF(V3=Y4,"ТИПЫ"," ") -> ТИПЫ | R80: =IF(V3=Y4,"ШИРИНА, мм"," ") -> ШИРИНА, мм | S80: =IF(V3=Y4,"ВЫСОТА, мм"," ") -> ВЫСОТА, мм | T80: =IF(V3=Y4,"ДЛИНА, м"," ") -> ДЛИНА, м | U80: Н утепл, мм | V80: толщ., мм | W80: марка ут. | Y80: ПГ | Z80: ДПР | AA80: ТЭ | AB80: ГнП | AC80: СМРЗ. МЕТ | AD80: СМРЗ БЕТ. | AE80: АНКЕР, шт | AG80: размер | AH80: кол-во, шт | AI80: размер | AJ80: кол-во, шт | AK80: размер | AL80: кол-во, шт | AN80: В Примечания
B81: 1 | C81: 2 | I81: 3 | J81: 4 | K81: 5 | L81: 6 | N81: 1 | Y81: =(530+R81+S81)/1000*T81 -> 0 | Z81: =T81*2 -> 0 | AA81: =T81 -> 0 | AB81: =IF(SUM(R81:S81)>U81,IF(Q81=$Z$16,((R81+S81)/1000*T81),IF(Q81=$Z$18,((R81+S81-U81)/1000*T81),IF(Q81=$Z$19,((V81+U81)/1000*T81),IF(Q81=$Z$20,((R81+S81+V81)/1000*T81),0)))),0) -> 0 | AC81: =ROUNDUP(IF(OR(Q81=$Z$19,Q81=$Z$15),SUM(Z81:AA81),IF(Q81=$Z$17,(T81+AA81),IF(Q81=$Z$20,T81,0))),0) -> 0 | AD81: =ROUNDUP(IF(Q81=$Z$16,SUM(Z81:AA81),IF(OR(Q81=$Z$20,Q81=$Z$18),(T81+AA81),0)),0) -> 0 | AE81: =ROUNDUP(IF(Q81=$Z$16,SUM(Z81:AA81)*5*1.03,IF(Q81=$Z$18,(AA81+T81)*5*1.03+AH81+AL81,IF(Q81=$Z$20,(AA81+T81)*5*1.03,0))),0) -> 0 | AF81: =ROUNDUP(IF($AE$5=1,U81/1000*V81/1000*T81*1.03,0),1) -> 0.0 | AG81: =IF(Q81=$Z$18,INDEX($AH$307:$AI$339,MATCH(V81,$AG$307:$AG$339,0),2),IF(Q81=$Z$17,INDEX($AK$307:$AL$341,MATCH(V81,$AJ$307:$AJ$341,0),2),0)) -> 0 | AH81: =IF($W81=$Y$39,0,IF(AG81=0,0,ROUNDUP(7*T81*U81/1000*1.03,0))) -> 0 | AI81: =IF(Q81=$Z$18,INDEX($AH$307:$AI$339,MATCH(V81,$AG$307:$AG$339,0),1),IF(Q81=$Z$17,INDEX($AK$307:$AL$341,MATCH(V81,$AJ$307:$AJ$341,0),1),0)) -> 0 | AJ81: =AH81 -> 0 | AK81: =IF(Q81=$Z$18,INDEX($AO$306:$AP$323,MATCH(V81,$AN$306:$AN$323,0),2),IF(Q81=$Z$17,INDEX($AR$306:$AS$323,MATCH(V81,$AQ$306:$AQ$323,0),2),0)) -> 0 | AL81: =IF(AK81=0,0,ROUNDUP(T81*5*1.03,0)) -> 0 | AN81: =IFERROR(MATCH(Q81,$Z$15:$Z$20,0),0) -> 0
C82: =IF(AND(I83>0,SUM(I84:I97)>0),"Телескопический крепеж и тарельчатый держатель",IF(AND(I83>0,SUM(I84:I97)=0),"Тарельчатый держатель","Телескопический крепеж")) -> Телескопический крепеж | L82: =SUM(L83:L100) -> 0.00 | N82: =IF(SUM(I83:I100)>0,1,0) -> 1 | Y82: =(530+R82+S82)/1000*T82 -> 0 | Z82: =T82*2 -> 0 | AA82: =T82 -> 0 | AB82: =IF(SUM(R82:S82)>U82,IF(Q82=$Z$16,((R82+S82)/1000*T82),IF(Q82=$Z$18,((R82+S82-U82)/1000*T82),IF(Q82=$Z$19,((V82+U82)/1000*T82),IF(Q82=$Z$20,((R82+S82+V82)/1000*T82),0)))),0) -> 0 | AC82: =ROUNDUP(IF(OR(Q82=$Z$19,Q82=$Z$15),SUM(Z82:AA82),IF(Q82=$Z$17,(T82+AA82),IF(Q82=$Z$20,T82,0))),0) -> 0 | AD82: =ROUNDUP(IF(Q82=$Z$16,SUM(Z82:AA82),IF(OR(Q82=$Z$20,Q82=$Z$18),(T82+AA82),0)),0) -> 0 | AE82: =ROUNDUP(IF(Q82=$Z$16,SUM(Z82:AA82)*5*1.03,IF(Q82=$Z$18,(AA82+T82)*5*1.03+AH82+AL82,IF(Q82=$Z$20,(AA82+T82)*5*1.03,0))),0) -> 0 | AF82: =ROUNDUP(IF($AE$5=1,U82/1000*V82/1000*T82*1.03,0),1) -> 0.0 | AG82: =IF(Q82=$Z$18,INDEX($AH$307:$AI$339,MATCH(V82,$AG$307:$AG$339,0),2),IF(Q82=$Z$17,INDEX($AK$307:$AL$341,MATCH(V82,$AJ$307:$AJ$341,0),2),0)) -> 0 | AH82: =IF($W82=$Y$39,0,IF(AG82=0,0,ROUNDUP(7*T82*U82/1000*1.03,0))) -> 0 | AI82: =IF(Q82=$Z$18,INDEX($AH$307:$AI$339,MATCH(V82,$AG$307:$AG$339,0),1),IF(Q82=$Z$17,INDEX($AK$307:$AL$341,MATCH(V82,$AJ$307:$AJ$341,0),1),0)) -> 0 | AJ82: =AH82 -> 0 | AK82: =IF(Q82=$Z$18,INDEX($AO$306:$AP$323,MATCH(V82,$AN$306:$AN$323,0),2),IF(Q82=$Z$17,INDEX($AR$306:$AS$323,MATCH(V82,$AQ$306:$AQ$323,0),2),0)) -> 0 | AL82: =IF(AK82=0,0,ROUNDUP(T82*5*1.03,0)) -> 0 | AN82: =IFERROR(MATCH(Q82,$Z$15:$Z$20,0),0) -> 0
B83: =SUBTOTAL(3,$I$83:I83) -> 0 | C83: =IF($V$3=$Y$3,"Круглый тарельчатый держатель ТехноНИКОЛЬ 50мм", "Круглый тарельчатый держатель ТН (1/С) Ø 50") -> Круглый тарельчатый держатель ТН (1/С) Ø 50 | H83: ТЭ | I83: =IF(AND(OR($R$4=$Y$9,$R$4=$Y$10),$V$4=$AA$6),ROUNDUP(ПЛ*$U$12,0),IF(AND(R4=Y7,V4=AA11),SUMIF(D225:D295,H83,I225:I295),IF(AND(OR(R4=Y7,R4=Y8),V4=AA10),ROUNDUP(ПЛ*$U$12,0)+SUMIF(D225:D295,"ТЭ",I225:I295),(SUMIF($D$137:$D$216,H83,$L$137:$L$216)+SUMIF(D225:D295,"ТЭ",I225:I295)))))+IF($AK$24>0,$AK$26,0) -> 0 | J83: шт. | L83: =IFERROR(I83*K83,0) -> 0.00 | N83: =IF(I83>0,1,0) -> 0 | Y83: =(530+R83+S83)/1000*T83 -> 0 | Z83: =T83*2 -> 0 | AA83: =T83 -> 0 | AB83: =IF(SUM(R83:S83)>U83,IF(Q83=$Z$16,((R83+S83)/1000*T83),IF(Q83=$Z$18,((R83+S83-U83)/1000*T83),IF(Q83=$Z$19,((V83+U83)/1000*T83),IF(Q83=$Z$20,((R83+S83+V83)/1000*T83),0)))),0) -> 0 | AC83: =ROUNDUP(IF(OR(Q83=$Z$19,Q83=$Z$15),SUM(Z83:AA83),IF(Q83=$Z$17,(T83+AA83),IF(Q83=$Z$20,T83,0))),0) -> 0 | AD83: =ROUNDUP(IF(Q83=$Z$16,SUM(Z83:AA83),IF(OR(Q83=$Z$20,Q83=$Z$18),(T83+AA83),0)),0) -> 0 | AE83: =ROUNDUP(IF(Q83=$Z$16,SUM(Z83:AA83)*5*1.03,IF(Q83=$Z$18,(AA83+T83)*5*1.03+AH83+AL83,IF(Q83=$Z$20,(AA83+T83)*5*1.03,0))),0) -> 0 | AF83: =ROUNDUP(IF($AE$5=1,U83/1000*V83/1000*T83*1.03,0),1) -> 0.0 | AG83: =IF(Q83=$Z$18,INDEX($AH$307:$AI$339,MATCH(V83,$AG$307:$AG$339,0),2),IF(Q83=$Z$17,INDEX($AK$307:$AL$341,MATCH(V83,$AJ$307:$AJ$341,0),2),0)) -> 0 | AH83: =IF($W83=$Y$39,0,IF(AG83=0,0,ROUNDUP(7*T83*U83/1000*1.03,0))) -> 0 | AI83: =IF(Q83=$Z$18,INDEX($AH$307:$AI$339,MATCH(V83,$AG$307:$AG$339,0),1),IF(Q83=$Z$17,INDEX($AK$307:$AL$341,MATCH(V83,$AJ$307:$AJ$341,0),1),0)) -> 0 | AJ83: =AH83 -> 0 | AK83: =IF(Q83=$Z$18,INDEX($AO$306:$AP$323,MATCH(V83,$AN$306:$AN$323,0),2),IF(Q83=$Z$17,INDEX($AR$306:$AS$323,MATCH(V83,$AQ$306:$AQ$323,0),2),0)) -> 0 | AL83: 0 | AN83: =IFERROR(MATCH(Q83,$Z$15:$Z$20,0),0) -> 0
B84: =SUBTOTAL(3,$I$83:I84) -> 0 | C84: Телескопический крепеж ТехноНИКОЛЬ | F84: 20 | G84: мм | I84: =IF(OR($V$4=$AA$10,$V$4=$AA$11),SUMIF($D$225:$D$295,F84,$I$225:$I$295),SUMIF($D$137:$D$216,F84,$L$137:$L$216)) -> 0 | J84: шт. | L84: =I84*K84 -> 0.00 | N84: 0 | Y84: =(530+R84+S84)/1000*T84 -> 0 | Z84: =T84*2 -> 0 | AA84: =T84 -> 0 | AB84: =IF(SUM(R84:S84)>U84,IF(Q84=$Z$16,((R84+S84)/1000*T84),IF(Q84=$Z$18,((R84+S84-U84)/1000*T84),IF(Q84=$Z$19,((V84+U84)/1000*T84),IF(Q84=$Z$20,((R84+S84+V84)/1000*T84),0)))),0) -> 0 | AC84: =ROUNDUP(IF(OR(Q84=$Z$19,Q84=$Z$15),SUM(Z84:AA84),IF(Q84=$Z$17,(T84+AA84),IF(Q84=$Z$20,T84,0))),0) -> 0 | AD84: =ROUNDUP(IF(Q84=$Z$16,SUM(Z84:AA84),IF(OR(Q84=$Z$20,Q84=$Z$18),(T84+AA84),0)),0) -> 0 | AE84: =ROUNDUP(IF(Q84=$Z$16,SUM(Z84:AA84)*5*1.03,IF(Q84=$Z$18,(AA84+T84)*5*1.03+AH84+AL84,IF(Q84=$Z$20,(AA84+T84)*5*1.03,0))),0) -> 0 | AF84: =ROUNDUP(IF($AE$5=1,U84/1000*V84/1000*T84*1.03,0),1) -> 0.0 | AG84: =IF(Q84=$Z$18,INDEX($AH$307:$AI$339,MATCH(V84,$AG$307:$AG$339,0),2),IF(Q84=$Z$17,INDEX($AK$307:$AL$341,MATCH(V84,$AJ$307:$AJ$341,0),2),0)) -> 0 | AH84: =IF($W84=$Y$39,0,IF(AG84=0,0,ROUNDUP(7*T84*U84/1000*1.03,0))) -> 0 | AI84: =IF(Q84=$Z$18,INDEX($AH$307:$AI$339,MATCH(V84,$AG$307:$AG$339,0),1),IF(Q84=$Z$17,INDEX($AK$307:$AL$341,MATCH(V84,$AJ$307:$AJ$341,0),1),0)) -> 0 | AJ84: =AH84 -> 0 | AK84: =IF(Q84=$Z$18,INDEX($AO$306:$AP$323,MATCH(V84,$AN$306:$AN$323,0),2),IF(Q84=$Z$17,INDEX($AR$306:$AS$323,MATCH(V84,$AQ$306:$AQ$323,0),2),0)) -> 0 | AL84: 0 | AN84: =IFERROR(MATCH(Q84,$Z$15:$Z$20,0),0) -> 0
B85: =SUBTOTAL(3,$I$83:I85) -> 0 | C85: Телескопический крепеж ТехноНИКОЛЬ | F85: 50 | G85: мм | I85: 0 | J85: шт. | L85: =I85*K85 -> 0.00 | N85: 0 | Y85: =(530+R85+S85)/1000*T85 -> 0 | Z85: =T85*2 -> 0 | AA85: =T85 -> 0 | AB85: =IF(SUM(R85:S85)>U85,IF(Q85=$Z$16,((R85+S85)/1000*T85),IF(Q85=$Z$18,((R85+S85-U85)/1000*T85),IF(Q85=$Z$19,((V85+U85)/1000*T85),IF(Q85=$Z$20,((R85+S85+V85)/1000*T85),0)))),0) -> 0 | AC85: =ROUNDUP(IF(OR(Q85=$Z$19,Q85=$Z$15),SUM(Z85:AA85),IF(Q85=$Z$17,(T85+AA85),IF(Q85=$Z$20,T85,0))),0) -> 0 | AD85: =ROUNDUP(IF(Q85=$Z$16,SUM(Z85:AA85),IF(OR(Q85=$Z$20,Q85=$Z$18),(T85+AA85),0)),0) -> 0 | AE85: =ROUNDUP(IF(Q85=$Z$16,SUM(Z85:AA85)*5*1.03,IF(Q85=$Z$18,(AA85+T85)*5*1.03+AH85+AL85,IF(Q85=$Z$20,(AA85+T85)*5*1.03,0))),0) -> 0 | AF85: =ROUNDUP(IF($AE$5=1,U85/1000*V85/1000*T85*1.03,0),1) -> 0.0 | AG85: =IF(Q85=$Z$18,INDEX($AH$307:$AI$339,MATCH(V85,$AG$307:$AG$339,0),2),IF(Q85=$Z$17,INDEX($AK$307:$AL$341,MATCH(V85,$AJ$307:$AJ$341,0),2),0)) -> 0 | AH85: =IF($W85=$Y$39,0,IF(AG85=0,0,ROUNDUP(7*T85*U85/1000*1.03,0))) -> 0 | AI85: =IF(Q85=$Z$18,INDEX($AH$307:$AI$339,MATCH(V85,$AG$307:$AG$339,0),1),IF(Q85=$Z$17,INDEX($AK$307:$AL$341,MATCH(V85,$AJ$307:$AJ$341,0),1),0)) -> 0 | AJ85: =AH85 -> 0 | AK85: =IF(Q85=$Z$18,INDEX($AO$306:$AP$323,MATCH(V85,$AN$306:$AN$323,0),2),IF(Q85=$Z$17,INDEX($AR$306:$AS$323,MATCH(V85,$AQ$306:$AQ$323,0),2),0)) -> 0 | AL85: 0 | AN85: =IFERROR(MATCH(Q85,$Z$15:$Z$20,0),0) -> 0
B86: =SUBTOTAL(3,$I$83:I86) -> 0 | C86: Телескопический крепеж ТехноНИКОЛЬ | F86: 80 | G86: мм | I86: 0 | J86: шт. | L86: 0.00 | N86: 0 | P86: =IF(V3=Y4,"Примыкание к парапету высотой менее 500 мм"," ") -> Примыкание к парапету высотой менее 500 мм | Y86: Примыкание к парапету высотой менее 500 мм | AF86: ОБЪЕМ УТЕПЛ | AG86: САМОРЕЗ КУ | AI86: ТЕЛЕСКОП КУ | AK86: САМОРЕЗ КР
B87: =SUBTOTAL(3,$I$83:I87) -> 0 | C87: Телескопический крепеж ТехноНИКОЛЬ | F87: 100 | G87: мм | I87: 0 | J87: шт. | L87: 0.00 | N87: 0 | P87: НАЗВАНИЕ | Q87: =IF(V3=Y4,"ТИПЫ"," ") -> ТИПЫ | R87: =IF(V3=Y4,"ШИРИНА, мм"," ") -> ШИРИНА, мм | S87: =IF(V3=Y4,"ВЫСОТА, мм"," ") -> ВЫСОТА, мм | T87: =IF(V3=Y4,"ДЛИНА, м"," ") -> ДЛИНА, м | U87: Н утепл, мм | V87: толщ., мм | W87: марка ут. | Y87: ПГ | Z87: ДПР | AA87: ТЭ | AB87: ГнП | AC87: СМРЗ. МЕТ | AD87: СМРЗ БЕТ. | AE87: АНКЕР, шт | AG87: размер | AH87: кол-во, шт | AI87: размер | AJ87: кол-во, шт | AK87: размер | AL87: кол-во, шт
B88: =SUBTOTAL(3,$I$83:I88) -> 0 | C88: Телескопический крепеж ТехноНИКОЛЬ | F88: 120 | G88: мм | I88: 0 | J88: шт. | L88: 0.00 | N88: 0 | Y88: =T88*(430+R88+S88)/1000 -> 0 | Z88: =T88 -> 0 | AA88: =T88 -> 0 | AB88: =IF(SUM(R88:S88)>U88,IF(Q88=$Z$16,((R88+S88)/1000*T88),IF(Q88=$Z$18,((R88+S88-U88)/1000*T88),IF(Q88=$Z$19,((V88+U88)/1000*T88),IF(Q88=$Z$20,((R88+S88+V88)/1000*T88),0)))),0) -> 0 | AC88: =ROUNDUP(IF(OR(Q88=$Z$17,Q88=$Z$19,Q88=$Z$15),SUM(Z88:AA88),0),0) -> 0 | AD88: =ROUNDUP(IF(OR(Q88=$Z$18,Q88=$Z$20,Q88=$Z$16),SUM(Z88:AA88),0),0) -> 0 | AE88: =ROUNDUP(IF(OR(Q88=$Z$20,Q88=$Z$16),SUM(Z88:AA88)*5*1.03,IF(Q88=$Z$18,(AA88+Z88)*5*1.03+AH88,0)),0) -> 0 | AF88: =ROUNDUP(IF($AE$6=1,U88/1000*V88/1000*T88*1.03,0),1) -> 0.0 | AG88: =IF(Q88=$Z$18,INDEX($AH$307:$AI$339,MATCH(V88,$AG$307:$AG$339,0),2),IF(Q88=$Z$17,INDEX($AK$307:$AL$341,MATCH(V88,$AJ$307:$AJ$341,0),2),0)) -> 0 | AH88: =IF($W88=$Y$39,0,IF(AG88=0,0,ROUNDUP(7*T88*U88/1000*1.03,0))) -> 0 | AI88: =IF(Q88=$Z$18,INDEX($AH$307:$AI$339,MATCH(V88,$AG$307:$AG$339,0),1),IF(Q88=$Z$17,INDEX($AK$307:$AL$341,MATCH(V88,$AJ$307:$AJ$341,0),1),0)) -> 0 | AJ88: =AH88 -> 0 | AK88: =IF(Q88=$Z$18,INDEX($AO$306:$AP$323,MATCH(V88,$AN$306:$AN$323,0),2),IF(Q88=$Z$17,INDEX($AR$306:$AS$323,MATCH(V88,$AQ$306:$AQ$323,0),2),0)) -> 0 | AL88: 0 | AN88: =IFERROR(MATCH(Q88,$Z$15:$Z$20,0),0) -> 0
B89: =SUBTOTAL(3,$I$83:I89) -> 0 | C89: Телескопический крепеж ТехноНИКОЛЬ | F89: 130 | G89: мм | I89: 0 | J89: шт. | L89: 0.00 | N89: 0 | Y89: =T89*(430+R89+S89)/1000 -> 0 | Z89: =T89 -> 0 | AA89: =T89 -> 0 | AB89: =IF(SUM(R89:S89)>U89,IF(Q89=$Z$16,((R89+S89)/1000*T89),IF(Q89=$Z$18,((R89+S89-U89)/1000*T89),IF(Q89=$Z$19,((V89+U89)/1000*T89),IF(Q89=$Z$20,((R89+S89+V89)/1000*T89),0)))),0) -> 0 | AC89: =ROUNDUP(IF(OR(Q89=$Z$17,Q89=$Z$19,Q89=$Z$15),SUM(Z89:AA89),0),0) -> 0 | AD89: =ROUNDUP(IF(OR(Q89=$Z$18,Q89=$Z$20,Q89=$Z$16),SUM(Z89:AA89),0),0) -> 0 | AE89: =ROUNDUP(IF(OR(Q89=$Z$20,Q89=$Z$16),SUM(Z89:AA89)*5*1.03,IF(Q89=$Z$18,(AA89+Z89)*5*1.03+AH89,0)),0) -> 0 | AF89: =ROUNDUP(IF($AE$6=1,U89/1000*V89/1000*T89*1.03,0),1) -> 0.0 | AG89: =IF(Q89=$Z$18,INDEX($AH$307:$AI$339,MATCH(V89,$AG$307:$AG$339,0),2),IF(Q89=$Z$17,INDEX($AK$307:$AL$341,MATCH(V89,$AJ$307:$AJ$341,0),2),0)) -> 0 | AH89: =IF($W89=$Y$39,0,IF(AG89=0,0,ROUNDUP(7*T89*U89/1000*1.03,0))) -> 0 | AI89: =IF(Q89=$Z$18,INDEX($AH$307:$AI$339,MATCH(V89,$AG$307:$AG$339,0),1),IF(Q89=$Z$17,INDEX($AK$307:$AL$341,MATCH(V89,$AJ$307:$AJ$341,0),1),0)) -> 0 | AJ89: =AH89 -> 0 | AK89: =IF(Q89=$Z$18,INDEX($AO$306:$AP$323,MATCH(V89,$AN$306:$AN$323,0),2),IF(Q89=$Z$17,INDEX($AR$306:$AS$323,MATCH(V89,$AQ$306:$AQ$323,0),2),0)) -> 0 | AL89: 0 | AN89: =IFERROR(MATCH(Q89,$Z$15:$Z$20,0),0) -> 0
B90: =SUBTOTAL(3,$I$83:I90) -> 0 | C90: Телескопический крепеж ТехноНИКОЛЬ | F90: 140 | G90: мм | I90: 0 | J90: шт. | L90: 0.00 | N90: 0 | Y90: =T90*(430+R90+S90)/1000 -> 0 | Z90: =T90 -> 0 | AA90: =T90 -> 0 | AB90: =IF(SUM(R90:S90)>U90,IF(Q90=$Z$16,((R90+S90)/1000*T90),IF(Q90=$Z$18,((R90+S90-U90)/1000*T90),IF(Q90=$Z$19,((V90+U90)/1000*T90),IF(Q90=$Z$20,((R90+S90+V90)/1000*T90),0)))),0) -> 0 | AC90: =ROUNDUP(IF(OR(Q90=$Z$17,Q90=$Z$19,Q90=$Z$15),SUM(Z90:AA90),0),0) -> 0 | AD90: =ROUNDUP(IF(OR(Q90=$Z$18,Q90=$Z$20,Q90=$Z$16),SUM(Z90:AA90),0),0) -> 0 | AE90: =ROUNDUP(IF(OR(Q90=$Z$20,Q90=$Z$16),SUM(Z90:AA90)*5*1.03,IF(Q90=$Z$18,(AA90+Z90)*5*1.03+AH90,0)),0) -> 0 | AF90: =ROUNDUP(IF($AE$6=1,U90/1000*V90/1000*T90*1.03,0),1) -> 0.0 | AG90: =IF(Q90=$Z$18,INDEX($AH$307:$AI$339,MATCH(V90,$AG$307:$AG$339,0),2),IF(Q90=$Z$17,INDEX($AK$307:$AL$341,MATCH(V90,$AJ$307:$AJ$341,0),2),0)) -> 0 | AH90: =IF($W90=$Y$39,0,IF(AG90=0,0,ROUNDUP(7*T90*U90/1000*1.03,0))) -> 0 | AI90: =IF(Q90=$Z$18,INDEX($AH$307:$AI$339,MATCH(V90,$AG$307:$AG$339,0),1),IF(Q90=$Z$17,INDEX($AK$307:$AL$341,MATCH(V90,$AJ$307:$AJ$341,0),1),0)) -> 0 | AJ90: =AH90 -> 0 | AK90: =IF(Q90=$Z$18,INDEX($AO$306:$AP$323,MATCH(V90,$AN$306:$AN$323,0),2),IF(Q90=$Z$17,INDEX($AR$306:$AS$323,MATCH(V90,$AQ$306:$AQ$323,0),2),0)) -> 0 | AL90: 0 | AN90: =IFERROR(MATCH(Q90,$Z$15:$Z$20,0),0) -> 0
B91: =SUBTOTAL(3,$I$83:I91) -> 0 | C91: Телескопический крепеж ТехноНИКОЛЬ | F91: 150 | G91: мм | I91: 0 | J91: шт. | L91: 0.00 | N91: 0 | Y91: =T91*(430+R91+S91)/1000 -> 0 | Z91: =T91 -> 0 | AA91: =T91 -> 0 | AB91: =IF(SUM(R91:S91)>U91,IF(Q91=$Z$16,((R91+S91)/1000*T91),IF(Q91=$Z$18,((R91+S91-U91)/1000*T91),IF(Q91=$Z$19,((V91+U91)/1000*T91),IF(Q91=$Z$20,((R91+S91+V91)/1000*T91),0)))),0) -> 0 | AC91: =ROUNDUP(IF(OR(Q91=$Z$17,Q91=$Z$19,Q91=$Z$15),SUM(Z91:AA91),0),0) -> 0 | AD91: =ROUNDUP(IF(OR(Q91=$Z$18,Q91=$Z$20,Q91=$Z$16),SUM(Z91:AA91),0),0) -> 0 | AE91: =ROUNDUP(IF(OR(Q91=$Z$20,Q91=$Z$16),SUM(Z91:AA91)*5*1.03,IF(Q91=$Z$18,(AA91+Z91)*5*1.03+AH91,0)),0) -> 0 | AF91: =ROUNDUP(IF($AE$6=1,U91/1000*V91/1000*T91*1.03,0),1) -> 0.0 | AG91: =IF(Q91=$Z$18,INDEX($AH$307:$AI$339,MATCH(V91,$AG$307:$AG$339,0),2),IF(Q91=$Z$17,INDEX($AK$307:$AL$341,MATCH(V91,$AJ$307:$AJ$341,0),2),0)) -> 0 | AH91: =IF($W91=$Y$39,0,IF(AG91=0,0,ROUNDUP(7*T91*U91/1000*1.03,0))) -> 0 | AI91: =IF(Q91=$Z$18,INDEX($AH$307:$AI$339,MATCH(V91,$AG$307:$AG$339,0),1),IF(Q91=$Z$17,INDEX($AK$307:$AL$341,MATCH(V91,$AJ$307:$AJ$341,0),1),0)) -> 0 | AJ91: =AH91 -> 0 | AK91: =IF(Q91=$Z$18,INDEX($AO$306:$AP$323,MATCH(V91,$AN$306:$AN$323,0),2),IF(Q91=$Z$17,INDEX($AR$306:$AS$323,MATCH(V91,$AQ$306:$AQ$323,0),2),0)) -> 0 | AL91: 0 | AN91: =IFERROR(MATCH(Q91,$Z$15:$Z$20,0),0) -> 0
B92: =SUBTOTAL(3,$I$83:I92) -> 0 | C92: Телескопический крепеж ТехноНИКОЛЬ | F92: 170 | G92: мм | I92: 0 | J92: шт. | L92: 0.00 | N92: 0 | Y92: =T92*(430+R92+S92)/1000 -> 0 | Z92: =T92 -> 0 | AA92: =T92 -> 0 | AB92: =IF(SUM(R92:S92)>U92,IF(Q92=$Z$16,((R92+S92)/1000*T92),IF(Q92=$Z$18,((R92+S92-U92)/1000*T92),IF(Q92=$Z$19,((V92+U92)/1000*T92),IF(Q92=$Z$20,((R92+S92+V92)/1000*T92),0)))),0) -> 0 | AC92: =ROUNDUP(IF(OR(Q92=$Z$17,Q92=$Z$19,Q92=$Z$15),SUM(Z92:AA92),0),0) -> 0 | AD92: =ROUNDUP(IF(OR(Q92=$Z$18,Q92=$Z$20,Q92=$Z$16),SUM(Z92:AA92),0),0) -> 0 | AE92: =ROUNDUP(IF(OR(Q92=$Z$20,Q92=$Z$16),SUM(Z92:AA92)*5*1.03,IF(Q92=$Z$18,(AA92+Z92)*5*1.03+AH92,0)),0) -> 0 | AF92: =ROUNDUP(IF($AE$6=1,U92/1000*V92/1000*T92*1.03,0),1) -> 0.0 | AG92: =IF(Q92=$Z$18,INDEX($AH$307:$AI$339,MATCH(V92,$AG$307:$AG$339,0),2),IF(Q92=$Z$17,INDEX($AK$307:$AL$341,MATCH(V92,$AJ$307:$AJ$341,0),2),0)) -> 0 | AH92: =IF($W92=$Y$39,0,IF(AG92=0,0,ROUNDUP(7*T92*U92/1000*1.03,0))) -> 0 | AI92: =IF(Q92=$Z$18,INDEX($AH$307:$AI$339,MATCH(V92,$AG$307:$AG$339,0),1),IF(Q92=$Z$17,INDEX($AK$307:$AL$341,MATCH(V92,$AJ$307:$AJ$341,0),1),0)) -> 0 | AJ92: =AH92 -> 0 | AK92: =IF(Q92=$Z$18,INDEX($AO$306:$AP$323,MATCH(V92,$AN$306:$AN$323,0),2),IF(Q92=$Z$17,INDEX($AR$306:$AS$323,MATCH(V92,$AQ$306:$AQ$323,0),2),0)) -> 0 | AL92: 0 | AN92: =IFERROR(MATCH(Q92,$Z$15:$Z$20,0),0) -> 0
B93: =SUBTOTAL(3,$I$83:I93) -> 1 | C93: Телескопический крепеж ТехноНИКОЛЬ | F93: 180 | G93: мм | I93: 12002 | J93: шт. | L93: 0.00 | N93: 1 | Q93: =IF(V3=Y4,"Примыкания к вертикальным стенам"," ") -> Примыкания к вертикальным стенам | Y93: Примыкания к вертикальным поверхностям стен и другим конструкциям | AF93: ОБЪЕМ УТЕПЛ | AG93: САМОРЕЗ КУ | AI93: ТЕЛЕСКОП КУ | AK93: САМОРЕЗ КР
B94: =SUBTOTAL(3,$I$83:I94) -> 1 | C94: Телескопический крепеж ТехноНИКОЛЬ | F94: 200 | G94: мм | I94: 0 | J94: шт. | L94: 0.00 | N94: 0 | Q94: НАЗВАНИЕ | R94: =IF(V3=Y4,"ТИПЫ"," ") -> ТИПЫ | S94: =IF(V3=Y4,"ВЫСОТА, мм"," ") -> ВЫСОТА, мм | T94: =IF(V3=Y4,"ДЛИНА, м"," ") -> ДЛИНА, м | U94: Н утепл, мм | V94: толщ., мм | W94: марка ут. | Y94: ПГ | Z94: ДПР | AA94: ДКР | AB94: ГнП | AC94: СМРЗ. МЕТ | AD94: СМРЗ БЕТ. | AE94: АНКЕР, шт | AG94: размер | AH94: кол-во, шт | AI94: размер | AJ94: кол-во, шт | AK94: размер | AL94: кол-во, шт
B95: =SUBTOTAL(3,$I$83:I95) -> 1 | C95: Телескопический крепеж ТехноНИКОЛЬ | F95: 220 | G95: мм | I95: 0 | J95: шт. | L95: 0.00 | N95: 0 | Q95: 1 | R95: Ж/Б+ТЕПЛО | S95: 600 | T95: 21 | U95: 500 | V95: 50 | W95: ТЕХНОРУФ Н ПРОФ | Y95: =(380+S95)/1000*T95 -> 20.58 | Z95: =T95 -> 21 | AA95: =T95 -> 21 | AB95: =IF(S95>=U95,IF(R95=$Z$16,S95/1000*T95,IF(R95=$Z$18,(S95-U95)/1000*T95,IF(R95=$Z$19,(U95+V95)/1000*T95,IF(R95=$Z$20,(S95+V95)/1000*T95,0)))),0) -> 2.1 | AC95: =ROUNDUP(IF(OR(R95=$Z$15,R95=$Z$17,R95=$Z$19),SUM(Z95:AA95),0),0) -> 0 | AD95: =ROUNDUP(IF(OR(R95=$Z$16,R95=$Z$18,R95=$Z$20),SUM(Z95:AA95),0),0) -> 42 | AE95: =ROUNDUP(IF(OR(R95=$Z$20,R95=$Z$16),SUM(Z95:AA95)*5*1.03,IF(R95=$Z$18,((AA95+Z95)*5*1.03+AH95),0)),0) -> 293 | AF95: =ROUNDUP(IF($AE$7=1,U95/1000*V95/1000*T95*1.03,0),1) -> 0.6 | AG95: =IF(R95=$Z$18,INDEX($AH$307:$AI$339,MATCH(V95,$AG$307:$AG$339,0),2),IF(R95=$Z$17,INDEX($AK$307:$AL$341,MATCH(V95,$AJ$307:$AJ$341,0),2),0)) -> 100 | AH95: =IF($W95=$Y$39,0,IF(AG95=0,0,ROUNDUP(7*T95*U95/1000*1.03,0))) -> 76 | AI95: =IF(R95=$Z$18,INDEX($AH$307:$AI$339,MATCH(V95,$AG$307:$AG$339,0),1),IF(R95=$Z$17,INDEX($AK$307:$AL$341,MATCH(V95,$AJ$307:$AJ$341,0),1),0)) -> 20 | AJ95: =AH95 -> 76 | AK95: =IF(R95=$Z$18,INDEX($AO$306:$AP$323,MATCH(V95,$AN$306:$AN$323,0),2),IF(R95=$Z$17,INDEX($AR$306:$AS$323,MATCH(V95,$AQ$306:$AQ$323,0),2),0)) -> 100 | AL95: 0 | AN95: =IFERROR(MATCH(R95,$Z$15:$Z$20,0),0) -> 4
B96: =SUBTOTAL(3,$I$83:I96) -> 1 | C96: Телескопический крепеж ТехноНИКОЛЬ | F96: 240 | G96: мм | I96: 0 | J96: шт. | L96: 0.00 | N96: 0 | Q96: 2 | R96: МЕТ+ТЕПЛО | S96: 600 | T96: =ПР-T95-S101-T97 -> 45.9 | U96: 500 | V96: 50 | W96: ТЕХНОРУФ Н ПРОФ | Y96: =(380+S96)/1000*T96 -> 44.982 | Z96: =T96 -> 45.9 | AA96: =T96 -> 45.9 | AB96: =IF(S96>=U96,IF(R96=$Z$16,S96/1000*T96,IF(R96=$Z$18,(S96-U96)/1000*T96,IF(R96=$Z$19,(U96+V96)/1000*T96,IF(R96=$Z$20,(S96+V96)/1000*T96,0)))),0) -> 0 | AC96: =ROUNDUP(IF(OR(R96=$Z$15,R96=$Z$17,R96=$Z$19),SUM(Z96:AA96),0),0) -> 92 | AD96: =ROUNDUP(IF(OR(R96=$Z$16,R96=$Z$18,R96=$Z$20),SUM(Z96:AA96),0),0) -> 0 | AE96: =ROUNDUP(IF(OR(R96=$Z$20,R96=$Z$16),SUM(Z96:AA96)*5*1.03,IF(R96=$Z$18,((AA96+Z96)*5*1.03+AH96),0)),0) -> 0 | AF96: =ROUNDUP(IF($AE$7=1,U96/1000*V96/1000*T96*1.03,0),1) -> 1.2 | AG96: =IF(R96=$Z$18,INDEX($AH$307:$AI$339,MATCH(V96,$AG$307:$AG$339,0),2),IF(R96=$Z$17,INDEX($AK$307:$AL$341,MATCH(V96,$AJ$307:$AJ$341,0),2),0)) -> 70 | AH96: =IF($W96=$Y$39,0,IF(AG96=0,0,ROUNDUP(7*T96*U96/1000*1.03,0))) -> 166 | AI96: =IF(R96=$Z$18,INDEX($AH$307:$AI$339,MATCH(V96,$AG$307:$AG$339,0),1),IF(R96=$Z$17,INDEX($AK$307:$AL$341,MATCH(V96,$AJ$307:$AJ$341,0),1),0)) -> 20 | AJ96: =AH96 -> 166 | AK96: =IF(R96=$Z$18,INDEX($AO$306:$AP$323,MATCH(V96,$AN$306:$AN$323,0),2),IF(R96=$Z$17,INDEX($AR$306:$AS$323,MATCH(V96,$AQ$306:$AQ$323,0),2),0)) -> 80 | AL96: 0 | AN96: =IFERROR(MATCH(R96,$Z$15:$Z$20,0),0) -> 3
B97: =SUBTOTAL(3,$I$83:I97) -> 1 | C97: Телескопический крепеж ТехноНИКОЛЬ | F97: 260 | G97: мм | I97: 0 | J97: шт. | L97: 0.00 | N97: 0 | Q97: 3 | R97: МЕТ | S97: 500 | T97: 35.1 | Y97: =(380+S97)/1000*T97 -> 30.888 | Z97: =T97 -> 35.1 | AA97: =T97 -> 35.1 | AB97: =IF(S97>=U97,IF(R97=$Z$16,S97/1000*T97,IF(R97=$Z$18,(S97-U97)/1000*T97,IF(R97=$Z$19,(U97+V97)/1000*T97,IF(R97=$Z$20,(S97+V97)/1000*T97,0)))),0) -> 0 | AC97: =ROUNDUP(IF(OR(R97=$Z$15,R97=$Z$17,R97=$Z$19),SUM(Z97:AA97),0),0) -> 71 | AD97: =ROUNDUP(IF(OR(R97=$Z$16,R97=$Z$18,R97=$Z$20),SUM(Z97:AA97),0),0) -> 0 | AE97: =ROUNDUP(IF(OR(R97=$Z$20,R97=$Z$16),SUM(Z97:AA97)*5*1.03,IF(R97=$Z$18,((AA97+Z97)*5*1.03+AH97),0)),0) -> 0 | AF97: =ROUNDUP(IF($AE$7=1,U97/1000*V97/1000*T97*1.03,0),1) -> 0.0 | AG97: =IF(R97=$Z$18,INDEX($AH$307:$AI$339,MATCH(V97,$AG$307:$AG$339,0),2),IF(R97=$Z$17,INDEX($AK$307:$AL$341,MATCH(V97,$AJ$307:$AJ$341,0),2),0)) -> 0 | AH97: =IF($W97=$Y$39,0,IF(AG97=0,0,ROUNDUP(7*T97*U97/1000*1.03,0))) -> 0 | AI97: =IF(R97=$Z$18,INDEX($AH$307:$AI$339,MATCH(V97,$AG$307:$AG$339,0),1),IF(R97=$Z$17,INDEX($AK$307:$AL$341,MATCH(V97,$AJ$307:$AJ$341,0),1),0)) -> 0 | AJ97: =AH97 -> 0 | AK97: =IF(R97=$Z$18,INDEX($AO$306:$AP$323,MATCH(V97,$AN$306:$AN$323,0),2),IF(R97=$Z$17,INDEX($AR$306:$AS$323,MATCH(V97,$AQ$306:$AQ$323,0),2),0)) -> 0 | AL97: 0 | AN97: =IFERROR(MATCH(R97,$Z$15:$Z$20,0),0) -> 1
B98: =SUBTOTAL(3,$I$83:I98) -> 1 | C98: Телескопический крепеж ТехноНИКОЛЬ | F98: 300 | G98: мм | I98: 0 | J98: шт. | L98: 0.00 | N98: 0 | Y98: =(380+S98)/1000*T98 -> 0 | Z98: =T98 -> 0 | AA98: =T98 -> 0 | AB98: =IF(S98>=U98,IF(R98=$Z$16,S98/1000*T98,IF(R98=$Z$18,(S98-U98)/1000*T98,IF(R98=$Z$19,(U98+V98)/1000*T98,IF(R98=$Z$20,(S98+V98)/1000*T98,0)))),0) -> 0 | AC98: =ROUNDUP(IF(OR(R98=$Z$15,R98=$Z$17,R98=$Z$19),SUM(Z98:AA98),0),0) -> 0 | AD98: =ROUNDUP(IF(OR(R98=$Z$16,R98=$Z$18,R98=$Z$20),SUM(Z98:AA98),0),0) -> 0 | AE98: =ROUNDUP(IF(OR(R98=$Z$20,R98=$Z$16),SUM(Z98:AA98)*5*1.03,IF(R98=$Z$18,((AA98+Z98)*5*1.03+AH98),0)),0) -> 0 | AF98: =ROUNDUP(IF($AE$7=1,U98/1000*V98/1000*T98*1.03,0),1) -> 0.0 | AG98: =IF(R98=$Z$18,INDEX($AH$307:$AI$339,MATCH(V98,$AG$307:$AG$339,0),2),IF(R98=$Z$17,INDEX($AK$307:$AL$341,MATCH(V98,$AJ$307:$AJ$341,0),2),0)) -> 0 | AH98: =IF($W98=$Y$39,0,IF(AG98=0,0,ROUNDUP(7*T98*U98/1000*1.03,0))) -> 0 | AI98: =IF(R98=$Z$18,INDEX($AH$307:$AI$339,MATCH(V98,$AG$307:$AG$339,0),1),IF(R98=$Z$17,INDEX($AK$307:$AL$341,MATCH(V98,$AJ$307:$AJ$341,0),1),0)) -> 0 | AJ98: =AH98 -> 0 | AK98: =IF(R98=$Z$18,INDEX($AO$306:$AP$323,MATCH(V98,$AN$306:$AN$323,0),2),IF(R98=$Z$17,INDEX($AR$306:$AS$323,MATCH(V98,$AQ$306:$AQ$323,0),2),0)) -> 0 | AL98: 0 | AN98: =IFERROR(MATCH(R98,$Z$15:$Z$20,0),0) -> 0
B99: =SUBTOTAL(3,$I$83:I99) -> 1 | C99: Телескопический крепеж ТехноНИКОЛЬ | F99: 350 | G99: мм | I99: 0 | J99: шт. | L99: 0.00 | N99: 0 | Q99: =IF(V3=Y4,"Открытый водосток"," ") -> Открытый водосток | Y99: Открытый водосток
B100: =SUBTOTAL(3,$I$83:I100) -> 1 | C100: Телескопический крепеж | F100: 425 | G100: мм | I100: =IF(OR($V$4=$AA$10,$V$4=$AA$11),SUMIF($D$225:$D$295,F100,$I$225:$I$295),SUMIF($D$137:$D$216,F100,$L$137:$L$216)) -> 0 | J100: шт. | L100: =I100*K100 -> 0.00 | N100: 0 | Q100: НАЗВАНИЕ | R100: =IF(V3=Y4,"ТИПЫ"," ") -> ТИПЫ | S100: =IF(V3=Y4,"ДЛИНА, м"," ") -> ДЛИНА, м | Y100: ПГ | Z100: ТЭ | AA100: СМРЗ. МЕТ | AB100: СМРЗ БЕТ. | AC100: АНКЕР, шт
C101: Саморезы | L101: =SUM(L102:L113) -> 0.00 | N101: =IF(SUM(I102:I113)>0,1,0) -> 1 | Q101: 1 | R101: МЕТ | S101: 304 | Y101: =S101*300/1000 -> 91.2 | Z101: =S101 -> 304 | AA101: =ROUNDUP(IF(R101=$Z$15,SUM(Z101),0),0) -> 304 | AB101: =ROUNDUP(IF(R101=$Z$16,SUM(Z101),0),0) -> 0 | AC101: =ROUNDUP(IF(OR(R101=$Z$16,R101=$Z$18),SUM(Z101)*5*1.03,0),0) -> 0 | AN101: =IFERROR(MATCH(R101,$Z$15:$Z$20,0),0) -> 1
B102: =SUBTOTAL(3,$I$83:I102) -> 1 | C102: =IF(AND(R4=Y7,V4=AA7),"Саморез остроконечный ТехноНИКОЛЬ 6,3х","Саморез остроконечный ТехноНИКОЛЬ 4,8х") -> Саморез остроконечный ТехноНИКОЛЬ 4,8х | F102: =IF(C102="Саморез остроконечный ТехноНИКОЛЬ 6,3х",110,50) -> 50 | G102: мм | I102: =IF(AND($V$4=$AA$10,$V$3=$Y$4),(SUMIF($E$225:$E$295,F102,$I$225:$I$295)+ROUNDUP(ПЛ*U12,0)),IF($V$4=$AA$11,SUMIF($E$225:$E$295,F102,$I$225:$I$295),IF(AND($R$4=$Y$9,$V$4=$AA$6),ПЛ*$U$12,IF(AND($R$4=$Y$10,$V$4=$AA$6),ПЛ*$U$12,SUMIF($E$137:$E$216,F102,$L$137:$L$216))))) -> 0 | J102: шт. | L102: =I102*K102 -> 0.00 | N102: =IF(I102>0,1,0) -> 0
B103: =SUBTOTAL(3,$I$83:I103) -> 1 | C103: =IF(AND(R4=Y7,V4=AA7),"Саморез остроконечный ТехноНИКОЛЬ 6,3х",IF(R4=Y7,"Саморез остроконечный ТехноНИКОЛЬ 4,8х","Саморез сверлоконечный ТехноНИКОЛЬ 4,8х")) -> Саморез сверлоконечный ТехноНИКОЛЬ 4,8х | F103: =IF(C103="Саморез остроконечный ТехноНИКОЛЬ 6,3х",90,60) -> 60 | G103: мм | I103: =IF(OR($V$4=$AA$10,$V$4=$AA$11),SUMIF($E$225:$E$295,F103,$I$225:$I$295),SUMIF($E$137:$E$216,F103,$L$137:$L$216))+IF($AK$24>0,SUMIF($AK$25,$F$103,$AK$26),0) -> 0 | J103: шт. | L103: 0.00 | N103: 0 | P103: =IF(V3=Y4,"НАЗВАНИЕ ПАРАПЕТА"," ") -> НАЗВАНИЕ ПАРАПЕТА
B104: =SUBTOTAL(3,$I$83:I104) -> 1 | C104: =IF(R4=Y7,"Саморез остроконечный ТехноНИКОЛЬ 4,8х","Саморез сверлоконечный ТехноНИКОЛЬ 4,8х") -> Саморез сверлоконечный ТехноНИКОЛЬ 4,8х | F104: 70 | G104: мм | I104: =IF(OR($V$4=$AA$10,$V$4=$AA$11),SUMIF($E$225:$E$295,F104,$I$225:$I$295),SUMIF($E$137:$E$216,F104,$L$137:$L$216))+IF($AK$24>0,SUMIF($AK$25,$F$104,$AK$26),0) -> 0 | J104: шт. | L104: 0.00 | N104: 0 | P104: =IF(V3=Y4,"ПГ_ВЕРХ"," ") -> ПГ_ВЕРХ | R104: =IF(V3=Y4,"ТЭ"," ") -> ТЭ | T104: =IF(V3=Y4,"АНКЕР"," ") -> АНКЕР
B105: =SUBTOTAL(3,$I$83:I105) -> 2 | C105: =IF(AND(R4=Y7,V4=AA7),"Саморез остроконечный ТехноНИКОЛЬ 6,3х",IF(R4=Y7,"Саморез остроконечный ТехноНИКОЛЬ 4,8х","Саморез сверлоконечный ТехноНИКОЛЬ 4,8х")) -> Саморез сверлоконечный ТехноНИКОЛЬ 4,8х | F105: 80 | G105: мм | I105: =IF(OR($V$4=$AA$10,$V$4=$AA$11),SUMIF($E$225:$E$295,F105,$I$225:$I$295),SUMIF($E$137:$E$216,F105,$L$137:$L$216))+IF($AK$24>0,SUMIF($AK$25,$F$105,$AK$26),0) -> 12002 | J105: шт. | L105: 0.00 | N105: 1 | P105: =IF(V3=Y4,"ДКР"," ") -> ДКР | R105: =IF(V3=Y4,"ГнП"," ") -> ГнП | T105: =IF(V3=Y4,"СМРЗ. БЕТ"," ") -> СМРЗ. БЕТ
B106: =SUBTOTAL(3,$I$83:I106) -> 2 | C106: =IF(R4=Y7,"Саморез остроконечный ТехноНИКОЛЬ 4,8х","Саморез сверлоконечный ТехноНИКОЛЬ 4,8х") -> Саморез сверлоконечный ТехноНИКОЛЬ 4,8х | F106: 100 | G106: мм | I106: =IF(OR($V$4=$AA$10,$V$4=$AA$11),SUMIF($E$225:$E$295,F106,$I$225:$I$295),SUMIF($E$137:$E$216,F106,$L$137:$L$216))+IF($AK$24>0,SUMIF($AK$25,$F$106,$AK$26),0) -> 0 | J106: шт. | L106: 0.00 | N106: 0 | P106: =IF(V3=Y4,"ДПР"," ") -> ДПР | R106: =IF(V3=Y4,"СМРЗ. МЕТ"," ") -> СМРЗ. МЕТ | T106: =IF(V3=Y4,"ПВХ МЕТ."," ") -> ПВХ МЕТ.
B107: =SUBTOTAL(3,$I$83:I107) -> 2 | C107: Саморез сверлоконечный ТехноНИКОЛЬ 4,8х | F107: 120 | G107: мм | I107: =IF(OR($V$4=$AA$10,$V$4=$AA$11),SUMIF($E$225:$E$295,F107,$I$225:$I$295),SUMIF($E$137:$E$216,F107,$L$137:$L$216))+IF($AK$24>0,SUMIF($AK$25,$F$107,$AK$26),0) -> 0 | J107: шт. | L107: 0.00 | N107: 0
B108: =SUBTOTAL(3,$I$83:I108) -> 2 | C108: Саморез сверлоконечный ТехноНИКОЛЬ 4,8х | F108: 160 | G108: мм | I108: =IF(OR($V$4=$AA$10,$V$4=$AA$11),SUMIF($E$225:$E$295,F108,$I$225:$I$295),SUMIF($E$137:$E$216,F108,$L$137:$L$216))+IF($AK$24>0,SUMIF($AK$25,$F$108,$AK$26),0) -> 0 | J108: шт. | L108: 0.00 | N108: 0 | P108: Воронка водоприемная | R108: Воронка с обжимным металлическим фланцем с обогревом 110х720 мм | U108: шт | V108: =HYPERLINK("#"&$AB$5&"!B22","⇑ ") -> ⇑
B109: =SUBTOTAL(3,$I$83:I109) -> 2 | C109: Саморез сверлоконечный ТехноНИКОЛЬ 4,8х | F109: 200 | G109: мм | I109: =IF(OR($V$4=$AA$10,$V$4=$AA$11),SUMIF($E$225:$E$295,F109,$I$225:$I$295),SUMIF($E$137:$E$216,F109,$L$137:$L$216)) -> 0 | J109: шт. | L109: 0.00 | N109: 0 | P109: Воронка водоприемная | R109: парапетная | U109: шт
B110: =SUBTOTAL(3,$I$83:I110) -> 2 | C110: Саморез 4,8х | F110: 140 | G110: мм | I110: 0 | J110: шт. | L110: 0.00 | N110: 0 | P110: Дорожки пешеходные | R110: ПВХ Logicroof Walkway Puzzle | T110: 293 | U110: =IF(R110=AA14,"-","м.п") -> м.п
B111: =SUBTOTAL(3,$I$83:I111) -> 2 | C111: Саморез 4,8х | F111: 180 | G111: мм | I111: 0 | J111: шт. | L111: 0.00 | N111: 0 | P111: Огнезащитный материал | R111: LOGICROOF NG | U111: =IF(R111=AA17,"-","м2") -> м2
B112: =SUBTOTAL(3,$I$83:I112) -> 2 | C112: Саморез 4,8х | F112: 240 | G112: мм | I112: 0 | J112: шт. | L112: 0.00 | N112: 0 | P112: ПВХ угол ТехноНИКОЛЬ* | R112: Внутренний | T112: 2 | U112: шт
B113: =SUBTOTAL(3,$I$83:I113) -> 2 | C113: Саморез 4,8х | F113: 300 | G113: мм | I113: 0 | J113: шт. | L113: 0.00 | N113: 0 | P113: ПВХ угол ТехноНИКОЛЬ*, | R113: Внешний | T113: 22 | U113: шт
C114: Анкерный элемент | L114: =SUM(L115) -> 0.00 | N114: =IF(I115>0,1,0) -> 0
B115: =SUBTOTAL(3,$I$83:I115) -> 2 | C115: Анкерный элемент ТехноНИКОЛЬ | E115: 8х | F115: 45 | G115: мм | I115: =IF(AND($R$4=$Y$7,OR($V$4=$Y$12,$V$4=$AA$8,$V$4=$AA$9)),SUM($L$137:$L$216),IF(AND($R$4=$Y$9,$V$4=$AA$6),ПЛ*$U$12,IF($V$4=$AA$7,SUMIF($F$137:$H$216,"8х45",$L$137:$L$216),IF(AND($R$4=$Y$7),SUMIF(F225:H295,"8х45",I225:I295),0)))) -> 0 | J115: шт. | L115: =I115*K115 -> 0.00 | N115: =IF(I115>0,1,0) -> 0
C116: =IF(F116=" "," ","Толщина основного слоя утеплителя") -> Толщина основного слоя утеплителя | F116: =IF(R3=0," ",R3) -> 220 | G116: =IF(F116=" "," ","мм") -> мм | N116: =IF($V$4="НЕТ",0,1) -> 1
C117: =IFERROR(IF(SUM(J138:J216)>0,"** Количество крепежа дано с учетом закрепления мембраны, над клиновидной теплоизоляцией"," "),"") ->  | N117: =IF($V$4="НЕТ",0,1) -> 1
B118: =IFERROR(IF(MATCH("НЕТ ДАННЫХ",D137:D176,0)>0,"Внимание, на данной странице показан не весь необходимый крепеж, высота закрепления клиновидной теплоизоляции превышает асортимент телескопического крепежа компании ТехноНИКОЛЬ, смотри таблицу группировки крепежа, по позициям НЕТ ДАННЫХ."," ")," ") ->  | N118: =IF($V$4="НЕТ",0,1) -> 1
N119: =IF($V$4="НЕТ",0,1) -> 1
C120: =IF(OR(T3=Y14,T4=Y20,T4=Y22),"Альбом с примерами раскладки клиновидной теплоизоляции из каменной ваты можно скачать по этой ссылке","") ->  | N120: =IF($C$120="",0,1) -> 0
N121: =IF($C$120="",0,1) -> 0
N122: =IF($C$120="",0,1) -> 0
C123: =IF(OR(T3=Y16,T4=Y23,T4=Y27),"Альбом с примерами раскладки клиновидной теплоизоляции из XPS можно скачать по этой ссылке","") ->  | N123: =IF($C$123="",0,1) -> 0
N124: =IF($C$123="",0,1) -> 0
N125: =IF($C$123="",0,1) -> 0
C126: =IF(OR(T3=Y18,T4=Y25),"Альбом с примерами раскладки клиновидной теплоизоляции из PIR можно скачать по этой ссылке","") ->  | N126: =IF($C$126="",0,1) -> 0
N127: =IF($C$126="",0,1) -> 0
N128: =IF($C$126="",0,1) -> 0
N129: =IF($V$4="НЕТ",0,1) -> 1
B130: Таблица группировки крепежа | G130: =номер_объекта -> 11-27ХХ-МПКПМКИ-12.21 | K130: =IF(K5=0," ",K5) -> Кровля (без участков в осях 7-9 / Ж-И и 12-14 / Ж-И) | N130: =IF($V$4="НЕТ",0,1) -> 1 | P130: =IF(V3=Y3,"Примыкание к парапету высотой более 500 мм"," ") ->  | U130: =HYPERLINK("#"&$AB$5&"!A36","⇑ ") -> ⇑ | Y130: Примыкание к парапету высотой более 500 мм
N131: =IF($V$4="НЕТ",0,1) -> 1 | O131: 1 | P131: НАЗВАНИЕ | Q131: =IF(V3=Y3,"ТИПЫ"," ") ->  | R131: =IF(V3=Y3,"ШИРИНА, мм"," ") ->  | S131: =IF(V3=Y3,"ВЫСОТА, мм"," ") ->  | T131: =IF(V3=Y3,"ДЛИНА, м"," ") ->  | U131: Н утепл., мм | V131: толщина, мм | W131: марка утеплителя | Y131: ПГ | AA131: ДПР | AB131: СМРЗ. МЕТ | AC131: СМРЗ БЕТ. | AD131: АНКЕР, шт | AE131: ПРАЙМЕР | AF131: ОБЪЕМ УТЕПЛ | AG131: САМОРЕЗ КУ | AI131: ТЕЛЕСКОП КУ | AK131: САМОРЕЗ КР | AN131: Тип примыканий
N132: 1 | Y132: ВЕРХ | Z132: НИЗ | AG132: размер | AH132: кол-во, шт | AI132: размер | AJ132: кол-во, шт | AK132: размер | AL132: кол-во, шт | AN132: В Примечания
B133: № | C133: Толщина утеплителя, мм | D133: Телескопи- ческий крепеж, мм. | E133: Саморез, мм. | F133: Анкерный элемент мм. | I133: Крепление теплоизо-ляции*, шт. | J133: Крепление гидроизоляции**, шт. | L133: Общее количество крепежа, шт. | N133: 1 | Y133: =T133*(500+R133+S133)/1000 -> 0 | Z133: =650*T133/1000 -> 0 | AA133: 0 | AB133: =ROUNDUP(IF(OR(Q133=$Z$15,Q133=$Z$17,Q133=$Z$18),AA133,0),0) -> 0 | AC133: =ROUNDUP(IF(Q133=$Z$16,AA133,0),0) -> 0 | AD133: =ROUNDUP(IF(Q133=$Z$16,AA133*5*1.03,0),0) -> 0 | AE133: =IF(Q133=$Z$15,0,IF(Q133=$Z$17,(T133*(U133+V133)/1000),Y133)) -> 0 | AF133: =ROUNDUP(IF($AF$5=1,U133/1000*V133/1000*T133*1.03,0),1) -> 0.0 | AG133: нет | AI133: нет | AK133: нет | AN133: =IFERROR(MATCH(Q133,$Z$15:$Z$20,0),0) -> 0
N134: 1 | Y134: =T134*(500+R134+S134)/1000 -> 0 | Z134: =650*T134/1000 -> 0 | AA134: 0 | AB134: =ROUNDUP(IF(OR(Q134=$Z$15,Q134=$Z$17,Q134=$Z$18),AA134,0),0) -> 0 | AC134: =ROUNDUP(IF(Q134=$Z$16,AA134,0),0) -> 0 | AD134: =ROUNDUP(IF(Q134=$Z$16,AA134*5*1.03,0),0) -> 0 | AE134: =IF(Q134=$Z$15,0,IF(Q134=$Z$17,(T134*(U134+V134)/1000),Y134)) -> 0 | AF134: =ROUNDUP(IF($AF$5=1,U134/1000*V134/1000*T134*1.03,0),1) -> 0.0 | AN134: =IFERROR(MATCH(Q134,$Z$15:$Z$20,0),0) -> 0
N135: 1 | Y135: =T135*(500+R135+S135)/1000 -> 0 | Z135: =650*T135/1000 -> 0 | AA135: 0 | AB135: =ROUNDUP(IF(OR(Q135=$Z$15,Q135=$Z$17,Q135=$Z$18),AA135,0),0) -> 0 | AC135: =ROUNDUP(IF(Q135=$Z$16,AA135,0),0) -> 0 | AD135: =ROUNDUP(IF(Q135=$Z$16,AA135*5*1.03,0),0) -> 0 | AE135: =IF(Q135=$Z$15,0,IF(Q135=$Z$17,(T135*(U135+V135)/1000),Y135)) -> 0 | AF135: =ROUNDUP(IF($AF$5=1,U135/1000*V135/1000*T135*1.03,0),1) -> 0.0 | AN135: =IFERROR(MATCH(Q135,$Z$15:$Z$20,0),0) -> 0
B136: 1 | C136: 2 | D136: 3 | E136: 4 | F136: 5 | I136: 6 | J136: 7 | L136: 8 | N136: 1 | Y136: =T136*(500+R136+S136)/1000 -> 0 | Z136: =650*T136/1000 -> 0 | AA136: 0 | AB136: =ROUNDUP(IF(OR(Q136=$Z$15,Q136=$Z$17,Q136=$Z$18),AA136,0),0) -> 0 | AC136: =ROUNDUP(IF(Q136=$Z$16,AA136,0),0) -> 0 | AD136: =ROUNDUP(IF(Q136=$Z$16,AA136*5*1.03,0),0) -> 0 | AE136: =IF(Q136=$Z$15,0,IF(Q136=$Z$17,(T136*(U136+V136)/1000),Y136)) -> 0 | AF136: =ROUNDUP(IF($AF$5=1,U136/1000*V136/1000*T136*1.03,0),1) -> 0.0 | AN136: =IFERROR(MATCH(Q136,$Z$15:$Z$20,0),0) -> 0
B137: =SUBTOTAL(3,$I$137:I137) -> 1 | C137: =R3 -> 220 | D137: =IFERROR(IF(AND($R$4=$Y$7,$V$4=$AA$6),INDEX($AH$303:$AI$370,MATCH(_xlfn.CEILING.MATH(C137,10),$AG$303:$AG$370,0),1),IF(AND($R$4=$Y$7,$V$4=$AA$7),INDEX($AE$303:$AF$370,MATCH(_xlfn.CEILING.MATH(C137,10),$AD$303:$AD$370,0),1),IF(AND($R$4=$Y$8,$V$4=$AA$6),INDEX($AK$303:$AL$372,MATCH(_xlfn.CEILING.MATH(C137,10),$AJ$303:$AJ$372,0),1)," "))),"НЕТ ДАННЫХ") -> 180 | E137: =IFERROR(IF(AND($R$4=$Y$7,$V$4=$AA$6),INDEX($AH$303:$AI$370,MATCH(_xlfn.CEILING.MATH(C137,10),$AG$303:$AG$370,0),2),IF(AND($R$4=$Y$7,$V$4=$AA$7),INDEX($AE$303:$AF$370,MATCH(_xlfn.CEILING.MATH(C137,10),$AD$303:$AD$370,0),2),IF(AND($R$4=$Y$8,$V$4=$AA$6),INDEX($AK$303:$AL$372,MATCH(_xlfn.CEILING.MATH(C137,10),$AJ$303:$AJ$372,0),2)," "))),"НЕТ ДАННЫХ") -> 80 | F137: =IF(AND(OR($V$4=$Y$12,$V$4=$AA$8,$V$4=$AA$9),OR($R$4=$Y$7,$R$4=$Y$9)),"8х45",IF(AND($V$4=$AA$7,C137>300),"8х45",IF(AND($V$4=$AA$7,$AA$2=$AA$6),"8х45","не требуется"))) -> не требуется | I137: =ROUND(IF(AND($T$3=$Y$13,OR($V$4=$Y$12,$V$4=$AA$7),OR($R$4=$Y$7,$R$4=$Y$8),$V$5=$AD$22),(ПЛ-AF21)*3.06,IF(AND($T$3=$Y$13,OR($V$4=$Y$12,$V$4=$AA$7),OR($R$4=$Y$7,$R$4=$Y$8),$V$5=$AC$22),(ПЛ-AF21)*3,IF(AND(T3=Y13,OR($V$4=$Y$12,$V$4=$AA$7),OR($R$4=$Y$7,$R$4=$Y$8),$V$5=$AB$22),(ПЛ-AF21)*3,0))),0) -> 5130 | J137: =ROUND(IF(AND(T3=Y13,OR(V4=AA7,V4=Y12),$V$5=$AD$22),I137*U12/3.06,IF(AND(T3=Y13,OR(V4=Y12,V4=AA7),$V$5=$AC$22),I137*U12/3,IF(AND(T3=Y13,OR(V4=Y12,V4=AA7),$V$5=$AB$22),I137*U12/3,0))),0) -> 6840 | L137: =I137+J137+IF(AND($V$3=$Y$3,$T$3=$Y$6,$V$4<>$Y$13),($I$862*8+$I$864*4),IF(AND($V$3=$Y$4,$T$3=$Y$6,$V$4<>$Y$13),($I$971*8+$I$976*4),0)) -> 12002 | N137: =IF(I137>0,1,0) -> 1 | Y137: =T137*(500+R137+S137)/1000 -> 0 | Z137: =650*T137/1000 -> 0 | AA137: 0 | AB137: =ROUNDUP(IF(OR(Q137=$Z$15,Q137=$Z$17,Q137=$Z$18),AA137,0),0) -> 0 | AC137: =ROUNDUP(IF(Q137=$Z$16,AA137,0),0) -> 0 | AD137: =ROUNDUP(IF(Q137=$Z$16,AA137*5*1.03,0),0) -> 0 | AE137: =IF(Q137=$Z$15,0,IF(Q137=$Z$17,(T137*(U137+V137)/1000),Y137)) -> 0 | AF137: =ROUNDUP(IF($AF$5=1,U137/1000*V137/1000*T137*1.03,0),1) -> 0.0 | AN137: =IFERROR(MATCH(Q137,$Z$15:$Z$20,0),0) -> 0
B138: =SUBTOTAL(3,$I$137:I138) -> 1 | C138: =IF($T$5=$AA$12,P14,P14+$R$3) -> 0 | D138: =IFERROR(IF(AND($R$4=$Y$7,OR($V$4=$AA$8,$V$4=$AA$9,$V$4=$Y$12)),INDEX($AH$381:$AI$448,MATCH(_xlfn.CEILING.MATH(C138,10),$AG$381:$AG$448,0),1),IF(AND($R$4=$Y$7,$V$4=$AA$7),INDEX($AH$381:$AI$448,MATCH(_xlfn.CEILING.MATH(C138,10),$AG$381:$AG$448,0),1),IF(AND($R$4=$Y$8,OR($V$4=$AA$8,$V$4=$AA$9,$V$4=$Y$12)),INDEX($AK$381:$AL$449,MATCH(_xlfn.CEILING.MATH(C138,10),$AJ$381:$AJ$449,0),1)," "))),"НЕТ ДАННЫХ") -> ТЭ | E138: =IFERROR(IF(AND($R$4=$Y$7,OR($V$4=$AA$8,$V$4=$AA$9,$V$4=$Y$12)),INDEX($AH$381:$AI$448,MATCH(_xlfn.CEILING.MATH(C138,10),$AG$381:$AG$448,0),2),IF(AND($R$4=$Y$7,$V$4=$AA$7),INDEX($AH$381:$AI$448,MATCH(_xlfn.CEILING.MATH(C138,10),$AG$381:$AG$448,0),2),IF(AND($R$4=$Y$8,OR($V$4=$AA$8,$V$4=$AA$9,$V$4=$Y$12)),INDEX($AK$381:$AL$449,MATCH(_xlfn.CEILING.MATH(C138,10),$AJ$381:$AJ$449,0),2)," "))),"НЕТ ДАННЫХ") -> 70 | F138: не требуется | I138: =ROUND(Q14,0) -> 0 | J138: =ROUND(IFERROR(IF($V$4=$Y$11,0,IF($T$3=$Y$13,Q14/$AE$12*$U$12,Q14/$U$14*$U$12)),0),0) -> 0 | L138: =I138+J138+IF(AND($V$3=$Y$3,$T$3<>$Y$13,$V$4<>$Y$13),($I$862*8+$I$864*4),IF(AND($V$3=Y4,$T$3<>$Y$13,$V$4<>$Y$13),($I$971*8+$I$976*4),0)) -> 0 | N138: 0 | P138: =IF(V3=Y3,"Примыкание к парапету высотой менее 500 мм"," ") ->  | Y138: Примыкание к парапету высотой менее 500 мм
B139: =SUBTOTAL(3,$I$137:I139) -> 1 | C139: 0 | D139: =IFERROR(IF(AND($R$4=$Y$7,OR($V$4=$AA$8,$V$4=$AA$9,$V$4=$Y$12)),INDEX($AH$381:$AI$448,MATCH(_xlfn.CEILING.MATH(C139,10),$AG$381:$AG$448,0),1),IF(AND($R$4=$Y$7,$V$4=$AA$7),INDEX($AH$381:$AI$448,MATCH(_xlfn.CEILING.MATH(C139,10),$AG$381:$AG$448,0),1),IF(AND($R$4=$Y$8,OR($V$4=$AA$8,$V$4=$AA$9,$V$4=$Y$12)),INDEX($AK$381:$AL$449,MATCH(_xlfn.CEILING.MATH(C139,10),$AJ$381:$AJ$449,0),1)," "))),"НЕТ ДАННЫХ") -> ТЭ | E139: =IFERROR(IF(AND($R$4=$Y$7,OR($V$4=$AA$8,$V$4=$AA$9,$V$4=$Y$12)),INDEX($AH$381:$AI$448,MATCH(_xlfn.CEILING.MATH(C139,10),$AG$381:$AG$448,0),2),IF(AND($R$4=$Y$7,$V$4=$AA$7),INDEX($AH$381:$AI$448,MATCH(_xlfn.CEILING.MATH(C139,10),$AG$381:$AG$448,0),2),IF(AND($R$4=$Y$8,OR($V$4=$AA$8,$V$4=$AA$9,$V$4=$Y$12)),INDEX($AK$381:$AL$449,MATCH(_xlfn.CEILING.MATH(C139,10),$AJ$381:$AJ$449,0),2)," "))),"НЕТ ДАННЫХ") -> 70 | F139: не требуется | I139: =ROUND(Q15,0) -> 0 | J139: =ROUND(IFERROR(IF($V$4=$Y$11,0,IF($T$3=$Y$13,Q15/$AE$12*$U$12,Q15/$U$14*$U$12)),0),0) -> 0 | L139: =I139+J139 -> 0 | N139: 0 | P139: НАЗВАНИЕ | Q139: =IF(V3=Y3,"ТИПЫ"," ") ->  | R139: =IF(V3=Y3,"ШИРИНА, мм"," ") ->  | S139: =IF(V3=Y3,"ВЫСОТА, мм"," ") ->  | T139: =IF(V3=Y3,"ДЛИНА, м"," ") ->  | U139: Н утепл., мм | V139: толщина, мм | W139: марка утеплителя | Y139: ПГ | AA139: ДПР | AB139: СМРЗ. МЕТ | AC139: СМРЗ БЕТ. | AD139: АНКЕР, шт | AE139: ПРАЙМЕР | AF139: ОБЪЕМ УТЕПЛ | AG139: САМОРЕЗ КУ | AI139: ТЕЛЕСКОП КУ | AK139: САМОРЕЗ КР
B140: =SUBTOTAL(3,$I$137:I140) -> 1 | C140: 0 | D140: ТЭ | E140: 70 | F140: не требуется | I140: 0 | J140: 0 | L140: 0 | N140: 0 | Y140: ВЕРХ | Z140: НИЗ | AG140: размер | AH140: кол-во, шт | AI140: размер | AJ140: кол-во, шт | AK140: размер | AL140: кол-во, шт
B141: =SUBTOTAL(3,$I$137:I141) -> 1 | C141: 0 | D141: ТЭ | E141: 70 | F141: не требуется | I141: 0 | J141: 0 | L141: 0 | N141: 0 | Y141: =(350+R141+S141)/1000*T141 -> 0 | Z141: =(450+R141+S141)/1000*T141 -> 0 | AA141: НЕТ | AE141: =IF(Q141=$Z$15,0,IF(Q141=$Z$17,(T141*(U141+V141)/1000),Y141)) -> 0 | AF141: =ROUNDUP(IF($AF$6=1,U141/1000*V141/1000*T141*1.03,0),1) -> 0.0 | AG141: нет | AI141: нет | AK141: нет | AN141: =IFERROR(MATCH(Q141,$Z$15:$Z$20,0),0) -> 0
B142: =SUBTOTAL(3,$I$137:I142) -> 1 | C142: 0 | D142: ТЭ | E142: 70 | F142: не требуется | I142: 0 | J142: 0 | L142: 0 | N142: 0 | Y142: =(350+R142+S142)/1000*T142 -> 0 | Z142: =(450+R142+S142)/1000*T142 -> 0 | AE142: =IF(Q142=$Z$15,0,IF(Q142=$Z$17,(T142*(U142+V142)/1000),Y142)) -> 0 | AF142: =ROUNDUP(IF($AF$6=1,U142/1000*V142/1000*T142*1.03,0),1) -> 0.0 | AN142: =IFERROR(MATCH(Q142,$Z$15:$Z$20,0),0) -> 0
B143: =SUBTOTAL(3,$I$137:I143) -> 1 | C143: 0 | D143: ТЭ | E143: 70 | F143: не требуется | I143: 0 | J143: 0 | L143: 0 | N143: 0 | Y143: =(350+R143+S143)/1000*T143 -> 0 | Z143: =(450+R143+S143)/1000*T143 -> 0 | AE143: =IF(Q143=$Z$15,0,IF(Q143=$Z$17,(T143*(U143+V143)/1000),Y143)) -> 0 | AF143: =ROUNDUP(IF($AF$6=1,U143/1000*V143/1000*T143*1.03,0),1) -> 0.0 | AN143: =IFERROR(MATCH(Q143,$Z$15:$Z$20,0),0) -> 0
B144: =SUBTOTAL(3,$I$137:I144) -> 1 | C144: 0 | D144: ТЭ | E144: 70 | F144: не требуется | I144: 0 | J144: 0 | L144: 0 | N144: 0 | Y144: =(350+R144+S144)/1000*T144 -> 0 | Z144: =(450+R144+S144)/1000*T144 -> 0 | AE144: =IF(Q144=$Z$15,0,IF(Q144=$Z$17,(T144*(U144+V144)/1000),Y144)) -> 0 | AF144: =ROUNDUP(IF($AF$6=1,U144/1000*V144/1000*T144*1.03,0),1) -> 0.0 | AN144: =IFERROR(MATCH(Q144,$Z$15:$Z$20,0),0) -> 0
B145: =SUBTOTAL(3,$I$137:I145) -> 1 | C145: 0 | D145: ТЭ | E145: 70 | F145: не требуется | I145: 0 | J145: 0 | L145: 0 | N145: 0 | Y145: =(350+R145+S145)/1000*T145 -> 0 | Z145: =(450+R145+S145)/1000*T145 -> 0 | AE145: =IF(Q145=$Z$15,0,IF(Q145=$Z$17,(T145*(U145+V145)/1000),Y145)) -> 0 | AF145: =ROUNDUP(IF($AF$6=1,U145/1000*V145/1000*T145*1.03,0),1) -> 0.0 | AN145: =IFERROR(MATCH(Q145,$Z$15:$Z$20,0),0) -> 0
B146: =SUBTOTAL(3,$I$137:I146) -> 1 | C146: 0 | D146: ТЭ | E146: 70 | F146: не требуется | I146: 0 | J146: 0 | L146: 0 | N146: 0 | Q146: =IF(V3=Y3,"Прим. к вертикальным стенам"," ") ->  | Y146: Примыкания к вертикальным поверхностям стен и другим конструкциям
B147: =SUBTOTAL(3,$I$137:I147) -> 1 | C147: 0 | D147: ТЭ | E147: 70 | F147: не требуется | I147: 0 | J147: 0 | L147: 0 | N147: 0 | P147: НАЗВАНИЕ | Q147: =IF(V3=Y3,"ТИПЫ"," ") ->  | S147: =IF(W3=Z4,"ВЫСОТА, мм"," ") ->  | T147: =IF(V3=Y3,"ДЛИНА, м"," ") ->  | U147: Н утепл., мм | V147: толщина, мм | W147: марка утеплителя | Y147: ПГ | AA147: ДКР | AB147: СМРЗ. МЕТ | AC147: СМРЗ БЕТ. | AD147: АНКЕР, шт | AE147: ПРАЙМЕР | AF147: ОБЪЕМ УТЕПЛ | AG147: САМОРЕЗ КУ | AI147: ТЕЛЕСКОП КУ | AK147: САМОРЕЗ КР
B148: =SUBTOTAL(3,$I$137:I148) -> 1 | C148: 0 | D148: ТЭ | E148: 70 | F148: не требуется | I148: 0 | J148: 0 | L148: 0 | N148: 0 | Y148: ВЕРХ | Z148: НИЗ | AG148: размер | AH148: кол-во, шт | AI148: размер | AJ148: кол-во, шт | AK148: размер | AL148: кол-во, шт
B149: =SUBTOTAL(3,$I$137:I149) -> 1 | C149: 0 | D149: ТЭ | E149: 70 | F149: не требуется | I149: 0 | J149: 0 | L149: 0 | N149: 0 | Y149: =T149*(250+S149)/1000 -> 0 | Z149: =T149*800/1000 -> 0 | AA149: =T149 -> 0 | AB149: =ROUNDUP(IF(OR(Q149=$Z$15,Q149=$Z$17,Q149=$Z$19),AA149,0),0) -> 0 | AC149: =ROUNDUP(IF(OR(Q149=$Z$16,Q149=$Z$18,Q149=$Z$20),AA149,0),0) -> 0 | AD149: =ROUNDUP(IF(OR(Q149=$Z$16,Q149=$Z$18,Q149=$Z$20),AA149*5*1.03,0),0) -> 0 | AE149: =IF(Q149=$Z$15,0,IF(Q149=$Z$17,(T149*(U149+V149)/1000),Y149)) -> 0 | AF149: =ROUNDUP(IF($AF$7=1,U149/1000*V149/1000*T149*1.03,0),1) -> 0.0 | AG149: нет | AI149: нет | AK149: нет | AN149: =IFERROR(MATCH(Q149,$Z$15:$Z$20,0),0) -> 0
B150: =SUBTOTAL(3,$I$137:I150) -> 1 | C150: 0 | D150: ТЭ | E150: 70 | F150: не требуется | I150: 0 | J150: 0 | L150: 0 | N150: 0 | Y150: =T150*(250+S150)/1000 -> 0 | Z150: =T150*800/1000 -> 0 | AA150: =T150 -> 0 | AB150: =ROUNDUP(IF(OR(Q150=$Z$15,Q150=$Z$17,Q150=$Z$19),AA150,0),0) -> 0 | AC150: =ROUNDUP(IF(OR(Q150=$Z$16,Q150=$Z$18,Q150=$Z$20),AA150,0),0) -> 0 | AD150: =ROUNDUP(IF(OR(Q150=$Z$16,Q150=$Z$18,Q150=$Z$20),AA150*5*1.03,0),0) -> 0 | AE150: =IF(Q150=$Z$15,0,IF(Q150=$Z$17,(T150*(U150+V150)/1000),Y150)) -> 0 | AF150: =ROUNDUP(IF($AF$7=1,U150/1000*V150/1000*T150*1.03,0),1) -> 0.0 | AN150: =IFERROR(MATCH(Q150,$Z$15:$Z$20,0),0) -> 0
B151: =SUBTOTAL(3,$I$137:I151) -> 1 | C151: 0 | D151: ТЭ | E151: 70 | F151: не требуется | I151: 0 | J151: 0 | L151: 0 | N151: 0 | Y151: =T151*(250+S151)/1000 -> 0 | Z151: =T151*800/1000 -> 0 | AA151: =T151 -> 0 | AB151: =ROUNDUP(IF(OR(Q151=$Z$15,Q151=$Z$17,Q151=$Z$19),AA151,0),0) -> 0 | AC151: =ROUNDUP(IF(OR(Q151=$Z$16,Q151=$Z$18,Q151=$Z$20),AA151,0),0) -> 0 | AD151: =ROUNDUP(IF(OR(Q151=$Z$16,Q151=$Z$18,Q151=$Z$20),AA151*5*1.03,0),0) -> 0 | AE151: =IF(Q151=$Z$15,0,IF(Q151=$Z$17,(T151*(U151+V151)/1000),Y151)) -> 0 | AF151: =ROUNDUP(IF($AF$7=1,U151/1000*V151/1000*T151*1.03,0),1) -> 0.0 | AN151: =IFERROR(MATCH(Q151,$Z$15:$Z$20,0),0) -> 0
B152: =SUBTOTAL(3,$I$137:I152) -> 1 | C152: 0 | D152: ТЭ | E152: 70 | F152: не требуется | I152: 0 | J152: 0 | L152: 0 | N152: 0 | Y152: =T152*(250+S152)/1000 -> 0 | Z152: =T152*800/1000 -> 0 | AA152: =T152 -> 0 | AB152: =ROUNDUP(IF(OR(Q152=$Z$15,Q152=$Z$17,Q152=$Z$19),AA152,0),0) -> 0 | AC152: =ROUNDUP(IF(OR(Q152=$Z$16,Q152=$Z$18,Q152=$Z$20),AA152,0),0) -> 0 | AD152: =ROUNDUP(IF(OR(Q152=$Z$16,Q152=$Z$18,Q152=$Z$20),AA152*5*1.03,0),0) -> 0 | AE152: =IF(Q152=$Z$15,0,IF(Q152=$Z$17,(T152*(U152+V152)/1000),Y152)) -> 0 | AF152: =ROUNDUP(IF($AF$7=1,U152/1000*V152/1000*T152*1.03,0),1) -> 0.0 | AN152: =IFERROR(MATCH(Q152,$Z$15:$Z$20,0),0) -> 0
B153: =SUBTOTAL(3,$I$137:I153) -> 1 | C153: 0 | D153: ТЭ | E153: 70 | F153: не требуется | I153: 0 | J153: 0 | L153: 0 | N153: 0 | R153: =IF(V3=Y3,"Открытый водосток"," ") ->  | Y153: Открытый водосток
B154: =SUBTOTAL(3,$I$137:I154) -> 1 | C154: 0 | D154: ТЭ | E154: 70 | F154: не требуется | I154: 0 | J154: 0 | L154: 0 | N154: 0 | R154: НАЗВАНИЕ | S154: =IF(V3=Y3,"ТИПЫ"," ") ->  | T154: =IF(V3=Y3,"ДЛИНА, м"," ") ->  | Y154: ПГ
B155: =SUBTOTAL(3,$I$137:I155) -> 1 | C155: 0 | D155: ТЭ | E155: 70 | F155: не требуется | I155: 0 | J155: 0 | L155: 0 | N155: 0 | Y155: ВЕРХ | Z155: НИЗ
B156: =SUBTOTAL(3,$I$137:I156) -> 1 | C156: 0 | D156: ТЭ | E156: 70 | F156: не требуется | I156: 0 | J156: 0 | L156: 0 | N156: 0 | S156: =IF(V3=Y3,"ТИП 1"," ") ->  | Y156: НЕТ | Z156: =T156*400/1000 -> 0
B157: =SUBTOTAL(3,$I$137:I157) -> 1 | C157: 0 | D157: ТЭ | E157: 70 | F157: не требуется | I157: 0 | J157: 0 | L157: 0 | N157: 0
B158: =SUBTOTAL(3,$I$137:I158) -> 1 | C158: 0 | D158: ТЭ | E158: 70 | F158: не требуется | I158: 0 | J158: 0 | L158: 0 | N158: 0
B159: =SUBTOTAL(3,$I$137:I159) -> 1 | C159: 0 | D159: ТЭ | E159: 70 | F159: не требуется | I159: 0 | J159: 0 | L159: 0 | N159: 0
B160: =SUBTOTAL(3,$I$137:I160) -> 1 | C160: 0 | D160: ТЭ | E160: 70 | F160: не требуется | I160: 0 | J160: 0 | L160: 0 | N160: 0 | P160: =IF(V3=Y3,"НАЗВАНИЕ ПАРАПЕТА"," ") -> 
B161: =SUBTOTAL(3,$I$137:I161) -> 1 | C161: 0 | D161: ТЭ | E161: 70 | F161: не требуется | I161: 0 | J161: 0 | L161: 0 | N161: 0 | P161: =IF(V3=Y3,"ПГ_ВЕРХ"," ") ->  | R161: =IF(V3=Y3,"ДКР"," ") ->  | T161: =IF(V3=Y3,"АНКЕР"," ") -> 
B162: =SUBTOTAL(3,$I$137:I162) -> 1 | C162: 0 | D162: ТЭ | E162: 70 | F162: не требуется | I162: 0 | J162: 0 | L162: 0 | N162: 0 | P162: =IF(V3=Y3,"ПГ_НИЗ"," ") ->  | R162: =IF(V3=Y3,"ДПР"," ") -> 
B163: =SUBTOTAL(3,$I$137:I163) -> 1 | C163: 0 | D163: ТЭ | E163: 70 | F163: не требуется | I163: 0 | J163: 0 | L163: 0 | N163: 0 | P163: =IF(V3=Y3,"СМРЗ. МЕТ"," ") ->  | R163: =IF(V3=Y3,"СМРЗ БЕТ."," ") -> 
B164: =SUBTOTAL(3,$I$137:I164) -> 1 | C164: 0 | D164: ТЭ | E164: 70 | F164: не требуется | I164: 0 | J164: 0 | L164: 0 | N164: 0
B165: =SUBTOTAL(3,$I$137:I165) -> 1 | C165: 0 | D165: ТЭ | E165: 70 | F165: не требуется | I165: 0 | J165: 0 | L165: 0 | N165: 0 | P165: Воронка водоприемная | R165: Воронка ТехноНИКОЛЬ с обжимным фланцем обогреваемая, 110х450 мм | U165: шт | V165: =HYPERLINK("#"&$AB$5&"!A22","⇑ ") -> ⇑
B166: =SUBTOTAL(3,$I$137:I166) -> 1 | C166: 0 | D166: ТЭ | E166: 70 | F166: не требуется | I166: 0 | J166: 0 | L166: 0 | N166: 0 | P166: Воронка водоприемная (п) | R166: Воронка парапетная 100*100 (квадратное сечение) | U166: шт
B167: =SUBTOTAL(3,$I$137:I167) -> 1 | C167: 0 | D167: ТЭ | E167: 70 | F167: не требуется | I167: 0 | J167: 0 | L167: 0 | N167: 0 | P167: Галтель | R167: ТЕХНОРУФ 45 ГАЛТЕЛЬ (1.2 м) | U167: м.п.
B168: =SUBTOTAL(3,$I$137:I168) -> 1 | C168: 0 | D168: ТЭ | E168: 70 | F168: не требуется | I168: 0 | J168: 0 | L168: 0 | N168: 0
B169: =SUBTOTAL(3,$I$137:I169) -> 1 | C169: 0 | D169: ТЭ | E169: 70 | F169: не требуется | I169: 0 | J169: 0 | L169: 0 | N169: 0
B170: =SUBTOTAL(3,$I$137:I170) -> 1 | C170: 0 | D170: ТЭ | E170: 70 | F170: не требуется | I170: 0 | J170: 0 | L170: 0 | N170: 0 | P170: =HYPERLINK("#"&$AB$5&"!T2","⇑ ") -> ⇑ | Q170: Тип здания: | R170: =$V$2 -> Объекты ФЗ-44 | T170: =IF($R$170=$Z$171,$AD$171,IF($R$170=$AA$171,$AD$172,"-")) -> Нормируемая высота ограждения = 600 мм.
B171: =SUBTOTAL(3,$I$137:I171) -> 1 | C171: 0 | D171: ТЭ | E171: 70 | F171: не требуется | I171: 0 | J171: 0 | L171: 0 | N171: 0 | Q171: Высота | R171: Длина, м.п. | S171: Ограждение | V171: Кол-во, шт. | Y171: Высота | Z171: Объекты ФЗ-44 | AA171: Объекты ПП-615 | AD171: Нормируемая высота ограждения = 600 мм.
B172: =SUBTOTAL(3,$I$137:I172) -> 1 | C172: 0 | D172: ТЭ | E172: 70 | F172: не требуется | I172: 0 | J172: 0 | L172: 0 | N172: 0 | Q172: 0≤ | R172: 258.4 | S172: =IFERROR(IF(R172>0,INDEX($Z$172:$AA$176,MATCH(Q172,$Y$172:$Y$176,0),MATCH($R$170,$Z$171:$AA$171,0)),"-"),"-") -> Кровельное ограждение ТехноНИКОЛЬ ККО/СК/600-2 | V172: =IFERROR(IF(R172:R172>0,ROUNDUP(R172/3,0),"-"),"-") -> 87.0 | Y172: 0≤ | Z172: Кровельное ограждение ТехноНИКОЛЬ ККО/СК/600-2 | AA172: Кровельное ограждение ТехноНИКОЛЬ КО/PRO/PL/1200-3 | AD172: Нормируемая высота ограждения = 1200 мм.
B173: =SUBTOTAL(3,$I$137:I173) -> 1 | C173: 0 | D173: ТЭ | E173: 70 | F173: не требуется | I173: 0 | J173: 0 | L173: 0 | N173: 0 | Q173: 200≤ | S173: =IFERROR(IF(R173>0,INDEX($Z$172:$AA$176,MATCH(Q173,$Y$172:$Y$176,0),MATCH($R$170,$Z$171:$AA$171,0)),"-"),"-") -> - | V173: =IFERROR(IF(R173:R173>0,ROUNDUP(R173/3,0),"-"),"-") -> - | Y173: 200≤ | Z173: Кровельное ограждение ТехноНИКОЛЬ КО/PRO/PV/600-2 | AA173: Кровельное ограждение ТехноНИКОЛЬ КО/PRO/PL/1200-3
B174: =SUBTOTAL(3,$I$137:I174) -> 1 | C174: 0 | D174: ТЭ | E174: 70 | F174: не требуется | I174: 0 | J174: 0 | L174: 0 | N174: 0 | Q174: 400≤ | S174: =IFERROR(IF(R174>0,INDEX($Z$172:$AA$176,MATCH(Q174,$Y$172:$Y$176,0),MATCH($R$170,$Z$171:$AA$171,0)),"-"),"-") -> - | V174: =IFERROR(IF(R174:R174>0,ROUNDUP(R174/3,0),"-"),"-") -> - | Y174: 400≤ | Z174: Кровельное ограждение ТехноНИКОЛЬ КО/PRO/PV/600-2 | AA174: Кровельное ограждение ТехноНИКОЛЬ КО/PRO/PV/800-3
B175: =SUBTOTAL(3,$I$137:I175) -> 1 | C175: 0 | D175: ТЭ | E175: 70 | F175: не требуется | I175: 0 | J175: 0 | L175: 0 | N175: 0 | Q175: 600≤ | S175: =IFERROR(IF(R175>0,INDEX($Z$172:$AA$176,MATCH(Q175,$Y$172:$Y$176,0),MATCH($R$170,$Z$171:$AA$171,0)),"-"),"-") -> - | V175: =IFERROR(IF(R175:R175>0,ROUNDUP(R175/3,0),"-"),"-") -> - | Y175: 600≤ | Z175: - | AA175: Кровельное ограждение ТехноНИКОЛЬ КО/PRO/PV/600-2
B176: =SUBTOTAL(3,$I$137:I176) -> 1 | C176: 0 | D176: ТЭ | E176: 70 | F176: не требуется | I176: 0 | J176: 0 | L176: 0 | N176: 0 | Q176: 800≤ | S176: =IFERROR(IF(R176>0,INDEX($Z$172:$AA$176,MATCH(Q176,$Y$172:$Y$176,0),MATCH($R$170,$Z$171:$AA$171,0)),"-"),"-") -> - | V176: =IFERROR(IF(R176:R176>0,ROUNDUP(R176/3,0),"-"),"-") -> - | Y176: 800≤ | Z176: - | AA176: Кровельное ограждение ТехноНИКОЛЬ КО/PRO/PV/600-2
B177: =SUBTOTAL(3,$I$137:I177) -> 1 | C177: 0 | D177: ТЭ | E177: 70 | F177: не требуется | I177: 0 | J177: 0 | L177: 0 | N177: 0
B178: =SUBTOTAL(3,$I$137:I178) -> 1 | C178: 0 | D178: ТЭ | E178: 70 | F178: не требуется | I178: 0 | J178: 0 | L178: 0 | N178: 0
B179: =SUBTOTAL(3,$I$137:I179) -> 1 | C179: 0 | D179: ТЭ | E179: 70 | F179: не требуется | I179: 0 | J179: 0 | L179: 0 | N179: 0
B180: =SUBTOTAL(3,$I$137:I180) -> 1 | C180: 0 | D180: ТЭ | E180: 70 | F180: не требуется | I180: 0 | J180: 0 | L180: 0 | N180: 0
B181: =SUBTOTAL(3,$I$137:I181) -> 1 | C181: 0 | D181: ТЭ | E181: 70 | F181: не требуется | I181: 0 | J181: 0 | L181: 0 | N181: 0 | AC181: ПВХ мембрана LOGICROOF V-SR серый (1.5 мм)* | AD181: Герметик ПУ ТехноНИКОЛЬ Logicflex для плоских кровель
B182: =SUBTOTAL(3,$I$137:I182) -> 1 | C182: 0 | D182: ТЭ | E182: 70 | F182: не требуется | I182: 0 | J182: 0 | L182: 0 | N182: 0 | AA182: Кровельное ограждение ТехноНИКОЛЬ КО/PRO/PL/1200-3 | AB182: =SUMIF($S$172:$U$176,AA182,$V$172:$V$176) -> 0 | AC182: =IF(AB182>0,(0.6*AB182),0) -> 0 | AD182: =IF(AB182>0,(0.25*AB182),0) -> 0
B183: =SUBTOTAL(3,$I$137:I183) -> 1 | C183: 0 | D183: ТЭ | E183: 70 | F183: не требуется | I183: 0 | J183: 0 | L183: 0 | N183: 0 | AA183: Кровельное ограждение ТехноНИКОЛЬ ККО/СК/600-2 | AB183: =SUMIF($S$172:$U$176,AA183,$V$172:$V$176) -> 87 | AC183: =IF(AB183>0,(0.6*AB183),0) -> 52.2 | AD183: =IF(AB183>0,(0.25*AB183),0) -> 21.75
B184: =SUBTOTAL(3,$I$137:I184) -> 1 | C184: 0 | D184: ТЭ | E184: 70 | F184: не требуется | I184: 0 | J184: 0 | L184: 0 | N184: 0 | AA184: Кровельное ограждение ТехноНИКОЛЬ КО/PRO/PV/600-2 | AB184: =SUMIF($S$172:$U$176,AA184,$V$172:$V$176) -> 0 | AC184: 0 | AD184: =IF(AB184>0,(0.5*AB184),0) -> 0
B185: =SUBTOTAL(3,$I$137:I185) -> 1 | C185: =IF($T$5=$AA$12,S21,S21+$R$3) -> 0 | D185: ТЭ | E185: 70 | F185: не требуется | I185: =ROUND(T21,0) -> 0 | J185: =ROUND(IFERROR(IF($V$4=$Y$11,0,IF($T$3=$Y$13,T21/$AE$12*$U$12,T21/$U$14*$U$12)),0),0) -> 0 | L185: 0 | N185: 0 | AA185: Кровельное ограждение ТехноНИКОЛЬ КО/PRO/PV/800-3 | AB185: =SUMIF($S$172:$U$176,AA185,$V$172:$V$176) -> 0 | AC185: 0 | AD185: =IF(AB185>0,(0.5*AB185),0) -> 0
B186: =SUBTOTAL(3,$I$137:I186) -> 1 | C186: 0 | D186: ТЭ | E186: 70 | F186: не требуется | I186: =ROUND(T22,0) -> 0 | J186: =ROUND(IFERROR(IF($V$4=$Y$11,0,IF($T$3=$Y$13,T22/$AE$12*$U$12,T22/$U$14*$U$12)),0),0) -> 0 | L186: 0 | N186: 0 | AC186: =IF(V3=Y4,SUM(AC182:AC185),0) -> 52.2 | AD186: =IF(V3=Y4,SUM(AD182:AD185),0) -> 21.75
B187: =SUBTOTAL(3,$I$137:I187) -> 1 | C187: 0 | D187: ТЭ | E187: 70 | F187: не требуется | I187: 0 | J187: 0 | L187: 0 | N187: 0
B188: =SUBTOTAL(3,$I$137:I188) -> 1 | C188: 0 | D188: ТЭ | E188: 70 | F188: не требуется | I188: 0 | J188: 0 | L188: 0 | N188: 0
B189: =SUBTOTAL(3,$I$137:I189) -> 1 | C189: 0 | D189: ТЭ | E189: 70 | F189: не требуется | I189: 0 | J189: 0 | L189: 0 | N189: 0
B190: =SUBTOTAL(3,$I$137:I190) -> 1 | C190: 0 | D190: ТЭ | E190: 70 | F190: не требуется | I190: 0 | J190: 0 | L190: 0 | N190: 0
B191: =SUBTOTAL(3,$I$137:I191) -> 1 | C191: 0 | D191: ТЭ | E191: 70 | F191: не требуется | I191: 0 | J191: 0 | L191: 0 | N191: 0
B192: =SUBTOTAL(3,$I$137:I192) -> 1 | C192: 0 | D192: ТЭ | E192: 70 | F192: не требуется | I192: 0 | J192: 0 | L192: 0 | N192: 0
B193: =SUBTOTAL(3,$I$137:I193) -> 1 | C193: 0 | D193: ТЭ | E193: 70 | F193: не требуется | I193: 0 | J193: 0 | L193: 0 | N193: 0
B194: =SUBTOTAL(3,$I$137:I194) -> 1 | C194: 0 | D194: ТЭ | E194: 70 | F194: не требуется | I194: 0 | J194: 0 | L194: 0 | N194: 0
B195: =SUBTOTAL(3,$I$137:I195) -> 1 | C195: 0 | D195: ТЭ | E195: 70 | F195: не требуется | I195: 0 | J195: 0 | L195: 0 | N195: 0
B196: =SUBTOTAL(3,$I$137:I196) -> 1 | C196: 0 | D196: ТЭ | E196: 70 | F196: не требуется | I196: 0 | J196: 0 | L196: 0 | N196: 0
B197: =SUBTOTAL(3,$I$137:I197) -> 1 | C197: 0 | D197: ТЭ | E197: 70 | F197: не требуется | I197: 0 | J197: 0 | L197: 0 | N197: 0
B198: =SUBTOTAL(3,$I$137:I198) -> 1 | C198: 0 | D198: ТЭ | E198: 70 | F198: не требуется | I198: 0 | J198: 0 | L198: 0 | N198: 0
B199: =SUBTOTAL(3,$I$137:I199) -> 1 | C199: 0 | D199: ТЭ | E199: 70 | F199: не требуется | I199: 0 | J199: 0 | L199: 0 | N199: 0
B200: =SUBTOTAL(3,$I$137:I200) -> 1 | C200: 0 | D200: ТЭ | E200: 70 | F200: не требуется | I200: 0 | J200: 0 | L200: 0 | N200: 0
... 1133 more rows

Sheet ТИП3 (hidden)
AC1: Дата последней редакции шаблона: 22.10.21
I2: Площадь кровли : | J2: =ПЛ -> 0 | L2: м2 | P2: ИСХОДНЫЕ ДАННЫЕ: | S2: Слоёв КУ | T2: 1 слой | U2: ТИП ЗДАНИЯ: | V2: - | W2: =HYPERLINK("#"&$AB$5&"!Q170","↓ ") -> ↓ | Y2: НЕТ | AA2: НЕТ
I3: Сметная стоимость материалов текущего типа кровли : | J3: =SUM(J73,L62,L36,L22,L15,L12) -> 0.00 | L3: руб. | O3: ПЛОЩАДЬ: | Q3: ОТИ: | S3: ОУ: | T3: НЕТ | U3: МЕМБРАНА: | V3: НЕТ | Y3: Битумно- полимерная | Z3: =IF(V3=Y3,1,IF(V3=Y4,0,"-")) -> - | AA3: НЕТ | AB3: =IF(R4<>Y8,"-",R5) -> - | AV3: =INDEX(AV5:AV13,MATCH(1,AY5:AY13,0)) ->  | BB3: =INDEX(BB5:BB13,MATCH(1,BE5:BE13,0)) -> 
I4: Система : | O4: ПЕРИМЕТР: | Q4: ОСНОВАНИЕ: | R4: НЕТ | S4: КУ: | T4: НЕТ | U4: КРЕПЕЖ: | V4: НЕТ | Y4: ПВХ | Z4: =IF(V3=Y4,1,IF(V3=Y3,0,"-")) -> - | AA4: =IF(SUM(T81:T85,T88:T92,T95:T98,S101,S104,T133:T137,T141:T145,T149:T152,T156,S161)=0,0,IFERROR(ABS((100%-SUM(T81:T85,T88:T92,T95:T98,S101,S104,T133:T137,T141:T145,T149:T152,T156,S161)/ПР)),0)) -> 0.0%
B5: Спецификация материалов | F5: =номер_объекта -> 11-27ХХ-МПКПМКИ-12.21 | K5: =AB5 -> ТИП3 | O5: =IF(AND(ПР<>0,R4=Y8,V3<>Y2),"ГОФРЫ:"," ") ->  | Q5: =IF(AND(ПР<>0,R4=Y8,V3<>Y2),"ПРОФИЛЬ:"," ") ->  | S5: РВК: | T5: БЕЗ ОТИ (н) | U5: МАТЕР. ОТИ: | V5: НЕТ | W5: =HYPERLINK("#"&$AB$5&"!V250","↓ ") -> ↓ | AA5: =Y11 -> НЕТ | AB5: =CONCATENATE(AC6,AD5) -> ТИП3 | AC5: =HYPERLINK("#"&AB5&"!A1","1") -> 1 | AD5: =_xlfn.SHEET()-2 -> 3 | AE5: =IF(OR(Q81:Q85=Z17,Q81:Q85=Z18,Q81:Q85=Z19,Q81:Q85=Z20),1,0) -> 0 | AF5: =IF(OR(Q133:Q137=Z17,Q133:Q137=Z18,Q133:Q137=Z19,Q133:Q137=Z20),1,0) -> 0 | AJ5: ТН-КРОВЛЯ КЛАССИК | AV5: Техноэласт ЭКП (4.2 мм), (верхний слой) | AY5: =IF(OR($C$23:$C$61=AV5),1,0) -> 0 | BB5: Унифлекс ВЕНТ ЭПВ, (нижний слой) | BE5: =IF(OR($C$23:$C$61=BB5),1,0) -> 0
P6: =IF(T3="нет"," ",T3) ->  | Q6: =IF(T3="нет"," ","Кол-во, шт.") ->  | R6: =IF(T3="нет"," ","Площадь, м2") ->  | S6: =IF(T3="нет"," ",IF(T3="PIR 1.7%","Площадь плит, м2","Объем плит, м3")) ->  | T6: =IF(T4="нет"," ",T4) ->  | U6: =IF(T4="нет"," ","Кол-во, шт.") ->  | V6: =IF(T4="нет"," ","Площадь, м2") ->  | W6: =IF(T4="нет"," ",IF(OR(T4=Y25,T4=Y26),"Площадь плит, м2]","Объем плит, м3")) ->  | Y6: НЕТ | AA6: =Y12 -> ДА | AB6: =REPLACE(CELL("имяфайла"),1,FIND("]",CELL("имяфайла")),"") -> ОБЩАЯ СПЕЦИФИКАЦИЯ | AC6: ТИП | AD6: =IF(OR($V$4=$AA$10,$V$4=$AA$11),1,0) -> 0 | AE6: =IF(OR(Q88:Q92=Z17,Q88:Q92=Z18,Q88:Q92=Z19,Q88:Q92=Z20),1,0) -> 0 | AF6: =IF(OR(Q141:Q145=Z17,Q141:Q145=Z18,Q141:Q145=Z19,Q141:Q145=Z20),1,0) -> 0 | AJ6: ТН-КРОВЛЯ СМАРТ PIR | AV6: Техноэласт ЭПП (4.0 мм) (два слоя) | AY6: =IF(OR($C$23:$C$61=AV6),1,0) -> 0 | BB6: Унифлекс ЭПП (2.8 мм), (верхний слой) | BE6: =IF(OR($C$23:$C$61=BB6),1,0) -> 0
Y7: БЕТОН | Z7: по умолчанию | AA7: ДА 6,3 | AB7: ГОФРЫ | AC7: =IF(R5=Z7,AC9,IF(R5=Z8,AC8,IF(R5=Z9,AC9,IF(R5=Z10,AC10,0)))) -> 0.0000 | AE7: =IF(OR(R95:R98=Z18,R95:R98=Z19,R95:R98=Z20,R95:R98=Z17),1,0) -> 0 | AF7: =IF(OR(Q149:Q152=Z17,Q149:Q152=Z18,Q149:Q152=Z19,Q149:Q152=Z20),1,0) -> 0 | AJ7: ТН-КРОВЛЯ СМАРТ | AV7: Техноэласт СОЛО РП1 (5.0 мм) | AY7: =IF(OR($C$23:$C$61=AV7),1,0) -> 0 | BB7: Техноэласт ФИКС (3.0 мм), (нижний слой) | BE7: =IF(OR($C$23:$C$61=BB7),1,0) -> 0
B8: № | C8: Наименование материала | H8: К-т. расх | I8: Кол-во | J8: Ед. изм. | K8: Стоимость ед., руб. | L8: Сметная стоимость, руб. (без учёта кратности) | N8: фильтр | P8: =IF(T3="нет"," ","Плиты А") ->  | S8: =IF(OR(T3=Y14,T3=Y15),Q8*(0.0576/2),IF(T3=Y16,Q8*0.0144,IF(T3=Y17,Q8*0.0126,IF(T3=Y18,Q8*0.72," ")))) ->  | T8: =IF(T4="нет"," ",IF(OR(T4=Y20,T4=Y21,T4=Y22),"Плиты А",IF(T4=Y27,"Плиты М","Плиты J"))) ->  | W8: =IF(OR(T4=Y20,T4=Y21),U8*0.0306,IF(T4=Y22,U8*0.0198,IF(T4=Y23,U8*0.0144,IF(T4=Y24,U8*0.0126,IF(OR(T4=Y25,T4=Y26),U8*0.72,IF(T4=Y27,U8*0.0252," ")))))) ->  | Y8: ПРОФЛИСТ | Z8: Н75 | AA8: ТОЛЬКО КУ | AB8: 75 | AC8: =0.25*0.075*0.1*5.35*1.03 -> 0.0103 | AD8: 1.18 | AJ8: ТН-КРОВЛЯ СТАНДАРТ | AV8: Техноэласт ПРАЙМ ЭКМ, (верхний слой) | AY8: =IF(OR($C$23:$C$61=AV8),1,0) -> 0 | BB8: Техноэласт ПРАЙМ ЭММ, (нижний слой) | BE8: =IF(OR($C$23:$C$61=BB8),1,0) -> 0
P9: =IF(T3="нет"," ","Плиты Б") ->  | S9: =IF(OR(T3=Y14,T3=Y15),Q9*(0.0864/2),IF(T3=Y16,Q9*0.0288,IF(T3=Y17,Q9*0.03068,IF(T3=Y18,Q9*0.72," ")))) ->  | T9: =IF(T4="нет"," ",IF(OR(T4=Y20,T4=Y21,T4=Y22),"Плиты Б",IF(T4=Y27,"Плита 50",IF(OR(T4=Y23,T4=Y24,T4=Y26),"Плиты К","Добор 40")))) ->  | W9: =IF(OR(T4=Y20,T4=Y21),U9*0.0486,IF(T4=Y22,U9*0.0378,IF(T4=Y23,U9*0.0288,IF(T4=Y24,U9*0.0306,IF(OR(T4=Y25,T4=Y26),U9*0.72,IF(T4=Y27,U9*0.036," ")))))) ->  | Y9: СТЯЖКА | Z9: Н114 | AA9: ТОЛЬКО КУ+ГИ | AB9: 114 | AC9: =4*0.25*0.114*0.13*1.03 -> 0.0153 | AD9: 1.1 | AE9: . Общая длина примыкания- | AF9: м. | AJ9: ТН-КРОВЛЯ ОПТИМА | AV9: Техноэласт ПЛАМЯ СТОП ЭКП (4.2 мм), (верхний слой) | AY9: =IF(OR($C$23:$C$61=AV9),1,0) -> 0 | BB9: Унифлекс С, (нижний слой) | BE9: =IF(OR($C$23:$C$61=BB9),1,0) -> 0
N10: 1 | P10: =IF(T3="нет"," ",IF(OR(T3=Y14,T3=Y15),"Плиты С",IF(T3=Y17,"Плита 50","Плита 40"))) ->  | S10: =IF(OR(T3=Y14,T3=Y15),Q10*(0.0576/2),IF(T3=Y16,Q10*0.0288,IF(T3=Y17,Q10*0.036,IF(T3=Y18,Q10*0.72," ")))) ->  | T10: =IF(T4="нет"," ",IF(OR(T4=Y20,T4=Y21,T4=Y22),"Плиты C",IF(T4=Y24,"Плита 50",IF(T4=Y27," ",IF(T4=Y26,"Добор 80",IF(T4=Y25," ","Плита 40")))))) ->  | W10: =IF(OR(T4=Y20,T4=Y22,T4=Y21,T4=Y24),U10*0.036,IF(T4=Y23,U10*0.0288,IF(T4=Y25,"",IF(T4=Y26,0.72*U10,IF(T4=Y27," "," "))))) ->  | Y10: АЦЛ (ЦСП) | Z10: Н153 | AA10: Сборная стяжка+ГИ | AB10: 159 | AC10: =0.25*0.16*0.153*1.03*3.58 -> 0.0226 | AD10: 1.3 | AJ10: ТН-КРОВЛЯ ПРОФ | AV10: Унифлекс ЭКП (3.8 мм), (верхний слой) | AY10: =IF(OR($C$23:$C$61=AV10),1,0) -> 0 | BB10: Унифлекс ЭКСПРЕСС ЭМП, (нижний слой) | BE10: =IF(OR($C$23:$C$61=BB10),1,0) -> 0
B11: 1 | C11: 2 | H11: 3 | I11: 4 | J11: 5 | K11: 6 | L11: 7 | N11: 1 | T11: Площадь плит [м2] | Y11: НЕТ | Z11: 1 слой | AA11: Сборная стяжка | AJ11: ТН-КРОВЛЯ ГАРАНТ+ | AV11: Техноэласт МОСТ С | AY11: =IF(OR($C$23:$C$61=AV11),1,0) -> 0 | BB11: Унифлекс ЭПП (2.8 мм), (верхний слой) | BE11: =IF(OR($C$23:$C$61=BB11),1,0) -> 0
C12: Устройство пароизоляционного слоя | H12: =HYPERLINK("#"&AB5&"!A840","1111") -> 1111 | L12: =SUM(L13:L14) -> 0.00 | N12: =IF(SUM(I13:I14)>0,1,0) -> 0 | P12: =IF(V4=AA5," ","ВЫГРУЗКА КРЕПЕЖА") ->  | S12: =IF(V4="НЕТ"," ","Количество крепежа по ветровому расчету, на м2") ->  | U12: =IF(OR(V4=AA6,V4=AA7,V4=AA9,V4=AA10),4,IF(V4=AA8,0," ")) ->  | Y12: ДА | Z12: 2 и более | AA12: БЕЗ ОТИ (н) | AB12: СУММА | AC12: =SUM($I$13:$I$14,$I$16:$I$21,$I$23:$I$35,$I$23:$I$62,$I$63:$I$69,$I$83:$I$97,$I$101:$I$113,$I$115) -> 0.0 | AE12: =IF(AND(T3=Y13,T4=Y25),3.4,3.4) -> 3.4 | AF12: =IF(AF13=0,0,COUNT(AF13)) -> 0 | AJ12: ТН-КРОВЛЯ БАЛЛАСТ | AV12: Техноэласт Декор, (верхний слой) | AY12: =IF(OR($C$23:$C$61=AV12),1,0) -> 0
B13: =SUBTOTAL(3,$I$13:I13) -> 0 | L13: =IFERROR(I13*K13,0) -> 0.00 | N13: =IF(OR(I13=" ",I13=0),0,1) -> 0 | P13: =IF(V4=AA5," ","ВЫСОТА") ->  | Q13: =IF(V4=AA5," ","КОЛ-ВО") ->  | Y13: НЕТ | AA13: +ОТИ (с) | AE13: =SUM(W21:W23) -> 0 | AF13: =IF(AND((SUM(W21:W23)=0),T3=Y13,T4=Y19),0,ПЛ) -> 0 | AJ13: ТН-КРОВЛЯ ФИКС
B14: =SUBTOTAL(3,$I$13:I14) -> 0 | L14: =IFERROR(I14*K14,0) -> 0.00 | N14: =IF(OR(I14=" ",I14=0),0,1) -> 0 | S14: =IF(AND(OR(V4="ДА",V4="ДА 6,3"),T3<>"НЕТ"),"Количество крепежа по клинам, на м2"," ") ->  | U14: =IFERROR(IF(AND(OR(V4="ДА",V4="ДА 6,3"),OR(T3=Y14,T3=Y15,T3=Y17,T3=Y16)),SUM(Q14:Q60,T21:T52)/ПЛ,IF(AND(OR(V4="ДА",V4="ДА 6,3"),T3=Y18),SUM(Q14:Q60,T21:T52)/ПЛ," ")),0) ->  | V14: =IF(AND(OR(V4="ДА",V4="ДА 6,3"),T3<>"НЕТ"),"ДВР"," ") ->  | W14: =IF(AND(OR(V4="ДА",V4="ДА 6,3"),T3<>"НЕТ"),4," ") ->  | Y14: КВ 1.7% | AA14: НЕТ | AJ14: ТН-КРОВЛЯ ТИТАН
C15: Устройство теплоизоляционного слоя | H15: =HYPERLINK("#"&AB5&"!A850","1111") -> 1111 | L15: =SUM(L16:L21) -> 0.00 | N15: =IF(SUM(I16:I21)>0,1,0) -> 0 | Y15: КВ 1.7% ВЭ | Z15: МЕТ | AA15: ПВХ Logicroof Walkway Puzzle | AB15: ЦЕНА КЛИН | AC15: =ОБЩИЕ_ДАННЫЕ!N81 -> 1 | AD15: =IF(P3=0,0,IF(P3<=1000,1,IF(AND(P3>1000,P3<=5000),2,IF(AND(P3>5000,P3<=10000),3,IF(P3>10000,4,0))))) -> 0 | AE15: сложность | AF15: счет если | AJ15: ТН-КРОВЛЯ УНИВЕРСАЛ
B16: =SUBTOTAL(3,$I$13:I16) -> 0 | L16: =IFERROR(I16*K16,0) -> 0.00 | N16: =IF(OR(I16=" ",I16=0),0,1) -> 0 | S16: =IF(AND(OR(V4="ДА",V4="ДА 6,3"),T3<>"НЕТ"),"Общее количество крепежа на м2"," ") ->  | U16: =IF(AND(OR(V4="ДА",V4="ДА 6,3"),T3<>"НЕТ"),U14+U12," ") ->  | V16: =IF(AND(OR(V4="ДА",V4="ДА 6,3"),T3<>"НЕТ"),"РРК"," ") ->  | W16: =IF(AND(OR(V4="ДА",V4="ДА 6,3"),OR(T3=Y14,T3=Y15,T3=Y17,T3=Y16)),3.5+W14,IF(AND(OR(V4="ДА",V4="ДА 6,3"),T3=Y18),3.5+W14," ")) ->  | Y16: XPS 1.7% | Z16: Ж/Б | AA16: АЦЛ/ОСБ | AC16: =IFERROR(IF(OR(AND(T3=Y14,OR(T4=Y20,T4=Y22)),AND(T3=Y16,T4=Y23)),INDEX(Прайс!J9:M11,T5,AD15)*AC15,0),0) -> 0 | AD16: ОКУ | AE16: =IF(AC16>0,$T$5,0) -> 0 | AF16: =IF(AC16>0,COUNT(T5),0) -> 0 | AJ16: ТН-КРОВЛЯ МАСТЕР
B17: =SUBTOTAL(3,$I$13:I17) -> 0 | L17: 0.00 | N17: 0 | Y17: XPS 2.1% | Z17: МЕТ+ТЕПЛО | AA17: НЕТ | AB17: 1 | AC17: =IFERROR(IF(AND(T3=Y13,OR(T4=Y27,T4=Y23,T4=Y20,T4=Y22)),INDEX(Прайс!J6:M8,T5,AD15)*AC15,IF(AND(T4=Y19,OR(T3=Y14,T3=Y16)),INDEX(Прайс!J6:M8,T5,AD15)*AC15,0)),0) -> 0 | AD17: КУ | AE17: =IF(AC17>0,$T$5,0) -> 0 | AF17: =IF(AC17>0,COUNT(T5),0) -> 0 | AJ17: ТН-КРОВЛЯ ЭКСПЕРТ PIR
B18: =SUBTOTAL(3,$I$13:I18) -> 0 | L18: 0.00 | N18: 0 | Y18: PIR 1.7% | Z18: Ж/Б+ТЕПЛО | AA18: LOGICROOF NG | AB18: 2 | AC18: =IFERROR(IF(OR(AND(T4=Y25,T3=Y18)),INDEX(Прайс!J15:M17,T5,AD15)*AC15,0),0) -> 0 | AD18: ОКУП | AE18: =IF(AC18>0,$T$5,0) -> 0 | AF18: =IF(AC18>0,COUNT(T5),0) -> 0 | AJ18: Прочее
B19: =SUBTOTAL(3,$I$13:I19) -> 0 | L19: 0.00 | N19: 0 | S19: =IF(Y11=AD13," ","продолжение таблицы ") -> продолжение таблицы | V19: Кол- во ОУ и КУ | Y19: НЕТ | Z19: МЕТ+ТЕПЛО БК | AA19: - | AB19: 3 | AC19: =IFERROR(IF(AND(T3=Y13,T4=Y25),INDEX(Прайс!J12:M14,T5,AD15)*AC15,IF(AND(T4=Y19,T3=Y18),INDEX(Прайс!J12:M14,T5,AD15)*AC15,0)),0) -> 0 | AD19: КУП | AE19: =IF(AC19>0,$T$5,0) -> 0 | AF19: =IF(AC19>0,COUNT(T5),0) -> 0
B20: =SUBTOTAL(3,$I$13:I20) -> 0 | L20: 0.00 | N20: 0 | S20: =IF(Y11=AD13," ","ВЫСОТА") -> ВЫСОТА | T20: =IF(Y11=AD13," ","КОЛ-ВО") -> КОЛ-ВО | V20: Название | W20: Кол-во шт. | Y20: КВ 4.2% | Z20: Ж/Б+ТЕПЛО БК | AA20: Объекты ФЗ-44 | AB20: дубль | AC20: =IF(AND(P3>0,OR(V3<>Y2,T3<>Y13,T4<>Y19)),1,0) -> 0 | AJ20: =IF(J4="",0,CONCATENATE(J4," ",L4)) -> 0
B21: =SUBTOTAL(3,$I$13:I21) -> 0 | L21: 0.00 | N21: 0 | V21: ОУ | Y21: КВ 4.2% ВЭ | Z21: Воронка для ПВХ мембран XL503 с обогревом, 110х450 мм | AA21: Объекты ПП-615 | AB21: =IF(OR(T3=Y14,T3=Y15,T4=Y20,T4=Y21,T4=Y22),1,0) -> 0 | AC21: =IF(OR(T3=Y16,T3=Y17,T4=Y23,T4=Y24,T4=Y27),1,0) -> 0 | AD21: =IF(OR(T3=Y18,T4=Y25,T4=Y26),1,0) -> 0 | AF21: =IF(T2=Z11,AG21,AH21) -> 0 | AG21: =IF(T4=Y19,0,IF(T4=Y25,V9,SUM(V8:V9))) -> 0 | AH21: =IF(T4=Y19,0,IF(T2=Z12,V11,0)) -> 0
A22: =HYPERLINK("#"&$AB$5&"!V169","↓ ") -> ↓ | B22: =HYPERLINK("#"&$AB$5&"!V116","↓ ") -> ↓ | C22: Устройство гидроизоляционного слоя | H22: =HYPERLINK("#"&AB5&"!A880","1111") -> 1111 | J22: =HYPERLINK("#"&AB5&"!A990","1111") -> 1111 | L22: =SUM(L23:L35) -> 0.00 | N22: =IF(SUM(I23:I35)>0,1,0) -> 0 | V22: КУ | Y22: КВ 4.2% Н | Z22: Воронка для ПВХ мембран XL503 без обогрева, 110х450 мм | AA22: НЕТ | AB22: КВ | AC22: XPS | AD22: PIR | AF22: =IF(SUM(I98:I100,I110:I113)>0,1,0) -> 0
B23: =SUBTOTAL(3,$I$13:I23) -> 0 | L23: =IFERROR(#REF!*K23,0) -> 0.00 | N23: =IF(OR(I23=" ",I23=0),0,1) -> 0 | V23: КУ как ОУ | Y23: XPS 3.4% | Z23: Воронка с обжимным металлическим фланцем с обогревом, 110х450 мм | AJ23: Огнезащита: | AM23: 30 | AN23: 60 | AV23: ПВХ мембрана LOGICROOF V-RP (1.2 мм) | AY23: =IF(OR(AV23=$C$23:$C$61),1,0) -> 0
B24: =SUBTOTAL(3,$I$13:I24) -> 0 | L24: =IFERROR(#REF!*K24,0) -> 0.00 | N24: 0 | Y24: XPS 4.2% | Z24: Воронка с обжимным металлическим фланцем без обогрева, 110х450 мм | AJ24: Плита ТЕХНО ОЗМ | AK24: =F854 -> 0 | AM24: 40 | AN24: 60 | AV24: ПВХ мембрана LOGICROOF V-RP ARCTIC (1.2 мм) | AY24: =IF(OR(AV24=$C$23:$C$61),1,0) -> 0
B25: =SUBTOTAL(3,$I$13:I25) -> 0 | L25: =IFERROR(I25*K25,0) -> 0.00 | N25: 0 | Y25: PIR 3.3% (J) | Z25: Воронка с обжимным металлическим фланцем с обогревом 110х720 мм | AJ25: Саморез сверлоконечный ТехноНИКОЛЬ 4,8х | AK25: =INDEX(AN23:AN31,MATCH(AK24,AM23:AM31,0)) ->  | AM25: 50 | AN25: 80 | AV25: ПВХ мембрана ECOPLAST V-RP (1.2 мм) | AY25: =IF(OR(AV25=$C$23:$C$61),1,0) -> 0
B26: =SUBTOTAL(3,$I$13:I26) -> 0 | L26: 0.00 | N26: 0 | Y26: PIR 3.3% (J+K) | Z26: Воронка с обжимным металлическим фланцем без обогрева 110х720 мм | AJ26: Крепёж | AK26: =IF(AK24>0,ТИП3!ПЛ*7,0) -> 0 | AM26: 60 | AN26: 80 | AV26: ПВХ мембрана LOGICROOF V-RP FR (1.2 мм) | AY26: =IF(OR(AV26=$C$23:$C$61),1,0) -> 0
B27: =SUBTOTAL(3,$I$13:I27) -> 0 | L27: 0.00 | N27: 0 | Y27: XPS 8.3% | Z27: Воронка ТехноНИКОЛЬ с обжимным фланцем обогреваемая, 110х450 мм | AM27: 70 | AN27: 100 | AV27: ПВХ мембрана ECOPLAST V-GR (1.5 мм) | AY27: =IF(OR(AV27=$C$23:$C$61),1,0) -> 0
B28: =SUBTOTAL(3,$I$13:I28) -> 0 | L28: 0.00 | N28: 0 | Z28: Воронка ТехноНИКОЛЬ с обжимным фланцем, 110х450 мм | AM28: 80 | AN28: 100 | AV28: ПВХ мембрана LOGICROOF V-RP (1.5 мм) | AY28: =IF(OR(AV28=$C$23:$C$61),1,0) -> 0
B29: =SUBTOTAL(3,$I$13:I29) -> 0 | L29: 0.00 | N29: 0 | Y29: ТЕХНОРУФ Н30 | Z29: Воронка ТехноНИКОЛЬ ВБ, 110х450 мм | AM29: 90 | AN29: 120 | AV29: ПВХ мембрана LOGICROOF V-RP ARCTIC (1.5 мм) | AY29: =IF(OR(AV29=$C$23:$C$61),1,0) -> 0
B30: =SUBTOTAL(3,$I$13:I30) -> 0 | L30: 0.00 | N30: 0 | Y30: ТЕХНОРУФ В ЭКСТРА | Z30: Воронка ESSMANNGULLY DN 100 | AM30: 100 | AN30: 120 | AV30: ПВХ мембрана ECOPLAST V-RP (1.5 мм) | AY30: =IF(OR(AV30=$C$23:$C$61),1,0) -> 0
B31: =SUBTOTAL(3,$I$13:I31) -> 0 | L31: 0.00 | N31: 0 | Y31: ТЕХНОРУФ Н ОПТИМА | Z31: Фильтр для воронок универсальный | AM31: 110 | AN31: 160 | AV31: ПВХ мембрана ECOPLAST V-GR (1.8 мм) | AY31: =IF(OR(AV31=$C$23:$C$61),1,0) -> 0 | BA31: =INDEX(AV23:AV43,MATCH(1,AY23:AY43,0)) -> 
B32: =SUBTOTAL(3,$I$13:I32) -> 0 | L32: 0.00 | N32: 0 | Y32: ТЕХНОБЛОК СТАНДАРТ | Z32: Воронка парапетная 100*100 (квадратное сечение) | AV32: ПВХ мембрана LOGICROOF V-RP (1.8 мм) | AY32: =IF(OR(AV32=$C$23:$C$61),1,0) -> 0
B33: =SUBTOTAL(3,$I$13:I33) -> 0 | L33: 0.00 | N33: 0 | Y33: ТЕХНОВЕНТ СТАНДАРТ | Z33: Воронка ULTRA парапетная 110 | AV33: ПВХ мембрана LOGICROOF V-RP ARCTIC (1.8 мм) | AY33: =IF(OR(AV33=$C$23:$C$61),1,0) -> 0
B34: =SUBTOTAL(3,$I$13:I34) -> 0 | L34: =IFERROR(I34*K34,0) -> 0.00 | N34: =IF(OR(I34=" ",I34=0),0,1) -> 0 | Y34: ТЕХНОЛАЙТ ЭКСТРА | Z34: Воронка ULTRA ремонтная парапетная 100 | AV34: ПВХ мембрана ECOPLAST V-RP (1.8 мм) | AY34: =IF(OR(AV34=$C$23:$C$61),1,0) -> 0
B35: =SUBTOTAL(3,$I$13:I35) -> 0 | L35: =IFERROR(I35*K35,0) -> 0.00 | N35: =IF(OR(I35=" ",I35=0),0,1) -> 0 | Y35: ТЕХНОРУФ Н ПРОФ | Z35: Нет | AV35: ПВХ мембрана LOGICROOF V-RP ARCTIC (2.0 мм) | AY35: =IF(OR(AV35=$C$23:$C$61),1,0) -> 0
A36: =HYPERLINK("#"&$AB$5&"!P157","↓ ") -> ↓ | B36: =HYPERLINK("#"&$AB$5&"!P102","↓ ") -> ↓ | C36: Устройство примыканий | H36: =HYPERLINK("#"&AB5&"!A940","1111") -> 1111 | J36: =HYPERLINK("#"&AB5&"!A1050","1111") -> 1111 | K36: =HYPERLINK("#"&$AB$5&"!A1150","ТЕПЛО ПАРАПЕТ ") -> ТЕПЛО ПАРАПЕТ | L36: =SUM(L37:L61) -> 0.00 | N36: =IF(SUM(I23:I61)>0,1,0) -> 0 | Y36: Плита теплоизоляционная LOGICPIR PROF Ф/Ф | Z36: ТЕХНОРУФ 45 ГАЛТЕЛЬ (1.2 м) | AV36: ПВХ мембрана ECOPLAST V-GR (2.0 мм) | AY36: =IF(OR(AV36=$C$23:$C$61),1,0) -> 0
B37: =SUBTOTAL(3,$I$13:I37) -> 0 | L37: =IFERROR(I23*K37,0) -> 0.00 | N37: =IF(OR(I23=" ",I23=0),0,1) -> 0 | Y37: Плита теплоизоляционная LOGICPIR PROF СХМ/СХМ | Z37: ТЕХНОРУФ Н ПРОФ, для галтели* | AV37: ПВХ мембрана ECOPLAST V-RP (2.0 мм) | AY37: =IF(OR(AV37=$C$23:$C$61),1,0) -> 0
B38: =SUBTOTAL(3,$I$13:I38) -> 0 | L38: =IFERROR(I24*K38,0) -> 0.00 | N38: =IF(OR(I24=" ",I24=0),0,1) -> 0 | Y38: Плита теплоизоляционная LOGICPIR PROF СХ/СХ | AV38: ПВХ мембрана LOGICROOF V-GR FB (1.2 мм) | AY38: =IF(OR(AV38=$C$23:$C$61),1,0) -> 0
B39: =SUBTOTAL(3,$I$13:I39) -> 0 | L39: =IFERROR(I39*K39,0) -> 0.00 | N39: =IF(OR(I39=" ",I39=0),0,1) -> 0 | Y39: Сендвич-панель ТЕХНОНИКОЛЬ Ц-XPS CARBON | AV39: ПВХ мембрана LOGICROOF V-RP (2.0 мм) | AY39: =IF(OR(AV39=$C$23:$C$61),1,0) -> 0
B40: =SUBTOTAL(3,$I$13:I40) -> 0 | L40: 0.00 | N40: 0 | Y40: XPS ТехноНИКОЛЬ CARBON ECO | AV40: ПВХ мембрана LOGICROOF V-GR FB (1.2 мм) | AY40: =IF(OR(AV40=$C$23:$C$61),1,0) -> 0
B41: =SUBTOTAL(3,$I$13:I41) -> 0 | L41: 0.00 | N41: 0 | Y41: XPS ТехноНИКОЛЬ CARBON PROF | AV41: ПВХ мембрана LOGICROOF V-GR FB (1.5 мм) | AY41: =IF(OR(AV41=$C$23:$C$61),1,0) -> 0
B42: =SUBTOTAL(3,$I$13:I42) -> 0 | L42: 0.00 | N42: 0 | AV42: ПВХ мембрана LOGICROOF V-GR FB (1.8 мм) | AY42: =IF(OR(AV42=$C$23:$C$61),1,0) -> 0
B43: =SUBTOTAL(3,$I$13:I43) -> 0 | L43: 0.00 | N43: 0 | AV43: ПВХ мембрана LOGICROOF V-GR FB (2.0 мм) | AY43: =IF(OR(AV43=$C$23:$C$61),1,0) -> 0
B44: =SUBTOTAL(3,$I$13:I44) -> 0 | L44: 0.00 | N44: 0
B45: =SUBTOTAL(3,$I$13:I45) -> 0 | L45: 0.00 | N45: 0
B46: =SUBTOTAL(3,$I$13:I46) -> 0 | L46: 0.00 | N46: 0
B47: =SUBTOTAL(3,$I$13:I47) -> 0 | L47: 0.00 | N47: 0
B48: =SUBTOTAL(3,$I$13:I48) -> 0 | L48: 0.00 | N48: 0
B49: =SUBTOTAL(3,$I$13:I49) -> 0 | L49: 0.00 | N49: 0
B50: =SUBTOTAL(3,$I$13:I50) -> 0 | L50: 0.00 | N50: =IF(OR(I50=" ",I50=0),0,1) -> 0
B51: =SUBTOTAL(3,$I$13:I51) -> 0 | L51: 0.00 | N51: =IF(OR(I51=" ",I51=0),0,1) -> 0
B52: =SUBTOTAL(3,$I$13:I52) -> 0 | L52: 0.00 | N52: 0
B53: =SUBTOTAL(3,$I$13:I53) -> 0 | L53: 0.00 | N53: 0
B54: =SUBTOTAL(3,$I$13:I54) -> 0 | L54: 0.00 | N54: 0
B55: =SUBTOTAL(3,$I$13:I55) -> 0 | L55: 0.00 | N55: 0
B56: =SUBTOTAL(3,$I$13:I56) -> 0 | L56: 0.00 | N56: 0
B57: =SUBTOTAL(3,$I$13:I57) -> 0 | L57: 0.00 | N57: 0
B58: =SUBTOTAL(3,$I$13:I58) -> 0 | L58: 0.00 | N58: 0
B59: =SUBTOTAL(3,$I$13:I59) -> 0 | L59: 0.00 | N59: 0
B60: =SUBTOTAL(3,$I$13:I60) -> 0 | L60: 0.00 | N60: 0
B61: =SUBTOTAL(3,$I$13:I61) -> 0 | L61: 0.00 | N61: =IF(OR(I61=" ",I61=0),0,1) -> 0
C62: Устройство уклонообразующего слоя | H62: =HYPERLINK("#"&AB5&"!A1090","1111") -> 1111 | L62: =IFERROR(SUM(L63:L69),0) -> 0.00 | N62: =IF(SUM(I63:I69)>0,1,0) -> 0
B63: =SUBTOTAL(3,$I$13:I63) -> 1 | C63: =IF(T3=Y13,"",IF(T3=Y14,C1079,IF(T3=Y15,C1090,IF(T3=Y16,C1097,IF(T3=Y17,C1099,C1113))))) ->  | I63: =IF(T3=Y13,"",IF(T3=Y14,I1079,IF(T3=Y15,I1090,IF(T3=Y16,I1097,IF(T3=Y17,I1099,I1113))))) ->  | J63: =IF(T3=Y13," ",IF(OR(T3=Y14,T3=Y15),J1079,IF(OR(T3=Y16,T3=Y17),J1097,J1113))) ->  | L63: =IFERROR(I63*K63,0) -> 0.00 | N63: =IF(I63="",0,1) -> 0
B64: =SUBTOTAL(3,$I$13:I64) -> 2 | C64: =IF(T3=Y13,"",IF(T3=Y14,C1080,IF(T3=Y15,C1091,IF(T3=Y17,C1100,IF(T3=Y16,C1098,C1114))))) ->  | I64: =IF(T3=Y13,"",IF(T3=Y14,I1080,IF(T3=Y15,I1091,IF(T3=Y16,I1098,IF(T3=Y17,I1100,I1114))))) ->  | J64: =IF(T3=Y13," ",IF(OR(T3=Y14,T3=Y15),J1080,IF(OR(T3=Y16,T3=Y17),J1098,J1114))) ->  | L64: 0.00 | N64: 0
B65: =SUBTOTAL(3,$I$13:I65) -> 3 | C65: =IF(T3=Y13,"",IF(T3=Y14,C1081,IF(T3=Y15,C1092,IF(T3=Y16,C1101,IF(T3=Y17,C1102,C1115))))) ->  | I65: =IF(T3=Y13,"",IF(T3=Y14,I1081,IF(T3=Y15,I1092,IF(T3=Y16,I1101,IF(T3=Y17,I1102,I1115))))) ->  | J65: =IF(T3=Y13," ",IF(OR(T3=Y14,T3=Y15),J1081,IF(OR(T3=Y16,T3=Y17),J1101,J1115))) ->  | L65: 0.00 | N65: 0
B66: =SUBTOTAL(3,$I$13:I66) -> 4 | C66: =IF(OR(T4=Y20,T4=Y22),C1082,"") ->  | I66: =IF(OR(T4=Y20,T4=Y22),I1082,"") ->  | J66: =IF(OR(T4=Y20,T4=Y22),J1082,"") ->  | L66: 0.00 | N66: 0
B67: =SUBTOTAL(3,$I$13:I67) -> 5 | C67: =IF(T4=Y19,"",IF(T4=Y20,C1083,IF(T4=Y21,C1093,IF(T4=Y22,C1086,IF(T4=Y23,C1103,IF(T4=Y24,C1105,IF(OR(T4=Y25,T4=Y26),C1116,C1110))))))) ->  | I67: =IF(T4=Y19,"",IF(T4=Y20,I1083,IF(T4=Y21,I1093,IF(T4=Y22,I1086,IF(T4=Y23,I1103,IF(T4=Y24,I1105,IF(OR(T4=Y25,T4=Y26),I1116,I1110))))))) ->  | J67: =IF(T4=Y19," ",IF(OR(T4=Y20,T4=Y22),J1083,IF(OR(T3=Y23,T3=Y24),J1103,IF(OR(T4=Y25,T4=Y26),J1116,J1110)))) ->  | L67: 0.00 | N67: 0
B68: =SUBTOTAL(3,$I$13:I68) -> 6 | C68: =IF(T4=Y19,"",IF(T4=Y20,C1084,IF(T4=Y21,C1094,IF(T4=Y22,C1087,IF(T4=Y24,C1106,IF(T4=Y26,C1117,IF(T4=Y23,C1104,IF(T4=Y25,"",C1111)))))))) ->  | I68: =IF(T4=Y19,"",IF(T4=Y20,I1084,IF(T4=Y21,I1094,IF(T4=Y22,I1087,IF(T4=Y26,I1117,IF(T4=Y23,I1104,IF(T4=Y24,I1106,IF(T4=Y25,"",I1111)))))))) ->  | J68: =IF(T4=Y19," ",IF(OR(T4=Y20,T4=Y22),J1084,IF(OR(T3=Y23,T3=Y24),J1104,IF(T4=Y26,J1117,IF(T4=Y25,"",J1111))))) ->  | L68: 0.00 | N68: 0
B69: =SUBTOTAL(3,$I$13:I69) -> 7 | C69: =IF(T4=Y19,"",IF(T4=Y20,C1085,IF(T4=Y21,C1095,IF(T4=Y22,C1088,IF(T4=Y23,C1107,IF(T4=Y26,C1119,IF(T4=Y24,C1108,IF(T4=Y25,C1118,"")))))))) ->  | I69: =IF(T4=Y19,"",IF(T4=Y20,I1085,IF(T4=Y21,I1095,IF(T4=Y22,I1088,IF(T4=Y23,I1107,IF(T4=Y24,I1108,IF(T4=Y26,I1119,IF(T4=Y25,I1118,"")))))))) ->  | J69: =IF(T4=Y19," ",IF(OR(T4=Y20,T4=Y21,T4=Y22),J1085,IF(T3=Y23,J1107,IF(T4=Y24,J1107,IF(T4=Y26,J1119,IF(T4=Y25,J1118," ")))))) ->  | L69: 0.00 | N69: 0
C70: =IF(SUM(I23:I35,I23:I62)>0,"* Позиции носят рекомендательный характер","") ->  | N70: =IF(SUM(I23:I35,I23:I62)>0,1,0) -> 0
N71: =IF($V$4="НЕТ",0,1) -> 0
N72: =IF($V$4="НЕТ",0,1) -> 0 | P72: =IF(V3="НЕТ"," ",IF(V3="ПВХ","ПВХ мембрана","Битумно- полимерная ")) -> 
I73: Сметная стоимость крепежа : | J73: =SUM(L114,L101,L82) -> 0.00 | L73: руб. | N73: =IF($V$4="НЕТ",0,1) -> 0 | P73: =IF(V3="НЕТ"," ","ТИПЫ") ->  | Q73: =IF(V3="НЕТ"," ","ПГ") ->  | S73: =IF(V3="НЕТ"," ","ДКР") ->  | T73: =IF(V3="НЕТ"," ","ДПР") ->  | U73: =IF(V3="НЕТ"," ","ТЭ") ->  | V73: =IF(V3="НЕТ"," ","ГнП") ->  | Y73: СМРЗ. МЕТ | Z73: СМРЗ БЕТ. | AA73: АНКЕР | AB73: ПРАЙМЕР
N74: 0 | Q74: =IF(V3="НЕТ"," ","ВЕРХ") ->  | R74: =IF(V3="НЕТ"," ","НИЗ") -> 
B75: Спецификация крепежа | G75: =номер_объекта -> 11-27ХХ-МПКПМКИ-12.21 | K75: =IF(K5=0," ",K5) -> ТИП3 | N75: 0 | P75: =IF(V3="НЕТ"," ","СУММА") ->  | Q75: =IF(V3="ПВХ",SUM(Y81:Y85,Y88:Y92,Y95:Y98,Y101,Q104),IF(V3="нет"," ",SUM(Y133:Y137,Y141:Y145,Y149:Y152,Q161))) ->  | R75: =IF(V3="Битумно- полимерная",SUM(Z133:Z137,Z141:Z145,Z149:Z152,Z156,Q162),IF(V3="НЕТ"," ",0)) ->  | S75: =IF(V3="НЕТ"," ",IF(V3="ПВХ",SUM(AA95:AA98,Q105),SUM(AA149:AA152,S161))) ->  | T75: =IF(V3="нет"," ",IF(V3="ПВХ",SUM(Z81:Z85,Z88:Z92,Z95:Z98,Q106),SUM(AA133:AA137,S162))) ->  | U75: =IF(V3="ПВХ",SUM(AA81:AA85,AA88:AA92,Z101,S104),IF(V3="НЕТ"," ",0)) ->  | V75: =IF(V3="ПВХ",SUM(AB81:AB85,AB88:AB92,AB95:AB98,S105),IF(V3="НЕТ"," ",0)) ->  | Y75: =IF(V3=Y3,SUM(AB133:AB137,AB149:AB152,Q163),IF(V3=Y4,SUM(AC81:AC85,AC88:AC92,AC95:AC98,AA101,S106),0)) -> 0 | Z75: =IF(V3=Y3,SUM(AC133:AC137,AC149:AC152,S163),IF(V3=Y4,SUM(AD81:AD85,AD88:AD92,AD95:AD98,AB101,U105),0)) -> 0 | AA75: =IF(V3=Y3,SUM(AD133:AD137,AD149:AD152,U161),IF(V3=Y4,SUM(AE81:AE85,AE88:AE92,AE95:AE98,AC101,U104),0)) -> 0 | AB75: =IF(V3=Y3,SUM(AE133:AE137,AE149:AE152,AE141:AE145),0) -> 0 | AD75: =СМРЗ.МЕТ*5.15 -> 0 | AF75: =(AC81+AC82+AC83+AC84+AC85+AC88+AC90+AC89+AC91+AC92+AC95+AC96+AC97+AC98)*5.15 -> 0
N76: 0 | P76: =IFERROR(IF($V$4=$Y$12,SUM($I$102:$I$113)/ПЛ," "),0) ->  | Q76: =IF($V$4=$Y$12,"расход количества крепежа для всей кровли, шт/м2"," ") -> 
N77: 0 | P77: =IF(T3=Y13," ",IF(T3=Y14,0.72*SUM(Q8:Q9),0.72*SUM(Q8:Q9))) ->  | Q77: =IF(T3=Y13," ","площадь клинов ОУ, м2") ->  | S77: =IF(T3=Y13," ",IFERROR($P$77/ПЛ,0)) ->  | T77: =IF(T3=Y13," ","соотношение площади клинов к основной площади") -> 
B78: № | C78: Наименование | I78: Кол-во* | J78: Ед. изм. | K78: Стоимость ед., руб. | L78: Сметная стоимость, руб. | N78: 0 | P78: =IF(T4=Y19," ",IF(OR(T4=Y27,T4=Y25),0.72*U8,0.72*SUM(U8:U9))) ->  | Q78: =IF(T4=Y19," ","площадь клинов КУ, м2") ->  | S78: =IF(T4=Y19," ",IFERROR($P$78/ПЛ,0)) ->  | T78: =IF(T4=Y19," ","соотношение площади клинов к основной площади") -> 
N79: 0 | P79: =IF(V3=Y4,"Примыкание к парапету высотой более 500 мм"," ") ->  | U79: =HYPERLINK("#"&$AB$5&"!B36","⇑ ") -> ⇑ | Y79: Примыкание к парапету высотой более 500 мм | AF79: ОБЪЕМ УТЕПЛ | AG79: САМОРЕЗ КУ | AI79: ТЕЛЕСКОП КУ | AK79: САМОРЕЗ КР | AN79: Тип примыканий
N80: 0 | P80: НАЗВАНИЕ | Q80: =IF(V3=Y4,"ТИПЫ"," ") ->  | R80: =IF(V3=Y4,"ШИРИНА, мм"," ") ->  | S80: =IF(V3=Y4,"ВЫСОТА, мм"," ") ->  | T80: =IF(V3=Y4,"ДЛИНА, м"," ") ->  | U80: Н утепл, мм | V80: толщ., мм | W80: марка ут. | Y80: ПГ | Z80: ДПР | AA80: ТЭ | AB80: ГнП | AC80: СМРЗ. МЕТ | AD80: СМРЗ БЕТ. | AE80: АНКЕР, шт | AG80: размер | AH80: кол-во, шт | AI80: размер | AJ80: кол-во, шт | AK80: размер | AL80: кол-во, шт | AN80: В Примечания
B81: 1 | C81: 2 | I81: 3 | J81: 4 | K81: 5 | L81: 6 | N81: 0 | Y81: =(530+R81+S81)/1000*T81 -> 0 | Z81: =T81*2 -> 0 | AA81: =T81 -> 0 | AB81: =IF(SUM(R81:S81)>U81,IF(Q81=$Z$16,((R81+S81)/1000*T81),IF(Q81=$Z$18,((R81+S81-U81)/1000*T81),IF(Q81=$Z$19,((V81+U81)/1000*T81),IF(Q81=$Z$20,((R81+S81+V81)/1000*T81),0)))),0) -> 0 | AC81: =ROUNDUP(IF(OR(Q81=$Z$19,Q81=$Z$15),SUM(Z81:AA81),IF(Q81=$Z$17,(T81+AA81),IF(Q81=$Z$20,T81,0))),0) -> 0 | AD81: =ROUNDUP(IF(Q81=$Z$16,SUM(Z81:AA81),IF(OR(Q81=$Z$20,Q81=$Z$18),(T81+AA81),0)),0) -> 0 | AE81: =ROUNDUP(IF(Q81=$Z$16,SUM(Z81:AA81)*5*1.03,IF(Q81=$Z$18,(AA81+T81)*5*1.03+AH81+AL81,IF(Q81=$Z$20,(AA81+T81)*5*1.03,0))),0) -> 0 | AF81: =ROUNDUP(IF($AE$5=1,U81/1000*V81/1000*T81*1.03,0),1) -> 0.0 | AG81: =IF(Q81=$Z$18,INDEX($AH$307:$AI$339,MATCH(V81,$AG$307:$AG$339,0),2),IF(Q81=$Z$17,INDEX($AK$307:$AL$341,MATCH(V81,$AJ$307:$AJ$341,0),2),0)) -> 0 | AH81: =IF($W81=$Y$39,0,IF(AG81=0,0,ROUNDUP(7*T81*U81/1000*1.03,0))) -> 0 | AI81: =IF(Q81=$Z$18,INDEX($AH$307:$AI$339,MATCH(V81,$AG$307:$AG$339,0),1),IF(Q81=$Z$17,INDEX($AK$307:$AL$341,MATCH(V81,$AJ$307:$AJ$341,0),1),0)) -> 0 | AJ81: =AH81 -> 0 | AK81: =IF(Q81=$Z$18,INDEX($AO$306:$AP$323,MATCH(V81,$AN$306:$AN$323,0),2),IF(Q81=$Z$17,INDEX($AR$306:$AS$323,MATCH(V81,$AQ$306:$AQ$323,0),2),0)) -> 0 | AL81: =IF(AK81=0,0,ROUNDUP(T81*5*1.03,0)) -> 0 | AN81: =IFERROR(MATCH(Q81,$Z$15:$Z$20,0),0) -> 0
C82: =IF(AND(I83>0,SUM(I84:I97)>0),"Телескопический крепеж и тарельчатый держатель",IF(AND(I83>0,SUM(I84:I97)=0),"Тарельчатый держатель","Телескопический крепеж")) -> Телескопический крепеж | L82: =SUM(L83:L100) -> 0.00 | N82: =IF(SUM(I83:I100)>0,1,0) -> 0 | Y82: =(530+R82+S82)/1000*T82 -> 0 | Z82: =T82*2 -> 0 | AA82: =T82 -> 0 | AB82: =IF(SUM(R82:S82)>U82,IF(Q82=$Z$16,((R82+S82)/1000*T82),IF(Q82=$Z$18,((R82+S82-U82)/1000*T82),IF(Q82=$Z$19,((V82+U82)/1000*T82),IF(Q82=$Z$20,((R82+S82+V82)/1000*T82),0)))),0) -> 0 | AC82: =ROUNDUP(IF(OR(Q82=$Z$19,Q82=$Z$15),SUM(Z82:AA82),IF(Q82=$Z$17,(T82+AA82),IF(Q82=$Z$20,T82,0))),0) -> 0 | AD82: =ROUNDUP(IF(Q82=$Z$16,SUM(Z82:AA82),IF(OR(Q82=$Z$20,Q82=$Z$18),(T82+AA82),0)),0) -> 0 | AE82: =ROUNDUP(IF(Q82=$Z$16,SUM(Z82:AA82)*5*1.03,IF(Q82=$Z$18,(AA82+T82)*5*1.03+AH82+AL82,IF(Q82=$Z$20,(AA82+T82)*5*1.03,0))),0) -> 0 | AF82: =ROUNDUP(IF($AE$5=1,U82/1000*V82/1000*T82*1.03,0),1) -> 0.0 | AG82: =IF(Q82=$Z$18,INDEX($AH$307:$AI$339,MATCH(V82,$AG$307:$AG$339,0),2),IF(Q82=$Z$17,INDEX($AK$307:$AL$341,MATCH(V82,$AJ$307:$AJ$341,0),2),0)) -> 0 | AH82: =IF($W82=$Y$39,0,IF(AG82=0,0,ROUNDUP(7*T82*U82/1000*1.03,0))) -> 0 | AI82: =IF(Q82=$Z$18,INDEX($AH$307:$AI$339,MATCH(V82,$AG$307:$AG$339,0),1),IF(Q82=$Z$17,INDEX($AK$307:$AL$341,MATCH(V82,$AJ$307:$AJ$341,0),1),0)) -> 0 | AJ82: =AH82 -> 0 | AK82: =IF(Q82=$Z$18,INDEX($AO$306:$AP$323,MATCH(V82,$AN$306:$AN$323,0),2),IF(Q82=$Z$17,INDEX($AR$306:$AS$323,MATCH(V82,$AQ$306:$AQ$323,0),2),0)) -> 0 | AL82: =IF(AK82=0,0,ROUNDUP(T82*5*1.03,0)) -> 0 | AN82: =IFERROR(MATCH(Q82,$Z$15:$Z$20,0),0) -> 0
B83: =SUBTOTAL(3,$I$83:I83) -> 1 | C83: =IF($V$3=$Y$3,"Круглый тарельчатый держатель ТехноНИКОЛЬ 50мм", "Круглый тарельчатый держатель ТН (1/С) Ø 50") -> Круглый тарельчатый держатель ТН (1/С) Ø 50 | H83: ТЭ | I83: =IF(AND(OR($R$4=$Y$9,$R$4=$Y$10),$V$4=$AA$6),ROUNDUP(ПЛ*$U$12,0),IF(AND(R4=Y7,V4=AA11),SUMIF(D225:D295,H83,I225:I295),IF(AND(OR(R4=Y7,R4=Y8),V4=AA10),ROUNDUP(ПЛ*$U$12,0)+SUMIF(D225:D295,"ТЭ",I225:I295),(SUMIF($D$137:$D$216,H83,$L$137:$L$216)+SUMIF(D225:D295,"ТЭ",I225:I295)))))+IF($AK$24>0,$AK$26,0) -> 0 | J83: шт. | L83: =IFERROR(I83*K83,0) -> 0.00 | N83: =IF(I83>0,1,0) -> 0 | Y83: =(530+R83+S83)/1000*T83 -> 0 | Z83: =T83*2 -> 0 | AA83: =T83 -> 0 | AB83: =IF(SUM(R83:S83)>U83,IF(Q83=$Z$16,((R83+S83)/1000*T83),IF(Q83=$Z$18,((R83+S83-U83)/1000*T83),IF(Q83=$Z$19,((V83+U83)/1000*T83),IF(Q83=$Z$20,((R83+S83+V83)/1000*T83),0)))),0) -> 0 | AC83: =ROUNDUP(IF(OR(Q83=$Z$19,Q83=$Z$15),SUM(Z83:AA83),IF(Q83=$Z$17,(T83+AA83),IF(Q83=$Z$20,T83,0))),0) -> 0 | AD83: =ROUNDUP(IF(Q83=$Z$16,SUM(Z83:AA83),IF(OR(Q83=$Z$20,Q83=$Z$18),(T83+AA83),0)),0) -> 0 | AE83: =ROUNDUP(IF(Q83=$Z$16,SUM(Z83:AA83)*5*1.03,IF(Q83=$Z$18,(AA83+T83)*5*1.03+AH83+AL83,IF(Q83=$Z$20,(AA83+T83)*5*1.03,0))),0) -> 0 | AF83: =ROUNDUP(IF($AE$5=1,U83/1000*V83/1000*T83*1.03,0),1) -> 0.0 | AG83: =IF(Q83=$Z$18,INDEX($AH$307:$AI$339,MATCH(V83,$AG$307:$AG$339,0),2),IF(Q83=$Z$17,INDEX($AK$307:$AL$341,MATCH(V83,$AJ$307:$AJ$341,0),2),0)) -> 0 | AH83: =IF($W83=$Y$39,0,IF(AG83=0,0,ROUNDUP(7*T83*U83/1000*1.03,0))) -> 0 | AI83: =IF(Q83=$Z$18,INDEX($AH$307:$AI$339,MATCH(V83,$AG$307:$AG$339,0),1),IF(Q83=$Z$17,INDEX($AK$307:$AL$341,MATCH(V83,$AJ$307:$AJ$341,0),1),0)) -> 0 | AJ83: =AH83 -> 0 | AK83: =IF(Q83=$Z$18,INDEX($AO$306:$AP$323,MATCH(V83,$AN$306:$AN$323,0),2),IF(Q83=$Z$17,INDEX($AR$306:$AS$323,MATCH(V83,$AQ$306:$AQ$323,0),2),0)) -> 0 | AL83: 0 | AN83: =IFERROR(MATCH(Q83,$Z$15:$Z$20,0),0) -> 0
B84: =SUBTOTAL(3,$I$83:I84) -> 2 | C84: Телескопический крепеж ТехноНИКОЛЬ | F84: 20 | G84: мм | I84: =IF(OR($V$4=$AA$10,$V$4=$AA$11),SUMIF($D$225:$D$295,F84,$I$225:$I$295),SUMIF($D$137:$D$216,F84,$L$137:$L$216)) -> 0 | J84: шт. | L84: =I84*K84 -> 0.00 | N84: 0 | Y84: =(530+R84+S84)/1000*T84 -> 0 | Z84: =T84*2 -> 0 | AA84: =T84 -> 0 | AB84: =IF(SUM(R84:S84)>U84,IF(Q84=$Z$16,((R84+S84)/1000*T84),IF(Q84=$Z$18,((R84+S84-U84)/1000*T84),IF(Q84=$Z$19,((V84+U84)/1000*T84),IF(Q84=$Z$20,((R84+S84+V84)/1000*T84),0)))),0) -> 0 | AC84: =ROUNDUP(IF(OR(Q84=$Z$19,Q84=$Z$15),SUM(Z84:AA84),IF(Q84=$Z$17,(T84+AA84),IF(Q84=$Z$20,T84,0))),0) -> 0 | AD84: =ROUNDUP(IF(Q84=$Z$16,SUM(Z84:AA84),IF(OR(Q84=$Z$20,Q84=$Z$18),(T84+AA84),0)),0) -> 0 | AE84: =ROUNDUP(IF(Q84=$Z$16,SUM(Z84:AA84)*5*1.03,IF(Q84=$Z$18,(AA84+T84)*5*1.03+AH84+AL84,IF(Q84=$Z$20,(AA84+T84)*5*1.03,0))),0) -> 0 | AF84: =ROUNDUP(IF($AE$5=1,U84/1000*V84/1000*T84*1.03,0),1) -> 0.0 | AG84: =IF(Q84=$Z$18,INDEX($AH$307:$AI$339,MATCH(V84,$AG$307:$AG$339,0),2),IF(Q84=$Z$17,INDEX($AK$307:$AL$341,MATCH(V84,$AJ$307:$AJ$341,0),2),0)) -> 0 | AH84: =IF($W84=$Y$39,0,IF(AG84=0,0,ROUNDUP(7*T84*U84/1000*1.03,0))) -> 0 | AI84: =IF(Q84=$Z$18,INDEX($AH$307:$AI$339,MATCH(V84,$AG$307:$AG$339,0),1),IF(Q84=$Z$17,INDEX($AK$307:$AL$341,MATCH(V84,$AJ$307:$AJ$341,0),1),0)) -> 0 | AJ84: =AH84 -> 0 | AK84: =IF(Q84=$Z$18,INDEX($AO$306:$AP$323,MATCH(V84,$AN$306:$AN$323,0),2),IF(Q84=$Z$17,INDEX($AR$306:$AS$323,MATCH(V84,$AQ$306:$AQ$323,0),2),0)) -> 0 | AL84: 0 | AN84: =IFERROR(MATCH(Q84,$Z$15:$Z$20,0),0) -> 0
B85: =SUBTOTAL(3,$I$83:I85) -> 3 | C85: Телескопический крепеж ТехноНИКОЛЬ | F85: 50 | G85: мм | I85: 0 | J85: шт. | L85: =I85*K85 -> 0.00 | N85: 0 | Y85: =(530+R85+S85)/1000*T85 -> 0 | Z85: =T85*2 -> 0 | AA85: =T85 -> 0 | AB85: =IF(SUM(R85:S85)>U85,IF(Q85=$Z$16,((R85+S85)/1000*T85),IF(Q85=$Z$18,((R85+S85-U85)/1000*T85),IF(Q85=$Z$19,((V85+U85)/1000*T85),IF(Q85=$Z$20,((R85+S85+V85)/1000*T85),0)))),0) -> 0 | AC85: =ROUNDUP(IF(OR(Q85=$Z$19,Q85=$Z$15),SUM(Z85:AA85),IF(Q85=$Z$17,(T85+AA85),IF(Q85=$Z$20,T85,0))),0) -> 0 | AD85: =ROUNDUP(IF(Q85=$Z$16,SUM(Z85:AA85),IF(OR(Q85=$Z$20,Q85=$Z$18),(T85+AA85),0)),0) -> 0 | AE85: =ROUNDUP(IF(Q85=$Z$16,SUM(Z85:AA85)*5*1.03,IF(Q85=$Z$18,(AA85+T85)*5*1.03+AH85+AL85,IF(Q85=$Z$20,(AA85+T85)*5*1.03,0))),0) -> 0 | AF85: =ROUNDUP(IF($AE$5=1,U85/1000*V85/1000*T85*1.03,0),1) -> 0.0 | AG85: =IF(Q85=$Z$18,INDEX($AH$307:$AI$339,MATCH(V85,$AG$307:$AG$339,0),2),IF(Q85=$Z$17,INDEX($AK$307:$AL$341,MATCH(V85,$AJ$307:$AJ$341,0),2),0)) -> 0 | AH85: =IF($W85=$Y$39,0,IF(AG85=0,0,ROUNDUP(7*T85*U85/1000*1.03,0))) -> 0 | AI85: =IF(Q85=$Z$18,INDEX($AH$307:$AI$339,MATCH(V85,$AG$307:$AG$339,0),1),IF(Q85=$Z$17,INDEX($AK$307:$AL$341,MATCH(V85,$AJ$307:$AJ$341,0),1),0)) -> 0 | AJ85: =AH85 -> 0 | AK85: =IF(Q85=$Z$18,INDEX($AO$306:$AP$323,MATCH(V85,$AN$306:$AN$323,0),2),IF(Q85=$Z$17,INDEX($AR$306:$AS$323,MATCH(V85,$AQ$306:$AQ$323,0),2),0)) -> 0 | AL85: 0 | AN85: =IFERROR(MATCH(Q85,$Z$15:$Z$20,0),0) -> 0
B86: =SUBTOTAL(3,$I$83:I86) -> 4 | C86: Телескопический крепеж ТехноНИКОЛЬ | F86: 80 | G86: мм | I86: 0 | J86: шт. | L86: 0.00 | N86: 0 | P86: =IF(V3=Y4,"Примыкание к парапету высотой менее 500 мм"," ") ->  | Y86: Примыкание к парапету высотой менее 500 мм | AF86: ОБЪЕМ УТЕПЛ | AG86: САМОРЕЗ КУ | AI86: ТЕЛЕСКОП КУ | AK86: САМОРЕЗ КР
B87: =SUBTOTAL(3,$I$83:I87) -> 5 | C87: Телескопический крепеж ТехноНИКОЛЬ | F87: 100 | G87: мм | I87: 0 | J87: шт. | L87: 0.00 | N87: 0 | P87: НАЗВАНИЕ | Q87: =IF(V3=Y4,"ТИПЫ"," ") ->  | R87: =IF(V3=Y4,"ШИРИНА, мм"," ") ->  | S87: =IF(V3=Y4,"ВЫСОТА, мм"," ") ->  | T87: =IF(V3=Y4,"ДЛИНА, м"," ") ->  | U87: Н утепл, мм | V87: толщ., мм | W87: марка ут. | Y87: ПГ | Z87: ДПР | AA87: ТЭ | AB87: ГнП | AC87: СМРЗ. МЕТ | AD87: СМРЗ БЕТ. | AE87: АНКЕР, шт | AG87: размер | AH87: кол-во, шт | AI87: размер | AJ87: кол-во, шт | AK87: размер | AL87: кол-во, шт
B88: =SUBTOTAL(3,$I$83:I88) -> 6 | C88: Телескопический крепеж ТехноНИКОЛЬ | F88: 120 | G88: мм | I88: 0 | J88: шт. | L88: 0.00 | N88: 0 | Y88: =T88*(430+R88+S88)/1000 -> 0 | Z88: =T88 -> 0 | AA88: =T88 -> 0 | AB88: =IF(SUM(R88:S88)>U88,IF(Q88=$Z$16,((R88+S88)/1000*T88),IF(Q88=$Z$18,((R88+S88-U88)/1000*T88),IF(Q88=$Z$19,((V88+U88)/1000*T88),IF(Q88=$Z$20,((R88+S88+V88)/1000*T88),0)))),0) -> 0 | AC88: =ROUNDUP(IF(OR(Q88=$Z$17,Q88=$Z$19,Q88=$Z$15),SUM(Z88:AA88),0),0) -> 0 | AD88: =ROUNDUP(IF(OR(Q88=$Z$18,Q88=$Z$20,Q88=$Z$16),SUM(Z88:AA88),0),0) -> 0 | AE88: =ROUNDUP(IF(OR(Q88=$Z$20,Q88=$Z$16),SUM(Z88:AA88)*5*1.03,IF(Q88=$Z$18,(AA88+Z88)*5*1.03+AH88,0)),0) -> 0 | AF88: =ROUNDUP(IF($AE$6=1,U88/1000*V88/1000*T88*1.03,0),1) -> 0.0 | AG88: =IF(Q88=$Z$18,INDEX($AH$307:$AI$339,MATCH(V88,$AG$307:$AG$339,0),2),IF(Q88=$Z$17,INDEX($AK$307:$AL$341,MATCH(V88,$AJ$307:$AJ$341,0),2),0)) -> 0 | AH88: =IF($W88=$Y$39,0,IF(AG88=0,0,ROUNDUP(7*T88*U88/1000*1.03,0))) -> 0 | AI88: =IF(Q88=$Z$18,INDEX($AH$307:$AI$339,MATCH(V88,$AG$307:$AG$339,0),1),IF(Q88=$Z$17,INDEX($AK$307:$AL$341,MATCH(V88,$AJ$307:$AJ$341,0),1),0)) -> 0 | AJ88: =AH88 -> 0 | AK88: =IF(Q88=$Z$18,INDEX($AO$306:$AP$323,MATCH(V88,$AN$306:$AN$323,0),2),IF(Q88=$Z$17,INDEX($AR$306:$AS$323,MATCH(V88,$AQ$306:$AQ$323,0),2),0)) -> 0 | AL88: 0 | AN88: =IFERROR(MATCH(Q88,$Z$15:$Z$20,0),0) -> 0
B89: =SUBTOTAL(3,$I$83:I89) -> 7 | C89: Телескопический крепеж ТехноНИКОЛЬ | F89: 130 | G89: мм | I89: 0 | J89: шт. | L89: 0.00 | N89: 0 | Y89: =T89*(430+R89+S89)/1000 -> 0 | Z89: =T89 -> 0 | AA89: =T89 -> 0 | AB89: =IF(SUM(R89:S89)>U89,IF(Q89=$Z$16,((R89+S89)/1000*T89),IF(Q89=$Z$18,((R89+S89-U89)/1000*T89),IF(Q89=$Z$19,((V89+U89)/1000*T89),IF(Q89=$Z$20,((R89+S89+V89)/1000*T89),0)))),0) -> 0 | AC89: =ROUNDUP(IF(OR(Q89=$Z$17,Q89=$Z$19,Q89=$Z$15),SUM(Z89:AA89),0),0) -> 0 | AD89: =ROUNDUP(IF(OR(Q89=$Z$18,Q89=$Z$20,Q89=$Z$16),SUM(Z89:AA89),0),0) -> 0 | AE89: =ROUNDUP(IF(OR(Q89=$Z$20,Q89=$Z$16),SUM(Z89:AA89)*5*1.03,IF(Q89=$Z$18,(AA89+Z89)*5*1.03+AH89,0)),0) -> 0 | AF89: =ROUNDUP(IF($AE$6=1,U89/1000*V89/1000*T89*1.03,0),1) -> 0.0 | AG89: =IF(Q89=$Z$18,INDEX($AH$307:$AI$339,MATCH(V89,$AG$307:$AG$339,0),2),IF(Q89=$Z$17,INDEX($AK$307:$AL$341,MATCH(V89,$AJ$307:$AJ$341,0),2),0)) -> 0 | AH89: =IF($W89=$Y$39,0,IF(AG89=0,0,ROUNDUP(7*T89*U89/1000*1.03,0))) -> 0 | AI89: =IF(Q89=$Z$18,INDEX($AH$307:$AI$339,MATCH(V89,$AG$307:$AG$339,0),1),IF(Q89=$Z$17,INDEX($AK$307:$AL$341,MATCH(V89,$AJ$307:$AJ$341,0),1),0)) -> 0 | AJ89: =AH89 -> 0 | AK89: =IF(Q89=$Z$18,INDEX($AO$306:$AP$323,MATCH(V89,$AN$306:$AN$323,0),2),IF(Q89=$Z$17,INDEX($AR$306:$AS$323,MATCH(V89,$AQ$306:$AQ$323,0),2),0)) -> 0 | AL89: 0 | AN89: =IFERROR(MATCH(Q89,$Z$15:$Z$20,0),0) -> 0
B90: =SUBTOTAL(3,$I$83:I90) -> 8 | C90: Телескопический крепеж ТехноНИКОЛЬ | F90: 140 | G90: мм | I90: 0 | J90: шт. | L90: 0.00 | N90: 0 | Y90: =T90*(430+R90+S90)/1000 -> 0 | Z90: =T90 -> 0 | AA90: =T90 -> 0 | AB90: =IF(SUM(R90:S90)>U90,IF(Q90=$Z$16,((R90+S90)/1000*T90),IF(Q90=$Z$18,((R90+S90-U90)/1000*T90),IF(Q90=$Z$19,((V90+U90)/1000*T90),IF(Q90=$Z$20,((R90+S90+V90)/1000*T90),0)))),0) -> 0 | AC90: =ROUNDUP(IF(OR(Q90=$Z$17,Q90=$Z$19,Q90=$Z$15),SUM(Z90:AA90),0),0) -> 0 | AD90: =ROUNDUP(IF(OR(Q90=$Z$18,Q90=$Z$20,Q90=$Z$16),SUM(Z90:AA90),0),0) -> 0 | AE90: =ROUNDUP(IF(OR(Q90=$Z$20,Q90=$Z$16),SUM(Z90:AA90)*5*1.03,IF(Q90=$Z$18,(AA90+Z90)*5*1.03+AH90,0)),0) -> 0 | AF90: =ROUNDUP(IF($AE$6=1,U90/1000*V90/1000*T90*1.03,0),1) -> 0.0 | AG90: =IF(Q90=$Z$18,INDEX($AH$307:$AI$339,MATCH(V90,$AG$307:$AG$339,0),2),IF(Q90=$Z$17,INDEX($AK$307:$AL$341,MATCH(V90,$AJ$307:$AJ$341,0),2),0)) -> 0 | AH90: =IF($W90=$Y$39,0,IF(AG90=0,0,ROUNDUP(7*T90*U90/1000*1.03,0))) -> 0 | AI90: =IF(Q90=$Z$18,INDEX($AH$307:$AI$339,MATCH(V90,$AG$307:$AG$339,0),1),IF(Q90=$Z$17,INDEX($AK$307:$AL$341,MATCH(V90,$AJ$307:$AJ$341,0),1),0)) -> 0 | AJ90: =AH90 -> 0 | AK90: =IF(Q90=$Z$18,INDEX($AO$306:$AP$323,MATCH(V90,$AN$306:$AN$323,0),2),IF(Q90=$Z$17,INDEX($AR$306:$AS$323,MATCH(V90,$AQ$306:$AQ$323,0),2),0)) -> 0 | AL90: 0 | AN90: =IFERROR(MATCH(Q90,$Z$15:$Z$20,0),0) -> 0
B91: =SUBTOTAL(3,$I$83:I91) -> 9 | C91: Телескопический крепеж ТехноНИКОЛЬ | F91: 150 | G91: мм | I91: 0 | J91: шт. | L91: 0.00 | N91: 0 | Y91: =T91*(430+R91+S91)/1000 -> 0 | Z91: =T91 -> 0 | AA91: =T91 -> 0 | AB91: =IF(SUM(R91:S91)>U91,IF(Q91=$Z$16,((R91+S91)/1000*T91),IF(Q91=$Z$18,((R91+S91-U91)/1000*T91),IF(Q91=$Z$19,((V91+U91)/1000*T91),IF(Q91=$Z$20,((R91+S91+V91)/1000*T91),0)))),0) -> 0 | AC91: =ROUNDUP(IF(OR(Q91=$Z$17,Q91=$Z$19,Q91=$Z$15),SUM(Z91:AA91),0),0) -> 0 | AD91: =ROUNDUP(IF(OR(Q91=$Z$18,Q91=$Z$20,Q91=$Z$16),SUM(Z91:AA91),0),0) -> 0 | AE91: =ROUNDUP(IF(OR(Q91=$Z$20,Q91=$Z$16),SUM(Z91:AA91)*5*1.03,IF(Q91=$Z$18,(AA91+Z91)*5*1.03+AH91,0)),0) -> 0 | AF91: =ROUNDUP(IF($AE$6=1,U91/1000*V91/1000*T91*1.03,0),1) -> 0.0 | AG91: =IF(Q91=$Z$18,INDEX($AH$307:$AI$339,MATCH(V91,$AG$307:$AG$339,0),2),IF(Q91=$Z$17,INDEX($AK$307:$AL$341,MATCH(V91,$AJ$307:$AJ$341,0),2),0)) -> 0 | AH91: =IF($W91=$Y$39,0,IF(AG91=0,0,ROUNDUP(7*T91*U91/1000*1.03,0))) -> 0 | AI91: =IF(Q91=$Z$18,INDEX($AH$307:$AI$339,MATCH(V91,$AG$307:$AG$339,0),1),IF(Q91=$Z$17,INDEX($AK$307:$AL$341,MATCH(V91,$AJ$307:$AJ$341,0),1),0)) -> 0 | AJ91: =AH91 -> 0 | AK91: =IF(Q91=$Z$18,INDEX($AO$306:$AP$323,MATCH(V91,$AN$306:$AN$323,0),2),IF(Q91=$Z$17,INDEX($AR$306:$AS$323,MATCH(V91,$AQ$306:$AQ$323,0),2),0)) -> 0 | AL91: 0 | AN91: =IFERROR(MATCH(Q91,$Z$15:$Z$20,0),0) -> 0
B92: =SUBTOTAL(3,$I$83:I92) -> 10 | C92: Телескопический крепеж ТехноНИКОЛЬ | F92: 170 | G92: мм | I92: 0 | J92: шт. | L92: 0.00 | N92: 0 | Y92: =T92*(430+R92+S92)/1000 -> 0 | Z92: =T92 -> 0 | AA92: =T92 -> 0 | AB92: =IF(SUM(R92:S92)>U92,IF(Q92=$Z$16,((R92+S92)/1000*T92),IF(Q92=$Z$18,((R92+S92-U92)/1000*T92),IF(Q92=$Z$19,((V92+U92)/1000*T92),IF(Q92=$Z$20,((R92+S92+V92)/1000*T92),0)))),0) -> 0 | AC92: =ROUNDUP(IF(OR(Q92=$Z$17,Q92=$Z$19,Q92=$Z$15),SUM(Z92:AA92),0),0) -> 0 | AD92: =ROUNDUP(IF(OR(Q92=$Z$18,Q92=$Z$20,Q92=$Z$16),SUM(Z92:AA92),0),0) -> 0 | AE92: =ROUNDUP(IF(OR(Q92=$Z$20,Q92=$Z$16),SUM(Z92:AA92)*5*1.03,IF(Q92=$Z$18,(AA92+Z92)*5*1.03+AH92,0)),0) -> 0 | AF92: =ROUNDUP(IF($AE$6=1,U92/1000*V92/1000*T92*1.03,0),1) -> 0.0 | AG92: =IF(Q92=$Z$18,INDEX($AH$307:$AI$339,MATCH(V92,$AG$307:$AG$339,0),2),IF(Q92=$Z$17,INDEX($AK$307:$AL$341,MATCH(V92,$AJ$307:$AJ$341,0),2),0)) -> 0 | AH92: =IF($W92=$Y$39,0,IF(AG92=0,0,ROUNDUP(7*T92*U92/1000*1.03,0))) -> 0 | AI92: =IF(Q92=$Z$18,INDEX($AH$307:$AI$339,MATCH(V92,$AG$307:$AG$339,0),1),IF(Q92=$Z$17,INDEX($AK$307:$AL$341,MATCH(V92,$AJ$307:$AJ$341,0),1),0)) -> 0 | AJ92: =AH92 -> 0 | AK92: =IF(Q92=$Z$18,INDEX($AO$306:$AP$323,MATCH(V92,$AN$306:$AN$323,0),2),IF(Q92=$Z$17,INDEX($AR$306:$AS$323,MATCH(V92,$AQ$306:$AQ$323,0),2),0)) -> 0 | AL92: 0 | AN92: =IFERROR(MATCH(Q92,$Z$15:$Z$20,0),0) -> 0
B93: =SUBTOTAL(3,$I$83:I93) -> 11 | C93: Телескопический крепеж ТехноНИКОЛЬ | F93: 180 | G93: мм | I93: 0 | J93: шт. | L93: 0.00 | N93: 0 | Q93: =IF(V3=Y4,"Примыкания к вертикальным стенам"," ") ->  | Y93: Примыкания к вертикальным поверхностям стен и другим конструкциям | AF93: ОБЪЕМ УТЕПЛ | AG93: САМОРЕЗ КУ | AI93: ТЕЛЕСКОП КУ | AK93: САМОРЕЗ КР
B94: =SUBTOTAL(3,$I$83:I94) -> 12 | C94: Телескопический крепеж ТехноНИКОЛЬ | F94: 200 | G94: мм | I94: 0 | J94: шт. | L94: 0.00 | N94: 0 | Q94: НАЗВАНИЕ | R94: =IF(V3=Y4,"ТИПЫ"," ") ->  | S94: =IF(V3=Y4,"ВЫСОТА, мм"," ") ->  | T94: =IF(V3=Y4,"ДЛИНА, м"," ") ->  | U94: Н утепл, мм | V94: толщ., мм | W94: марка ут. | Y94: ПГ | Z94: ДПР | AA94: ДКР | AB94: ГнП | AC94: СМРЗ. МЕТ | AD94: СМРЗ БЕТ. | AE94: АНКЕР, шт | AG94: размер | AH94: кол-во, шт | AI94: размер | AJ94: кол-во, шт | AK94: размер | AL94: кол-во, шт
B95: =SUBTOTAL(3,$I$83:I95) -> 13 | C95: Телескопический крепеж ТехноНИКОЛЬ | F95: 220 | G95: мм | I95: 0 | J95: шт. | L95: 0.00 | N95: 0 | Y95: =(380+S95)/1000*T95 -> 0 | Z95: =T95 -> 0 | AA95: =T95 -> 0 | AB95: =IF(S95>=U95,IF(R95=$Z$16,S95/1000*T95,IF(R95=$Z$18,(S95-U95)/1000*T95,IF(R95=$Z$19,(U95+V95)/1000*T95,IF(R95=$Z$20,(S95+V95)/1000*T95,0)))),0) -> 0 | AC95: =ROUNDUP(IF(OR(R95=$Z$15,R95=$Z$17,R95=$Z$19),SUM(Z95:AA95),0),0) -> 0 | AD95: =ROUNDUP(IF(OR(R95=$Z$16,R95=$Z$18,R95=$Z$20),SUM(Z95:AA95),0),0) -> 0 | AE95: =ROUNDUP(IF(OR(R95=$Z$20,R95=$Z$16),SUM(Z95:AA95)*5*1.03,IF(R95=$Z$18,((AA95+Z95)*5*1.03+AH95),0)),0) -> 0 | AF95: =ROUNDUP(IF($AE$7=1,U95/1000*V95/1000*T95*1.03,0),1) -> 0.0 | AG95: =IF(R95=$Z$18,INDEX($AH$307:$AI$339,MATCH(V95,$AG$307:$AG$339,0),2),IF(R95=$Z$17,INDEX($AK$307:$AL$341,MATCH(V95,$AJ$307:$AJ$341,0),2),0)) -> 0 | AH95: =IF($W95=$Y$39,0,IF(AG95=0,0,ROUNDUP(7*T95*U95/1000*1.03,0))) -> 0 | AI95: =IF(R95=$Z$18,INDEX($AH$307:$AI$339,MATCH(V95,$AG$307:$AG$339,0),1),IF(R95=$Z$17,INDEX($AK$307:$AL$341,MATCH(V95,$AJ$307:$AJ$341,0),1),0)) -> 0 | AJ95: =AH95 -> 0 | AK95: =IF(R95=$Z$18,INDEX($AO$306:$AP$323,MATCH(V95,$AN$306:$AN$323,0),2),IF(R95=$Z$17,INDEX($AR$306:$AS$323,MATCH(V95,$AQ$306:$AQ$323,0),2),0)) -> 0 | AL95: 0 | AN95: =IFERROR(MATCH(R95,$Z$15:$Z$20,0),0) -> 0
B96: =SUBTOTAL(3,$I$83:I96) -> 14 | C96: Телескопический крепеж ТехноНИКОЛЬ | F96: 240 | G96: мм | I96: 0 | J96: шт. | L96: 0.00 | N96: 0 | Y96: =(380+S96)/1000*T96 -> 0 | Z96: =T96 -> 0 | AA96: =T96 -> 0 | AB96: =IF(S96>=U96,IF(R96=$Z$16,S96/1000*T96,IF(R96=$Z$18,(S96-U96)/1000*T96,IF(R96=$Z$19,(U96+V96)/1000*T96,IF(R96=$Z$20,(S96+V96)/1000*T96,0)))),0) -> 0 | AC96: =ROUNDUP(IF(OR(R96=$Z$15,R96=$Z$17,R96=$Z$19),SUM(Z96:AA96),0),0) -> 0 | AD96: =ROUNDUP(IF(OR(R96=$Z$16,R96=$Z$18,R96=$Z$20),SUM(Z96:AA96),0),0) -> 0 | AE96: =ROUNDUP(IF(OR(R96=$Z$20,R96=$Z$16),SUM(Z96:AA96)*5*1.03,IF(R96=$Z$18,((AA96+Z96)*5*1.03+AH96),0)),0) -> 0 | AF96: =ROUNDUP(IF($AE$7=1,U96/1000*V96/1000*T96*1.03,0),1) -> 0.0 | AG96: =IF(R96=$Z$18,INDEX($AH$307:$AI$339,MATCH(V96,$AG$307:$AG$339,0),2),IF(R96=$Z$17,INDEX($AK$307:$AL$341,MATCH(V96,$AJ$307:$AJ$341,0),2),0)) -> 0 | AH96: =IF($W96=$Y$39,0,IF(AG96=0,0,ROUNDUP(7*T96*U96/1000*1.03,0))) -> 0 | AI96: =IF(R96=$Z$18,INDEX($AH$307:$AI$339,MATCH(V96,$AG$307:$AG$339,0),1),IF(R96=$Z$17,INDEX($AK$307:$AL$341,MATCH(V96,$AJ$307:$AJ$341,0),1),0)) -> 0 | AJ96: =AH96 -> 0 | AK96: =IF(R96=$Z$18,INDEX($AO$306:$AP$323,MATCH(V96,$AN$306:$AN$323,0),2),IF(R96=$Z$17,INDEX($AR$306:$AS$323,MATCH(V96,$AQ$306:$AQ$323,0),2),0)) -> 0 | AL96: 0 | AN96: =IFERROR(MATCH(R96,$Z$15:$Z$20,0),0) -> 0
B97: =SUBTOTAL(3,$I$83:I97) -> 15 | C97: Телескопический крепеж ТехноНИКОЛЬ | F97: 260 | G97: мм | I97: 0 | J97: шт. | L97: 0.00 | N97: 0 | Y97: =(380+S97)/1000*T97 -> 0 | Z97: =T97 -> 0 | AA97: =T97 -> 0 | AB97: =IF(S97>=U97,IF(R97=$Z$16,S97/1000*T97,IF(R97=$Z$18,(S97-U97)/1000*T97,IF(R97=$Z$19,(U97+V97)/1000*T97,IF(R97=$Z$20,(S97+V97)/1000*T97,0)))),0) -> 0 | AC97: =ROUNDUP(IF(OR(R97=$Z$15,R97=$Z$17,R97=$Z$19),SUM(Z97:AA97),0),0) -> 0 | AD97: =ROUNDUP(IF(OR(R97=$Z$16,R97=$Z$18,R97=$Z$20),SUM(Z97:AA97),0),0) -> 0 | AE97: =ROUNDUP(IF(OR(R97=$Z$20,R97=$Z$16),SUM(Z97:AA97)*5*1.03,IF(R97=$Z$18,((AA97+Z97)*5*1.03+AH97),0)),0) -> 0 | AF97: =ROUNDUP(IF($AE$7=1,U97/1000*V97/1000*T97*1.03,0),1) -> 0.0 | AG97: =IF(R97=$Z$18,INDEX($AH$307:$AI$339,MATCH(V97,$AG$307:$AG$339,0),2),IF(R97=$Z$17,INDEX($AK$307:$AL$341,MATCH(V97,$AJ$307:$AJ$341,0),2),0)) -> 0 | AH97: =IF($W97=$Y$39,0,IF(AG97=0,0,ROUNDUP(7*T97*U97/1000*1.03,0))) -> 0 | AI97: =IF(R97=$Z$18,INDEX($AH$307:$AI$339,MATCH(V97,$AG$307:$AG$339,0),1),IF(R97=$Z$17,INDEX($AK$307:$AL$341,MATCH(V97,$AJ$307:$AJ$341,0),1),0)) -> 0 | AJ97: =AH97 -> 0 | AK97: =IF(R97=$Z$18,INDEX($AO$306:$AP$323,MATCH(V97,$AN$306:$AN$323,0),2),IF(R97=$Z$17,INDEX($AR$306:$AS$323,MATCH(V97,$AQ$306:$AQ$323,0),2),0)) -> 0 | AL97: 0 | AN97: =IFERROR(MATCH(R97,$Z$15:$Z$20,0),0) -> 0
B98: =SUBTOTAL(3,$I$83:I98) -> 16 | C98: Телескопический крепеж ТехноНИКОЛЬ | F98: 300 | G98: мм | I98: 0 | J98: шт. | L98: 0.00 | N98: 0 | Y98: =(380+S98)/1000*T98 -> 0 | Z98: =T98 -> 0 | AA98: =T98 -> 0 | AB98: =IF(S98>=U98,IF(R98=$Z$16,S98/1000*T98,IF(R98=$Z$18,(S98-U98)/1000*T98,IF(R98=$Z$19,(U98+V98)/1000*T98,IF(R98=$Z$20,(S98+V98)/1000*T98,0)))),0) -> 0 | AC98: =ROUNDUP(IF(OR(R98=$Z$15,R98=$Z$17,R98=$Z$19),SUM(Z98:AA98),0),0) -> 0 | AD98: =ROUNDUP(IF(OR(R98=$Z$16,R98=$Z$18,R98=$Z$20),SUM(Z98:AA98),0),0) -> 0 | AE98: =ROUNDUP(IF(OR(R98=$Z$20,R98=$Z$16),SUM(Z98:AA98)*5*1.03,IF(R98=$Z$18,((AA98+Z98)*5*1.03+AH98),0)),0) -> 0 | AF98: =ROUNDUP(IF($AE$7=1,U98/1000*V98/1000*T98*1.03,0),1) -> 0.0 | AG98: =IF(R98=$Z$18,INDEX($AH$307:$AI$339,MATCH(V98,$AG$307:$AG$339,0),2),IF(R98=$Z$17,INDEX($AK$307:$AL$341,MATCH(V98,$AJ$307:$AJ$341,0),2),0)) -> 0 | AH98: =IF($W98=$Y$39,0,IF(AG98=0,0,ROUNDUP(7*T98*U98/1000*1.03,0))) -> 0 | AI98: =IF(R98=$Z$18,INDEX($AH$307:$AI$339,MATCH(V98,$AG$307:$AG$339,0),1),IF(R98=$Z$17,INDEX($AK$307:$AL$341,MATCH(V98,$AJ$307:$AJ$341,0),1),0)) -> 0 | AJ98: =AH98 -> 0 | AK98: =IF(R98=$Z$18,INDEX($AO$306:$AP$323,MATCH(V98,$AN$306:$AN$323,0),2),IF(R98=$Z$17,INDEX($AR$306:$AS$323,MATCH(V98,$AQ$306:$AQ$323,0),2),0)) -> 0 | AL98: 0 | AN98: =IFERROR(MATCH(R98,$Z$15:$Z$20,0),0) -> 0
B99: =SUBTOTAL(3,$I$83:I99) -> 17 | C99: Телескопический крепеж ТехноНИКОЛЬ | F99: 350 | G99: мм | I99: 0 | J99: шт. | L99: 0.00 | N99: 0 | Q99: =IF(V3=Y4,"Открытый водосток"," ") ->  | Y99: Открытый водосток
B100: =SUBTOTAL(3,$I$83:I100) -> 18 | C100: Телескопический крепеж | F100: 425 | G100: мм | I100: =IF(OR($V$4=$AA$10,$V$4=$AA$11),SUMIF($D$225:$D$295,F100,$I$225:$I$295),SUMIF($D$137:$D$216,F100,$L$137:$L$216)) -> 0 | J100: шт. | L100: =I100*K100 -> 0.00 | N100: 0 | Q100: НАЗВАНИЕ | R100: =IF(V3=Y4,"ТИПЫ"," ") ->  | S100: =IF(V3=Y4,"ДЛИНА, м"," ") ->  | Y100: ПГ | Z100: ТЭ | AA100: СМРЗ. МЕТ | AB100: СМРЗ БЕТ. | AC100: АНКЕР, шт
C101: Саморезы | L101: =SUM(L102:L113) -> 0.00 | N101: =IF(SUM(I102:I113)>0,1,0) -> 0 | Y101: =S101*300/1000 -> 0 | Z101: =S101 -> 0 | AA101: =ROUNDUP(IF(R101=$Z$15,SUM(Z101),0),0) -> 0 | AB101: =ROUNDUP(IF(R101=$Z$16,SUM(Z101),0),0) -> 0 | AC101: =ROUNDUP(IF(OR(R101=$Z$16,R101=$Z$18),SUM(Z101)*5*1.03,0),0) -> 0 | AN101: =IFERROR(MATCH(R101,$Z$15:$Z$20,0),0) -> 0
B102: =SUBTOTAL(3,$I$83:I102) -> 19 | C102: =IF(AND(R4=Y7,V4=AA7),"Саморез остроконечный ТехноНИКОЛЬ 6,3х","Саморез остроконечный ТехноНИКОЛЬ 4,8х") -> Саморез остроконечный ТехноНИКОЛЬ 4,8х | F102: =IF(C102="Саморез остроконечный ТехноНИКОЛЬ 6,3х",110,50) -> 50 | G102: мм | I102: =IF(AND($V$4=$AA$10,$V$3=$Y$4),(SUMIF($E$225:$E$295,F102,$I$225:$I$295)+ROUNDUP(ПЛ*U12,0)),IF($V$4=$AA$11,SUMIF($E$225:$E$295,F102,$I$225:$I$295),IF(AND($R$4=$Y$9,$V$4=$AA$6),ПЛ*$U$12,IF(AND($R$4=$Y$10,$V$4=$AA$6),ПЛ*$U$12,SUMIF($E$137:$E$216,F102,$L$137:$L$216))))) -> 0 | J102: шт. | L102: =I102*K102 -> 0.00 | N102: =IF(I102>0,1,0) -> 0
B103: =SUBTOTAL(3,$I$83:I103) -> 20 | C103: =IF(AND(R4=Y7,V4=AA7),"Саморез остроконечный ТехноНИКОЛЬ 6,3х",IF(R4=Y7,"Саморез остроконечный ТехноНИКОЛЬ 4,8х","Саморез сверлоконечный ТехноНИКОЛЬ 4,8х")) -> Саморез сверлоконечный ТехноНИКОЛЬ 4,8х | F103: =IF(C103="Саморез остроконечный ТехноНИКОЛЬ 6,3х",90,60) -> 60 | G103: мм | I103: =IF(OR($V$4=$AA$10,$V$4=$AA$11),SUMIF($E$225:$E$295,F103,$I$225:$I$295),SUMIF($E$137:$E$216,F103,$L$137:$L$216))+IF($AK$24>0,SUMIF($AK$25,$F$103,$AK$26),0) -> 0 | J103: шт. | L103: 0.00 | N103: 0 | P103: =IF(V3=Y4,"НАЗВАНИЕ ПАРАПЕТА"," ") -> 
B104: =SUBTOTAL(3,$I$83:I104) -> 21 | C104: =IF(R4=Y7,"Саморез остроконечный ТехноНИКОЛЬ 4,8х","Саморез сверлоконечный ТехноНИКОЛЬ 4,8х") -> Саморез сверлоконечный ТехноНИКОЛЬ 4,8х | F104: 70 | G104: мм | I104: =IF(OR($V$4=$AA$10,$V$4=$AA$11),SUMIF($E$225:$E$295,F104,$I$225:$I$295),SUMIF($E$137:$E$216,F104,$L$137:$L$216))+IF($AK$24>0,SUMIF($AK$25,$F$104,$AK$26),0) -> 0 | J104: шт. | L104: 0.00 | N104: 0 | P104: =IF(V3=Y4,"ПГ_ВЕРХ"," ") ->  | R104: =IF(V3=Y4,"ТЭ"," ") ->  | T104: =IF(V3=Y4,"АНКЕР"," ") -> 
B105: =SUBTOTAL(3,$I$83:I105) -> 22 | C105: =IF(AND(R4=Y7,V4=AA7),"Саморез остроконечный ТехноНИКОЛЬ 6,3х",IF(R4=Y7,"Саморез остроконечный ТехноНИКОЛЬ 4,8х","Саморез сверлоконечный ТехноНИКОЛЬ 4,8х")) -> Саморез сверлоконечный ТехноНИКОЛЬ 4,8х | F105: 80 | G105: мм | I105: =IF(OR($V$4=$AA$10,$V$4=$AA$11),SUMIF($E$225:$E$295,F105,$I$225:$I$295),SUMIF($E$137:$E$216,F105,$L$137:$L$216))+IF($AK$24>0,SUMIF($AK$25,$F$105,$AK$26),0) -> 0 | J105: шт. | L105: 0.00 | N105: 0 | P105: =IF(V3=Y4,"ДКР"," ") ->  | R105: =IF(V3=Y4,"ГнП"," ") ->  | T105: =IF(V3=Y4,"СМРЗ. БЕТ"," ") -> 
B106: =SUBTOTAL(3,$I$83:I106) -> 23 | C106: =IF(R4=Y7,"Саморез остроконечный ТехноНИКОЛЬ 4,8х","Саморез сверлоконечный ТехноНИКОЛЬ 4,8х") -> Саморез сверлоконечный ТехноНИКОЛЬ 4,8х | F106: 100 | G106: мм | I106: =IF(OR($V$4=$AA$10,$V$4=$AA$11),SUMIF($E$225:$E$295,F106,$I$225:$I$295),SUMIF($E$137:$E$216,F106,$L$137:$L$216))+IF($AK$24>0,SUMIF($AK$25,$F$106,$AK$26),0) -> 0 | J106: шт. | L106: 0.00 | N106: 0 | P106: =IF(V3=Y4,"ДПР"," ") ->  | R106: =IF(V3=Y4,"СМРЗ. МЕТ"," ") ->  | T106: =IF(V3=Y4,"ПВХ МЕТ."," ") -> 
B107: =SUBTOTAL(3,$I$83:I107) -> 24 | C107: Саморез сверлоконечный ТехноНИКОЛЬ 4,8х | F107: 120 | G107: мм | I107: =IF(OR($V$4=$AA$10,$V$4=$AA$11),SUMIF($E$225:$E$295,F107,$I$225:$I$295),SUMIF($E$137:$E$216,F107,$L$137:$L$216))+IF($AK$24>0,SUMIF($AK$25,$F$107,$AK$26),0) -> 0 | J107: шт. | L107: 0.00 | N107: 0
B108: =SUBTOTAL(3,$I$83:I108) -> 25 | C108: Саморез сверлоконечный ТехноНИКОЛЬ 4,8х | F108: 160 | G108: мм | I108: =IF(OR($V$4=$AA$10,$V$4=$AA$11),SUMIF($E$225:$E$295,F108,$I$225:$I$295),SUMIF($E$137:$E$216,F108,$L$137:$L$216))+IF($AK$24>0,SUMIF($AK$25,$F$108,$AK$26),0) -> 0 | J108: шт. | L108: 0.00 | N108: 0 | P108: Воронка водоприемная | R108: Воронка с обжимным металлическим фланцем с обогревом 110х720 мм | U108: шт | V108: =HYPERLINK("#"&$AB$5&"!B22","⇑ ") -> ⇑
B109: =SUBTOTAL(3,$I$83:I109) -> 26 | C109: Саморез сверлоконечный ТехноНИКОЛЬ 4,8х | F109: 200 | G109: мм | I109: =IF(OR($V$4=$AA$10,$V$4=$AA$11),SUMIF($E$225:$E$295,F109,$I$225:$I$295),SUMIF($E$137:$E$216,F109,$L$137:$L$216)) -> 0 | J109: шт. | L109: 0.00 | N109: 0 | P109: Воронка водоприемная | R109: парапетная | U109: шт
B110: =SUBTOTAL(3,$I$83:I110) -> 27 | C110: Саморез 4,8х | F110: 140 | G110: мм | I110: 0 | J110: шт. | L110: 0.00 | N110: 0 | P110: Дорожки пешеходные | R110: ПВХ Logicroof Walkway Puzzle | U110: =IF(R110=AA14,"-","м.п") -> м.п
B111: =SUBTOTAL(3,$I$83:I111) -> 28 | C111: Саморез 4,8х | F111: 180 | G111: мм | I111: 0 | J111: шт. | L111: 0.00 | N111: 0 | P111: Огнезащитный материал | R111: LOGICROOF NG | U111: =IF(R111=AA17,"-","м2") -> м2
B112: =SUBTOTAL(3,$I$83:I112) -> 29 | C112: Саморез 4,8х | F112: 240 | G112: мм | I112: 0 | J112: шт. | L112: 0.00 | N112: 0 | P112: ПВХ угол ТехноНИКОЛЬ* | R112: Внутренний | U112: шт
B113: =SUBTOTAL(3,$I$83:I113) -> 30 | C113: Саморез 4,8х | F113: 300 | G113: мм | I113: 0 | J113: шт. | L113: 0.00 | N113: 0 | P113: ПВХ угол ТехноНИКОЛЬ*, | R113: Внешний | U113: шт
C114: Анкерный элемент | L114: =SUM(L115) -> 0.00 | N114: =IF(I115>0,1,0) -> 0
B115: =SUBTOTAL(3,$I$83:I115) -> 31 | C115: Анкерный элемент ТехноНИКОЛЬ | E115: 8х | F115: 45 | G115: мм | I115: =IF(AND($R$4=$Y$7,OR($V$4=$Y$12,$V$4=$AA$8,$V$4=$AA$9)),SUM($L$137:$L$216),IF(AND($R$4=$Y$9,$V$4=$AA$6),ПЛ*$U$12,IF($V$4=$AA$7,SUMIF($F$137:$H$216,"8х45",$L$137:$L$216),IF(AND($R$4=$Y$7),SUMIF(F225:H295,"8х45",I225:I295),0)))) -> 0 | J115: шт. | L115: =I115*K115 -> 0.00 | N115: =IF(I115>0,1,0) -> 0
C116: =IF(F116=" "," ","Толщина основного слоя утеплителя") ->  | F116: =IF(R3=0," ",R3) ->  | G116: =IF(F116=" "," ","мм") ->  | N116: =IF($V$4="НЕТ",0,1) -> 0
C117: =IFERROR(IF(SUM(J138:J216)>0,"** Количество крепежа дано с учетом закрепления мембраны, над клиновидной теплоизоляцией"," "),"") ->  | N117: =IF($V$4="НЕТ",0,1) -> 0
B118: =IFERROR(IF(MATCH("НЕТ ДАННЫХ",D137:D176,0)>0,"Внимание, на данной странице показан не весь необходимый крепеж, высота закрепления клиновидной теплоизоляции превышает асортимент телескопического крепежа компании ТехноНИКОЛЬ, смотри таблицу группировки крепежа, по позициям НЕТ ДАННЫХ."," ")," ") ->  | N118: =IF($V$4="НЕТ",0,1) -> 0
N119: =IF($V$4="НЕТ",0,1) -> 0
C120: =IF(OR(T3=Y14,T4=Y20,T4=Y22),"Альбом с примерами раскладки клиновидной теплоизоляции из каменной ваты можно скачать по этой ссылке","") ->  | N120: =IF($C$120="",0,1) -> 0
N121: =IF($C$120="",0,1) -> 0
N122: =IF($C$120="",0,1) -> 0
C123: =IF(OR(T3=Y16,T4=Y23,T4=Y27),"Альбом с примерами раскладки клиновидной теплоизоляции из XPS можно скачать по этой ссылке","") ->  | N123: =IF($C$123="",0,1) -> 0
N124: =IF($C$123="",0,1) -> 0
N125: =IF($C$123="",0,1) -> 0
C126: =IF(OR(T3=Y18,T4=Y25),"Альбом с примерами раскладки клиновидной теплоизоляции из PIR можно скачать по этой ссылке","") ->  | N126: =IF($C$126="",0,1) -> 0
N127: =IF($C$126="",0,1) -> 0
N128: =IF($C$126="",0,1) -> 0
N129: =IF($V$4="НЕТ",0,1) -> 0
B130: Таблица группировки крепежа | G130: =номер_объекта -> 11-27ХХ-МПКПМКИ-12.21 | K130: =IF(K5=0," ",K5) -> ТИП3 | N130: =IF($V$4="НЕТ",0,1) -> 0 | P130: =IF(V3=Y3,"Примыкание к парапету высотой более 500 мм"," ") ->  | U130: =HYPERLINK("#"&$AB$5&"!A36","⇑ ") -> ⇑ | Y130: Примыкание к парапету высотой более 500 мм
N131: =IF($V$4="НЕТ",0,1) -> 0 | O131: 1 | P131: НАЗВАНИЕ | Q131: =IF(V3=Y3,"ТИПЫ"," ") ->  | R131: =IF(V3=Y3,"ШИРИНА, мм"," ") ->  | S131: =IF(V3=Y3,"ВЫСОТА, мм"," ") ->  | T131: =IF(V3=Y3,"ДЛИНА, м"," ") ->  | U131: Н утепл., мм | V131: толщина, мм | W131: марка утеплителя | Y131: ПГ | AA131: ДПР | AB131: СМРЗ. МЕТ | AC131: СМРЗ БЕТ. | AD131: АНКЕР, шт | AE131: ПРАЙМЕР | AF131: ОБЪЕМ УТЕПЛ | AG131: САМОРЕЗ КУ | AI131: ТЕЛЕСКОП КУ | AK131: САМОРЕЗ КР | AN131: Тип примыканий
N132: 0 | Y132: ВЕРХ | Z132: НИЗ | AG132: размер | AH132: кол-во, шт | AI132: размер | AJ132: кол-во, шт | AK132: размер | AL132: кол-во, шт | AN132: В Примечания
B133: № | C133: Толщина утеплителя, мм | D133: Телескопи- ческий крепеж, мм. | E133: Саморез, мм. | F133: Анкерный элемент мм. | I133: Крепление теплоизо-ляции*, шт. | J133: Крепление гидроизоляции**, шт. | L133: Общее количество крепежа, шт. | N133: 0 | Y133: =T133*(500+R133+S133)/1000 -> 0 | Z133: =650*T133/1000 -> 0 | AA133: 0 | AB133: =ROUNDUP(IF(OR(Q133=$Z$15,Q133=$Z$17,Q133=$Z$18),AA133,0),0) -> 0 | AC133: =ROUNDUP(IF(Q133=$Z$16,AA133,0),0) -> 0 | AD133: =ROUNDUP(IF(Q133=$Z$16,AA133*5*1.03,0),0) -> 0 | AE133: =IF(Q133=$Z$15,0,IF(Q133=$Z$17,(T133*(U133+V133)/1000),Y133)) -> 0 | AF133: =ROUNDUP(IF($AF$5=1,U133/1000*V133/1000*T133*1.03,0),1) -> 0.0 | AG133: нет | AI133: нет | AK133: нет | AN133: =IFERROR(MATCH(Q133,$Z$15:$Z$20,0),0) -> 0
N134: 0 | Y134: =T134*(500+R134+S134)/1000 -> 0 | Z134: =650*T134/1000 -> 0 | AA134: 0 | AB134: =ROUNDUP(IF(OR(Q134=$Z$15,Q134=$Z$17,Q134=$Z$18),AA134,0),0) -> 0 | AC134: =ROUNDUP(IF(Q134=$Z$16,AA134,0),0) -> 0 | AD134: =ROUNDUP(IF(Q134=$Z$16,AA134*5*1.03,0),0) -> 0 | AE134: =IF(Q134=$Z$15,0,IF(Q134=$Z$17,(T134*(U134+V134)/1000),Y134)) -> 0 | AF134: =ROUNDUP(IF($AF$5=1,U134/1000*V134/1000*T134*1.03,0),1) -> 0.0 | AN134: =IFERROR(MATCH(Q134,$Z$15:$Z$20,0),0) -> 0
N135: 0 | Y135: =T135*(500+R135+S135)/1000 -> 0 | Z135: =650*T135/1000 -> 0 | AA135: 0 | AB135: =ROUNDUP(IF(OR(Q135=$Z$15,Q135=$Z$17,Q135=$Z$18),AA135,0),0) -> 0 | AC135: =ROUNDUP(IF(Q135=$Z$16,AA135,0),0) -> 0 | AD135: =ROUNDUP(IF(Q135=$Z$16,AA135*5*1.03,0),0) -> 0 | AE135: =IF(Q135=$Z$15,0,IF(Q135=$Z$17,(T135*(U135+V135)/1000),Y135)) -> 0 | AF135: =ROUNDUP(IF($AF$5=1,U135/1000*V135/1000*T135*1.03,0),1) -> 0.0 | AN135: =IFERROR(MATCH(Q135,$Z$15:$Z$20,0),0) -> 0
B136: 1 | C136: 2 | D136: 3 | E136: 4 | F136: 5 | I136: 6 | J136: 7 | L136: 8 | N136: 0 | Y136: =T136*(500+R136+S136)/1000 -> 0 | Z136: =650*T136/1000 -> 0 | AA136: 0 | AB136: =ROUNDUP(IF(OR(Q136=$Z$15,Q136=$Z$17,Q136=$Z$18),AA136,0),0) -> 0 | AC136: =ROUNDUP(IF(Q136=$Z$16,AA136,0),0) -> 0 | AD136: =ROUNDUP(IF(Q136=$Z$16,AA136*5*1.03,0),0) -> 0 | AE136: =IF(Q136=$Z$15,0,IF(Q136=$Z$17,(T136*(U136+V136)/1000),Y136)) -> 0 | AF136: =ROUNDUP(IF($AF$5=1,U136/1000*V136/1000*T136*1.03,0),1) -> 0.0 | AN136: =IFERROR(MATCH(Q136,$Z$15:$Z$20,0),0) -> 0
B137: =SUBTOTAL(3,$I$137:I137) -> 1 | C137: =R3 -> 0 | D137: =IFERROR(IF(AND($R$4=$Y$7,$V$4=$AA$6),INDEX($AH$303:$AI$370,MATCH(_xlfn.CEILING.MATH(C137,10),$AG$303:$AG$370,0),1),IF(AND($R$4=$Y$7,$V$4=$AA$7),INDEX($AE$303:$AF$370,MATCH(_xlfn.CEILING.MATH(C137,10),$AD$303:$AD$370,0),1),IF(AND($R$4=$Y$8,$V$4=$AA$6),INDEX($AK$303:$AL$372,MATCH(_xlfn.CEILING.MATH(C137,10),$AJ$303:$AJ$372,0),1)," "))),"НЕТ ДАННЫХ") ->  | E137: =IFERROR(IF(AND($R$4=$Y$7,$V$4=$AA$6),INDEX($AH$303:$AI$370,MATCH(_xlfn.CEILING.MATH(C137,10),$AG$303:$AG$370,0),2),IF(AND($R$4=$Y$7,$V$4=$AA$7),INDEX($AE$303:$AF$370,MATCH(_xlfn.CEILING.MATH(C137,10),$AD$303:$AD$370,0),2),IF(AND($R$4=$Y$8,$V$4=$AA$6),INDEX($AK$303:$AL$372,MATCH(_xlfn.CEILING.MATH(C137,10),$AJ$303:$AJ$372,0),2)," "))),"НЕТ ДАННЫХ") ->  | F137: =IF(AND(OR($V$4=$Y$12,$V$4=$AA$8,$V$4=$AA$9),OR($R$4=$Y$7,$R$4=$Y$9)),"8х45",IF(AND($V$4=$AA$7,C137>300),"8х45",IF(AND($V$4=$AA$7,$AA$2=$AA$6),"8х45","не требуется"))) -> не требуется | I137: =ROUND(IF(AND($T$3=$Y$13,OR($V$4=$Y$12,$V$4=$AA$7),OR($R$4=$Y$7,$R$4=$Y$8),$V$5=$AD$22),(ПЛ-AF21)*3.06,IF(AND($T$3=$Y$13,OR($V$4=$Y$12,$V$4=$AA$7),OR($R$4=$Y$7,$R$4=$Y$8),$V$5=$AC$22),(ПЛ-AF21)*3,IF(AND(T3=Y13,OR($V$4=$Y$12,$V$4=$AA$7),OR($R$4=$Y$7,$R$4=$Y$8),$V$5=$AB$22),(ПЛ-AF21)*3,0))),0) -> 0 | J137: =ROUND(IF(AND(T3=Y13,OR(V4=AA7,V4=Y12),$V$5=$AD$22),I137*U12/3.06,IF(AND(T3=Y13,OR(V4=Y12,V4=AA7),$V$5=$AC$22),I137*U12/3,IF(AND(T3=Y13,OR(V4=Y12,V4=AA7),$V$5=$AB$22),I137*U12/3,0))),0) -> 0 | L137: =I137+J137+IF(AND($V$3=$Y$3,$T$3=$Y$6,$V$4<>$Y$13),($I$862*8+$I$864*4),IF(AND($V$3=$Y$4,$T$3=$Y$6,$V$4<>$Y$13),($I$971*8+$I$976*4),0)) -> 0 | N137: =IF(I137>0,1,0) -> 0 | Y137: =T137*(500+R137+S137)/1000 -> 0 | Z137: =650*T137/1000 -> 0 | AA137: 0 | AB137: =ROUNDUP(IF(OR(Q137=$Z$15,Q137=$Z$17,Q137=$Z$18),AA137,0),0) -> 0 | AC137: =ROUNDUP(IF(Q137=$Z$16,AA137,0),0) -> 0 | AD137: =ROUNDUP(IF(Q137=$Z$16,AA137*5*1.03,0),0) -> 0 | AE137: =IF(Q137=$Z$15,0,IF(Q137=$Z$17,(T137*(U137+V137)/1000),Y137)) -> 0 | AF137: =ROUNDUP(IF($AF$5=1,U137/1000*V137/1000*T137*1.03,0),1) -> 0.0 | AN137: =IFERROR(MATCH(Q137,$Z$15:$Z$20,0),0) -> 0
B138: =SUBTOTAL(3,$I$137:I138) -> 2 | C138: =IF($T$5=$AA$12,P14,P14+$R$3) -> 0 | D138: =IFERROR(IF(AND($R$4=$Y$7,OR($V$4=$AA$8,$V$4=$AA$9,$V$4=$Y$12)),INDEX($AH$381:$AI$448,MATCH(_xlfn.CEILING.MATH(C138,10),$AG$381:$AG$448,0),1),IF(AND($R$4=$Y$7,$V$4=$AA$7),INDEX($AH$381:$AI$448,MATCH(_xlfn.CEILING.MATH(C138,10),$AG$381:$AG$448,0),1),IF(AND($R$4=$Y$8,OR($V$4=$AA$8,$V$4=$AA$9,$V$4=$Y$12)),INDEX($AK$381:$AL$449,MATCH(_xlfn.CEILING.MATH(C138,10),$AJ$381:$AJ$449,0),1)," "))),"НЕТ ДАННЫХ") ->  | E138: =IFERROR(IF(AND($R$4=$Y$7,OR($V$4=$AA$8,$V$4=$AA$9,$V$4=$Y$12)),INDEX($AH$381:$AI$448,MATCH(_xlfn.CEILING.MATH(C138,10),$AG$381:$AG$448,0),2),IF(AND($R$4=$Y$7,$V$4=$AA$7),INDEX($AH$381:$AI$448,MATCH(_xlfn.CEILING.MATH(C138,10),$AG$381:$AG$448,0),2),IF(AND($R$4=$Y$8,OR($V$4=$AA$8,$V$4=$AA$9,$V$4=$Y$12)),INDEX($AK$381:$AL$449,MATCH(_xlfn.CEILING.MATH(C138,10),$AJ$381:$AJ$449,0),2)," "))),"НЕТ ДАННЫХ") ->  | F138: не требуется | I138: =ROUND(Q14,0) -> 0 | J138: =ROUND(IFERROR(IF($V$4=$Y$11,0,IF($T$3=$Y$13,Q14/$AE$12*$U$12,Q14/$U$14*$U$12)),0),0) -> 0 | L138: =I138+J138+IF(AND($V$3=$Y$3,$T$3<>$Y$13,$V$4<>$Y$13),($I$862*8+$I$864*4),IF(AND($V$3=Y4,$T$3<>$Y$13,$V$4<>$Y$13),($I$971*8+$I$976*4),0)) -> 0 | N138: 0 | P138: =IF(V3=Y3,"Примыкание к парапету высотой менее 500 мм"," ") ->  | Y138: Примыкание к парапету высотой менее 500 мм
B139: =SUBTOTAL(3,$I$137:I139) -> 3 | C139: 0 | D139: =IFERROR(IF(AND($R$4=$Y$7,OR($V$4=$AA$8,$V$4=$AA$9,$V$4=$Y$12)),INDEX($AH$381:$AI$448,MATCH(_xlfn.CEILING.MATH(C139,10),$AG$381:$AG$448,0),1),IF(AND($R$4=$Y$7,$V$4=$AA$7),INDEX($AH$381:$AI$448,MATCH(_xlfn.CEILING.MATH(C139,10),$AG$381:$AG$448,0),1),IF(AND($R$4=$Y$8,OR($V$4=$AA$8,$V$4=$AA$9,$V$4=$Y$12)),INDEX($AK$381:$AL$449,MATCH(_xlfn.CEILING.MATH(C139,10),$AJ$381:$AJ$449,0),1)," "))),"НЕТ ДАННЫХ") ->  | E139: =IFERROR(IF(AND($R$4=$Y$7,OR($V$4=$AA$8,$V$4=$AA$9,$V$4=$Y$12)),INDEX($AH$381:$AI$448,MATCH(_xlfn.CEILING.MATH(C139,10),$AG$381:$AG$448,0),2),IF(AND($R$4=$Y$7,$V$4=$AA$7),INDEX($AH$381:$AI$448,MATCH(_xlfn.CEILING.MATH(C139,10),$AG$381:$AG$448,0),2),IF(AND($R$4=$Y$8,OR($V$4=$AA$8,$V$4=$AA$9,$V$4=$Y$12)),INDEX($AK$381:$AL$449,MATCH(_xlfn.CEILING.MATH(C139,10),$AJ$381:$AJ$449,0),2)," "))),"НЕТ ДАННЫХ") ->  | F139: не требуется | I139: =ROUND(Q15,0) -> 0 | J139: =ROUND(IFERROR(IF($V$4=$Y$11,0,IF($T$3=$Y$13,Q15/$AE$12*$U$12,Q15/$U$14*$U$12)),0),0) -> 0 | L139: =I139+J139 -> 0 | N139: 0 | P139: НАЗВАНИЕ | Q139: =IF(V3=Y3,"ТИПЫ"," ") ->  | R139: =IF(V3=Y3,"ШИРИНА, мм"," ") ->  | S139: =IF(V3=Y3,"ВЫСОТА, мм"," ") ->  | T139: =IF(V3=Y3,"ДЛИНА, м"," ") ->  | U139: Н утепл., мм | V139: толщина, мм | W139: марка утеплителя | Y139: ПГ | AA139: ДПР | AB139: СМРЗ. МЕТ | AC139: СМРЗ БЕТ. | AD139: АНКЕР, шт | AE139: ПРАЙМЕР | AF139: ОБЪЕМ УТЕПЛ | AG139: САМОРЕЗ КУ | AI139: ТЕЛЕСКОП КУ | AK139: САМОРЕЗ КР
B140: =SUBTOTAL(3,$I$137:I140) -> 4 | C140: 0 | F140: не требуется | I140: 0 | J140: 0 | L140: 0 | N140: 0 | Y140: ВЕРХ | Z140: НИЗ | AG140: размер | AH140: кол-во, шт | AI140: размер | AJ140: кол-во, шт | AK140: размер | AL140: кол-во, шт
B141: =SUBTOTAL(3,$I$137:I141) -> 5 | C141: 0 | F141: не требуется | I141: 0 | J141: 0 | L141: 0 | N141: 0 | Y141: =(350+R141+S141)/1000*T141 -> 0 | Z141: =(450+R141+S141)/1000*T141 -> 0 | AA141: НЕТ | AE141: =IF(Q141=$Z$15,0,IF(Q141=$Z$17,(T141*(U141+V141)/1000),Y141)) -> 0 | AF141: =ROUNDUP(IF($AF$6=1,U141/1000*V141/1000*T141*1.03,0),1) -> 0.0 | AG141: нет | AI141: нет | AK141: нет | AN141: =IFERROR(MATCH(Q141,$Z$15:$Z$20,0),0) -> 0
B142: =SUBTOTAL(3,$I$137:I142) -> 6 | C142: 0 | F142: не требуется | I142: 0 | J142: 0 | L142: 0 | N142: 0 | Y142: =(350+R142+S142)/1000*T142 -> 0 | Z142: =(450+R142+S142)/1000*T142 -> 0 | AE142: =IF(Q142=$Z$15,0,IF(Q142=$Z$17,(T142*(U142+V142)/1000),Y142)) -> 0 | AF142: =ROUNDUP(IF($AF$6=1,U142/1000*V142/1000*T142*1.03,0),1) -> 0.0 | AN142: =IFERROR(MATCH(Q142,$Z$15:$Z$20,0),0) -> 0
B143: =SUBTOTAL(3,$I$137:I143) -> 7 | C143: 0 | F143: не требуется | I143: 0 | J143: 0 | L143: 0 | N143: 0 | Y143: =(350+R143+S143)/1000*T143 -> 0 | Z143: =(450+R143+S143)/1000*T143 -> 0 | AE143: =IF(Q143=$Z$15,0,IF(Q143=$Z$17,(T143*(U143+V143)/1000),Y143)) -> 0 | AF143: =ROUNDUP(IF($AF$6=1,U143/1000*V143/1000*T143*1.03,0),1) -> 0.0 | AN143: =IFERROR(MATCH(Q143,$Z$15:$Z$20,0),0) -> 0
B144: =SUBTOTAL(3,$I$137:I144) -> 8 | C144: 0 | F144: не требуется | I144: 0 | J144: 0 | L144: 0 | N144: 0 | Y144: =(350+R144+S144)/1000*T144 -> 0 | Z144: =(450+R144+S144)/1000*T144 -> 0 | AE144: =IF(Q144=$Z$15,0,IF(Q144=$Z$17,(T144*(U144+V144)/1000),Y144)) -> 0 | AF144: =ROUNDUP(IF($AF$6=1,U144/1000*V144/1000*T144*1.03,0),1) -> 0.0 | AN144: =IFERROR(MATCH(Q144,$Z$15:$Z$20,0),0) -> 0
B145: =SUBTOTAL(3,$I$137:I145) -> 9 | C145: 0 | F145: не требуется | I145: 0 | J145: 0 | L145: 0 | N145: 0 | Y145: =(350+R145+S145)/1000*T145 -> 0 | Z145: =(450+R145+S145)/1000*T145 -> 0 | AE145: =IF(Q145=$Z$15,0,IF(Q145=$Z$17,(T145*(U145+V145)/1000),Y145)) -> 0 | AF145: =ROUNDUP(IF($AF$6=1,U145/1000*V145/1000*T145*1.03,0),1) -> 0.0 | AN145: =IFERROR(MATCH(Q145,$Z$15:$Z$20,0),0) -> 0
B146: =SUBTOTAL(3,$I$137:I146) -> 10 | C146: 0 | F146: не требуется | I146: 0 | J146: 0 | L146: 0 | N146: 0 | Q146: =IF(V3=Y3,"Прим. к вертикальным стенам"," ") ->  | Y146: Примыкания к вертикальным поверхностям стен и другим конструкциям
B147: =SUBTOTAL(3,$I$137:I147) -> 11 | C147: 0 | F147: не требуется | I147: 0 | J147: 0 | L147: 0 | N147: 0 | P147: НАЗВАНИЕ | Q147: =IF(V3=Y3,"ТИПЫ"," ") ->  | S147: =IF(W3=Z4,"ВЫСОТА, мм"," ") ->  | T147: =IF(V3=Y3,"ДЛИНА, м"," ") ->  | U147: Н утепл., мм | V147: толщина, мм | W147: марка утеплителя | Y147: ПГ | AA147: ДКР | AB147: СМРЗ. МЕТ | AC147: СМРЗ БЕТ. | AD147: АНКЕР, шт | AE147: ПРАЙМЕР | AF147: ОБЪЕМ УТЕПЛ | AG147: САМОРЕЗ КУ | AI147: ТЕЛЕСКОП КУ | AK147: САМОРЕЗ КР
B148: =SUBTOTAL(3,$I$137:I148) -> 12 | C148: 0 | F148: не требуется | I148: 0 | J148: 0 | L148: 0 | N148: 0 | Y148: ВЕРХ | Z148: НИЗ | AG148: размер | AH148: кол-во, шт | AI148: размер | AJ148: кол-во, шт | AK148: размер | AL148: кол-во, шт
B149: =SUBTOTAL(3,$I$137:I149) -> 13 | C149: 0 | F149: не требуется | I149: 0 | J149: 0 | L149: 0 | N149: 0 | Y149: =T149*(250+S149)/1000 -> 0 | Z149: =T149*800/1000 -> 0 | AA149: =T149 -> 0 | AB149: =ROUNDUP(IF(OR(Q149=$Z$15,Q149=$Z$17,Q149=$Z$19),AA149,0),0) -> 0 | AC149: =ROUNDUP(IF(OR(Q149=$Z$16,Q149=$Z$18,Q149=$Z$20),AA149,0),0) -> 0 | AD149: =ROUNDUP(IF(OR(Q149=$Z$16,Q149=$Z$18,Q149=$Z$20),AA149*5*1.03,0),0) -> 0 | AE149: =IF(Q149=$Z$15,0,IF(Q149=$Z$17,(T149*(U149+V149)/1000),Y149)) -> 0 | AF149: =ROUNDUP(IF($AF$7=1,U149/1000*V149/1000*T149*1.03,0),1) -> 0.0 | AG149: нет | AI149: нет | AK149: нет | AN149: =IFERROR(MATCH(Q149,$Z$15:$Z$20,0),0) -> 0
B150: =SUBTOTAL(3,$I$137:I150) -> 14 | C150: 0 | F150: не требуется | I150: 0 | J150: 0 | L150: 0 | N150: 0 | Y150: =T150*(250+S150)/1000 -> 0 | Z150: =T150*800/1000 -> 0 | AA150: =T150 -> 0 | AB150: =ROUNDUP(IF(OR(Q150=$Z$15,Q150=$Z$17,Q150=$Z$19),AA150,0),0) -> 0 | AC150: =ROUNDUP(IF(OR(Q150=$Z$16,Q150=$Z$18,Q150=$Z$20),AA150,0),0) -> 0 | AD150: =ROUNDUP(IF(OR(Q150=$Z$16,Q150=$Z$18,Q150=$Z$20),AA150*5*1.03,0),0) -> 0 | AE150: =IF(Q150=$Z$15,0,IF(Q150=$Z$17,(T150*(U150+V150)/1000),Y150)) -> 0 | AF150: =ROUNDUP(IF($AF$7=1,U150/1000*V150/1000*T150*1.03,0),1) -> 0.0 | AN150: =IFERROR(MATCH(Q150,$Z$15:$Z$20,0),0) -> 0
B151: =SUBTOTAL(3,$I$137:I151) -> 15 | C151: 0 | F151: не требуется | I151: 0 | J151: 0 | L151: 0 | N151: 0 | Y151: =T151*(250+S151)/1000 -> 0 | Z151: =T151*800/1000 -> 0 | AA151: =T151 -> 0 | AB151: =ROUNDUP(IF(OR(Q151=$Z$15,Q151=$Z$17,Q151=$Z$19),AA151,0),0) -> 0 | AC151: =ROUNDUP(IF(OR(Q151=$Z$16,Q151=$Z$18,Q151=$Z$20),AA151,0),0) -> 0 | AD151: =ROUNDUP(IF(OR(Q151=$Z$16,Q151=$Z$18,Q151=$Z$20),AA151*5*1.03,0),0) -> 0 | AE151: =IF(Q151=$Z$15,0,IF(Q151=$Z$17,(T151*(U151+V151)/1000),Y151)) -> 0 | AF151: =ROUNDUP(IF($AF$7=1,U151/1000*V151/1000*T151*1.03,0),1) -> 0.0 | AN151: =IFERROR(MATCH(Q151,$Z$15:$Z$20,0),0) -> 0
B152: =SUBTOTAL(3,$I$137:I152) -> 16 | C152: 0 | F152: не требуется | I152: 0 | J152: 0 | L152: 0 | N152: 0 | Y152: =T152*(250+S152)/1000 -> 0 | Z152: =T152*800/1000 -> 0 | AA152: =T152 -> 0 | AB152: =ROUNDUP(IF(OR(Q152=$Z$15,Q152=$Z$17,Q152=$Z$19),AA152,0),0) -> 0 | AC152: =ROUNDUP(IF(OR(Q152=$Z$16,Q152=$Z$18,Q152=$Z$20),AA152,0),0) -> 0 | AD152: =ROUNDUP(IF(OR(Q152=$Z$16,Q152=$Z$18,Q152=$Z$20),AA152*5*1.03,0),0) -> 0 | AE152: =IF(Q152=$Z$15,0,IF(Q152=$Z$17,(T152*(U152+V152)/1000),Y152)) -> 0 | AF152: =ROUNDUP(IF($AF$7=1,U152/1000*V152/1000*T152*1.03,0),1) -> 0.0 | AN152: =IFERROR(MATCH(Q152,$Z$15:$Z$20,0),0) -> 0
B153: =SUBTOTAL(3,$I$137:I153) -> 17 | C153: 0 | F153: не требуется | I153: 0 | J153: 0 | L153: 0 | N153: 0 | R153: =IF(V3=Y3,"Открытый водосток"," ") ->  | Y153: Открытый водосток
B154: =SUBTOTAL(3,$I$137:I154) -> 18 | C154: 0 | F154: не требуется | I154: 0 | J154: 0 | L154: 0 | N154: 0 | R154: НАЗВАНИЕ | S154: =IF(V3=Y3,"ТИПЫ"," ") ->  | T154: =IF(V3=Y3,"ДЛИНА, м"," ") ->  | Y154: ПГ
B155: =SUBTOTAL(3,$I$137:I155) -> 19 | C155: 0 | F155: не требуется | I155: 0 | J155: 0 | L155: 0 | N155: 0 | Y155: ВЕРХ | Z155: НИЗ
B156: =SUBTOTAL(3,$I$137:I156) -> 20 | C156: 0 | F156: не требуется | I156: 0 | J156: 0 | L156: 0 | N156: 0 | S156: =IF(V3=Y3,"ТИП 1"," ") ->  | Y156: НЕТ | Z156: =T156*400/1000 -> 0
B157: =SUBTOTAL(3,$I$137:I157) -> 21 | C157: 0 | F157: не требуется | I157: 0 | J157: 0 | L157: 0 | N157: 0
B158: =SUBTOTAL(3,$I$137:I158) -> 22 | C158: 0 | F158: не требуется | I158: 0 | J158: 0 | L158: 0 | N158: 0
B159: =SUBTOTAL(3,$I$137:I159) -> 23 | C159: 0 | F159: не требуется | I159: 0 | J159: 0 | L159: 0 | N159: 0
B160: =SUBTOTAL(3,$I$137:I160) -> 24 | C160: 0 | F160: не требуется | I160: 0 | J160: 0 | L160: 0 | N160: 0 | P160: =IF(V3=Y3,"НАЗВАНИЕ ПАРАПЕТА"," ") -> 
B161: =SUBTOTAL(3,$I$137:I161) -> 25 | C161: 0 | F161: не требуется | I161: 0 | J161: 0 | L161: 0 | N161: 0 | P161: =IF(V3=Y3,"ПГ_ВЕРХ"," ") ->  | R161: =IF(V3=Y3,"ДКР"," ") ->  | T161: =IF(V3=Y3,"АНКЕР"," ") -> 
B162: =SUBTOTAL(3,$I$137:I162) -> 26 | C162: 0 | F162: не требуется | I162: 0 | J162: 0 | L162: 0 | N162: 0 | P162: =IF(V3=Y3,"ПГ_НИЗ"," ") ->  | R162: =IF(V3=Y3,"ДПР"," ") -> 
B163: =SUBTOTAL(3,$I$137:I163) -> 27 | C163: 0 | F163: не требуется | I163: 0 | J163: 0 | L163: 0 | N163: 0 | P163: =IF(V3=Y3,"СМРЗ. МЕТ"," ") ->  | R163: =IF(V3=Y3,"СМРЗ БЕТ."," ") -> 
B164: =SUBTOTAL(3,$I$137:I164) -> 28 | C164: 0 | F164: не требуется | I164: 0 | J164: 0 | L164: 0 | N164: 0
B165: =SUBTOTAL(3,$I$137:I165) -> 29 | C165: 0 | F165: не требуется | I165: 0 | J165: 0 | L165: 0 | N165: 0 | P165: Воронка водоприемная | R165: Воронка ТехноНИКОЛЬ с обжимным фланцем обогреваемая, 110х450 мм | U165: шт | V165: =HYPERLINK("#"&$AB$5&"!A22","⇑ ") -> ⇑
B166: =SUBTOTAL(3,$I$137:I166) -> 30 | C166: 0 | F166: не требуется | I166: 0 | J166: 0 | L166: 0 | N166: 0 | P166: Воронка водоприемная (п) | R166: Воронка парапетная 100*100 (квадратное сечение) | U166: шт
B167: =SUBTOTAL(3,$I$137:I167) -> 31 | C167: 0 | F167: не требуется | I167: 0 | J167: 0 | L167: 0 | N167: 0 | P167: Галтель | R167: ТЕХНОРУФ 45 ГАЛТЕЛЬ (1.2 м) | U167: м.п.
B168: =SUBTOTAL(3,$I$137:I168) -> 32 | C168: 0 | F168: не требуется | I168: 0 | J168: 0 | L168: 0 | N168: 0
B169: =SUBTOTAL(3,$I$137:I169) -> 33 | C169: 0 | F169: не требуется | I169: 0 | J169: 0 | L169: 0 | N169: 0
B170: =SUBTOTAL(3,$I$137:I170) -> 34 | C170: 0 | F170: не требуется | I170: 0 | J170: 0 | L170: 0 | N170: 0 | P170: =HYPERLINK("#"&$AB$5&"!T2","⇑ ") -> ⇑ | Q170: Тип здания: | R170: =$V$2 -> - | T170: =IF($R$170=$Z$171,$AD$171,IF($R$170=$AA$171,$AD$172,"-")) -> -
B171: =SUBTOTAL(3,$I$137:I171) -> 35 | C171: 0 | F171: не требуется | I171: 0 | J171: 0 | L171: 0 | N171: 0 | Q171: Высота | R171: Длина, м.п. | S171: Ограждение | V171: Кол-во, шт. | Y171: Высота | Z171: Объекты ФЗ-44 | AA171: Объекты ПП-615 | AD171: Нормируемая высота ограждения = 600 мм.
B172: =SUBTOTAL(3,$I$137:I172) -> 36 | C172: 0 | F172: не требуется | I172: 0 | J172: 0 | L172: 0 | N172: 0 | Q172: 0≤ | S172: =IFERROR(IF(R172>0,INDEX($Z$172:$AA$176,MATCH(Q172,$Y$172:$Y$176,0),MATCH($R$170,$Z$171:$AA$171,0)),"-"),"-") -> - | V172: =IFERROR(IF(R172:R172>0,ROUNDUP(R172/3,0),"-"),"-") -> - | Y172: 0≤ | Z172: Кровельное ограждение ТехноНИКОЛЬ КО/PRO/PL/600-2 | AA172: Кровельное ограждение ТехноНИКОЛЬ КО/PRO/PL/1200-3 | AD172: Нормируемая высота ограждения = 1200 мм.
B173: =SUBTOTAL(3,$I$137:I173) -> 37 | C173: 0 | F173: не требуется | I173: 0 | J173: 0 | L173: 0 | N173: 0 | Q173: 200≤ | S173: =IFERROR(IF(R173>0,INDEX($Z$172:$AA$176,MATCH(Q173,$Y$172:$Y$176,0),MATCH($R$170,$Z$171:$AA$171,0)),"-"),"-") -> - | V173: =IFERROR(IF(R173:R173>0,ROUNDUP(R173/3,0),"-"),"-") -> - | Y173: 200≤ | Z173: Кровельное ограждение ТехноНИКОЛЬ КО/PRO/PV/600-2 | AA173: Кровельное ограждение ТехноНИКОЛЬ КО/PRO/PL/1200-3
B174: =SUBTOTAL(3,$I$137:I174) -> 38 | C174: 0 | F174: не требуется | I174: 0 | J174: 0 | L174: 0 | N174: 0 | Q174: 400≤ | S174: =IFERROR(IF(R174>0,INDEX($Z$172:$AA$176,MATCH(Q174,$Y$172:$Y$176,0),MATCH($R$170,$Z$171:$AA$171,0)),"-"),"-") -> - | V174: =IFERROR(IF(R174:R174>0,ROUNDUP(R174/3,0),"-"),"-") -> - | Y174: 400≤ | Z174: Кровельное ограждение ТехноНИКОЛЬ КО/PRO/PV/600-2 | AA174: Кровельное ограждение ТехноНИКОЛЬ КО/PRO/PV/800-3
B175: =SUBTOTAL(3,$I$137:I175) -> 39 | C175: 0 | F175: не требуется | I175: 0 | J175: 0 | L175: 0 | N175: 0 | Q175: 600≤ | S175: =IFERROR(IF(R175>0,INDEX($Z$172:$AA$176,MATCH(Q175,$Y$172:$Y$176,0),MATCH($R$170,$Z$171:$AA$171,0)),"-"),"-") -> - | V175: =IFERROR(IF(R175:R175>0,ROUNDUP(R175/3,0),"-"),"-") -> - | Y175: 600≤ | Z175: - | AA175: Кровельное ограждение ТехноНИКОЛЬ КО/PRO/PV/600-2
B176: =SUBTOTAL(3,$I$137:I176) -> 40 | C176: 0 | F176: не требуется | I176: 0 | J176: 0 | L176: 0 | N176: 0 | Q176: 800≤ | S176: =IFERROR(IF(R176>0,INDEX($Z$172:$AA$176,MATCH(Q176,$Y$172:$Y$176,0),MATCH($R$170,$Z$171:$AA$171,0)),"-"),"-") -> - | V176: =IFERROR(IF(R176:R176>0,ROUNDUP(R176/3,0),"-"),"-") -> - | Y176: 800≤ | Z176: - | AA176: Кровельное ограждение ТехноНИКОЛЬ КО/PRO/PV/600-2
B177: =SUBTOTAL(3,$I$137:I177) -> 41 | C177: 0 | F177: не требуется | I177: 0 | J177: 0 | L177: 0 | N177: 0
B178: =SUBTOTAL(3,$I$137:I178) -> 42 | C178: 0 | F178: не требуется | I178: 0 | J178: 0 | L178: 0 | N178: 0
B179: =SUBTOTAL(3,$I$137:I179) -> 43 | C179: 0 | F179: не требуется | I179: 0 | J179: 0 | L179: 0 | N179: 0
B180: =SUBTOTAL(3,$I$137:I180) -> 44 | C180: 0 | F180: не требуется | I180: 0 | J180: 0 | L180: 0 | N180: 0
B181: =SUBTOTAL(3,$I$137:I181) -> 45 | C181: 0 | F181: не требуется | I181: 0 | J181: 0 | L181: 0 | N181: 0 | AC181: ПВХ мембрана LOGICROOF V-SR серый (1.5 мм)* | AD181: Герметик ПУ ТехноНИКОЛЬ Logicflex для плоских кровель
B182: =SUBTOTAL(3,$I$137:I182) -> 46 | C182: 0 | F182: не требуется | I182: 0 | J182: 0 | L182: 0 | N182: 0 | AA182: Кровельное ограждение ТехноНИКОЛЬ КО/PRO/PL/1200-3 | AB182: =SUMIF($S$172:$U$176,AA182,$V$172:$V$176) -> 0 | AC182: =IF(AB182>0,(0.6*AB182),0) -> 0 | AD182: =IF(AB182>0,(0.25*AB182),0) -> 0
B183: =SUBTOTAL(3,$I$137:I183) -> 47 | C183: 0 | F183: не требуется | I183: 0 | J183: 0 | L183: 0 | N183: 0 | AA183: Кровельное ограждение ТехноНИКОЛЬ КО/PRO/PL/600-2 | AB183: =SUMIF($S$172:$U$176,AA183,$V$172:$V$176) -> 0 | AC183: =IF(AB183>0,(0.6*AB183),0) -> 0 | AD183: =IF(AB183>0,(0.25*AB183),0) -> 0
B184: =SUBTOTAL(3,$I$137:I184) -> 48 | C184: 0 | F184: не требуется | I184: 0 | J184: 0 | L184: 0 | N184: 0 | AA184: Кровельное ограждение ТехноНИКОЛЬ КО/PRO/PV/600-2 | AB184: =SUMIF($S$172:$U$176,AA184,$V$172:$V$176) -> 0 | AC184: 0 | AD184: =IF(AB184>0,(0.5*AB184),0) -> 0
B185: =SUBTOTAL(3,$I$137:I185) -> 49 | C185: =IF($T$5=$AA$12,S21,S21+$R$3) -> 0 | F185: не требуется | I185: =ROUND(T21,0) -> 0 | J185: =ROUND(IFERROR(IF($V$4=$Y$11,0,IF($T$3=$Y$13,T21/$AE$12*$U$12,T21/$U$14*$U$12)),0),0) -> 0 | L185: 0 | N185: 0 | AA185: Кровельное ограждение ТехноНИКОЛЬ КО/PRO/PV/800-3 | AB185: =SUMIF($S$172:$U$176,AA185,$V$172:$V$176) -> 0 | AC185: 0 | AD185: =IF(AB185>0,(0.5*AB185),0) -> 0
B186: =SUBTOTAL(3,$I$137:I186) -> 50 | C186: 0 | F186: не требуется | I186: =ROUND(T22,0) -> 0 | J186: =ROUND(IFERROR(IF($V$4=$Y$11,0,IF($T$3=$Y$13,T22/$AE$12*$U$12,T22/$U$14*$U$12)),0),0) -> 0 | L186: 0 | N186: 0 | AC186: =IF(V3=Y4,SUM(AC182:AC185),0) -> 0 | AD186: =IF(V3=Y4,SUM(AD182:AD185),0) -> 0
B187: =SUBTOTAL(3,$I$137:I187) -> 51 | C187: 0 | F187: не требуется | I187: 0 | J187: 0 | L187: 0 | N187: 0
B188: =SUBTOTAL(3,$I$137:I188) -> 52 | C188: 0 | F188: не требуется | I188: 0 | J188: 0 | L188: 0 | N188: 0
B189: =SUBTOTAL(3,$I$137:I189) -> 53 | C189: 0 | F189: не требуется | I189: 0 | J189: 0 | L189: 0 | N189: 0
B190: =SUBTOTAL(3,$I$137:I190) -> 54 | C190: 0 | F190: не требуется | I190: 0 | J190: 0 | L190: 0 | N190: 0
B191: =SUBTOTAL(3,$I$137:I191) -> 55 | C191: 0 | F191: не требуется | I191: 0 | J191: 0 | L191: 0 | N191: 0
B192: =SUBTOTAL(3,$I$137:I192) -> 56 | C192: 0 | F192: не требуется | I192: 0 | J192: 0 | L192: 0 | N192: 0
B193: =SUBTOTAL(3,$I$137:I193) -> 57 | C193: 0 | F193: не требуется | I193: 0 | J193: 0 | L193: 0 | N193: 0
B194: =SUBTOTAL(3,$I$137:I194) -> 58 | C194: 0 | F194: не требуется | I194: 0 | J194: 0 | L194: 0 | N194: 0
B195: =SUBTOTAL(3,$I$137:I195) -> 59 | C195: 0 | F195: не требуется | I195: 0 | J195: 0 | L195: 0 | N195: 0
B196: =SUBTOTAL(3,$I$137:I196) -> 60 | C196: 0 | F196: не требуется | I196: 0 | J196: 0 | L196: 0 | N196: 0
B197: =SUBTOTAL(3,$I$137:I197) -> 61 | C197: 0 | F197: не требуется | I197: 0 | J197: 0 | L197: 0 | N197: 0
B198: =SUBTOTAL(3,$I$137:I198) -> 62 | C198: 0 | F198: не требуется | I198: 0 | J198: 0 | L198: 0 | N198: 0
B199: =SUBTOTAL(3,$I$137:I199) -> 63 | C199: 0 | F199: не требуется | I199: 0 | J199: 0 | L199: 0 | N199: 0
B200: =SUBTOTAL(3,$I$137:I200) -> 64 | C200: 0 | F200: не требуется | I200: 0 | J200: 0 | L200: 0 | N200: 0
... 1133 more rows

Sheet ТИП4 (hidden)
AC1: Дата последней редакции шаблона: 22.10.21
I2: Площадь кровли : | J2: =ПЛ -> 0 | L2: м2 | P2: ИСХОДНЫЕ ДАННЫЕ: | S2: Слоёв КУ | T2: 1 слой | U2: ТИП ЗДАНИЯ: | V2: - | W2: =HYPERLINK("#"&$AB$5&"!Q170","↓ ") -> ↓ | Y2: НЕТ | AA2: НЕТ
I3: Сметная стоимость материалов текущего типа кровли : | J3: =SUM(J73,L62,L36,L22,L15,L12) -> 0.00 | L3: руб. | O3: ПЛОЩАДЬ: | Q3: ОТИ: | S3: ОУ: | T3: НЕТ | U3: МЕМБРАНА: | V3: НЕТ | Y3: Битумно- полимерная | Z3: =IF(V3=Y3,1,IF(V3=Y4,0,"-")) -> - | AA3: НЕТ | AB3: =IF(R4<>Y8,"-",R5) -> - | AV3: =INDEX(AV5:AV13,MATCH(1,AY5:AY13,0)) ->  | BB3: =INDEX(BB5:BB13,MATCH(1,BE5:BE13,0)) -> 
I4: Система : | O4: ПЕРИМЕТР: | Q4: ОСНОВАНИЕ: | R4: НЕТ | S4: КУ: | T4: НЕТ | U4: КРЕПЕЖ: | V4: НЕТ | Y4: ПВХ | Z4: =IF(V3=Y4,1,IF(V3=Y3,0,"-")) -> - | AA4: =IF(SUM(T81:T85,T88:T92,T95:T98,S101,S104,T133:T137,T141:T145,T149:T152,T156,S161)=0,0,IFERROR(ABS((100%-SUM(T81:T85,T88:T92,T95:T98,S101,S104,T133:T137,T141:T145,T149:T152,T156,S161)/ПР)),0)) -> 0.0%
B5: Спецификация материалов | F5: =номер_объекта -> 11-27ХХ-МПКПМКИ-12.21 | K5: =AB5 -> ТИП4 | O5: =IF(AND(ПР<>0,R4=Y8,V3<>Y2),"ГОФРЫ:"," ") ->  | Q5: =IF(AND(ПР<>0,R4=Y8,V3<>Y2),"ПРОФИЛЬ:"," ") ->  | S5: РВК: | T5: БЕЗ ОТИ (н) | U5: МАТЕР. ОТИ: | V5: НЕТ | W5: =HYPERLINK("#"&$AB$5&"!V250","↓ ") -> ↓ | AA5: =Y11 -> НЕТ | AB5: =CONCATENATE(AC6,AD5) -> ТИП4 | AC5: =HYPERLINK("#"&AB5&"!A1","1") -> 1 | AD5: =_xlfn.SHEET()-2 -> 4 | AE5: =IF(OR(Q81:Q85=Z17,Q81:Q85=Z18,Q81:Q85=Z19,Q81:Q85=Z20),1,0) -> 0 | AF5: =IF(OR(Q133:Q137=Z17,Q133:Q137=Z18,Q133:Q137=Z19,Q133:Q137=Z20),1,0) -> 0 | AJ5: ТН-КРОВЛЯ КЛАССИК | AV5: Техноэласт ЭКП (4.2 мм), (верхний слой) | AY5: =IF(OR($C$23:$C$61=AV5),1,0) -> 0 | BB5: Унифлекс ВЕНТ ЭПВ, (нижний слой) | BE5: =IF(OR($C$23:$C$61=BB5),1,0) -> 0
P6: =IF(T3="нет"," ",T3) ->  | Q6: =IF(T3="нет"," ","Кол-во, шт.") ->  | R6: =IF(T3="нет"," ","Площадь, м2") ->  | S6: =IF(T3="нет"," ",IF(T3="PIR 1.7%","Площадь плит, м2","Объем плит, м3")) ->  | T6: =IF(T4="нет"," ",T4) ->  | U6: =IF(T4="нет"," ","Кол-во, шт.") ->  | V6: =IF(T4="нет"," ","Площадь, м2") ->  | W6: =IF(T4="нет"," ",IF(OR(T4=Y25,T4=Y26),"Площадь плит, м2]","Объем плит, м3")) ->  | Y6: НЕТ | AA6: =Y12 -> ДА | AB6: =REPLACE(CELL("имяфайла"),1,FIND("]",CELL("имяфайла")),"") -> ОБЩАЯ СПЕЦИФИКАЦИЯ | AC6: ТИП | AD6: =IF(OR($V$4=$AA$10,$V$4=$AA$11),1,0) -> 0 | AE6: =IF(OR(Q88:Q92=Z17,Q88:Q92=Z18,Q88:Q92=Z19,Q88:Q92=Z20),1,0) -> 0 | AF6: =IF(OR(Q141:Q145=Z17,Q141:Q145=Z18,Q141:Q145=Z19,Q141:Q145=Z20),1,0) -> 0 | AJ6: ТН-КРОВЛЯ СМАРТ PIR | AV6: Техноэласт ЭПП (4.0 мм) (два слоя) | AY6: =IF(OR($C$23:$C$61=AV6),1,0) -> 0 | BB6: Унифлекс ЭПП (2.8 мм), (верхний слой) | BE6: =IF(OR($C$23:$C$61=BB6),1,0) -> 0
Y7: БЕТОН | Z7: по умолчанию | AA7: ДА 6,3 | AB7: ГОФРЫ | AC7: =IF(R5=Z7,AC9,IF(R5=Z8,AC8,IF(R5=Z9,AC9,IF(R5=Z10,AC10,0)))) -> 0.0000 | AE7: =IF(OR(R95:R98=Z18,R95:R98=Z19,R95:R98=Z20,R95:R98=Z17),1,0) -> 0 | AF7: =IF(OR(Q149:Q152=Z17,Q149:Q152=Z18,Q149:Q152=Z19,Q149:Q152=Z20),1,0) -> 0 | AJ7: ТН-КРОВЛЯ СМАРТ | AV7: Техноэласт СОЛО РП1 (5.0 мм) | AY7: =IF(OR($C$23:$C$61=AV7),1,0) -> 0 | BB7: Техноэласт ФИКС (3.0 мм), (нижний слой) | BE7: =IF(OR($C$23:$C$61=BB7),1,0) -> 0
B8: № | C8: Наименование материала | H8: К-т. расх | I8: Кол-во | J8: Ед. изм. | K8: Стоимость ед., руб. | L8: Сметная стоимость, руб. (без учёта кратности) | N8: фильтр | P8: =IF(T3="нет"," ","Плиты А") ->  | S8: =IF(OR(T3=Y14,T3=Y15),Q8*(0.0576/2),IF(T3=Y16,Q8*0.0144,IF(T3=Y17,Q8*0.0126,IF(T3=Y18,Q8*0.72," ")))) ->  | T8: =IF(T4="нет"," ",IF(OR(T4=Y20,T4=Y21,T4=Y22),"Плиты А",IF(T4=Y27,"Плиты М","Плиты J"))) ->  | W8: =IF(OR(T4=Y20,T4=Y21),U8*0.0306,IF(T4=Y22,U8*0.0198,IF(T4=Y23,U8*0.0144,IF(T4=Y24,U8*0.0126,IF(OR(T4=Y25,T4=Y26),U8*0.72,IF(T4=Y27,U8*0.0252," ")))))) ->  | Y8: ПРОФЛИСТ | Z8: Н75 | AA8: ТОЛЬКО КУ | AB8: 75 | AC8: =0.25*0.075*0.1*5.35*1.03 -> 0.0103 | AD8: 1.18 | AJ8: ТН-КРОВЛЯ СТАНДАРТ | AV8: Техноэласт ПРАЙМ ЭКМ, (верхний слой) | AY8: =IF(OR($C$23:$C$61=AV8),1,0) -> 0 | BB8: Техноэласт ПРАЙМ ЭММ, (нижний слой) | BE8: =IF(OR($C$23:$C$61=BB8),1,0) -> 0
P9: =IF(T3="нет"," ","Плиты Б") ->  | S9: =IF(OR(T3=Y14,T3=Y15),Q9*(0.0864/2),IF(T3=Y16,Q9*0.0288,IF(T3=Y17,Q9*0.03068,IF(T3=Y18,Q9*0.72," ")))) ->  | T9: =IF(T4="нет"," ",IF(OR(T4=Y20,T4=Y21,T4=Y22),"Плиты Б",IF(T4=Y27,"Плита 50",IF(OR(T4=Y23,T4=Y24,T4=Y26),"Плиты К","Добор 40")))) ->  | W9: =IF(OR(T4=Y20,T4=Y21),U9*0.0486,IF(T4=Y22,U9*0.0378,IF(T4=Y23,U9*0.0288,IF(T4=Y24,U9*0.0306,IF(OR(T4=Y25,T4=Y26),U9*0.72,IF(T4=Y27,U9*0.036," ")))))) ->  | Y9: СТЯЖКА | Z9: Н114 | AA9: ТОЛЬКО КУ+ГИ | AB9: 114 | AC9: =4*0.25*0.114*0.13*1.03 -> 0.0153 | AD9: 1.1 | AE9: . Общая длина примыкания- | AF9: м. | AJ9: ТН-КРОВЛЯ ОПТИМА | AV9: Техноэласт ПЛАМЯ СТОП ЭКП (4.2 мм), (верхний слой) | AY9: =IF(OR($C$23:$C$61=AV9),1,0) -> 0 | BB9: Унифлекс С, (нижний слой) | BE9: =IF(OR($C$23:$C$61=BB9),1,0) -> 0
N10: 1 | P10: =IF(T3="нет"," ",IF(OR(T3=Y14,T3=Y15),"Плиты С",IF(T3=Y17,"Плита 50","Плита 40"))) ->  | S10: =IF(OR(T3=Y14,T3=Y15),Q10*(0.0576/2),IF(T3=Y16,Q10*0.0288,IF(T3=Y17,Q10*0.036,IF(T3=Y18,Q10*0.72," ")))) ->  | T10: =IF(T4="нет"," ",IF(OR(T4=Y20,T4=Y21,T4=Y22),"Плиты C",IF(T4=Y24,"Плита 50",IF(T4=Y27," ",IF(T4=Y26,"Добор 80",IF(T4=Y25," ","Плита 40")))))) ->  | W10: =IF(OR(T4=Y20,T4=Y22,T4=Y21,T4=Y24),U10*0.036,IF(T4=Y23,U10*0.0288,IF(T4=Y25,"",IF(T4=Y26,0.72*U10,IF(T4=Y27," "," "))))) ->  | Y10: АЦЛ (ЦСП) | Z10: Н153 | AA10: Сборная стяжка+ГИ | AB10: 159 | AC10: =0.25*0.16*0.153*1.03*3.58 -> 0.0226 | AD10: 1.3 | AJ10: ТН-КРОВЛЯ ПРОФ | AV10: Унифлекс ЭКП (3.8 мм), (верхний слой) | AY10: =IF(OR($C$23:$C$61=AV10),1,0) -> 0 | BB10: Унифлекс ЭКСПРЕСС ЭМП, (нижний слой) | BE10: =IF(OR($C$23:$C$61=BB10),1,0) -> 0
B11: 1 | C11: 2 | H11: 3 | I11: 4 | J11: 5 | K11: 6 | L11: 7 | N11: 1 | T11: Площадь плит [м2] | Y11: НЕТ | Z11: 1 слой | AA11: Сборная стяжка | AJ11: ТН-КРОВЛЯ ГАРАНТ+ | AV11: Техноэласт МОСТ С | AY11: =IF(OR($C$23:$C$61=AV11),1,0) -> 0 | BB11: Унифлекс ЭПП (2.8 мм), (верхний слой) | BE11: =IF(OR($C$23:$C$61=BB11),1,0) -> 0
C12: Устройство пароизоляционного слоя | H12: =HYPERLINK("#"&AB5&"!A840","1111") -> 1111 | L12: =SUM(L13:L14) -> 0.00 | N12: =IF(SUM(I13:I14)>0,1,0) -> 0 | P12: =IF(V4=AA5," ","ВЫГРУЗКА КРЕПЕЖА") ->  | S12: =IF(V4="НЕТ"," ","Количество крепежа по ветровому расчету, на м2") ->  | U12: =IF(OR(V4=AA6,V4=AA7,V4=AA9,V4=AA10),4,IF(V4=AA8,0," ")) ->  | Y12: ДА | Z12: 2 и более | AA12: БЕЗ ОТИ (н) | AB12: СУММА | AC12: =SUM($I$13:$I$14,$I$16:$I$21,$I$23:$I$35,$I$23:$I$62,$I$63:$I$69,$I$83:$I$97,$I$101:$I$113,$I$115) -> 0.0 | AE12: =IF(AND(T3=Y13,T4=Y25),3.4,3.4) -> 3.4 | AF12: =IF(AF13=0,0,COUNT(AF13)) -> 0 | AJ12: ТН-КРОВЛЯ БАЛЛАСТ | AV12: Техноэласт Декор, (верхний слой) | AY12: =IF(OR($C$23:$C$61=AV12),1,0) -> 0
B13: =SUBTOTAL(3,$I$13:I13) -> 0 | L13: =IFERROR(I13*K13,0) -> 0.00 | N13: =IF(OR(I13=" ",I13=0),0,1) -> 0 | P13: =IF(V4=AA5," ","ВЫСОТА") ->  | Q13: =IF(V4=AA5," ","КОЛ-ВО") ->  | Y13: НЕТ | AA13: +ОТИ (с) | AE13: =SUM(W21:W23) -> 0 | AF13: =IF(AND((SUM(W21:W23)=0),T3=Y13,T4=Y19),0,ПЛ) -> 0 | AJ13: ТН-КРОВЛЯ ФИКС
B14: =SUBTOTAL(3,$I$13:I14) -> 0 | L14: =IFERROR(I14*K14,0) -> 0.00 | N14: =IF(OR(I14=" ",I14=0),0,1) -> 0 | S14: =IF(AND(OR(V4="ДА",V4="ДА 6,3"),T3<>"НЕТ"),"Количество крепежа по клинам, на м2"," ") ->  | U14: =IFERROR(IF(AND(OR(V4="ДА",V4="ДА 6,3"),OR(T3=Y14,T3=Y15,T3=Y17,T3=Y16)),SUM(Q14:Q60,T21:T52)/ПЛ,IF(AND(OR(V4="ДА",V4="ДА 6,3"),T3=Y18),SUM(Q14:Q60,T21:T52)/ПЛ," ")),0) ->  | V14: =IF(AND(OR(V4="ДА",V4="ДА 6,3"),T3<>"НЕТ"),"ДВР"," ") ->  | W14: =IF(AND(OR(V4="ДА",V4="ДА 6,3"),T3<>"НЕТ"),4," ") ->  | Y14: КВ 1.7% | AA14: НЕТ | AJ14: ТН-КРОВЛЯ ТИТАН
C15: Устройство теплоизоляционного слоя | H15: =HYPERLINK("#"&AB5&"!A850","1111") -> 1111 | L15: =SUM(L16:L21) -> 0.00 | N15: =IF(SUM(I16:I21)>0,1,0) -> 0 | Y15: КВ 1.7% ВЭ | Z15: МЕТ | AA15: ПВХ Logicroof Walkway Puzzle | AB15: ЦЕНА КЛИН | AC15: =ОБЩИЕ_ДАННЫЕ!N81 -> 1 | AD15: =IF(P3=0,0,IF(P3<=1000,1,IF(AND(P3>1000,P3<=5000),2,IF(AND(P3>5000,P3<=10000),3,IF(P3>10000,4,0))))) -> 0 | AE15: сложность | AF15: счет если | AJ15: ТН-КРОВЛЯ УНИВЕРСАЛ
B16: =SUBTOTAL(3,$I$13:I16) -> 0 | L16: =IFERROR(I16*K16,0) -> 0.00 | N16: =IF(OR(I16=" ",I16=0),0,1) -> 0 | S16: =IF(AND(OR(V4="ДА",V4="ДА 6,3"),T3<>"НЕТ"),"Общее количество крепежа на м2"," ") ->  | U16: =IF(AND(OR(V4="ДА",V4="ДА 6,3"),T3<>"НЕТ"),U14+U12," ") ->  | V16: =IF(AND(OR(V4="ДА",V4="ДА 6,3"),T3<>"НЕТ"),"РРК"," ") ->  | W16: =IF(AND(OR(V4="ДА",V4="ДА 6,3"),OR(T3=Y14,T3=Y15,T3=Y17,T3=Y16)),3.5+W14,IF(AND(OR(V4="ДА",V4="ДА 6,3"),T3=Y18),3.5+W14," ")) ->  | Y16: XPS 1.7% | Z16: Ж/Б | AA16: АЦЛ/ОСБ | AC16: =IFERROR(IF(OR(AND(T3=Y14,OR(T4=Y20,T4=Y22)),AND(T3=Y16,T4=Y23)),INDEX(Прайс!J9:M11,T5,AD15)*AC15,0),0) -> 0 | AD16: ОКУ | AE16: =IF(AC16>0,$T$5,0) -> 0 | AF16: =IF(AC16>0,COUNT(T5),0) -> 0 | AJ16: ТН-КРОВЛЯ МАСТЕР
B17: =SUBTOTAL(3,$I$13:I17) -> 0 | L17: 0.00 | N17: 0 | Y17: XPS 2.1% | Z17: МЕТ+ТЕПЛО | AA17: НЕТ | AB17: 1 | AC17: =IFERROR(IF(AND(T3=Y13,OR(T4=Y27,T4=Y23,T4=Y20,T4=Y22)),INDEX(Прайс!J6:M8,T5,AD15)*AC15,IF(AND(T4=Y19,OR(T3=Y14,T3=Y16)),INDEX(Прайс!J6:M8,T5,AD15)*AC15,0)),0) -> 0 | AD17: КУ | AE17: =IF(AC17>0,$T$5,0) -> 0 | AF17: =IF(AC17>0,COUNT(T5),0) -> 0 | AJ17: ТН-КРОВЛЯ ЭКСПЕРТ PIR
B18: =SUBTOTAL(3,$I$13:I18) -> 0 | L18: 0.00 | N18: 0 | Y18: PIR 1.7% | Z18: Ж/Б+ТЕПЛО | AA18: LOGICROOF NG | AB18: 2 | AC18: =IFERROR(IF(OR(AND(T4=Y25,T3=Y18)),INDEX(Прайс!J15:M17,T5,AD15)*AC15,0),0) -> 0 | AD18: ОКУП | AE18: =IF(AC18>0,$T$5,0) -> 0 | AF18: =IF(AC18>0,COUNT(T5),0) -> 0 | AJ18: Прочее
B19: =SUBTOTAL(3,$I$13:I19) -> 0 | L19: 0.00 | N19: 0 | S19: =IF(Y11=AD13," ","продолжение таблицы ") -> продолжение таблицы | V19: Кол- во ОУ и КУ | Y19: НЕТ | Z19: МЕТ+ТЕПЛО БК | AA19: - | AB19: 3 | AC19: =IFERROR(IF(AND(T3=Y13,T4=Y25),INDEX(Прайс!J12:M14,T5,AD15)*AC15,IF(AND(T4=Y19,T3=Y18),INDEX(Прайс!J12:M14,T5,AD15)*AC15,0)),0) -> 0 | AD19: КУП | AE19: =IF(AC19>0,$T$5,0) -> 0 | AF19: =IF(AC19>0,COUNT(T5),0) -> 0
B20: =SUBTOTAL(3,$I$13:I20) -> 0 | L20: 0.00 | N20: 0 | S20: =IF(Y11=AD13," ","ВЫСОТА") -> ВЫСОТА | T20: =IF(Y11=AD13," ","КОЛ-ВО") -> КОЛ-ВО | V20: Название | W20: Кол-во шт. | Y20: КВ 4.2% | Z20: Ж/Б+ТЕПЛО БК | AA20: Объекты ФЗ-44 | AB20: дубль | AC20: =IF(AND(P3>0,OR(V3<>Y2,T3<>Y13,T4<>Y19)),1,0) -> 0 | AJ20: =IF(J4="",0,CONCATENATE(J4," ",L4)) -> 0
B21: =SUBTOTAL(3,$I$13:I21) -> 0 | L21: 0.00 | N21: 0 | V21: ОУ | Y21: КВ 4.2% ВЭ | Z21: Воронка для ПВХ мембран XL503 с обогревом, 110х450 мм | AA21: Объекты ПП-615 | AB21: =IF(OR(T3=Y14,T3=Y15,T4=Y20,T4=Y21,T4=Y22),1,0) -> 0 | AC21: =IF(OR(T3=Y16,T3=Y17,T4=Y23,T4=Y24,T4=Y27),1,0) -> 0 | AD21: =IF(OR(T3=Y18,T4=Y25,T4=Y26),1,0) -> 0 | AF21: =IF(T2=Z11,AG21,AH21) -> 0 | AG21: =IF(T4=Y19,0,IF(T4=Y25,V9,SUM(V8:V9))) -> 0 | AH21: =IF(T4=Y19,0,IF(T2=Z12,V11,0)) -> 0
A22: =HYPERLINK("#"&$AB$5&"!V169","↓ ") -> ↓ | B22: =HYPERLINK("#"&$AB$5&"!V116","↓ ") -> ↓ | C22: Устройство гидроизоляционного слоя | H22: =HYPERLINK("#"&AB5&"!A880","1111") -> 1111 | J22: =HYPERLINK("#"&AB5&"!A990","1111") -> 1111 | L22: =SUM(L23:L35) -> 0.00 | N22: =IF(SUM(I23:I35)>0,1,0) -> 0 | V22: КУ | Y22: КВ 4.2% Н | Z22: Воронка для ПВХ мембран XL503 без обогрева, 110х450 мм | AA22: НЕТ | AB22: КВ | AC22: XPS | AD22: PIR | AF22: =IF(SUM(I98:I100,I110:I113)>0,1,0) -> 0
B23: =SUBTOTAL(3,$I$13:I23) -> 0 | L23: =IFERROR(#REF!*K23,0) -> 0.00 | N23: =IF(OR(I23=" ",I23=0),0,1) -> 0 | V23: КУ как ОУ | Y23: XPS 3.4% | Z23: Воронка с обжимным металлическим фланцем с обогревом, 110х450 мм | AJ23: Огнезащита: | AM23: 30 | AN23: 60 | AV23: ПВХ мембрана LOGICROOF V-RP (1.2 мм) | AY23: =IF(OR(AV23=$C$23:$C$61),1,0) -> 0
B24: =SUBTOTAL(3,$I$13:I24) -> 0 | L24: =IFERROR(#REF!*K24,0) -> 0.00 | N24: 0 | Y24: XPS 4.2% | Z24: Воронка с обжимным металлическим фланцем без обогрева, 110х450 мм | AJ24: Плита ТЕХНО ОЗМ | AK24: =F854 -> 0 | AM24: 40 | AN24: 60 | AV24: ПВХ мембрана LOGICROOF V-RP ARCTIC (1.2 мм) | AY24: =IF(OR(AV24=$C$23:$C$61),1,0) -> 0
B25: =SUBTOTAL(3,$I$13:I25) -> 0 | L25: =IFERROR(I25*K25,0) -> 0.00 | N25: 0 | Y25: PIR 3.3% (J) | Z25: Воронка с обжимным металлическим фланцем с обогревом 110х720 мм | AJ25: Саморез сверлоконечный ТехноНИКОЛЬ 4,8х | AK25: =INDEX(AN23:AN31,MATCH(AK24,AM23:AM31,0)) ->  | AM25: 50 | AN25: 80 | AV25: ПВХ мембрана ECOPLAST V-RP (1.2 мм) | AY25: =IF(OR(AV25=$C$23:$C$61),1,0) -> 0
B26: =SUBTOTAL(3,$I$13:I26) -> 0 | L26: 0.00 | N26: 0 | Y26: PIR 3.3% (J+K) | Z26: Воронка с обжимным металлическим фланцем без обогрева 110х720 мм | AJ26: Крепёж | AK26: =IF(AK24>0,ТИП4!ПЛ*7,0) -> 0 | AM26: 60 | AN26: 80 | AV26: ПВХ мембрана LOGICROOF V-RP FR (1.2 мм) | AY26: =IF(OR(AV26=$C$23:$C$61),1,0) -> 0
B27: =SUBTOTAL(3,$I$13:I27) -> 0 | L27: 0.00 | N27: 0 | Y27: XPS 8.3% | Z27: Воронка ТехноНИКОЛЬ с обжимным фланцем обогреваемая, 110х450 мм | AM27: 70 | AN27: 100 | AV27: ПВХ мембрана ECOPLAST V-GR (1.5 мм) | AY27: =IF(OR(AV27=$C$23:$C$61),1,0) -> 0
B28: =SUBTOTAL(3,$I$13:I28) -> 0 | L28: 0.00 | N28: 0 | Z28: Воронка ТехноНИКОЛЬ с обжимным фланцем, 110х450 мм | AM28: 80 | AN28: 100 | AV28: ПВХ мембрана LOGICROOF V-RP (1.5 мм) | AY28: =IF(OR(AV28=$C$23:$C$61),1,0) -> 0
B29: =SUBTOTAL(3,$I$13:I29) -> 0 | L29: 0.00 | N29: 0 | Y29: ТЕХНОРУФ Н30 | Z29: Воронка ТехноНИКОЛЬ ВБ, 110х450 мм | AM29: 90 | AN29: 120 | AV29: ПВХ мембрана LOGICROOF V-RP ARCTIC (1.5 мм) | AY29: =IF(OR(AV29=$C$23:$C$61),1,0) -> 0
B30: =SUBTOTAL(3,$I$13:I30) -> 0 | L30: 0.00 | N30: 0 | Y30: ТЕХНОРУФ В ЭКСТРА | Z30: Воронка ESSMANNGULLY DN 100 | AM30: 100 | AN30: 120 | AV30: ПВХ мембрана ECOPLAST V-RP (1.5 мм) | AY30: =IF(OR(AV30=$C$23:$C$61),1,0) -> 0
B31: =SUBTOTAL(3,$I$13:I31) -> 0 | L31: 0.00 | N31: 0 | Y31: ТЕХНОРУФ Н ОПТИМА | Z31: Фильтр для воронок универсальный | AM31: 110 | AN31: 160 | AV31: ПВХ мембрана ECOPLAST V-GR (1.8 мм) | AY31: =IF(OR(AV31=$C$23:$C$61),1,0) -> 0 | BA31: =INDEX(AV23:AV43,MATCH(1,AY23:AY43,0)) -> 
B32: =SUBTOTAL(3,$I$13:I32) -> 0 | L32: 0.00 | N32: 0 | Y32: ТЕХНОБЛОК СТАНДАРТ | Z32: Воронка парапетная 100*100 (квадратное сечение) | AV32: ПВХ мембрана LOGICROOF V-RP (1.8 мм) | AY32: =IF(OR(AV32=$C$23:$C$61),1,0) -> 0
B33: =SUBTOTAL(3,$I$13:I33) -> 0 | L33: 0.00 | N33: 0 | Y33: ТЕХНОВЕНТ СТАНДАРТ | Z33: Воронка ULTRA парапетная 110 | AV33: ПВХ мембрана LOGICROOF V-RP ARCTIC (1.8 мм) | AY33: =IF(OR(AV33=$C$23:$C$61),1,0) -> 0
B34: =SUBTOTAL(3,$I$13:I34) -> 0 | L34: =IFERROR(I34*K34,0) -> 0.00 | N34: =IF(OR(I34=" ",I34=0),0,1) -> 0 | Y34: ТЕХНОЛАЙТ ЭКСТРА | Z34: Воронка ULTRA ремонтная парапетная 100 | AV34: ПВХ мембрана ECOPLAST V-RP (1.8 мм) | AY34: =IF(OR(AV34=$C$23:$C$61),1,0) -> 0
B35: =SUBTOTAL(3,$I$13:I35) -> 0 | L35: =IFERROR(I35*K35,0) -> 0.00 | N35: =IF(OR(I35=" ",I35=0),0,1) -> 0 | Y35: ТЕХНОРУФ Н ПРОФ | Z35: Нет | AV35: ПВХ мембрана LOGICROOF V-RP ARCTIC (2.0 мм) | AY35: =IF(OR(AV35=$C$23:$C$61),1,0) -> 0
A36: =HYPERLINK("#"&$AB$5&"!P157","↓ ") -> ↓ | B36: =HYPERLINK("#"&$AB$5&"!P102","↓ ") -> ↓ | C36: Устройство примыканий | H36: =HYPERLINK("#"&AB5&"!A940","1111") -> 1111 | J36: =HYPERLINK("#"&AB5&"!A1050","1111") -> 1111 | K36: =HYPERLINK("#"&$AB$5&"!A1150","ТЕПЛО ПАРАПЕТ ") -> ТЕПЛО ПАРАПЕТ | L36: =SUM(L37:L61) -> 0.00 | N36: =IF(SUM(I23:I61)>0,1,0) -> 0 | Y36: Плита теплоизоляционная LOGICPIR PROF Ф/Ф | Z36: ТЕХНОРУФ 45 ГАЛТЕЛЬ (1.2 м) | AV36: ПВХ мембрана ECOPLAST V-GR (2.0 мм) | AY36: =IF(OR(AV36=$C$23:$C$61),1,0) -> 0
B37: =SUBTOTAL(3,$I$13:I37) -> 0 | L37: =IFERROR(I23*K37,0) -> 0.00 | N37: =IF(OR(I23=" ",I23=0),0,1) -> 0 | Y37: Плита теплоизоляционная LOGICPIR PROF СХМ/СХМ | Z37: ТЕХНОРУФ Н ПРОФ, для галтели* | AV37: ПВХ мембрана ECOPLAST V-RP (2.0 мм) | AY37: =IF(OR(AV37=$C$23:$C$61),1,0) -> 0
B38: =SUBTOTAL(3,$I$13:I38) -> 0 | L38: =IFERROR(I24*K38,0) -> 0.00 | N38: =IF(OR(I24=" ",I24=0),0,1) -> 0 | Y38: Плита теплоизоляционная LOGICPIR PROF СХ/СХ | AV38: ПВХ мембрана LOGICROOF V-GR FB (1.2 мм) | AY38: =IF(OR(AV38=$C$23:$C$61),1,0) -> 0
B39: =SUBTOTAL(3,$I$13:I39) -> 0 | L39: =IFERROR(I39*K39,0) -> 0.00 | N39: =IF(OR(I39=" ",I39=0),0,1) -> 0 | Y39: Сендвич-панель ТЕХНОНИКОЛЬ Ц-XPS CARBON | AV39: ПВХ мембрана LOGICROOF V-RP (2.0 мм) | AY39: =IF(OR(AV39=$C$23:$C$61),1,0) -> 0
B40: =SUBTOTAL(3,$I$13:I40) -> 0 | L40: 0.00 | N40: 0 | Y40: XPS ТехноНИКОЛЬ CARBON ECO | AV40: ПВХ мембрана LOGICROOF V-GR FB (1.2 мм) | AY40: =IF(OR(AV40=$C$23:$C$61),1,0) -> 0
B41: =SUBTOTAL(3,$I$13:I41) -> 0 | L41: 0.00 | N41: 0 | Y41: XPS ТехноНИКОЛЬ CARBON PROF | AV41: ПВХ мембрана LOGICROOF V-GR FB (1.5 мм) | AY41: =IF(OR(AV41=$C$23:$C$61),1,0) -> 0
B42: =SUBTOTAL(3,$I$13:I42) -> 0 | L42: 0.00 | N42: 0 | AV42: ПВХ мембрана LOGICROOF V-GR FB (1.8 мм) | AY42: =IF(OR(AV42=$C$23:$C$61),1,0) -> 0
B43: =SUBTOTAL(3,$I$13:I43) -> 0 | L43: 0.00 | N43: 0 | AV43: ПВХ мембрана LOGICROOF V-GR FB (2.0 мм) | AY43: =IF(OR(AV43=$C$23:$C$61),1,0) -> 0
B44: =SUBTOTAL(3,$I$13:I44) -> 0 | L44: 0.00 | N44: 0
B45: =SUBTOTAL(3,$I$13:I45) -> 0 | L45: 0.00 | N45: 0
B46: =SUBTOTAL(3,$I$13:I46) -> 0 | L46: 0.00 | N46: 0
B47: =SUBTOTAL(3,$I$13:I47) -> 0 | L47: 0.00 | N47: 0
B48: =SUBTOTAL(3,$I$13:I48) -> 0 | L48: 0.00 | N48: 0
B49: =SUBTOTAL(3,$I$13:I49) -> 0 | L49: 0.00 | N49: 0
B50: =SUBTOTAL(3,$I$13:I50) -> 0 | L50: 0.00 | N50: =IF(OR(I50=" ",I50=0),0,1) -> 0
B51: =SUBTOTAL(3,$I$13:I51) -> 0 | L51: 0.00 | N51: =IF(OR(I51=" ",I51=0),0,1) -> 0
B52: =SUBTOTAL(3,$I$13:I52) -> 0 | L52: 0.00 | N52: 0
B53: =SUBTOTAL(3,$I$13:I53) -> 0 | L53: 0.00 | N53: 0
B54: =SUBTOTAL(3,$I$13:I54) -> 0 | L54: 0.00 | N54: 0
B55: =SUBTOTAL(3,$I$13:I55) -> 0 | L55: 0.00 | N55: 0
B56: =SUBTOTAL(3,$I$13:I56) -> 0 | L56: 0.00 | N56: 0
B57: =SUBTOTAL(3,$I$13:I57) -> 0 | L57: 0.00 | N57: 0
B58: =SUBTOTAL(3,$I$13:I58) -> 0 | L58: 0.00 | N58: 0
B59: =SUBTOTAL(3,$I$13:I59) -> 0 | L59: 0.00 | N59: 0
B60: =SUBTOTAL(3,$I$13:I60) -> 0 | L60: 0.00 | N60: 0
B61: =SUBTOTAL(3,$I$13:I61) -> 0 | L61: 0.00 | N61: =IF(OR(I61=" ",I61=0),0,1) -> 0
C62: Устройство уклонообразующего слоя | H62: =HYPERLINK("#"&AB5&"!A1090","1111") -> 1111 | L62: =IFERROR(SUM(L63:L69),0) -> 0.00 | N62: =IF(SUM(I63:I69)>0,1,0) -> 0
B63: =SUBTOTAL(3,$I$13:I63) -> 1 | C63: =IF(T3=Y13,"",IF(T3=Y14,C1079,IF(T3=Y15,C1090,IF(T3=Y16,C1097,IF(T3=Y17,C1099,C1113))))) ->  | I63: =IF(T3=Y13,"",IF(T3=Y14,I1079,IF(T3=Y15,I1090,IF(T3=Y16,I1097,IF(T3=Y17,I1099,I1113))))) ->  | J63: =IF(T3=Y13," ",IF(OR(T3=Y14,T3=Y15),J1079,IF(OR(T3=Y16,T3=Y17),J1097,J1113))) ->  | L63: =IFERROR(I63*K63,0) -> 0.00 | N63: =IF(I63="",0,1) -> 0
B64: =SUBTOTAL(3,$I$13:I64) -> 2 | C64: =IF(T3=Y13,"",IF(T3=Y14,C1080,IF(T3=Y15,C1091,IF(T3=Y17,C1100,IF(T3=Y16,C1098,C1114))))) ->  | I64: =IF(T3=Y13,"",IF(T3=Y14,I1080,IF(T3=Y15,I1091,IF(T3=Y16,I1098,IF(T3=Y17,I1100,I1114))))) ->  | J64: =IF(T3=Y13," ",IF(OR(T3=Y14,T3=Y15),J1080,IF(OR(T3=Y16,T3=Y17),J1098,J1114))) ->  | L64: 0.00 | N64: 0
B65: =SUBTOTAL(3,$I$13:I65) -> 3 | C65: =IF(T3=Y13,"",IF(T3=Y14,C1081,IF(T3=Y15,C1092,IF(T3=Y16,C1101,IF(T3=Y17,C1102,C1115))))) ->  | I65: =IF(T3=Y13,"",IF(T3=Y14,I1081,IF(T3=Y15,I1092,IF(T3=Y16,I1101,IF(T3=Y17,I1102,I1115))))) ->  | J65: =IF(T3=Y13," ",IF(OR(T3=Y14,T3=Y15),J1081,IF(OR(T3=Y16,T3=Y17),J1101,J1115))) ->  | L65: 0.00 | N65: 0
B66: =SUBTOTAL(3,$I$13:I66) -> 4 | C66: =IF(OR(T4=Y20,T4=Y22),C1082,"") ->  | I66: =IF(OR(T4=Y20,T4=Y22),I1082,"") ->  | J66: =IF(OR(T4=Y20,T4=Y22),J1082,"") ->  | L66: 0.00 | N66: 0
B67: =SUBTOTAL(3,$I$13:I67) -> 5 | C67: =IF(T4=Y19,"",IF(T4=Y20,C1083,IF(T4=Y21,C1093,IF(T4=Y22,C1086,IF(T4=Y23,C1103,IF(T4=Y24,C1105,IF(OR(T4=Y25,T4=Y26),C1116,C1110))))))) ->  | I67: =IF(T4=Y19,"",IF(T4=Y20,I1083,IF(T4=Y21,I1093,IF(T4=Y22,I1086,IF(T4=Y23,I1103,IF(T4=Y24,I1105,IF(OR(T4=Y25,T4=Y26),I1116,I1110))))))) ->  | J67: =IF(T4=Y19," ",IF(OR(T4=Y20,T4=Y22),J1083,IF(OR(T3=Y23,T3=Y24),J1103,IF(OR(T4=Y25,T4=Y26),J1116,J1110)))) ->  | L67: 0.00 | N67: 0
B68: =SUBTOTAL(3,$I$13:I68) -> 6 | C68: =IF(T4=Y19,"",IF(T4=Y20,C1084,IF(T4=Y21,C1094,IF(T4=Y22,C1087,IF(T4=Y24,C1106,IF(T4=Y26,C1117,IF(T4=Y23,C1104,IF(T4=Y25,"",C1111)))))))) ->  | I68: =IF(T4=Y19,"",IF(T4=Y20,I1084,IF(T4=Y21,I1094,IF(T4=Y22,I1087,IF(T4=Y26,I1117,IF(T4=Y23,I1104,IF(T4=Y24,I1106,IF(T4=Y25,"",I1111)))))))) ->  | J68: =IF(T4=Y19," ",IF(OR(T4=Y20,T4=Y22),J1084,IF(OR(T3=Y23,T3=Y24),J1104,IF(T4=Y26,J1117,IF(T4=Y25,"",J1111))))) ->  | L68: 0.00 | N68: 0
B69: =SUBTOTAL(3,$I$13:I69) -> 7 | C69: =IF(T4=Y19,"",IF(T4=Y20,C1085,IF(T4=Y21,C1095,IF(T4=Y22,C1088,IF(T4=Y23,C1107,IF(T4=Y26,C1119,IF(T4=Y24,C1108,IF(T4=Y25,C1118,"")))))))) ->  | I69: =IF(T4=Y19,"",IF(T4=Y20,I1085,IF(T4=Y21,I1095,IF(T4=Y22,I1088,IF(T4=Y23,I1107,IF(T4=Y24,I1108,IF(T4=Y26,I1119,IF(T4=Y25,I1118,"")))))))) ->  | J69: =IF(T4=Y19," ",IF(OR(T4=Y20,T4=Y21,T4=Y22),J1085,IF(T3=Y23,J1107,IF(T4=Y24,J1107,IF(T4=Y26,J1119,IF(T4=Y25,J1118," ")))))) ->  | L69: 0.00 | N69: 0
C70: =IF(SUM(I23:I35,I23:I62)>0,"* Позиции носят рекомендательный характер","") ->  | N70: =IF(SUM(I23:I35,I23:I62)>0,1,0) -> 0
N71: =IF($V$4="НЕТ",0,1) -> 0
N72: =IF($V$4="НЕТ",0,1) -> 0 | P72: =IF(V3="НЕТ"," ",IF(V3="ПВХ","ПВХ мембрана","Битумно- полимерная ")) -> 
I73: Сметная стоимость крепежа : | J73: =SUM(L114,L101,L82) -> 0.00 | L73: руб. | N73: =IF($V$4="НЕТ",0,1) -> 0 | P73: =IF(V3="НЕТ"," ","ТИПЫ") ->  | Q73: =IF(V3="НЕТ"," ","ПГ") ->  | S73: =IF(V3="НЕТ"," ","ДКР") ->  | T73: =IF(V3="НЕТ"," ","ДПР") ->  | U73: =IF(V3="НЕТ"," ","ТЭ") ->  | V73: =IF(V3="НЕТ"," ","ГнП") ->  | Y73: СМРЗ. МЕТ | Z73: СМРЗ БЕТ. | AA73: АНКЕР | AB73: ПРАЙМЕР
N74: 0 | Q74: =IF(V3="НЕТ"," ","ВЕРХ") ->  | R74: =IF(V3="НЕТ"," ","НИЗ") -> 
B75: Спецификация крепежа | G75: =номер_объекта -> 11-27ХХ-МПКПМКИ-12.21 | K75: =IF(K5=0," ",K5) -> ТИП4 | N75: 0 | P75: =IF(V3="НЕТ"," ","СУММА") ->  | Q75: =IF(V3="ПВХ",SUM(Y81:Y85,Y88:Y92,Y95:Y98,Y101,Q104),IF(V3="нет"," ",SUM(Y133:Y137,Y141:Y145,Y149:Y152,Q161))) ->  | R75: =IF(V3="Битумно- полимерная",SUM(Z133:Z137,Z141:Z145,Z149:Z152,Z156,Q162),IF(V3="НЕТ"," ",0)) ->  | S75: =IF(V3="НЕТ"," ",IF(V3="ПВХ",SUM(AA95:AA98,Q105),SUM(AA149:AA152,S161))) ->  | T75: =IF(V3="нет"," ",IF(V3="ПВХ",SUM(Z81:Z85,Z88:Z92,Z95:Z98,Q106),SUM(AA133:AA137,S162))) ->  | U75: =IF(V3="ПВХ",SUM(AA81:AA85,AA88:AA92,Z101,S104),IF(V3="НЕТ"," ",0)) ->  | V75: =IF(V3="ПВХ",SUM(AB81:AB85,AB88:AB92,AB95:AB98,S105),IF(V3="НЕТ"," ",0)) ->  | Y75: =IF(V3=Y3,SUM(AB133:AB137,AB149:AB152,Q163),IF(V3=Y4,SUM(AC81:AC85,AC88:AC92,AC95:AC98,AA101,S106),0)) -> 0 | Z75: =IF(V3=Y3,SUM(AC133:AC137,AC149:AC152,S163),IF(V3=Y4,SUM(AD81:AD85,AD88:AD92,AD95:AD98,AB101,U105),0)) -> 0 | AA75: =IF(V3=Y3,SUM(AD133:AD137,AD149:AD152,U161),IF(V3=Y4,SUM(AE81:AE85,AE88:AE92,AE95:AE98,AC101,U104),0)) -> 0 | AB75: =IF(V3=Y3,SUM(AE133:AE137,AE149:AE152,AE141:AE145),0) -> 0 | AD75: =СМРЗ.МЕТ*5.15 -> 0 | AF75: =(AC81+AC82+AC83+AC84+AC85+AC88+AC90+AC89+AC91+AC92+AC95+AC96+AC97+AC98)*5.15 -> 0
N76: 0 | P76: =IFERROR(IF($V$4=$Y$12,SUM($I$102:$I$113)/ПЛ," "),0) ->  | Q76: =IF($V$4=$Y$12,"расход количества крепежа для всей кровли, шт/м2"," ") -> 
N77: 0 | P77: =IF(T3=Y13," ",IF(T3=Y14,0.72*SUM(Q8:Q9),0.72*SUM(Q8:Q9))) ->  | Q77: =IF(T3=Y13," ","площадь клинов ОУ, м2") ->  | S77: =IF(T3=Y13," ",IFERROR($P$77/ПЛ,0)) ->  | T77: =IF(T3=Y13," ","соотношение площади клинов к основной площади") -> 
B78: № | C78: Наименование | I78: Кол-во* | J78: Ед. изм. | K78: Стоимость ед., руб. | L78: Сметная стоимость, руб. | N78: 0 | P78: =IF(T4=Y19," ",IF(OR(T4=Y27,T4=Y25),0.72*U8,0.72*SUM(U8:U9))) ->  | Q78: =IF(T4=Y19," ","площадь клинов КУ, м2") ->  | S78: =IF(T4=Y19," ",IFERROR($P$78/ПЛ,0)) ->  | T78: =IF(T4=Y19," ","соотношение площади клинов к основной площади") -> 
N79: 0 | P79: =IF(V3=Y4,"Примыкание к парапету высотой более 500 мм"," ") ->  | U79: =HYPERLINK("#"&$AB$5&"!B36","⇑ ") -> ⇑ | Y79: Примыкание к парапету высотой более 500 мм | AF79: ОБЪЕМ УТЕПЛ | AG79: САМОРЕЗ КУ | AI79: ТЕЛЕСКОП КУ | AK79: САМОРЕЗ КР | AN79: Тип примыканий
N80: 0 | P80: НАЗВАНИЕ | Q80: =IF(V3=Y4,"ТИПЫ"," ") ->  | R80: =IF(V3=Y4,"ШИРИНА, мм"," ") ->  | S80: =IF(V3=Y4,"ВЫСОТА, мм"," ") ->  | T80: =IF(V3=Y4,"ДЛИНА, м"," ") ->  | U80: Н утепл, мм | V80: толщ., мм | W80: марка ут. | Y80: ПГ | Z80: ДПР | AA80: ТЭ | AB80: ГнП | AC80: СМРЗ. МЕТ | AD80: СМРЗ БЕТ. | AE80: АНКЕР, шт | AG80: размер | AH80: кол-во, шт | AI80: размер | AJ80: кол-во, шт | AK80: размер | AL80: кол-во, шт | AN80: В Примечания
B81: 1 | C81: 2 | I81: 3 | J81: 4 | K81: 5 | L81: 6 | N81: 0 | Y81: =(530+R81+S81)/1000*T81 -> 0 | Z81: =T81*2 -> 0 | AA81: =T81 -> 0 | AB81: =IF(SUM(R81:S81)>U81,IF(Q81=$Z$16,((R81+S81)/1000*T81),IF(Q81=$Z$18,((R81+S81-U81)/1000*T81),IF(Q81=$Z$19,((V81+U81)/1000*T81),IF(Q81=$Z$20,((R81+S81+V81)/1000*T81),0)))),0) -> 0 | AC81: =ROUNDUP(IF(OR(Q81=$Z$19,Q81=$Z$15),SUM(Z81:AA81),IF(Q81=$Z$17,(T81+AA81),IF(Q81=$Z$20,T81,0))),0) -> 0 | AD81: =ROUNDUP(IF(Q81=$Z$16,SUM(Z81:AA81),IF(OR(Q81=$Z$20,Q81=$Z$18),(T81+AA81),0)),0) -> 0 | AE81: =ROUNDUP(IF(Q81=$Z$16,SUM(Z81:AA81)*5*1.03,IF(Q81=$Z$18,(AA81+T81)*5*1.03+AH81+AL81,IF(Q81=$Z$20,(AA81+T81)*5*1.03,0))),0) -> 0 | AF81: =ROUNDUP(IF($AE$5=1,U81/1000*V81/1000*T81*1.03,0),1) -> 0.0 | AG81: =IF(Q81=$Z$18,INDEX($AH$307:$AI$339,MATCH(V81,$AG$307:$AG$339,0),2),IF(Q81=$Z$17,INDEX($AK$307:$AL$341,MATCH(V81,$AJ$307:$AJ$341,0),2),0)) -> 0 | AH81: =IF($W81=$Y$39,0,IF(AG81=0,0,ROUNDUP(7*T81*U81/1000*1.03,0))) -> 0 | AI81: =IF(Q81=$Z$18,INDEX($AH$307:$AI$339,MATCH(V81,$AG$307:$AG$339,0),1),IF(Q81=$Z$17,INDEX($AK$307:$AL$341,MATCH(V81,$AJ$307:$AJ$341,0),1),0)) -> 0 | AJ81: =AH81 -> 0 | AK81: =IF(Q81=$Z$18,INDEX($AO$306:$AP$323,MATCH(V81,$AN$306:$AN$323,0),2),IF(Q81=$Z$17,INDEX($AR$306:$AS$323,MATCH(V81,$AQ$306:$AQ$323,0),2),0)) -> 0 | AL81: =IF(AK81=0,0,ROUNDUP(T81*5*1.03,0)) -> 0 | AN81: =IFERROR(MATCH(Q81,$Z$15:$Z$20,0),0) -> 0
C82: =IF(AND(I83>0,SUM(I84:I97)>0),"Телескопический крепеж и тарельчатый держатель",IF(AND(I83>0,SUM(I84:I97)=0),"Тарельчатый держатель","Телескопический крепеж")) -> Телескопический крепеж | L82: =SUM(L83:L100) -> 0.00 | N82: =IF(SUM(I83:I100)>0,1,0) -> 0 | Y82: =(530+R82+S82)/1000*T82 -> 0 | Z82: =T82*2 -> 0 | AA82: =T82 -> 0 | AB82: =IF(SUM(R82:S82)>U82,IF(Q82=$Z$16,((R82+S82)/1000*T82),IF(Q82=$Z$18,((R82+S82-U82)/1000*T82),IF(Q82=$Z$19,((V82+U82)/1000*T82),IF(Q82=$Z$20,((R82+S82+V82)/1000*T82),0)))),0) -> 0 | AC82: =ROUNDUP(IF(OR(Q82=$Z$19,Q82=$Z$15),SUM(Z82:AA82),IF(Q82=$Z$17,(T82+AA82),IF(Q82=$Z$20,T82,0))),0) -> 0 | AD82: =ROUNDUP(IF(Q82=$Z$16,SUM(Z82:AA82),IF(OR(Q82=$Z$20,Q82=$Z$18),(T82+AA82),0)),0) -> 0 | AE82: =ROUNDUP(IF(Q82=$Z$16,SUM(Z82:AA82)*5*1.03,IF(Q82=$Z$18,(AA82+T82)*5*1.03+AH82+AL82,IF(Q82=$Z$20,(AA82+T82)*5*1.03,0))),0) -> 0 | AF82: =ROUNDUP(IF($AE$5=1,U82/1000*V82/1000*T82*1.03,0),1) -> 0.0 | AG82: =IF(Q82=$Z$18,INDEX($AH$307:$AI$339,MATCH(V82,$AG$307:$AG$339,0),2),IF(Q82=$Z$17,INDEX($AK$307:$AL$341,MATCH(V82,$AJ$307:$AJ$341,0),2),0)) -> 0 | AH82: =IF($W82=$Y$39,0,IF(AG82=0,0,ROUNDUP(7*T82*U82/1000*1.03,0))) -> 0 | AI82: =IF(Q82=$Z$18,INDEX($AH$307:$AI$339,MATCH(V82,$AG$307:$AG$339,0),1),IF(Q82=$Z$17,INDEX($AK$307:$AL$341,MATCH(V82,$AJ$307:$AJ$341,0),1),0)) -> 0 | AJ82: =AH82 -> 0 | AK82: =IF(Q82=$Z$18,INDEX($AO$306:$AP$323,MATCH(V82,$AN$306:$AN$323,0),2),IF(Q82=$Z$17,INDEX($AR$306:$AS$323,MATCH(V82,$AQ$306:$AQ$323,0),2),0)) -> 0 | AL82: =IF(AK82=0,0,ROUNDUP(T82*5*1.03,0)) -> 0 | AN82: =IFERROR(MATCH(Q82,$Z$15:$Z$20,0),0) -> 0
B83: =SUBTOTAL(3,$I$83:I83) -> 1 | C83: =IF($V$3=$Y$3,"Круглый тарельчатый держатель ТехноНИКОЛЬ 50мм", "Круглый тарельчатый держатель ТН (1/С) Ø 50") -> Круглый тарельчатый держатель ТН (1/С) Ø 50 | H83: ТЭ | I83: =IF(AND(OR($R$4=$Y$9,$R$4=$Y$10),$V$4=$AA$6),ROUNDUP(ПЛ*$U$12,0),IF(AND(R4=Y7,V4=AA11),SUMIF(D225:D295,H83,I225:I295),IF(AND(OR(R4=Y7,R4=Y8),V4=AA10),ROUNDUP(ПЛ*$U$12,0)+SUMIF(D225:D295,"ТЭ",I225:I295),(SUMIF($D$137:$D$216,H83,$L$137:$L$216)+SUMIF(D225:D295,"ТЭ",I225:I295)))))+IF($AK$24>0,$AK$26,0) -> 0 | J83: шт. | L83: =IFERROR(I83*K83,0) -> 0.00 | N83: =IF(I83>0,1,0) -> 0 | Y83: =(530+R83+S83)/1000*T83 -> 0 | Z83: =T83*2 -> 0 | AA83: =T83 -> 0 | AB83: =IF(SUM(R83:S83)>U83,IF(Q83=$Z$16,((R83+S83)/1000*T83),IF(Q83=$Z$18,((R83+S83-U83)/1000*T83),IF(Q83=$Z$19,((V83+U83)/1000*T83),IF(Q83=$Z$20,((R83+S83+V83)/1000*T83),0)))),0) -> 0 | AC83: =ROUNDUP(IF(OR(Q83=$Z$19,Q83=$Z$15),SUM(Z83:AA83),IF(Q83=$Z$17,(T83+AA83),IF(Q83=$Z$20,T83,0))),0) -> 0 | AD83: =ROUNDUP(IF(Q83=$Z$16,SUM(Z83:AA83),IF(OR(Q83=$Z$20,Q83=$Z$18),(T83+AA83),0)),0) -> 0 | AE83: =ROUNDUP(IF(Q83=$Z$16,SUM(Z83:AA83)*5*1.03,IF(Q83=$Z$18,(AA83+T83)*5*1.03+AH83+AL83,IF(Q83=$Z$20,(AA83+T83)*5*1.03,0))),0) -> 0 | AF83: =ROUNDUP(IF($AE$5=1,U83/1000*V83/1000*T83*1.03,0),1) -> 0.0 | AG83: =IF(Q83=$Z$18,INDEX($AH$307:$AI$339,MATCH(V83,$AG$307:$AG$339,0),2),IF(Q83=$Z$17,INDEX($AK$307:$AL$341,MATCH(V83,$AJ$307:$AJ$341,0),2),0)) -> 0 | AH83: =IF($W83=$Y$39,0,IF(AG83=0,0,ROUNDUP(7*T83*U83/1000*1.03,0))) -> 0 | AI83: =IF(Q83=$Z$18,INDEX($AH$307:$AI$339,MATCH(V83,$AG$307:$AG$339,0),1),IF(Q83=$Z$17,INDEX($AK$307:$AL$341,MATCH(V83,$AJ$307:$AJ$341,0),1),0)) -> 0 | AJ83: =AH83 -> 0 | AK83: =IF(Q83=$Z$18,INDEX($AO$306:$AP$323,MATCH(V83,$AN$306:$AN$323,0),2),IF(Q83=$Z$17,INDEX($AR$306:$AS$323,MATCH(V83,$AQ$306:$AQ$323,0),2),0)) -> 0 | AL83: 0 | AN83: =IFERROR(MATCH(Q83,$Z$15:$Z$20,0),0) -> 0
B84: =SUBTOTAL(3,$I$83:I84) -> 2 | C84: Телескопический крепеж ТехноНИКОЛЬ | F84: 20 | G84: мм | I84: =IF(OR($V$4=$AA$10,$V$4=$AA$11),SUMIF($D$225:$D$295,F84,$I$225:$I$295),SUMIF($D$137:$D$216,F84,$L$137:$L$216)) -> 0 | J84: шт. | L84: =I84*K84 -> 0.00 | N84: 0 | Y84: =(530+R84+S84)/1000*T84 -> 0 | Z84: =T84*2 -> 0 | AA84: =T84 -> 0 | AB84: =IF(SUM(R84:S84)>U84,IF(Q84=$Z$16,((R84+S84)/1000*T84),IF(Q84=$Z$18,((R84+S84-U84)/1000*T84),IF(Q84=$Z$19,((V84+U84)/1000*T84),IF(Q84=$Z$20,((R84+S84+V84)/1000*T84),0)))),0) -> 0 | AC84: =ROUNDUP(IF(OR(Q84=$Z$19,Q84=$Z$15),SUM(Z84:AA84),IF(Q84=$Z$17,(T84+AA84),IF(Q84=$Z$20,T84,0))),0) -> 0 | AD84: =ROUNDUP(IF(Q84=$Z$16,SUM(Z84:AA84),IF(OR(Q84=$Z$20,Q84=$Z$18),(T84+AA84),0)),0) -> 0 | AE84: =ROUNDUP(IF(Q84=$Z$16,SUM(Z84:AA84)*5*1.03,IF(Q84=$Z$18,(AA84+T84)*5*1.03+AH84+AL84,IF(Q84=$Z$20,(AA84+T84)*5*1.03,0))),0) -> 0 | AF84: =ROUNDUP(IF($AE$5=1,U84/1000*V84/1000*T84*1.03,0),1) -> 0.0 | AG84: =IF(Q84=$Z$18,INDEX($AH$307:$AI$339,MATCH(V84,$AG$307:$AG$339,0),2),IF(Q84=$Z$17,INDEX($AK$307:$AL$341,MATCH(V84,$AJ$307:$AJ$341,0),2),0)) -> 0 | AH84: =IF($W84=$Y$39,0,IF(AG84=0,0,ROUNDUP(7*T84*U84/1000*1.03,0))) -> 0 | AI84: =IF(Q84=$Z$18,INDEX($AH$307:$AI$339,MATCH(V84,$AG$307:$AG$339,0),1),IF(Q84=$Z$17,INDEX($AK$307:$AL$341,MATCH(V84,$AJ$307:$AJ$341,0),1),0)) -> 0 | AJ84: =AH84 -> 0 | AK84: =IF(Q84=$Z$18,INDEX($AO$306:$AP$323,MATCH(V84,$AN$306:$AN$323,0),2),IF(Q84=$Z$17,INDEX($AR$306:$AS$323,MATCH(V84,$AQ$306:$AQ$323,0),2),0)) -> 0 | AL84: 0 | AN84: =IFERROR(MATCH(Q84,$Z$15:$Z$20,0),0) -> 0
B85: =SUBTOTAL(3,$I$83:I85) -> 3 | C85: Телескопический крепеж ТехноНИКОЛЬ | F85: 50 | G85: мм | I85: 0 | J85: шт. | L85: =I85*K85 -> 0.00 | N85: 0 | Y85: =(530+R85+S85)/1000*T85 -> 0 | Z85: =T85*2 -> 0 | AA85: =T85 -> 0 | AB85: =IF(SUM(R85:S85)>U85,IF(Q85=$Z$16,((R85+S85)/1000*T85),IF(Q85=$Z$18,((R85+S85-U85)/1000*T85),IF(Q85=$Z$19,((V85+U85)/1000*T85),IF(Q85=$Z$20,((R85+S85+V85)/1000*T85),0)))),0) -> 0 | AC85: =ROUNDUP(IF(OR(Q85=$Z$19,Q85=$Z$15),SUM(Z85:AA85),IF(Q85=$Z$17,(T85+AA85),IF(Q85=$Z$20,T85,0))),0) -> 0 | AD85: =ROUNDUP(IF(Q85=$Z$16,SUM(Z85:AA85),IF(OR(Q85=$Z$20,Q85=$Z$18),(T85+AA85),0)),0) -> 0 | AE85: =ROUNDUP(IF(Q85=$Z$16,SUM(Z85:AA85)*5*1.03,IF(Q85=$Z$18,(AA85+T85)*5*1.03+AH85+AL85,IF(Q85=$Z$20,(AA85+T85)*5*1.03,0))),0) -> 0 | AF85: =ROUNDUP(IF($AE$5=1,U85/1000*V85/1000*T85*1.03,0),1) -> 0.0 | AG85: =IF(Q85=$Z$18,INDEX($AH$307:$AI$339,MATCH(V85,$AG$307:$AG$339,0),2),IF(Q85=$Z$17,INDEX($AK$307:$AL$341,MATCH(V85,$AJ$307:$AJ$341,0),2),0)) -> 0 | AH85: =IF($W85=$Y$39,0,IF(AG85=0,0,ROUNDUP(7*T85*U85/1000*1.03,0))) -> 0 | AI85: =IF(Q85=$Z$18,INDEX($AH$307:$AI$339,MATCH(V85,$AG$307:$AG$339,0),1),IF(Q85=$Z$17,INDEX($AK$307:$AL$341,MATCH(V85,$AJ$307:$AJ$341,0),1),0)) -> 0 | AJ85: =AH85 -> 0 | AK85: =IF(Q85=$Z$18,INDEX($AO$306:$AP$323,MATCH(V85,$AN$306:$AN$323,0),2),IF(Q85=$Z$17,INDEX($AR$306:$AS$323,MATCH(V85,$AQ$306:$AQ$323,0),2),0)) -> 0 | AL85: 0 | AN85: =IFERROR(MATCH(Q85,$Z$15:$Z$20,0),0) -> 0
B86: =SUBTOTAL(3,$I$83:I86) -> 4 | C86: Телескопический крепеж ТехноНИКОЛЬ | F86: 80 | G86: мм | I86: 0 | J86: шт. | L86: 0.00 | N86: 0 | P86: =IF(V3=Y4,"Примыкание к парапету высотой менее 500 мм"," ") ->  | Y86: Примыкание к парапету высотой менее 500 мм | AF86: ОБЪЕМ УТЕПЛ | AG86: САМОРЕЗ КУ | AI86: ТЕЛЕСКОП КУ | AK86: САМОРЕЗ КР
B87: =SUBTOTAL(3,$I$83:I87) -> 5 | C87: Телескопический крепеж ТехноНИКОЛЬ | F87: 100 | G87: мм | I87: 0 | J87: шт. | L87: 0.00 | N87: 0 | P87: НАЗВАНИЕ | Q87: =IF(V3=Y4,"ТИПЫ"," ") ->  | R87: =IF(V3=Y4,"ШИРИНА, мм"," ") ->  | S87: =IF(V3=Y4,"ВЫСОТА, мм"," ") ->  | T87: =IF(V3=Y4,"ДЛИНА, м"," ") ->  | U87: Н утепл, мм | V87: толщ., мм | W87: марка ут. | Y87: ПГ | Z87: ДПР | AA87: ТЭ | AB87: ГнП | AC87: СМРЗ. МЕТ | AD87: СМРЗ БЕТ. | AE87: АНКЕР, шт | AG87: размер | AH87: кол-во, шт | AI87: размер | AJ87: кол-во, шт | AK87: размер | AL87: кол-во, шт
B88: =SUBTOTAL(3,$I$83:I88) -> 6 | C88: Телескопический крепеж ТехноНИКОЛЬ | F88: 120 | G88: мм | I88: 0 | J88: шт. | L88: 0.00 | N88: 0 | Y88: =T88*(430+R88+S88)/1000 -> 0 | Z88: =T88 -> 0 | AA88: =T88 -> 0 | AB88: =IF(SUM(R88:S88)>U88,IF(Q88=$Z$16,((R88+S88)/1000*T88),IF(Q88=$Z$18,((R88+S88-U88)/1000*T88),IF(Q88=$Z$19,((V88+U88)/1000*T88),IF(Q88=$Z$20,((R88+S88+V88)/1000*T88),0)))),0) -> 0 | AC88: =ROUNDUP(IF(OR(Q88=$Z$17,Q88=$Z$19,Q88=$Z$15),SUM(Z88:AA88),0),0) -> 0 | AD88: =ROUNDUP(IF(OR(Q88=$Z$18,Q88=$Z$20,Q88=$Z$16),SUM(Z88:AA88),0),0) -> 0 | AE88: =ROUNDUP(IF(OR(Q88=$Z$20,Q88=$Z$16),SUM(Z88:AA88)*5*1.03,IF(Q88=$Z$18,(AA88+Z88)*5*1.03+AH88,0)),0) -> 0 | AF88: =ROUNDUP(IF($AE$6=1,U88/1000*V88/1000*T88*1.03,0),1) -> 0.0 | AG88: =IF(Q88=$Z$18,INDEX($AH$307:$AI$339,MATCH(V88,$AG$307:$AG$339,0),2),IF(Q88=$Z$17,INDEX($AK$307:$AL$341,MATCH(V88,$AJ$307:$AJ$341,0),2),0)) -> 0 | AH88: =IF($W88=$Y$39,0,IF(AG88=0,0,ROUNDUP(7*T88*U88/1000*1.03,0))) -> 0 | AI88: =IF(Q88=$Z$18,INDEX($AH$307:$AI$339,MATCH(V88,$AG$307:$AG$339,0),1),IF(Q88=$Z$17,INDEX($AK$307:$AL$341,MATCH(V88,$AJ$307:$AJ$341,0),1),0)) -> 0 | AJ88: =AH88 -> 0 | AK88: =IF(Q88=$Z$18,INDEX($AO$306:$AP$323,MATCH(V88,$AN$306:$AN$323,0),2),IF(Q88=$Z$17,INDEX($AR$306:$AS$323,MATCH(V88,$AQ$306:$AQ$323,0),2),0)) -> 0 | AL88: 0 | AN88: =IFERROR(MATCH(Q88,$Z$15:$Z$20,0),0) -> 0
B89: =SUBTOTAL(3,$I$83:I89) -> 7 | C89: Телескопический крепеж ТехноНИКОЛЬ | F89: 130 | G89: мм | I89: 0 | J89: шт. | L89: 0.00 | N89: 0 | Y89: =T89*(430+R89+S89)/1000 -> 0 | Z89: =T89 -> 0 | AA89: =T89 -> 0 | AB89: =IF(SUM(R89:S89)>U89,IF(Q89=$Z$16,((R89+S89)/1000*T89),IF(Q89=$Z$18,((R89+S89-U89)/1000*T89),IF(Q89=$Z$19,((V89+U89)/1000*T89),IF(Q89=$Z$20,((R89+S89+V89)/1000*T89),0)))),0) -> 0 | AC89: =ROUNDUP(IF(OR(Q89=$Z$17,Q89=$Z$19,Q89=$Z$15),SUM(Z89:AA89),0),0) -> 0 | AD89: =ROUNDUP(IF(OR(Q89=$Z$18,Q89=$Z$20,Q89=$Z$16),SUM(Z89:AA89),0),0) -> 0 | AE89: =ROUNDUP(IF(OR(Q89=$Z$20,Q89=$Z$16),SUM(Z89:AA89)*5*1.03,IF(Q89=$Z$18,(AA89+Z89)*5*1.03+AH89,0)),0) -> 0 | AF89: =ROUNDUP(IF($AE$6=1,U89/1000*V89/1000*T89*1.03,0),1) -> 0.0 | AG89: =IF(Q89=$Z$18,INDEX($AH$307:$AI$339,MATCH(V89,$AG$307:$AG$339,0),2),IF(Q89=$Z$17,INDEX($AK$307:$AL$341,MATCH(V89,$AJ$307:$AJ$341,0),2),0)) -> 0 | AH89: =IF($W89=$Y$39,0,IF(AG89=0,0,ROUNDUP(7*T89*U89/1000*1.03,0))) -> 0 | AI89: =IF(Q89=$Z$18,INDEX($AH$307:$AI$339,MATCH(V89,$AG$307:$AG$339,0),1),IF(Q89=$Z$17,INDEX($AK$307:$AL$341,MATCH(V89,$AJ$307:$AJ$341,0),1),0)) -> 0 | AJ89: =AH89 -> 0 | AK89: =IF(Q89=$Z$18,INDEX($AO$306:$AP$323,MATCH(V89,$AN$306:$AN$323,0),2),IF(Q89=$Z$17,INDEX($AR$306:$AS$323,MATCH(V89,$AQ$306:$AQ$323,0),2),0)) -> 0 | AL89: 0 | AN89: =IFERROR(MATCH(Q89,$Z$15:$Z$20,0),0) -> 0
B90: =SUBTOTAL(3,$I$83:I90) -> 8 | C90: Телескопический крепеж ТехноНИКОЛЬ | F90: 140 | G90: мм | I90: 0 | J90: шт. | L90: 0.00 | N90: 0 | Y90: =T90*(430+R90+S90)/1000 -> 0 | Z90: =T90 -> 0 | AA90: =T90 -> 0 | AB90: =IF(SUM(R90:S90)>U90,IF(Q90=$Z$16,((R90+S90)/1000*T90),IF(Q90=$Z$18,((R90+S90-U90)/1000*T90),IF(Q90=$Z$19,((V90+U90)/1000*T90),IF(Q90=$Z$20,((R90+S90+V90)/1000*T90),0)))),0) -> 0 | AC90: =ROUNDUP(IF(OR(Q90=$Z$17,Q90=$Z$19,Q90=$Z$15),SUM(Z90:AA90),0),0) -> 0 | AD90: =ROUNDUP(IF(OR(Q90=$Z$18,Q90=$Z$20,Q90=$Z$16),SUM(Z90:AA90),0),0) -> 0 | AE90: =ROUNDUP(IF(OR(Q90=$Z$20,Q90=$Z$16),SUM(Z90:AA90)*5*1.03,IF(Q90=$Z$18,(AA90+Z90)*5*1.03+AH90,0)),0) -> 0 | AF90: =ROUNDUP(IF($AE$6=1,U90/1000*V90/1000*T90*1.03,0),1) -> 0.0 | AG90: =IF(Q90=$Z$18,INDEX($AH$307:$AI$339,MATCH(V90,$AG$307:$AG$339,0),2),IF(Q90=$Z$17,INDEX($AK$307:$AL$341,MATCH(V90,$AJ$307:$AJ$341,0),2),0)) -> 0 | AH90: =IF($W90=$Y$39,0,IF(AG90=0,0,ROUNDUP(7*T90*U90/1000*1.03,0))) -> 0 | AI90: =IF(Q90=$Z$18,INDEX($AH$307:$AI$339,MATCH(V90,$AG$307:$AG$339,0),1),IF(Q90=$Z$17,INDEX($AK$307:$AL$341,MATCH(V90,$AJ$307:$AJ$341,0),1),0)) -> 0 | AJ90: =AH90 -> 0 | AK90: =IF(Q90=$Z$18,INDEX($AO$306:$AP$323,MATCH(V90,$AN$306:$AN$323,0),2),IF(Q90=$Z$17,INDEX($AR$306:$AS$323,MATCH(V90,$AQ$306:$AQ$323,0),2),0)) -> 0 | AL90: 0 | AN90: =IFERROR(MATCH(Q90,$Z$15:$Z$20,0),0) -> 0
